Workbook

Sheet Старт
S2: GMT +0 | T2: 4 | U2: =TODAY()-7 -> 2021-04-07 | V2: 7 | W2: flashscore.com (EN) | X2: 1 | Y2: =TODAY()-7 -> 2021-04-07
S3: GMT +1 | U3: =TODAY()-6 -> 2021-04-08 | W3: soccerstand.com (EN) | Y3: =TODAY()-6 -> 2021-04-08
S4: GMT +2 | U4: =TODAY()-5 -> 2021-04-09 | W4: soccerstand.com (RU) | Y4: =TODAY()-5 -> 2021-04-09
S5: GMT +3 | U5: =TODAY()-4 -> 2021-04-10 | W5: myscore.ru (RU) | Y5: =TODAY()-4 -> 2021-04-10
S6: GMT +4 | U6: =TODAY()-3 -> 2021-04-11 | W6: myscore.com.ua (RU) | Y6: =TODAY()-3 -> 2021-04-11
S7: GMT +5 | U7: =TODAY() -2 -> 2021-04-12 | Y7: =TODAY()-2 -> 2021-04-12
S8: GMT +6 | U8: Вчера | Y8: =TODAY()-1 -> 2021-04-13
H9: Incognito DeluX plus + Prorok Reload Incognito | S9: GMT +7 | U9: Сегодня | Y9: =TODAY() -> 2021-04-14
H10: based on InfinityBook engine | S10: GMT +8 | U10: Завтра | Y10: =TODAY()+1 -> 2021-04-15
H11: compilation Dm_35 | S11: GMT +9 | U11: =TODAY()+2 -> 2021-04-16 | Y11: =TODAY()+2 -> 2021-04-16
S12: GMT +10 | U12: =TODAY()+3 -> 2021-04-17 | Y12: =TODAY()+3 -> 2021-04-17
S13: GMT +11 | U13: =TODAY()+4 -> 2021-04-18 | Y13: =TODAY()+4 -> 2021-04-18
S14: GMT +12 | U14: =TODAY()+5 -> 2021-04-19 | Y14: =TODAY()+5 -> 2021-04-19
S15: GMT +13 | U15: =TODAY()+6 -> 2021-04-20 | Y15: =TODAY()+6 -> 2021-04-20
U16: =TODAY()+7 -> 2021-04-21 | Y16: =TODAY()+7 -> 2021-04-21

Sheet Список
A1: Чемпионат | B1: Дата/Время | C1: Дома | D1: Гости | E1: Match_ID | F1: Country_ID | G1: home_ID | H1: away_ID | I1: Загрузить | J1: К1 | K1: К2 | L1: П1 текущий | M1: Х текущий | N1: П2 текущий | O1: П1 старт | P1: Х старт | Q1: П2 старт | R1: П1 прогруз | S1: Х прогруз | T1: П2 прогруз | Y1: Yw8zZBvO
A2: BRAZIL: Campeonato Matogrossense | B2: 2021.04.12 23:00 | C2: Uniao Rondonopolis | D2: Sinop | E2: bPg8KzEK | F2: 39 | I2: Загрузить | J2: 1 | K2: 0 | R2: =IF(L2="","",L2-O2) ->  | S2: =IF(M2="","",M2-P2) ->  | T2: =IF(N2="","",N2-Q2) -> 
A3: ARGENTINA: Primera B - Apertura | B3: 2021.04.12 23:10 | C3: Los Andes | D3: Villa San Carlos | E3: IaLaZWEc | F3: 22 | I3: Загрузить | J3: 1 | K3: 0 | L3: 2.31 | M3: 3.04 | N3: 3.25 | O3: 2.32 | P3: 2.9 | Q3: 3.07 | R3: -0.01 | S3: 0.14 | T3: 0.18
A4: PERU: Liga 1 - Apertura | B4: 2021.04.12 23:30 | C4: FBC Melgar | D4: Ayacucho | E4: bP7U48l0 | F4: 152 | I4: Загрузить | J4: 0 | K4: 0 | L4: 2.05 | M4: 3.3 | N4: 3.6 | O4: 1.9 | P4: 3.3 | Q4: 3.6 | R4: 0.15 | S4: 0 | T4: 0
A5: CHILE: Primera B | B5: 2021.04.13 00:00 | C5: U. De Concepcion | D5: S. Morning | E5: ULHmM4AE | F5: 51 | I5: Загрузить | J5: 3 | K5: 3 | L5: 1.98 | M5: 3.42 | N5: 3.72 | O5: 1.93 | P5: 3 | Q5: 4.08 | R5: 0.05 | S5: 0.42 | T5: -0.36
A6: CHILE: Primera Division | B6: 2021.04.13 00:15 | C6: Curico Unido | D6: Antofagasta | E6: QFiiYW4C | F6: 51 | I6: Загрузить | J6: 1 | K6: 1 | L6: 2.8 | M6: 3.3 | N6: 2.3 | O6: 2.2 | P6: 3.3 | Q6: 2.9 | R6: 0.6 | S6: 0 | T6: -0.6
A7: ARGENTINA: Copa de la Liga Profesional | B7: 2021.04.13 01:00 | C7: Huracan | D7: Sarmiento Junin | E7: jPmHyCwO | F7: 22 | I7: Загрузить | J7: 3 | K7: 0 | L7: 2 | M7: 3.2 | N7: 3.6 | O7: 2.25 | P7: 3.2 | Q7: 2.87 | R7: -0.25 | S7: 0 | T7: 0.73
A8: ARGENTINA: Copa de la Liga Profesional | B8: 2021.04.13 01:00 | C8: Lanus | D8: Newells Old Boys | E8: UFnLzWhU | F8: 22 | I8: Загрузить | J8: 1 | K8: 3 | L8: 1.61 | M8: 3.6 | N8: 5 | O8: 2.25 | P8: 3.2 | Q8: 2.9 | R8: -0.64 | S8: 0.4 | T8: 2.1
A9: BRAZIL: Campeonato Catarinense | B9: 2021.04.13 01:00 | C9: Criciuma | D9: Metropolitano | E9: z5Tu4qR6 | F9: 39 | I9: Загрузить | J9: 2 | K9: 0 | L9: 1.61 | M9: 4 | N9: 4 | O9: 1.8 | P9: 3.4 | Q9: 3.75 | R9: -0.19 | S9: 0.6 | T9: 0.25
A10: ECUADOR: Liga Pro - First stage | B10: 2021.04.13 01:00 | C10: Barcelona SC | D10: Aucas | E10: C2SYD93e | F10: 68 | I10: Загрузить | L10: 1.12 | M10: 7 | N10: 13 | O10: 1.6 | P10: 3.5 | Q10: 5 | R10: -0.48 | S10: 3.5 | T10: 8
A11: BRAZIL: Campeonato Paulista | B11: 2021.04.13 02:00 | C11: Sao Paulo | D11: Bragantino | E11: 8buzaUDt | F11: 39 | I11: Загрузить | J11: 1 | K11: 0 | L11: 1.9 | M11: 3.4 | N11: 4 | O11: 1.72 | P11: 3.4 | Q11: 4.2 | R11: 0.18 | S11: 0 | T11: -0.2
A12: PARAGUAY: Primera Division - Apertura | B12: 2021.04.13 02:00 | C12: Guarani | D12: River Plate | E12: 80GvCTy4 | F12: 151 | I12: Загрузить | J12: 2 | K12: 0 | L12: 1.9 | M12: 3.25 | N12: 4 | O12: 1.72 | P12: 3.3 | Q12: 4.33 | R12: 0.18 | S12: -0.05 | T12: -0.33
A13: PARAGUAY: Division Intermedia | B13: 2021.04.13 02:00 | C13: Dep. Capiata | D13: Independiente FBC | E13: fZw7w3Do | F13: 151 | I13: Загрузить | J13: 0 | K13: 3
A14: ARGENTINA: Primera Nacional | B14: 2021.04.13 03:10 | C14: Almirante Brown | D14: Nueva Chicago | E14: KjIhc0PG | F14: 22 | I14: Загрузить | J14: 1 | K14: 0 | L14: 2.5 | M14: 2.87 | N14: 3.2 | O14: 2.37 | P14: 2.87 | Q14: 3.1 | R14: 0.13 | S14: 0 | T14: 0.1
A15: ARGENTINA: Copa de la Liga Profesional | B15: 2021.04.13 03:15 | C15: Atl. Tucuman | D15: Velez Sarsfield | E15: ralDxhOH | F15: 22 | I15: Загрузить | J15: 2 | K15: 0 | L15: 3.4 | M15: 3.2 | N15: 2 | O15: 3.75 | P15: 3.4 | Q15: 1.83 | R15: -0.35 | S15: -0.2 | T15: 0.17
A16: COLOMBIA: Primera A - Apertura | B16: 2021.04.13 04:00 | C16: Deportes Tolima | D16: Bucaramanga | E16: YsxSRDqI | F16: 53 | I16: Загрузить | J16: 0 | K16: 0 | L16: 1.55 | M16: 3.6 | N16: 6.5 | O16: 1.57 | P16: 3.5 | Q16: 5.5 | R16: -0.02 | S16: 0.1 | T16: 1
A17: MEXICO: Liga MX - Clausura | B17: 2021.04.13 05:00 | C17: Pachuca | D17: Puebla | E17: nTIdiFxb | F17: 128 | I17: Загрузить | J17: 1 | K17: 3 | L17: 2.05 | M17: 3.3 | N17: 3.6 | O17: 2 | P17: 3.5 | Q17: 3.6 | R17: 0.05 | S17: -0.2 | T17: 0
A18: ARMENIA: First League | B18: 2021.04.13 11:00 | C18: Alashkert 2 | D18: Ararat Yerevan 2 | E18: Gz7dxypC | F18: 23 | I18: Загрузить
A19: ASIA: Olympic Games Women - Qualification - Final Stage | B19: 2021.04.13 11:00 | C19: China W | D19: South Korea W | E19: z9Nca3Mj | F19: 5 | I19: Загрузить | J19: 1 | K19: 2 | L19: 1.64 | M19: 3.64 | N19: 5.1 | O19: 2.02 | P19: 2.8 | Q19: 4 | R19: -0.38 | S19: 0.84 | T19: 1.1
A20: KAZAKHSTAN: Premier League | B20: 2021.04.13 11:00 | C20: Kyzylzhar | D20: Aktobe | E20: vNHe38ml | F20: 102 | I20: Загрузить | J20: 1 | K20: 2 | L20: 2.66 | M20: 3.48 | N20: 2.46 | O20: 2.92 | P20: 3.56 | Q20: 2.26 | R20: -0.26 | S20: -0.08 | T20: 0.2
A21: AUSTRALIA: A-League | B21: 2021.04.13 12:05 | C21: Newcastle Jets | D21: Perth Glory | E21: t4qczeos | F21: 24 | I21: Загрузить | J21: 1 | K21: 1 | L21: 2.37 | M21: 3.75 | N21: 2.8 | O21: 2.1 | P21: 3.5 | Q21: 3.3 | R21: 0.27 | S21: 0.25 | T21: -0.5
A22: WORLD: Friendly International Women | B22: 2021.04.13 12:30 | C22: Slovenia W | D22: Slovakia W | E22: xfBxZ4E1 | F22: 8 | I22: Загрузить | J22: 5 | K22: 0 | L22: 1.83 | M22: 3.8 | N22: 3.5 | O22: 2.3 | P22: 3.6 | Q22: 2.5 | R22: -0.47 | S22: 0.2 | T22: 1
A23: GEORGIA: Crystalbet Erovnuli Liga 2 | B23: 2021.04.13 13:00 | C23: Zugdidi | D23: Merani Tbilisi | E23: zujysqMH | F23: 80 | I23: Загрузить | J23: 2 | K23: 1 | L23: 2.06 | M23: 3.42 | N23: 3.07 | O23: 2.25 | P23: 3.5 | Q23: 2.63 | R23: -0.19 | S23: -0.08 | T23: 0.44
A24: KAZAKHSTAN: Premier League | B24: 2021.04.13 13:00 | C24: Shakhtar Karagandy | D24: FK Akzhayik | E24: 8dMa2S2f | F24: 102 | I24: Загрузить | J24: 1 | K24: 2 | L24: 2.04 | M24: 3.46 | N24: 3.42 | O24: 2.13 | P24: 3.36 | Q24: 3.36 | R24: -0.09 | S24: 0.1 | T24: 0.06
A25: PORTUGAL: Taca Revelacao U23 | B25: 2021.04.13 13:00 | C25: Braga U23 | D25: Maritimo U23 | E25: YRBoIMEn | F25: 155 | I25: Загрузить | J25: 3 | K25: 2 | L25: 1.49 | M25: 4.38 | N25: 5.55 | O25: 1.72 | P25: 4.12 | Q25: 3.72 | R25: -0.23 | S25: 0.26 | T25: 1.83
A26: RUSSIA: PFL - Group 4 | B26: 2021.04.13 13:00 | C26: Krylya Sovetov Samara 2 | D26: Dynamo Barnaul | E26: 0MwB90fQ | F26: 158 | I26: Загрузить | J26: 0 | K26: 2 | L26: 3.56 | M26: 3.6 | N26: 1.91 | O26: 3.78 | P26: 3.62 | Q26: 1.85 | R26: -0.22 | S26: -0.02 | T26: 0.06
A27: UKRAINE: Druha Liga | B27: 2021.04.13 13:00 | C27: Dunaivtsi | D27: Rubikon Kyiv | E27: 0Y98QJuA | F27: 195 | I27: Загрузить | J27: 3 | K27: 0
A28: AUSTRALIA: Brisbane Premier League | B28: 2021.04.13 13:30 | C28: Centenary Stormers | D28: The Gap | E28: YJ7T8AIh | F28: 24 | I28: Загрузить | J28: 2 | K28: 1 | L28: 1.42 | M28: 5.1 | N28: 5.45 | O28: 1.42 | P28: 4.9 | Q28: 5.5 | R28: 0 | S28: 0.2 | T28: -0.05
A29: TURKEY: 1. Lig | B29: 2021.04.13 13:30 | C29: Tuzlaspor | D29: Eskisehirspor | E29: 86Hp3n6g | F29: 191 | I29: Загрузить | J29: 5 | K29: 2 | L29: 1.14 | M29: 7 | N29: 13 | O29: 1.12 | P29: 9 | Q29: 11 | R29: 0.02 | S29: -2 | T29: 2
A30: WORLD: Club Friendly | B30: 2021.04.13 13:30 | C30: North Star | D30: Virginia United | E30: rc3opkvr | F30: 8 | I30: Загрузить | J30: 7 | K30: 1
A31: ARMENIA: Premier League | B31: 2021.04.13 14:00 | C31: Lori | D31: Ararat-Armenia | E31: tvf1hOOk | F31: 23 | I31: Загрузить
A32: GEORGIA: Crystalbet Erovnuli Liga 2 | B32: 2021.04.13 14:00 | C32: Shevardeni Tbilisi | D32: Gagra | E32: lOmPqoxa | F32: 80 | I32: Загрузить | J32: 1 | K32: 1 | L32: 4.72 | M32: 4.92 | N32: 1.43 | O32: 6.25 | P32: 3.6 | Q32: 1.51 | R32: -1.53 | S32: 1.32 | T32: -0.08
A33: WORLD: Club Friendly | B33: 2021.04.13 14:15 | C33: Bashkimi | D33: Milano Kumanovo | E33: OzBIFAg2 | F33: 8 | I33: Загрузить
A34: SLOVAKIA: Slovak Cup - Final Stage | B34: 2021.04.13 14:30 | C34: FC Kosice | D34: Trencin | E34: 6iOxUEMA | F34: 171 | I34: Загрузить | J34: 3 | K34: 0 | L34: 3.6 | M34: 3.6 | N34: 1.8 | O34: 3.5 | P34: 3.5 | Q34: 1.85 | R34: 0.1 | S34: 0.1 | T34: -0.05
A35: ENGLAND: Professional Development League | B35: 2021.04.13 15:00 | C35: Bristol City U23 | D35: Nottingham U23 | E35: xxQk8WCg | F35: 198 | I35: Загрузить | J35: 1 | K35: 1 | L35: 2.5 | M35: 4.09 | N35: 2.35 | O35: 2.2 | P35: 3.8 | Q35: 2.5 | R35: 0.3 | S35: 0.29 | T35: -0.15
A36: ENGLAND: Professional Development League | B36: 2021.04.13 15:00 | C36: Cardiff U23 | D36: Sheffield Utd U23 | E36: Yw8zZBvO | F36: 198 | G36: Y17Xmgef | H36: KfZWFnZf | I36: Загрузить | J36: 0 | K36: 2 | L36: 3.46 | M36: 4.27 | N36: 1.83 | O36: 2.93 | P36: 3.8 | Q36: 2.02 | R36: 0.53 | S36: 0.47 | T36: -0.19
A37: ENGLAND: Professional Development League | B37: 2021.04.13 15:00 | C37: Ipswich U23 | D37: Barnsley U23 | E37: rFQo9Ccm | F37: 198 | I37: Загрузить | J37: 0 | K37: 1 | L37: 2.78 | M37: 3.71 | N37: 2.27 | O37: 2.02 | P37: 3.6 | Q37: 3.06 | R37: 0.76 | S37: 0.11 | T37: -0.79
A38: ENGLAND: Professional Development League | B38: 2021.04.13 15:00 | C38: QPR U23 | D38: Coventry U23 | E38: Y3Jb6As6 | F38: 198 | I38: Загрузить | J38: 1 | K38: 4 | L38: 2.57 | M38: 3.7 | N38: 2.34 | O38: 2.25 | P38: 3.74 | Q38: 2.5 | R38: 0.32 | S38: -0.04 | T38: -0.16
A39: ENGLAND: Professional Development League | B39: 2021.04.13 15:00 | C39: Swansea U23 | D39: Crewe U23 | E39: CU6vYVgU | F39: 198 | I39: Загрузить | J39: 1 | K39: 1 | L39: 2.27 | M39: 3.88 | N39: 2.63 | O39: 2.4 | P39: 3.6 | Q39: 2.4 | R39: -0.13 | S39: 0.28 | T39: 0.23
A40: IRAN: Division 1 | B40: 2021.04.13 15:00 | C40: Baderan Tehran | D40: Arman Gohar | E40: SMjz2CtB | F40: 94 | I40: Загрузить | J40: 2 | K40: 0 | L40: 1.54 | M40: 3.66 | N40: 6.25 | O40: 1.45 | P40: 3.6 | Q40: 7.3 | R40: 0.09 | S40: 0.06 | T40: -1.05
A41: WORLD: Friendly International | B41: 2021.04.13 15:00 | C41: North Macedonia U19 | D41: Montenegro U19 | E41: QaJoYJnf | F41: 8 | I41: Загрузить | J41: 2 | K41: 0 | L41: 2 | M41: 3.5 | N41: 3.1 | O41: 2.2 | P41: 3.4 | Q41: 2.75 | R41: -0.2 | S41: 0.1 | T41: 0.35
A42: WORLD: Friendly International Women | B42: 2021.04.13 15:00 | C42: Hungary W | D42: Bosnia & Herzegovina W | E42: zks7lpEl | F42: 8 | I42: Загрузить | J42: 0 | K42: 0 | L42: 1.55 | M42: 4 | N42: 4.75 | O42: 1.66 | P42: 3.75 | Q42: 4 | R42: -0.11 | S42: 0.25 | T42: 0.75
A43: IRAN: Division 1 | B43: 2021.04.13 15:15 | C43: Chooka Talesh | D43: Esteghlal Khuzestan | E43: MN88q4Qq | F43: 94 | I43: Загрузить | J43: 1 | K43: 3 | L43: 4.54 | M43: 2.59 | N43: 2.1 | O43: 3.7 | P43: 2.75 | Q43: 2.12 | R43: 0.84 | S43: -0.16 | T43: -0.02
A44: IRAN: Division 1 | B44: 2021.04.13 15:15 | C44: Khooshe Talaee | D44: Shahin Bushehr | E44: pbou1WeH | F44: 94 | I44: Загрузить | J44: 0 | K44: 1 | L44: 2.52 | M44: 2.24 | N44: 4.2 | O44: 2.52 | P44: 2.5 | Q44: 3.28 | R44: 0 | S44: -0.26 | T44: 0.92
A45: IRAN: Division 1 | B45: 2021.04.13 15:15 | C45: Malavan | D45: Rayka Babol | E45: rZlO4Edh | F45: 94 | I45: Загрузить | J45: 1 | K45: 0 | L45: 1.98 | M45: 3.11 | N45: 4.14 | O45: 1.87 | P45: 3 | Q45: 4.28 | R45: 0.11 | S45: 0.11 | T45: -0.14
A46: IRAN: Division 1 | B46: 2021.04.13 15:15 | C46: Mes Kerman | D46: Astara | E46: f9hS3YBb | F46: 94 | I46: Загрузить | J46: 2 | K46: 0 | L46: 1.6 | M46: 3.24 | N46: 7.32 | O46: 2.02 | P46: 2.75 | Q46: 4.1 | R46: -0.42 | S46: 0.49 | T46: 3.22
A47: IRAN: Division 1 | B47: 2021.04.13 15:15 | C47: Navad Urmia | D47: Fajr Sepasi | E47: lWiW2hR4 | F47: 94 | I47: Загрузить | J47: 0 | K47: 1 | L47: 3.61 | M47: 2.58 | N47: 2.47 | O47: 3.28 | P47: 2.5 | Q47: 2.52 | R47: 0.33 | S47: 0.08 | T47: -0.05
A48: IRAN: Division 1 | B48: 2021.04.13 15:15 | C48: Qashqai Shiraz | D48: Havadar SC | E48: 0AaJ5fsn | F48: 94 | I48: Загрузить | J48: 0 | K48: 0 | L48: 3.55 | M48: 2.48 | N48: 2.61 | O48: 2.88 | P48: 2.63 | Q48: 2.63 | R48: 0.67 | S48: -0.15 | T48: -0.02
A49: CZECH REPUBLIC: 1. Liga | B49: 2021.04.13 15:30 | C49: FK Pardubice | D49: Slovacko | E49: S0gywGqE | F49: 62 | I49: Загрузить | J49: 3 | K49: 1 | L49: 4.5 | M49: 3.1 | N49: 1.9 | O49: 3 | P49: 3.2 | Q49: 2.25 | R49: 1.5 | S49: -0.1 | T49: -0.35
A50: IRAN: Division 1 | B50: 2021.04.13 15:30 | C50: Esteghlal Molasani | D50: Kheybar Khorramabad | E50: UmCGsred | F50: 94 | I50: Загрузить | J50: 0 | K50: 1 | L50: 3.58 | M50: 2.18 | N50: 2.93 | O50: 2.42 | P50: 2.5 | Q50: 3.48 | R50: 1.16 | S50: -0.32 | T50: -0.55
A51: IRAN: Division 1 | B51: 2021.04.13 15:30 | C51: Pars Janoobi Jam | D51: Gol Reyhan Alborz | E51: Gp8CrOuj | F51: 94 | I51: Загрузить | J51: 3 | K51: 1
A52: BULGARIA: Vtora liga | B52: 2021.04.13 16:00 | C52: Svoge | D52: Hebar | E52: EqdkKCWF | F52: 41 | I52: Загрузить | J52: 1 | K52: 1 | L52: 1.97 | M52: 3.46 | N52: 3.52 | O52: 2.12 | P52: 3.3 | Q52: 3.06 | R52: -0.15 | S52: 0.16 | T52: 0.46
A53: ENGLAND: Professional Development League | B53: 2021.04.13 16:00 | C53: Millwall U23 | D53: Birmingham U23 | E53: juUg7jSa | F53: 198 | I53: Загрузить | J53: 2 | K53: 3 | L53: 3.14 | M53: 3.76 | N53: 2.01 | O53: 2.3 | P53: 3.74 | Q53: 2.4 | R53: 0.84 | S53: 0.02 | T53: -0.39
A54: ETHIOPIA: Premier League | B54: 2021.04.13 16:00 | C54: Fasil Ketema | D54: Bahir Dar Kenema | E54: 8pA2gtcF | F54: 74 | I54: Загрузить | J54: 0 | K54: 0 | L54: 1.99 | M54: 3.33 | N54: 3.75 | O54: 1.93 | P54: 3.2 | Q54: 3.68 | R54: 0.06 | S54: 0.13 | T54: 0.07
A55: IRAQ: Super League | B55: 2021.04.13 16:00 | C55: Alsinaat Alkahrabaiya | D55: Al Zawraa | E55: jmQmkjWf | F55: 95 | I55: Загрузить | J55: 0 | K55: 1
A56: SOUTH AFRICA: GladAfrica Championship | B56: 2021.04.13 16:00 | C56: Pretoria Callies | D56: Cape Umoya United | E56: IcthqJvE | F56: 175 | I56: Загрузить | J56: 0 | K56: 2
A57: SOUTH AFRICA: GladAfrica Championship | B57: 2021.04.13 16:00 | C57: Pretoria U. | D57: JDR Stars | E57: C41ZsSxQ | F57: 175 | I57: Загрузить | J57: 0 | K57: 0
A58: SOUTH AFRICA: GladAfrica Championship | B58: 2021.04.13 16:00 | C58: Richards Bay | D58: Free State Stars | E58: Uql1wnos | F58: 175 | I58: Загрузить | J58: 1 | K58: 2
A59: SOUTH AFRICA: GladAfrica Championship | B59: 2021.04.13 16:00 | C59: Royal AM | D59: Polokwane | E59: b1cVr8NJ | F59: 175 | I59: Загрузить | J59: 2 | K59: 1
A60: TANZANIA: Ligi Kuu Bara | B60: 2021.04.13 16:00 | C60: Biashara Mara United | D60: Coastal Union | E60: t6AiWR3A | F60: 185 | I60: Загрузить | J60: 0 | K60: 1 | L60: 1.63 | M60: 3.54 | N60: 5.72 | O60: 1.8 | P60: 3.05 | Q60: 5.1 | R60: -0.17 | S60: 0.49 | T60: 0.62
A61: UGANDA: Premier League | B61: 2021.04.13 16:00 | C61: BUL | D61: Kyetume | E61: vRHsEEfp | F61: 194 | I61: Загрузить | J61: 1 | K61: 1 | L61: 2.03 | M61: 3.32 | N61: 3.64 | O61: 1.82 | P61: 3.24 | Q61: 4.08 | R61: 0.21 | S61: 0.08 | T61: -0.44
A62: UGANDA: Premier League | B62: 2021.04.13 16:00 | C62: Mbarara City | D62: Myda | E62: YPbYzx2c | F62: 194 | I62: Загрузить | J62: 2 | K62: 1 | L62: 1.37 | M62: 4.67 | N62: 8.09 | O62: 1.34 | P62: 4.32 | Q62: 7.8 | R62: 0.03 | S62: 0.35 | T62: 0.29
A63: UGANDA: Premier League | B63: 2021.04.13 16:00 | C63: Onduparaka FC | D63: Airtel Kitara | E63: fZaUyIni | F63: 194 | I63: Загрузить | J63: 2 | K63: 1 | L63: 1.4 | M63: 3.8 | N63: 7.8 | O63: 1.41 | P63: 3.74 | Q63: 7.8 | R63: -0.01 | S63: 0.06 | T63: 0
A64: UGANDA: Premier League | B64: 2021.04.13 16:00 | C64: URA SC | D64: Kampala City | E64: MoVFIfnT | F64: 194 | I64: Загрузить | J64: 2 | K64: 0 | L64: 2.34 | M64: 3.12 | N64: 3.12 | O64: 2.27 | P64: 3 | Q64: 3.07 | R64: 0.07 | S64: 0.12 | T64: 0.05
A65: UGANDA: Premier League | B65: 2021.04.13 16:00 | C65: Vipers | D65: Busoga | E65: hULoDY9j | F65: 194 | I65: Загрузить | J65: 4 | K65: 0 | L65: 1.31 | M65: 4.86 | N65: 9.71 | O65: 1.3 | P65: 4.5 | Q65: 9.4 | R65: 0.01 | S65: 0.36 | T65: 0.31
A66: UKRAINE: Druha Liga | B66: 2021.04.13 16:00 | C66: Real Pharma | D66: Dnipro Cherkasy | E66: 6PJfNN3s | F66: 195 | I66: Загрузить | J66: 0 | K66: 0 | R66: =IF(L66="","",L66-O66) ->  | S66: =IF(M66="","",M66-P66) ->  | T66: =IF(N66="","",N66-Q66) -> 
A67: WORLD: Friendly International Women | B67: 2021.04.13 16:00 | C67: Ethiopia W | D67: South Sudan W | E67: 2N1Ty1A4 | F67: 8 | I67: Загрузить | J67: 3 | K67: 0
A68: WORLD: Friendly International Women | B68: 2021.04.13 16:00 | C68: South Africa W | D68: Botswana W | E68: SdaXWypF | F68: 8 | I68: Загрузить | J68: 2 | K68: 0
A69: ITALY: Primavera 2 | B69: 2021.04.13 16:30 | C69: Chievo U19 | D69: Reggiana U19 | E69: 2qNPtfE8 | F69: 98 | I69: Загрузить | J69: 3 | K69: 1 | L69: 1.42 | M69: 4.94 | N69: 5.75 | O69: 1.34 | P69: 5 | Q69: 6.2 | R69: 0.08 | S69: -0.06 | T69: -0.45
A70: ROMANIA: Liga 2 - Championship Group | B70: 2021.04.13 16:30 | C70: Csikszereda M. Ciuc | D70: U Craiova 1948 | E70: K66onFG4 | F70: 157 | I70: Загрузить | J70: 1 | K70: 2 | L70: 2.8 | M70: 3 | N70: 2.5 | O70: 2.87 | P70: 3 | Q70: 2.3 | R70: -0.07 | S70: 0 | T70: 0.2
A71: SLOVAKIA: Slovak Cup - Final Stage | B71: 2021.04.13 16:30 | C71: Z. Moravce-Vrable | D71: Zilina | E71: QiVlRC6T | F71: 171 | I71: Загрузить | J71: 0 | K71: 2 | L71: 3.3 | M71: 3.5 | N71: 2 | O71: 2.75 | P71: 3.4 | Q71: 2.2 | R71: 0.55 | S71: 0.1 | T71: -0.2
A72: EUROPE: Euro Women - Qualification - Promotion | B72: 2021.04.13 17:00 | C72: Russia W | D72: Portugal W | E72: x4QedjsF | F72: 6 | I72: Загрузить | J72: 0 | K72: 0 | L72: 2.45 | M72: 3 | N72: 2.9 | O72: 2.1 | P72: 3 | Q72: 3.25 | R72: 0.35 | S72: 0 | T72: -0.35
A73: ITALY: Serie B | B73: 2021.04.13 17:00 | C73: Cremonese | D73: Empoli | E73: OhW4Zj6C | F73: 98 | I73: Загрузить | J73: 2 | K73: 2 | L73: 3.1 | M73: 3.3 | N73: 2.3 | O73: 3 | P73: 3.2 | Q73: 2.4 | R73: 0.1 | S73: 0.1 | T73: -0.1
A74: LITHUANIA: A Lyga | B74: 2021.04.13 17:00 | C74: FK Panevezys | D74: Hegelmann Litauen | E74: dYtQ21VG | F74: 116 | I74: Загрузить | J74: 2 | K74: 2 | L74: 1.44 | M74: 4 | N74: 6.5 | O74: 1.66 | P74: 3.6 | Q74: 4.2 | R74: -0.22 | S74: 0.4 | T74: 2.3
A75: ROMANIA: Liga 3 - Seria 5 | B75: 2021.04.13 17:00 | C75: Kids Tampa Brasov | D75: Odorheiu | E75: lCece4Tc | F75: 157 | I75: Загрузить | J75: 0 | K75: 3 | L75: 6.75 | M75: 5.25 | N75: 1.33 | O75: 6.7 | P75: 5.5 | Q75: 1.3 | R75: 0.05 | S75: -0.25 | T75: 0.03
A76: WORLD: Friendly International Women | B76: 2021.04.13 17:00 | C76: Germany W | D76: Norway W | E76: AwQai1q1 | F76: 8 | I76: Загрузить | J76: 3 | K76: 1 | L76: 1.28 | M76: 5.25 | N76: 8 | O76: 1.33 | P76: 5 | Q76: 6 | R76: -0.05 | S76: 0.25 | T76: 2
A77: WORLD: Friendly International Women | B77: 2021.04.13 17:00 | C77: Italy W | D77: Iceland W | E77: M5yN9TyK | F77: 8 | I77: Загрузить | J77: 1 | K77: 1 | L77: 1.65 | M77: 3.6 | N77: 5 | O77: 1.66 | P77: 3.5 | Q77: 4.33 | R77: -0.01 | S77: 0.1 | T77: 0.67
A78: DR CONGO: Ligue 1 | B78: 2021.04.13 17:30 | C78: Mazembe | D78: Don Bosco | E78: KG5F5sas | F78: 55 | I78: Загрузить
A79: POLAND: III Liga - Group IV | B79: 2021.04.13 18:00 | C79: S. Wola | D79: Hetman Zamosc | E79: CS5MtvAn | F79: 154 | I79: Загрузить | J79: 5 | K79: 0 | L79: 1.08 | M79: 8.9 | N79: 22 | O79: 1.1 | P79: 9 | Q79: 14.5 | R79: -0.02 | S79: -0.1 | T79: 7.5
A80: REPUBLIC OF THE CONGO: Ligue 1 | B80: 2021.04.13 18:00 | C80: Kondzo | D80: Nico-Nicoye | E80: dbr3kQbr | F80: 56 | I80: Загрузить | J80: 2 | K80: 1
A81: SWITZERLAND: Swiss Cup | B81: 2021.04.13 18:00 | C81: Lugano | D81: Luzern | E81: AaieKaX2 | F81: 182 | I81: Загрузить | J81: 1 | K81: 1 | L81: 2.5 | M81: 3.1 | N81: 2.7 | O81: 2.4 | P81: 3.4 | Q81: 2.5 | R81: 0.1 | S81: -0.3 | T81: 0.2
A82: WORLD: Club Friendly | B82: 2021.04.13 18:00 | C82: HJK | D82: AC Oulu | E82: tCk7RSad | F82: 8 | I82: Загрузить | J82: 4 | K82: 0 | L82: 1.14 | M82: 6.5 | N82: 12 | O82: 1.2 | P82: 6.5 | Q82: 8.5 | R82: -0.06 | S82: 0 | T82: 3.5
A83: SLOVENIA: Prva liga | B83: 2021.04.13 18:15 | C83: O. Ljubljana | D83: Bravo | E83: UD7X6G4r | F83: 172 | I83: Загрузить | J83: 1 | K83: 1 | L83: 1.53 | M83: 3.75 | N83: 6 | O83: 1.61 | P83: 3.5 | Q83: 4.75 | R83: -0.08 | S83: 0.25 | T83: 1.25
A84: BULGARIA: Bulgarian Cup | B84: 2021.04.13 18:30 | C84: Slavia Sofia | D84: Arda | E84: nZZSGdLm | F84: 41 | I84: Загрузить | J84: 0 | K84: 1 | L84: 3.4 | M84: 3.1 | N84: 2.15 | O84: 2.62 | P84: 3 | Q84: 2.5 | R84: 0.78 | S84: 0.1 | T84: -0.35
A85: CROATIA: 3. HNL West | B85: 2021.04.13 18:30 | C85: Krk | D85: Buje | E85: IqsximYR | F85: 59 | I85: Загрузить | J85: 4 | K85: 2 | L85: 2.51 | M85: 3.56 | N85: 2.56 | O85: 2.45 | P85: 3.4 | Q85: 2.45 | R85: 0.06 | S85: 0.16 | T85: 0.11
A86: ANGOLA: Girabola | B86: 2021.04.13 19:00 | C86: Primeiro de Agosto | D86: Caala | E86: fTYZDaMh | F86: 20 | I86: Загрузить | J86: 4 | K86: 0 | L86: 1.72 | M86: 2.92 | N86: 6.79 | O86: 1.59 | P86: 3.2 | Q86: 6.1 | R86: 0.13 | S86: -0.28 | T86: 0.69
A87: CYPRUS: First Division - Relegation Group | B87: 2021.04.13 19:00 | C87: Karmiotissa | D87: Achnas | E87: xM5mzMm2 | F87: 61 | I87: Загрузить | J87: 2 | K87: 4 | L87: 15 | M87: 6 | N87: 1.16 | O87: 4.75 | P87: 3.8 | Q87: 1.57 | R87: 10.25 | S87: 2.2 | T87: -0.41
A88: ETHIOPIA: Premier League | B88: 2021.04.13 19:00 | C88: Adama City | D88: Hadiya Hossana | E88: ny96h0CL | F88: 74 | I88: Загрузить | J88: 1 | K88: 1 | L88: 6.05 | M88: 3.6 | N88: 1.53 | O88: 5.7 | P88: 3.74 | Q88: 1.51 | R88: 0.35 | S88: -0.14 | T88: 0.02
A89: FAROE ISLANDS: 1. Deild | B89: 2021.04.13 19:00 | C89: AB Argir | D89: HB Torshavn 2 | E89: WYTPoe2D | F89: 231 | I89: Загрузить | J89: 2 | K89: 1 | L89: 2.46 | M89: 4.06 | N89: 2.3 | O89: 2.4 | P89: 4 | Q89: 2.25 | R89: 0.06 | S89: 0.06 | T89: 0.05
A90: GUINEA: Ligue 1 | B90: 2021.04.13 19:00 | C90: Wakriya | D90: Satellite | E90: z13pkCkD | F90: 86 | I90: Загрузить | J90: 1 | K90: 1
A91: LITHUANIA: A Lyga | B91: 2021.04.13 19:00 | C91: Banga | D91: Dainava Alytus | E91: h0zZ0u0T | F91: 116 | I91: Загрузить | J91: 2 | K91: 0 | L91: 1.85 | M91: 3.4 | N91: 3.8 | O91: 2.15 | P91: 3.2 | Q91: 3 | R91: -0.3 | S91: 0.2 | T91: 0.8
A92: ROMANIA: Romanian Cup | B92: 2021.04.13 19:00 | C92: Astra | D92: Din. Bucuresti | E92: 2BsAvVxM | F92: 157 | I92: Загрузить | J92: 1 | K92: 0 | L92: 2.25 | M92: 3.3 | N92: 2.87 | O92: 2.1 | P92: 3.25 | Q92: 3.25 | R92: 0.15 | S92: 0.05 | T92: -0.38
A93: TURKEY: 1. Lig | B93: 2021.04.13 19:00 | C93: Altinordu | D93: Adana Demirspor | E93: 0tEx58ys | F93: 191 | I93: Загрузить | J93: 0 | K93: 1 | L93: 3 | M93: 3.5 | N93: 2 | O93: 2.6 | P93: 3.4 | Q93: 2.3 | R93: 0.4 | S93: 0.1 | T93: -0.3
A94: TURKEY: 1. Lig | B94: 2021.04.13 19:00 | C94: Giresunspor | D94: Keciorengucu | E94: vXCt4Sjm | F94: 191 | I94: Загрузить | J94: 2 | K94: 1 | L94: 1.95 | M94: 3 | N94: 4 | O94: 1.8 | P94: 3.25 | Q94: 4 | R94: 0.15 | S94: -0.25 | T94: 0
A95: WORLD: Club Friendly | B95: 2021.04.13 19:00 | C95: Michigan Stars | D95: San Diego 1904 | E95: t2xDmSqc | F95: 8 | I95: Загрузить | J95: 1 | K95: 1
A96: WORLD: Olympic Games Women - Qualification - Promotion | B96: 2021.04.13 19:00 | C96: Chile W | D96: Cameroon W | E96: nuXmqBQa | F96: 8 | I96: Загрузить | J96: 0 | K96: 0 | L96: 1.97 | M96: 3.58 | N96: 3.16 | O96: 2.02 | P96: 3.4 | Q96: 2.99 | R96: -0.05 | S96: 0.18 | T96: 0.17
A97: AUSTRIA: 2. Liga | B97: 2021.04.13 19:10 | C97: Amstetten | D97: A. Klagenfurt | E97: dGcFWdGg | F97: 25 | I97: Загрузить | J97: 1 | K97: 6 | L97: 4.2 | M97: 3.75 | N97: 1.75 | O97: 3.2 | P97: 3.5 | Q97: 2.05 | R97: 1 | S97: 0.25 | T97: -0.3
A98: AUSTRIA: 2. Liga | B98: 2021.04.13 19:30 | C98: Floridsdorfer AC | D98: Vorwarts Steyr | E98: rXaRTf0C | F98: 25 | I98: Загрузить | J98: 0 | K98: 1 | L98: 1.72 | M98: 3.75 | N98: 4 | O98: 1.8 | P98: 3.6 | Q98: 3.75 | R98: -0.08 | S98: 0.15 | T98: 0.25
A99: AUSTRIA: 2. Liga | B99: 2021.04.13 19:30 | C99: Horn | D99: Wacker Innsbruck | E99: 4t1NUzo6 | F99: 25 | I99: Загрузить | J99: 2 | K99: 3 | L99: 4.75 | M99: 4.2 | N99: 1.57 | O99: 3.5 | P99: 3.8 | Q99: 1.83 | R99: 1.25 | S99: 0.4 | T99: -0.26
A100: AUSTRIA: 2. Liga | B100: 2021.04.13 19:30 | C100: Kapfenberg | D100: Lafnitz | E100: vagzSYUO | F100: 25 | I100: Загрузить | J100: 1 | K100: 0 | L100: 3.1 | M100: 3.6 | N100: 2.05 | O100: 3.2 | P100: 3.6 | Q100: 2 | R100: -0.1 | S100: 0 | T100: 0.05
A101: ENGLAND: Championship | B101: 2021.04.13 19:30 | C101: Huddersfield | D101: Bournemouth | E101: betyLXjQ | F101: 198 | I101: Загрузить | J101: 1 | K101: 2 | L101: 4.5 | M101: 3.6 | N101: 1.8 | O101: 3.6 | P101: 3.5 | Q101: 2 | R101: 0.9 | S101: 0.1 | T101: -0.2
A102: GIBRALTAR: Gibraltar Cup | B102: 2021.04.13 19:30 | C102: Europa FC | D102: St Josephs | E102: MilqfZ6F | F102: 304 | I102: Загрузить | J102: 3 | K102: 0
A103: PORTUGAL: Taca Revelacao U23 | B103: 2021.04.13 19:30 | C103: Famalicao U23 | D103: Belenenses U23 | E103: MmrTauaI | F103: 155 | I103: Загрузить | J103: 2 | K103: 1 | L103: 1.94 | M103: 3.67 | N103: 3.56 | O103: 1.82 | P103: 3.6 | Q103: 3.66 | R103: 0.12 | S103: 0.07 | T103: -0.1
A104: WORLD: Friendly International Women | B104: 2021.04.13 19:30 | C104: Netherlands W | D104: Australia W | E104: 6iOMikHR | F104: 8 | I104: Загрузить | J104: 5 | K104: 0 | L104: 1.36 | M104: 4.33 | N104: 7.5 | O104: 1.83 | P104: 3.4 | Q104: 3.6 | R104: -0.47 | S104: 0.93 | T104: 3.9
A105: WORLD: Friendly International Women | B105: 2021.04.13 19:30 | C105: Poland W | D105: Sweden W | E105: xpEqctgP | F105: 8 | I105: Загрузить | J105: 2 | K105: 4 | L105: 9.5 | M105: 6 | N105: 1.22 | O105: 6.5 | P105: 4.75 | Q105: 1.33 | R105: 3 | S105: 1.25 | T105: -0.11
A106: ENGLAND: Championship | B106: 2021.04.13 20:00 | C106: Sheffield Wed | D106: Swansea | E106: jV0ZAy64 | F106: 198 | I106: Загрузить | J106: 0 | K106: 2 | L106: 2.8 | M106: 3.1 | N106: 2.62 | O106: 3.75 | P106: 3.3 | Q106: 2 | R106: -0.95 | S106: -0.2 | T106: 0.62
A107: ENGLAND: League One | B107: 2021.04.13 20:00 | C107: Crewe | D107: Portsmouth | E107: zcTG181P | F107: 198 | I107: Загрузить | J107: 0 | K107: 0 | L107: 3.2 | M107: 3.4 | N107: 2.2 | O107: 3 | P107: 3.4 | Q107: 2.3 | R107: 0.2 | S107: 0 | T107: -0.1
A108: ENGLAND: League One | B108: 2021.04.13 20:00 | C108: Wigan | D108: Sunderland | E108: S4ZB3qk3 | F108: 198 | I108: Загрузить | J108: 2 | K108: 1 | L108: 4.5 | M108: 3.6 | N108: 1.8 | O108: 4.5 | P108: 3.8 | Q108: 1.72 | R108: 0 | S108: -0.2 | T108: 0.08
A109: GERMANY: Regionalliga Sudwest | B109: 2021.04.13 20:00 | C109: Elversberg | D109: Stadtallendorf | E109: 2whTy92m | F109: 81 | I109: Загрузить | J109: 4 | K109: 1 | L109: 1.08 | M109: 10.5 | N109: 27 | O109: 1.11 | P109: 7.4 | Q109: 15 | R109: -0.03 | S109: 3.1 | T109: 12
A110: MALI: Premiere Division | B110: 2021.04.13 20:00 | C110: CO Bamako | D110: Sonni | E110: 8CS8gfa1 | F110: 123 | I110: Загрузить | J110: 4 | K110: 0
A111: MALI: Premiere Division | B111: 2021.04.13 20:00 | C111: Djoliba | D111: Yeelen | E111: MFWChEE7 | F111: 123 | I111: Загрузить | J111: 1 | K111: 0
A112: SCOTLAND: Championship | B112: 2021.04.13 20:00 | C112: Dunfermline | D112: Dundee FC | E112: lr6FK4g9 | F112: 199 | I112: Загрузить | J112: 0 | K112: 0 | L112: 3.2 | M112: 3.6 | N112: 2 | O112: 2.25 | P112: 3.25 | Q112: 2.9 | R112: 0.95 | S112: 0.35 | T112: -0.9
A113: SWEDEN: Superettan | B113: 2021.04.13 20:00 | C113: Sundsvall | D113: Helsingborg | E113: 04EKVNQG | F113: 181 | I113: Загрузить | J113: 2 | K113: 2 | L113: 2.75 | M113: 3.5 | N113: 2.4 | O113: 2.4 | P113: 3.5 | Q113: 2.75 | R113: 0.35 | S113: 0 | T113: -0.35
A114: WORLD: Friendly International Women | B114: 2021.04.13 20:00 | C114: Spain W | D114: Mexico W | E114: nBqd6lWK | F114: 8 | I114: Загрузить | J114: 3 | K114: 0 | L114: 1.03 | M114: 12 | N114: 19 | O114: 1.07 | P114: 10 | Q114: 17 | R114: -0.04 | S114: 2 | T114: 2
A115: ENGLAND: League One | B115: 2021.04.13 20:30 | C115: AFC Wimbledon | D115: Ipswich | E115: EBxHsYi3 | F115: 198 | I115: Загрузить | J115: 3 | K115: 0 | L115: 3 | M115: 3.1 | N115: 2.5 | O115: 3.2 | P115: 3.4 | Q115: 2.2 | R115: -0.2 | S115: -0.3 | T115: 0.3
A116: ENGLAND: League Two | B116: 2021.04.13 20:30 | C116: Morecambe | D116: Scunthorpe | E116: QRuweUnf | F116: 198 | I116: Загрузить | J116: 4 | K116: 1 | L116: 1.65 | M116: 3.75 | N116: 5.75 | O116: 2.2 | P116: 3.25 | Q116: 3.3 | R116: -0.55 | S116: 0.5 | T116: 2.45
A117: ENGLAND: Championship | B117: 2021.04.13 21:00 | C117: Rotherham | D117: QPR | E117: tQUwBMmE | F117: 198 | I117: Загрузить | J117: 3 | K117: 1 | L117: 2.4 | M117: 3.6 | N117: 2.75 | O117: 2.7 | P117: 3.25 | Q117: 2.6 | R117: -0.3 | S117: 0.35 | T117: 0.15
A118: ENGLAND: League One | B118: 2021.04.13 21:00 | C118: Blackpool | D118: Accrington | E118: Eiri9YnU | F118: 198 | I118: Загрузить | J118: 0 | K118: 0 | L118: 1.72 | M118: 3.75 | N118: 4.75 | O118: 1.66 | P118: 3.8 | Q118: 5 | R118: 0.06 | S118: -0.05 | T118: -0.25
A119: ENGLAND: League One | B119: 2021.04.13 21:00 | C119: Doncaster | D119: Burton | E119: rNzeC4Ei | F119: 198 | I119: Загрузить | J119: 0 | K119: 3 | L119: 2.4 | M119: 3.25 | N119: 3 | O119: 2.25 | P119: 3.4 | Q119: 3.1 | R119: 0.15 | S119: -0.15 | T119: -0.1
A120: ENGLAND: League One | B120: 2021.04.13 21:00 | C120: Lincoln | D120: MK Dons | E120: tAQvOAWn | F120: 198 | I120: Загрузить | J120: 4 | K120: 0 | L120: 2.35 | M120: 3.4 | N120: 3 | O120: 2.2 | P120: 3.4 | Q120: 3.2 | R120: 0.15 | S120: 0 | T120: -0.2
A121: ENGLAND: League One | B121: 2021.04.13 21:00 | C121: Oxford Utd | D121: Shrewsbury | E121: 2TYq2aZn | F121: 198 | I121: Загрузить | J121: 4 | K121: 1 | L121: 1.9 | M121: 3.3 | N121: 4.33 | O121: 2 | P121: 3.4 | Q121: 3.75 | R121: -0.1 | S121: -0.1 | T121: 0.58
A122: ENGLAND: League One | B122: 2021.04.13 21:00 | C122: Rochdale | D122: Swindon | E122: prB0Ai2m | F122: 198 | I122: Загрузить | J122: 2 | K122: 1 | L122: 2.3 | M122: 3.3 | N122: 3 | O122: 2.5 | P122: 3.4 | Q122: 2.7 | R122: -0.2 | S122: -0.1 | T122: 0.3
A123: ENGLAND: League Two | B123: 2021.04.13 21:00 | C123: Barrow | D123: Exeter | E123: G0IwChm5 | F123: 198 | I123: Загрузить | J123: 2 | K123: 1 | L123: 3.2 | M123: 3.25 | N123: 2.3 | O123: 2.5 | P123: 3.4 | Q123: 2.5 | R123: 0.7 | S123: -0.15 | T123: -0.2
A124: ENGLAND: League Two | B124: 2021.04.13 21:00 | C124: Bradford City | D124: Crawley | E124: lzjol7HJ | F124: 198 | I124: Загрузить | J124: 0 | K124: 2 | L124: 1.95 | M124: 3.5 | N124: 3.8 | O124: 2.37 | P124: 3.3 | Q124: 2.7 | R124: -0.42 | S124: 0.2 | T124: 1.1
A125: ENGLAND: League Two | B125: 2021.04.13 21:00 | C125: Harrogate | D125: Leyton Orient | E125: YJNVdjIs | F125: 198 | I125: Загрузить | J125: 2 | K125: 2 | L125: 2.25 | M125: 3.2 | N125: 3.4 | O125: 2.25 | P125: 3.25 | Q125: 3.2 | R125: 0 | S125: -0.05 | T125: 0.2
A126: ENGLAND: League Two | B126: 2021.04.13 21:00 | C126: Newport | D126: Carlisle | E126: 8OYKpdaS | F126: 198 | I126: Загрузить | J126: 0 | K126: 0 | L126: 2.75 | M126: 2.87 | N126: 2.87 | O126: 2.5 | P126: 3.2 | Q126: 2.87 | R126: 0.25 | S126: -0.33 | T126: 0
A127: ENGLAND: League Two | B127: 2021.04.13 21:00 | C127: Salford | D127: Bolton | E127: OMTTjOki | F127: 198 | I127: Загрузить | J127: 0 | K127: 1 | L127: 2.6 | M127: 3.2 | N127: 2.87 | O127: 2.2 | P127: 3.3 | Q127: 3.25 | R127: 0.4 | S127: -0.1 | T127: -0.38
A128: ENGLAND: League Two | B128: 2021.04.13 21:00 | C128: Walsall | D128: Tranmere | E128: OIHJukGu | F128: 198 | I128: Загрузить | J128: 1 | K128: 0 | L128: 3.25 | M128: 3.1 | N128: 2.3 | O128: 3 | P128: 3.2 | Q128: 2.37 | R128: 0.25 | S128: -0.1 | T128: -0.07
A129: ENGLAND: National League | B129: 2021.04.13 21:00 | C129: Dag & Red | D129: Eastleigh | E129: Wbe6vXv2 | F129: 198 | I129: Загрузить | J129: 2 | K129: 0 | L129: 2.37 | M129: 3.1 | N129: 3 | O129: 2.62 | P129: 3.5 | Q129: 2.5 | R129: -0.25 | S129: -0.4 | T129: 0.5
A130: ENGLAND: National League | B130: 2021.04.13 21:00 | C130: FC Halifax | D130: Wrexham | E130: CSHMmjz6 | F130: 198 | I130: Загрузить | J130: 0 | K130: 4 | L130: 2.15 | M130: 3.6 | N130: 3.1 | O130: 2.37 | P130: 3.4 | Q130: 2.87 | R130: =IF(L130="","",L130-O130) -> -0.22 | S130: =IF(M130="","",M130-P130) -> 0.2 | T130: =IF(N130="","",N130-Q130) -> 0.23
A131: ENGLAND: National League | B131: 2021.04.13 21:00 | C131: Solihull Moors | D131: Notts Co | E131: byULtYTi | F131: 198 | I131: Загрузить | J131: 2 | K131: 1 | L131: 2.87 | M131: 3.5 | N131: 2.3 | O131: 2.62 | P131: 3.25 | Q131: 2.62 | R131: 0.25 | S131: 0.25 | T131: -0.32
A132: ENGLAND: National League | B132: 2021.04.13 21:00 | C132: Stockport | D132: King’s Lynn | E132: tUxc1fnF | F132: 198 | I132: Загрузить | J132: 4 | K132: 0 | L132: 1.28 | M132: 5 | N132: 11 | O132: 1.33 | P132: 5 | Q132: 9 | R132: -0.05 | S132: 0 | T132: 2
A133: ENGLAND: National League | B133: 2021.04.13 21:00 | C133: Sutton | D133: Torquay | E133: vFe00E1L | F133: 198 | I133: Загрузить | J133: 0 | K133: 1 | L133: 2.05 | M133: 3.4 | N133: 3.5 | O133: 2.37 | P133: 3.4 | Q133: 2.87 | R133: -0.32 | S133: 0 | T133: 0.63
A134: ENGLAND: FA Youth Cup | B134: 2021.04.13 21:00 | C134: Tottenham U18 | D134: West Brom U18 | E134: 6DZEXeeh | F134: 198 | I134: Загрузить | J134: 0 | K134: 5
A135: EUROPE: Euro Women - Qualification - Promotion | B135: 2021.04.13 21:00 | C135: Switzerland W | D135: Czech Republic W | E135: AHO3fUBR | F135: 6 | I135: Загрузить | J135: 1 | K135: 1 | L135: 1.5 | M135: 3.8 | N135: 6 | O135: 1.57 | P135: 3.6 | Q135: 5 | R135: -0.07 | S135: 0.2 | T135: 1
A136: FAROE ISLANDS: 1. Deild | B136: 2021.04.13 21:00 | C136: Streymur 2 | D136: B36 Torshavn 2 | E136: 4vY88I9Q | F136: 231 | I136: Загрузить | J136: 2 | K136: 0
A137: FRANCE: National | B137: 2021.04.13 21:00 | C137: Boulogne | D137: Sete | E137: OET3f7ib | F137: 77 | I137: Загрузить | J137: 3 | K137: 0 | L137: 2.14 | M137: 2.66 | N137: 4.46 | O137: 1.66 | P137: 3.15 | Q137: 5.45 | R137: 0.48 | S137: -0.49 | T137: -0.99
A138: SCOTLAND: Championship | B138: 2021.04.13 21:00 | C138: Queen of South | D138: Raith | E138: zeYCfBzt | F138: 199 | I138: Загрузить | J138: 0 | K138: 1 | L138: 2.6 | M138: 3.4 | N138: 2.37 | O138: 2.5 | P138: 3.4 | Q138: 2.5 | R138: 0.1 | S138: 0 | T138: -0.13
A139: SCOTLAND: League One | B139: 2021.04.13 21:00 | C139: Airdrieonians | D139: Forfar Athletic | E139: t4XY6frg | F139: 199 | I139: Загрузить | J139: 3 | K139: 1 | L139: 1.4 | M139: 3.75 | N139: 7.5 | O139: 1.57 | P139: 3.4 | Q139: 5.5 | R139: -0.17 | S139: 0.35 | T139: 2
A140: SCOTLAND: League One | B140: 2021.04.13 21:00 | C140: Partick Thistle | D140: Clyde | E140: QeXsv58k | F140: 199 | I140: Загрузить | J140: 2 | K140: 0 | L140: 1.45 | M140: 3.6 | N140: 7 | O140: 1.44 | P140: 4.2 | Q140: 5.5 | R140: 0.01 | S140: -0.6 | T140: 1.5
A141: SCOTLAND: League Two | B141: 2021.04.13 21:00 | C141: Albion Rovers | D141: Cowdenbeath | E141: vempxzCi | F141: 199 | I141: Загрузить | J141: 0 | K141: 0 | L141: 2.4 | M141: 3.25 | N141: 2.55 | O141: 1.9 | P141: 3.4 | Q141: 3.4 | R141: 0.5 | S141: -0.15 | T141: -0.85
A142: SCOTLAND: League Two | B142: 2021.04.13 21:00 | C142: Edinburgh City | D142: Brechin | E142: YHnlyfRc | F142: 199 | I142: Загрузить | J142: 2 | K142: 1 | L142: 1.28 | M142: 4.75 | N142: 8.5 | O142: 1.33 | P142: 4.5 | Q142: 7 | R142: -0.05 | S142: 0.25 | T142: 1.5
A143: SCOTLAND: League Two | B143: 2021.04.13 21:00 | C143: Queen's Park | D143: Annan | E143: C8ohzEt4 | F143: 199 | I143: Загрузить | J143: 1 | K143: 0 | L143: 1.22 | M143: 5.5 | N143: 12 | O143: 1.4 | P143: 4.33 | Q143: 6 | R143: -0.18 | S143: 1.17 | T143: 6
A144: SCOTLAND: League Two | B144: 2021.04.13 21:00 | C144: Stenhousemuir | D144: Elgin City | E144: UqtcZXeA | F144: 199 | I144: Загрузить | J144: 2 | K144: 0 | L144: 2.7 | M144: 3.4 | N144: 2.2 | O144: 2.5 | P144: 3.4 | Q144: 2.37 | R144: 0.2 | S144: 0 | T144: -0.17
A145: SCOTLAND: League Two | B145: 2021.04.13 21:00 | C145: Stirling | D145: Stranraer | E145: 8zu1YiBG | F145: 199 | I145: Загрузить | J145: 0 | K145: 1 | L145: 2.05 | M145: 3.5 | N145: 3 | O145: 2.2 | P145: 3.4 | Q145: 2.75 | R145: -0.15 | S145: 0.1 | T145: 0.25
A146: SPAIN: Tercera Division - Group 12 | B146: 2021.04.13 21:00 | C146: Vera | D146: Atl. Victoria | E146: WCpAbhBt | F146: 176 | I146: Загрузить | J146: 1 | K146: 1 | L146: 1.58 | M146: 3.72 | N146: 5.55 | O146: 2.22 | P146: 3.24 | Q146: 2.87 | R146: -0.64 | S146: 0.48 | T146: 2.68
A147: PERU: Liga 1 - Apertura | B147: 2021.04.13 21:15 | C147: Cusco | D147: Sport Boys | E147: 8bF31Tr1 | F147: 152 | I147: Загрузить | J147: 2 | K147: 2 | L147: 2.2 | M147: 3.4 | N147: 2.9 | O147: 1.9 | P147: 3.4 | Q147: 3.6 | R147: 0.3 | S147: 0 | T147: -0.7
A148: WORLD: Friendly International Women | B148: 2021.04.13 21:15 | C148: England W | D148: Canada W | E148: rJfZUgwB | F148: 8 | I148: Загрузить | J148: 0 | K148: 2 | L148: 1.65 | M148: 3.75 | N148: 4.75 | O148: 1.72 | P148: 3.5 | Q148: 4 | R148: -0.07 | S148: 0.25 | T148: 0.75
A149: WORLD: Friendly International Women | B149: 2021.04.13 21:15 | C149: Wales W | D149: Denmark W | E149: E55Bh01t | F149: 8 | I149: Загрузить | J149: 1 | K149: 1 | L149: 8.5 | M149: 4.75 | N149: 1.25 | O149: 7 | P149: 4.5 | Q149: 1.33 | R149: 1.5 | S149: 0.25 | T149: -0.08
A150: AUSTRIA: 2. Liga | B150: 2021.04.13 21:25 | C150: Dornbirn | D150: A. Lustenau | E150: AJ1JVGVa | F150: 25 | I150: Загрузить | J150: 2 | K150: 0 | L150: 3.3 | M150: 3.5 | N150: 2 | O150: 2.37 | P150: 3.4 | Q150: 2.7 | R150: 0.93 | S150: 0.1 | T150: -0.7
A151: ARGENTINA: Primera C - Apertura | B151: 2021.04.13 21:30 | C151: Argentino de Merlo | D151: Club Lujan | E151: tAbnjjVg | F151: 22 | I151: Загрузить | J151: 1 | K151: 3 | L151: 2.11 | M151: 3.08 | N151: 3.7 | O151: 1.93 | P151: 3 | Q151: 3.98 | R151: 0.18 | S151: 0.08 | T151: -0.28
A152: ARGENTINA: Primera C - Apertura | B152: 2021.04.13 21:30 | C152: Central Cordoba | D152: San Martin Burzaco | E152: rZf3n8UI | F152: 22 | I152: Загрузить | J152: 0 | K152: 0 | L152: 1.78 | M152: 3.09 | N152: 5.41 | O152: 1.82 | P152: 3 | Q152: 4.6 | R152: -0.04 | S152: 0.09 | T152: 0.81
A153: ARGENTINA: Primera C - Apertura | B153: 2021.04.13 21:30 | C153: Dock Sud | D153: Atlas | E153: KfAwhC0s | F153: 22 | I153: Загрузить | J153: 0 | K153: 1 | L153: 2.01 | M153: 3.19 | N153: 3.86 | O153: 2.12 | P153: 3 | Q153: 3.36 | R153: -0.11 | S153: 0.19 | T153: 0.5
A154: ARGENTINA: Primera C - Apertura | B154: 2021.04.13 21:30 | C154: Excursionistas | D154: Sportivo Italiano | E154: WbiamlFC | F154: 22 | I154: Загрузить | J154: 2 | K154: 2 | L154: 2.32 | M154: 2.89 | N154: 3.41 | O154: 2.17 | P154: 3.15 | Q154: 3.3 | R154: 0.15 | S154: -0.26 | T154: 0.11
A155: ARGENTINA: Primera C - Apertura | B155: 2021.04.13 21:30 | C155: Leandro N. Alem | D155: Deportivo Espanol | E155: Aq3jkAp0 | F155: 22 | I155: Загрузить | J155: 1 | K155: 0 | L155: 2.29 | M155: 3.06 | N155: 3.26 | O155: 2.32 | P155: 2.9 | Q155: 3.07 | R155: -0.03 | S155: 0.16 | T155: 0.19
A156: FAROE ISLANDS: 1. Deild | B156: 2021.04.13 21:30 | C156: Vikingur 2 | D156: Skala Itrottarfelag | E156: pxI7AvuE | F156: 231 | I156: Загрузить | J156: 1 | K156: 2
A157: MALI: Premiere Division | B157: 2021.04.13 21:30 | C157: Real Bamako | D157: AS Police | E157: AJHvCRtf | F157: 123 | I157: Загрузить | J157: 0 | K157: 0
A158: SAUDI ARABIA: Division 1 | B158: 2021.04.13 21:30 | C158: Al Khaleej | D158: Al Feiha | E158: fgI7GrCT | F158: 165 | I158: Загрузить | J158: 0 | K158: 5 | L158: 3.91 | M158: 3.29 | N158: 1.96 | O158: 3.06 | P158: 3.1 | Q158: 2.22 | R158: 0.85 | S158: 0.19 | T158: -0.26
A159: SAUDI ARABIA: Division 1 | B159: 2021.04.13 21:30 | C159: Al-Sahel | D159: Hajer | E159: tjE3HOdN | F159: 165 | I159: Загрузить | J159: 4 | K159: 1 | L159: 3.02 | M159: 2.89 | N159: 2.49 | O159: 3.48 | P159: 3.1 | Q159: 2.02 | R159: -0.46 | S159: -0.21 | T159: 0.47
A160: SAUDI ARABIA: Division 1 | B160: 2021.04.13 21:35 | C160: Al Adalh | D160: Ohod | E160: CY4ZB2Kp | F160: 165 | I160: Загрузить | J160: 1 | K160: 1 | L160: 2.03 | M160: 3.2 | N160: 3.6 | O160: 2.27 | P160: 3 | Q160: 3.07 | R160: -0.24 | S160: 0.2 | T160: 0.53
A161: ENGLAND: National League | B161: 2021.04.13 21:45 | C161: Chesterfield | D161: Boreham Wood | E161: h8d2uDPe | F161: 198 | I161: Загрузить | J161: 0 | K161: 0 | L161: 2.1 | M161: 3.3 | N161: 3.5 | O161: 1.9 | P161: 3.4 | Q161: 4 | R161: 0.2 | S161: -0.1 | T161: -0.5
A162: ENGLAND: National League | B162: 2021.04.13 21:45 | C162: Weymouth | D162: Aldershot | E162: zosWfhPr | F162: 198 | I162: Загрузить | J162: 0 | K162: 3 | L162: 3.75 | M162: 3.5 | N162: 1.95 | O162: 3 | P162: 3.5 | Q162: 2.25 | R162: 0.75 | S162: 0 | T162: -0.3
A163: ENGLAND: National League | B163: 2021.04.13 21:45 | C163: Woking | D163: Bromley | E163: hMyyfCvk | F163: 198 | I163: Загрузить | J163: 3 | K163: 4 | L163: 3.3 | M163: 3.4 | N163: 2.2 | O163: 3.3 | P163: 3.5 | Q163: 2.1 | R163: 0 | S163: -0.1 | T163: 0.1
A164: ENGLAND: National League | B164: 2021.04.13 21:45 | C164: Yeovil | D164: Maidenhead | E164: WCzugWge | F164: 198 | I164: Загрузить | L164: 2 | M164: 3.4 | N164: 3.75 | O164: 2 | P164: 3.4 | Q164: 3.75 | R164: 0 | S164: 0 | T164: 0
A165: ENGLAND: National League South | B165: 2021.04.13 21:45 | C165: Dulwich Hamlet | D165: Dorking | E165: YJ1mRk21 | F165: 198 | I165: Загрузить | L165: 5.25 | M165: 4.33 | N165: 1.44 | O165: 2.7 | P165: 3.6 | Q165: 2.2 | R165: 2.55 | S165: 0.73 | T165: -0.76
A166: EUROPE: Euro Women - Qualification - Promotion | B166: 2021.04.13 21:45 | C166: Northern Ireland W | D166: Ukraine W | E166: KSVjcWR8 | F166: 6 | I166: Загрузить | J166: 2 | K166: 0 | L166: 3.8 | M166: 3.4 | N166: 1.83 | O166: 2.8 | P166: 3.25 | Q166: 2.2 | R166: 1 | S166: 0.15 | T166: -0.37
A167: GIBRALTAR: Gibraltar Cup | B167: 2021.04.13 21:45 | C167: Manchester 62 | D167: College 1975 FC | E167: CM2zW3fQ | F167: 304 | I167: Загрузить | J167: 1 | K167: 1
A168: IRELAND: Premier Division | B168: 2021.04.13 21:45 | C168: Derry City | D168: Shamrock Rovers | E168: Yophvoj3 | F168: 96 | I168: Загрузить | J168: 0 | K168: 2 | L168: 6 | M168: 3.75 | N168: 1.57 | O168: 5 | P168: 3.5 | Q168: 1.66 | R168: 1 | S168: 0.25 | T168: -0.09
A169: NORTHERN IRELAND: NIFL Premiership | B169: 2021.04.13 21:45 | C169: Glentoran | D169: Coleraine | E169: YVPkvcbm | F169: 144 | I169: Загрузить | J169: 2 | K169: 2 | L169: 1.85 | M169: 3.4 | N169: 3.6 | O169: 2.4 | P169: 3.4 | Q169: 2.62 | R169: -0.55 | S169: 0 | T169: 0.98
A170: NORTHERN IRELAND: NIFL Premiership | B170: 2021.04.13 21:45 | C170: Portadown | D170: Dungannon | E170: ObiWd89j | F170: 144 | I170: Загрузить | J170: 1 | K170: 0 | L170: 2.05 | M170: 3.2 | N170: 3.1 | O170: 2.8 | P170: 3.25 | Q170: 2.5 | R170: -0.75 | S170: -0.05 | T170: 0.6
A171: NORTHERN IRELAND: NIFL Premiership | B171: 2021.04.13 21:45 | C171: Warrenpoint | D171: Carrick Rangers | E171: E7jDQwUm | F171: 144 | I171: Загрузить | J171: 0 | K171: 0 | L171: 1.95 | M171: 3.4 | N171: 3.3 | O171: 1.9 | P171: 3.4 | Q171: 3.6 | R171: 0.05 | S171: 0 | T171: -0.3
A172: SAN MARINO: Campionato Sammarinese | B172: 2021.04.13 21:45 | C172: Fiorentino | D172: La Fiorita | E172: pIoNfJam | F172: 163 | I172: Загрузить | J172: 0 | K172: 4
A173: SAN MARINO: Campionato Sammarinese | B173: 2021.04.13 21:45 | C173: Juvenes/Dogana | D173: Folgore | E173: WEsJeaps | F173: 163 | I173: Загрузить | J173: 1 | K173: 6
A174: SAN MARINO: Campionato Sammarinese | B174: 2021.04.13 21:45 | C174: Murata | D174: Faetano | E174: EZfi0uxQ | F174: 163 | I174: Загрузить | J174: 0 | K174: 0
A175: SAN MARINO: Campionato Sammarinese | B175: 2021.04.13 21:45 | C175: San Giovanni | D175: Libertas | E175: zqdm1LMJ | F175: 163 | I175: Загрузить | J175: 0 | K175: 0
A176: SAUDI ARABIA: Division 1 | B176: 2021.04.13 21:45 | C176: Al-Kawkab | D176: Al-Nahda | E176: jP3wBMZj | F176: 165 | I176: Загрузить | J176: 2 | K176: 2
A177: WALES: Cymru Premier - Championship Group | B177: 2021.04.13 21:45 | C177: Barry | D177: TNS | E177: 4pXOXYJA | F177: 207 | I177: Загрузить | J177: 0 | K177: 6 | L177: 8 | M177: 4.33 | N177: 1.36 | O177: 4.75 | P177: 3.75 | Q177: 1.57 | R177: 3.25 | S177: 0.58 | T177: -0.21
A178: WALES: Cymru Premier - Championship Group | B178: 2021.04.13 21:45 | C178: Caernarfon | D178: Connahs Q. | E178: zXgdFQ3q | F178: 207 | I178: Загрузить | J178: 1 | K178: 6 | L178: 6 | M178: 4.2 | N178: 1.44 | O178: 4.75 | P178: 3.75 | Q178: 1.57 | R178: 1.25 | S178: 0.45 | T178: -0.13
A179: WALES: Cymru Premier - Championship Group | B179: 2021.04.13 21:45 | C179: Penybont | D179: Bala | E179: ryWSWhZG | F179: 207 | I179: Загрузить | J179: 2 | K179: 3 | L179: 3.3 | M179: 3.75 | N179: 1.9 | O179: 2.87 | P179: 3.75 | Q179: 2 | R179: 0.43 | S179: 0 | T179: -0.1
A180: WALES: Cymru Premier - Relegation Group | B180: 2021.04.13 21:45 | C180: Cardiff Metropolitan | D180: Newtown | E180: Y503iKG0 | F180: 207 | I180: Загрузить | J180: 2 | K180: 2 | L180: 2.4 | M180: 3.6 | N180: 2.55 | O180: 2.4 | P180: 3.5 | Q180: 2.4 | R180: 0 | S180: 0.1 | T180: 0.15
A181: WALES: Cymru Premier - Relegation Group | B181: 2021.04.13 21:45 | C181: Flint | D181: Druids | E181: tW3BkboD | F181: 207 | I181: Загрузить | J181: 5 | K181: 0 | L181: 2.2 | M181: 3.75 | N181: 2.75 | O181: 2.25 | P181: 3.75 | Q181: 2.5 | R181: -0.05 | S181: 0 | T181: 0.25
A182: WALES: Cymru Premier - Relegation Group | B182: 2021.04.13 21:45 | C182: Haverfordwest | D182: Aberystwyth | E182: n947jvW6 | F182: 207 | I182: Загрузить | J182: 1 | K182: 0 | L182: 2.1 | M182: 3.75 | N182: 2.87 | O182: 2 | P182: 3.75 | Q182: 2.87 | R182: 0.1 | S182: 0 | T182: 0
A183: BRAZIL: Campeonato Goiano | B183: 2021.04.13 22:00 | C183: Gremio Anapolis | D183: Itumbiara | E183: ELFZgXCj | F183: 39 | I183: Загрузить | J183: 2 | K183: 0 | L183: 1.53 | M183: 3.8 | N183: 5.75 | O183: 1.5 | P183: 4 | Q183: 5 | R183: 0.03 | S183: -0.2 | T183: 0.75
A184: BRAZIL: Campeonato Sul-Matogrossense - First stage | B184: 2021.04.13 22:00 | C184: Tres Lagoas | D184: Chapadao | E184: EDaxLQSI | F184: 39 | I184: Загрузить | J184: 2 | K184: 4 | L184: 4.48 | M184: 4.3 | N184: 1.55 | O184: 4.08 | P184: 3.5 | Q184: 1.75 | R184: 0.4 | S184: 0.8 | T184: -0.2
A185: EUROPE: Champions League - Play Offs | B185: 2021.04.13 22:00 | C185: Chelsea | D185: FC Porto | E185: pjVAvcoi | F185: 6 | I185: Загрузить | J185: 0 | K185: 1 | L185: 1.8 | M185: 3.75 | N185: 4.33 | O185: 1.61 | P185: 4.2 | Q185: 4.75 | R185: 0.19 | S185: -0.45 | T185: -0.42
A186: EUROPE: Champions League - Play Offs | B186: 2021.04.13 22:00 | C186: Paris SG | D186: Bayern Munich | E186: 4fhOGggp | F186: 6 | I186: Загрузить | J186: 0 | K186: 1 | L186: 2.87 | M186: 4.33 | N186: 2.1 | O186: 2.8 | P186: 3.75 | Q186: 2.25 | R186: 0.07 | S186: 0.58 | T186: -0.15
A187: FAROE ISLANDS: 1. Deild | B187: 2021.04.13 22:00 | C187: Klaksvik 2 | D187: NSI Runavik 2 | E187: OSGB9bfK | F187: 231 | I187: Загрузить | J187: 2 | K187: 2
A188: KUWAIT: Premier League | B188: 2021.04.13 22:00 | C188: Al Arabi | D188: Al Kuwait | E188: A7Hc84p1 | F188: 107 | I188: Загрузить | J188: 1 | K188: 0 | L188: 2.4 | M188: 3.3 | N188: 2.62 | O188: 2.37 | P188: 4 | Q188: 2.25 | R188: 0.03 | S188: -0.7 | T188: 0.37
A189: KUWAIT: Premier League | B189: 2021.04.13 22:00 | C189: Al Naser | D189: Al Shabab | E189: KxwJFnhR | F189: 107 | I189: Загрузить | J189: 1 | K189: 1 | L189: 1.85 | M189: 3.3 | N189: 3.8 | O189: 1.5 | P189: 4 | Q189: 5 | R189: 0.35 | S189: -0.7 | T189: -1.2
A190: SAUDI ARABIA: Division 1 | B190: 2021.04.13 22:05 | C190: Al Taee | D190: Al Bukayriyah | E190: veBBJEwi | F190: 165 | I190: Загрузить | J190: 2 | K190: 1 | L190: 1.86 | M190: 3.63 | N190: 3.88 | O190: 1.45 | P190: 4.2 | Q190: 5.7 | R190: 0.41 | S190: -0.57 | T190: -1.82
A191: SAUDI ARABIA: Division 1 | B191: 2021.04.13 22:10 | C191: Jeddah | D191: Najran | E191: IoAFIYhc | F191: 165 | I191: Загрузить | J191: 2 | K191: 2 | L191: 2.17 | M191: 3.21 | N191: 3.36 | O191: 2.22 | P191: 3.1 | Q191: 3.06 | R191: -0.05 | S191: 0.11 | T191: 0.3
A192: WORLD: Friendly International Women | B192: 2021.04.13 22:10 | C192: France W | D192: USA W | E192: 6mEm2EuA | F192: 8 | I192: Загрузить | J192: 0 | K192: 2 | L192: 3.75 | M192: 3.4 | N192: 1.9 | O192: 3.1 | P192: 3.4 | Q192: 2 | R192: 0.65 | S192: 0 | T192: -0.1
A193: ECUADOR: Liga Pro - First stage | B193: 2021.04.13 22:30 | C193: Nueve de Octubre | D193: Guayaquil City | E193: baOUEklk | F193: 68 | I193: Загрузить | J193: 4 | K193: 0 | L193: 2 | M193: 3.3 | N193: 3.25 | O193: 2.2 | P193: 3.25 | Q193: 2.87 | R193: -0.2 | S193: 0.05 | T193: 0.38
A194: PORTUGAL: Liga Portugal 2 | B194: 2021.04.13 22:30 | C194: Mafra | D194: Casa Pia | E194: nThebbnQ | F194: 155 | I194: Загрузить | J194: 0 | K194: 4 | L194: 2.37 | M194: 2.8 | N194: 3.2 | O194: 2.45 | P194: 2.75 | Q194: 3.1 | R194: =IF(L194="","",L194-O194) -> -0.08 | S194: =IF(M194="","",M194-P194) -> 0.05 | T194: =IF(N194="","",N194-Q194) -> 0.1
A195: BRAZIL: Copa do Brasil | B195: 2021.04.13 22:45 | C195: Paysandu PA | D195: CRB | E195: tQbqUs0B | F195: 39 | I195: Загрузить | J195: 1 | K195: 2 | L195: 3.1 | M195: 3 | N195: 2.4 | O195: 3.2 | P195: 3.3 | Q195: 2 | R195: -0.1 | S195: -0.3 | T195: 0.4
A196: PERU: Liga 1 - Apertura | B196: 2021.04.13 23:30 | C196: Binacional | D196: Alianza Huanuco | E196: 06XAa7DD | F196: 152 | I196: Загрузить | J196: 2 | K196: 1 | L196: 2.62 | M196: 3.25 | N196: 2.37 | O196: 2.7 | P196: 3.1 | Q196: 2.5 | R196: -0.08 | S196: 0.15 | T196: -0.13
A197: WORLD: Friendly International Women | B197: 2021.04.13 23:30 | C197: Ecuador W | D197: Colombia W | E197: dKFTXFnB | F197: 8 | I197: Загрузить | J197: 0 | K197: 4
A198: WORLD: Club Friendly | B198: 2021.04.14 00:00 | C198: Detroit | D198: California Utd. | E198: KhyHnna3 | F198: 8 | I198: Загрузить | J198: 0 | K198: 0
R258: =IF(L258="","",L258-O258) ->  | S258: =IF(M258="","",M258-P258) ->  | T258: =IF(N258="","",N258-Q258) -> 
R322: =IF(L322="","",L322-O322) ->  | S322: =IF(M322="","",M322-P322) ->  | T322: =IF(N322="","",N322-Q322) -> 
... 10 more rows

Sheet Анализ
V1: =IncoData!Y3 -> Cardiff U23 | AG1: =IncoData!Y4 -> Sheffield Utd U23 | AS1: - | AT1: =CONCATENATE(E3,AS1,K3) -> Cardiff U23-Sheffield Utd U23
E2: =Расчеты!C126 -> ENGLAND: Professional Development League | K2: =Расчеты!D127 -> 13.04.21 15:00 | AD2: X
D3: =IFERROR('Incognito DATA'!I2,"RISK") -> 14 | E3: ='Incognito DATA'!A1 -> Cardiff U23 | K3: ='Incognito DATA'!A7 -> Sheffield Utd U23 | P3: =IFERROR('Incognito DATA'!I8,"RISK") -> 1
AA4: =SUM(IncoData!AJ:AJ)/50000 -> 0.41074 | AD4: =SUM(IncoData!AK:AK)/50000 -> 0.30082 | AG4: =SUM(IncoData!AL:AL)/50000 -> 0.28844
C5: GD-xGD | D5: =IFERROR('Incognito DATA'!AA57,"RISK") -> 0.596 | E5: =TRANSPOSE(ДомаДома!N2:N7) -> П | F5: В | G5: В | H5: П | I5: В | J5: д/г | K5: =TRANSPOSE(ГостиГости!N2:N7) -> В | L5: В | M5: Н | N5: П | O5: В | P5: =IFERROR('Incognito DATA'!AC57,"RISK") -> 1.131
C6: рейтинг | D6: =Графики!AJ26 -> 2.2 | E6: =TRANSPOSE(Дома!N2:N7) -> П | F6: В | G6: П | H6: П | I6: В | J6: общие | K6: =TRANSPOSE(Гости!N2:N7) -> В | L6: В | M6: В | N6: В | O6: В | P6: =Графики!AJ27 -> 2.6 | Q6: ТБ 2.5 | R6: ТМ 2.5
D7: =IFERROR('Incognito DATA'!S34,"RISK") -> -0.1181818182 | E7: =TRANSPOSE(Очные!G2:G7) -> П | F7: Н | G7: П | H7: Н | J7: очные | K7: =TRANSPOSE(Очные!M2:M7) -> В | L7: Н | M7: В | N7: Н | P7: =IFERROR('Incognito DATA'!S38,"RISK") -> 0.7922077922 | Q7: =Коэффициенты!C5 -> 1.4 | R7: =Коэффициенты!C6 -> 2.82 | S7: kf
H8: =IFERROR('Incognito DATA'!S6,"RISK") -> 0.3839766715 | J8: =IFERROR('Incognito DATA'!T6,"RISK") -> -0.05949374699 | K8: =IFERROR('Incognito DATA'!U6,"RISK") -> 0.6755170755 | M8: 1 пр | Q8: =Mill!Y42 -> 158.7956852 | R8: =Mill!W42 -> -58.79568519 | S8: =Mill!G90 -> ОЗ-да | T8: mill
B9: Букмекер | Q9: =Elizabet2!V20 -> 0.7228058011 | R9: ТБ2.5/ОЗ да | S9: =Elizabet2!V19 -> 0.6947219165 | T9: Elizabet | V9: 0 | W9: 1 | X9: 2 | Y9: 3 | Z9: 4 | AA9: 5 | AD9: Ожидаемый счёт | AI9: 0 | AJ9: 1 | AK9: 2 | AL9: 3 | AM9: 4 | AN9: 5
B10: 1 | C10: x | D10: 2 | H10: =IFERROR('Incognito DATA'!W6,"RISK") -> 0.1323953824 | J10: =IFERROR('Incognito DATA'!X6,"RISK") -> 0.1594516595 | K10: =IFERROR('Incognito DATA'!Y6,"RISK") -> 0.7081529582 | M10: 2 пр | O10: =Графики!BD39 ->  | Q10: =Графики!BI39 ->  | R10: 2.5/BTS | S10: =Графики!BM39 -> - | T10: betaloneV8 | V10: =IncoData!AT21 -> 0.03698 | W10: =IncoData!AT22 -> 0.21458 | X10: =IncoData!AT23 -> 0.41478 | Y10: =IncoData!AT24 -> 0.27102 | Z10: =IncoData!AT25 -> 0.05682 | AA10: =IncoData!AT26 -> 0.00372 | AI10: =IncoData!AW21 -> 0.0464 | AJ10: =IncoData!AW22 -> 0.27088 | AK10: =IncoData!AW23 -> 0.44572 | AL10: =IncoData!AW24 -> 0.20682 | AM10: =IncoData!AW25 -> 0.02714 | AN10: =IncoData!AW26 -> 0.001
B11: =Коэффициенты!C2 -> 3.46 | C11: =Коэффициенты!C3 -> 4.27 | D11: =Коэффициенты!C4 -> 1.83 | E11: kf | O11: =Mill!C75 -> П2 | P11: mill | Q11: =Elizabet2!V10 -> 1.333333333 | R11: =Elizabet2!W10 -> 2.333333333 | S11: Elizabet | AD11: =IncoData!AU3 -> 2-2
B12: =IFERROR('Incognito DATA'!S43,"RISK") -> 0.3412969283 | C12: =IFERROR('Incognito DATA'!T43,"RISK") -> 0.2631578947 | D12: =IFERROR('Incognito DATA'!U43,"RISK") -> 0.495049505 | H12: =IFERROR('Incognito DATA'!C44,"RISK") -> 0.3836363636 | J12: =IFERROR('Incognito DATA'!C47,"RISK") -> -0.1928787879 | K12: =IFERROR('Incognito DATA'!D44,"RISK") -> 0.8092424242 | M12: de lux | O12: =Mill!M2 -> П2 | P12: 10 д/г | Q12: =IFERROR('Incognito DATA'!C45,"RISK") -> 2.01 | R12: =IFERROR('Incognito DATA'!D45,"RISK") -> 3.53
B13: =IFERROR(Valui!M41,"RISK") -> 0.2 | C13: =IFERROR(Valui!N41,"RISK") -> 0 | D13: =IFERROR(Valui!O41,"RISK") -> 0.8 | E13: Valui | O13: =Mill!C39 -> Ф1(+1) | P13: 3 оч | Q13: =Расчеты!X112 -> 2 | R13: =Расчеты!Y112 -> 2 | S13: =Расчеты!Z112 -> X2 | T13: NTB | AD13: =IncoData!AU4 -> 3-2
B14: =IFERROR(Valui!I21,"") -> - | C14: =IFERROR(Valui!I23,"") -> - | D14: =IFERROR(Valui!I25,"") -> - | H14: =IFERROR(Poisson!B13,"RISK") -> 0.1950637088 | J14: =IFERROR(Poisson!C13,"RISK") -> 0.1875078917 | K14: =IFERROR(Poisson!D13,"RISK") -> 0.6174283995 | M14: poisson | O14: =Mill!J49 -> П2 | P14: 5 д/г+оч | Q14: ='Incognito DATA'!D12 -> 2.161983471 | R14: ='Incognito DATA'!E13 -> 2.141818182 | S14: Mini Vini
O15: =Mill!I55 -> П1 | P15: тот | Q15: ='Incognito DATA'!D13 -> 2.521983471 | R15: ='Incognito DATA'!E13 -> 2.141818182 | AD15: =IncoData!AU5 -> 2-1
H16: =IFERROR('Incognito DATA'!H96,"RISK") -> 0.2692881563 | J16: =IFERROR('Incognito DATA'!I96,"RISK") -> 0.1207841463 | K16: =IFERROR('Incognito DATA'!J96,"RISK") -> 0.6099276974 | M16: ср взвеш
AD17: =IncoData!AU6 -> 1-2
H18: =Mill!W37 -> 0.4 | J18: =Mill!X39 -> -0.1157894737 | K18: =Mill!Y37 -> 0.7157894737 | M18: mill
H20: ='Incognito DATA'!J13 -> 0.5909090909 | J20: ='Incognito DATA'!K13 -> -0.09090909091 | K20: ='Incognito DATA'!L13 -> 0.5 | M20: Mini Vini | AD20: Ожидаемый Тотал
H22: =Elizabet2!W16 -> 0.3170279282 | J22: =Elizabet2!W17 -> 0.1256658423 | K22: =Elizabet2!W18 -> 0.5573062295 | M22: Elizabet | AE22: =IncoData!J30 -> 4
H24: =Графики!M26 -> 0.2872707476 | J24: =Графики!M28 -> 0.1941266906 | K24: =Графики!M27 -> 0.5147210602 | M24: 5Match p
H26: =Графики!M30 -> 0.1769230769 | J26: =Графики!M31 -> 0.3738461538 | K26: =Графики!M32 -> 0.4492307692 | M26: 5Match
V29: Prorok Reload Incognito

Sheet Incognito DATA (hidden)
A1: =Очные!A1 -> Cardiff U23 | B1: Игр ХОЗЯЕВ | C1: В | D1: Н | E1: П | F1: Заб | G1: Проп | H1: Очки | I1: Место | K1: ОЧНЫЕ ХОЗЯЕВ | L1: В | M1: Н | N1: П | O1: Заб | P1: Проп
A2: Общая | B2: =IF($I$2="","",VLOOKUP($A$1,Таблица!$B:$I,COLUMN(),FALSE)) -> 22 | C2: =IF($I$2="","",VLOOKUP($A$1,Таблица!$B:$I,COLUMN(),FALSE)) -> 9 | D2: =IF($I$2="","",VLOOKUP($A$1,Таблица!$B:$I,COLUMN(),FALSE)) -> 1 | E2: =IF($I$2="","",VLOOKUP($A$1,Таблица!$B:$I,COLUMN(),FALSE)) -> 12 | F2: =IF($I$2="","",VLOOKUP($A$1,Таблица!$B:$I,COLUMN(),FALSE)) -> 39 | G2: =IF($I$2="","",VLOOKUP($A$1,Таблица!$B:$I,COLUMN(),FALSE)) -> 34 | H2: =IF($I$2="","",VLOOKUP($A$1,Таблица!$B:$I,COLUMN(),FALSE)) -> 28 | I2: =IFERROR(MATCH(A1,Таблица!B:B,0)-1,"") -> 14 | J2: Общая | K2: =K3+K4 -> 4 | L2: =COUNTIFS(Очные!G:G,"В") -> 0 | M2: =COUNTIFS(Очные!G:G,"Н") -> 2 | N2: =COUNTIFS(Очные!G:G,"П") -> 2 | O2: =MAXA(Очные!H:H) -> 3 | P2: =MAXA(Очные!I:I) -> 8 | AD2: =SUM(ДомаДома!L2:L11) -> 30 | AE2: =SUM(ГостиГости!L2:L11) -> 22
A3: Дом | B3: =IF($I$3="","",VLOOKUP($A$1,Таблица!$L:$S,COLUMN(),FALSE)) -> 11 | C3: =IF($I$3="","",VLOOKUP($A$1,Таблица!$L:$S,COLUMN(),FALSE)) -> 8 | D3: =IF($I$3="","",VLOOKUP($A$1,Таблица!$L:$S,COLUMN(),FALSE)) -> 0 | E3: =IF($I$3="","",VLOOKUP($A$1,Таблица!$L:$S,COLUMN(),FALSE)) -> 3 | F3: =IF($I$3="","",VLOOKUP($A$1,Таблица!$L:$S,COLUMN(),FALSE)) -> 31 | G3: =IF($I$3="","",VLOOKUP($A$1,Таблица!$L:$S,COLUMN(),FALSE)) -> 12 | H3: =IF($I$3="","",VLOOKUP($A$1,Таблица!$L:$S,COLUMN(),FALSE)) -> 24 | I3: =IFERROR(MATCH(A1,Таблица!L:L,0)-1,"") -> 11 | J3: Дома | K3: =COUNTIF(Очные!S:S,"Дома") -> 3 | L3: =COUNTIFS(Очные!T:T,"В") -> 0 | M3: =COUNTIFS(Очные!T:T,"Н") -> 2 | N3: =COUNTIFS(Очные!T:T,"П") -> 1 | O3: =SUM(Очные!U:U) -> 3 | P3: =SUM(Очные!V:V) -> 5 | S3: Тотал | T3: =VALUE(TEXT((E45+E46+O45+O46)/2,"0,00")) -> 4.15 | AD3: =IFERROR(H3/B3*F3/G3,H3/B3*F3/G2) -> 5.636363636 | AE3: =H10/B10*F10/G10 -> 4.4
A4: Гости | B4: =IF($I$4="","",VLOOKUP($A$1,Таблица!$V:$AC,COLUMN(),FALSE)) -> 11 | C4: =IF($I$4="","",VLOOKUP($A$1,Таблица!$V:$AC,COLUMN(),FALSE)) -> 1 | D4: =IF($I$4="","",VLOOKUP($A$1,Таблица!$V:$AC,COLUMN(),FALSE)) -> 1 | E4: =IF($I$4="","",VLOOKUP($A$1,Таблица!$V:$AC,COLUMN(),FALSE)) -> 9 | F4: =IF($I$4="","",VLOOKUP($A$1,Таблица!$V:$AC,COLUMN(),FALSE)) -> 8 | G4: =IF($I$4="","",VLOOKUP($A$1,Таблица!$V:$AC,COLUMN(),FALSE)) -> 22 | H4: =IF($I$4="","",VLOOKUP($A$1,Таблица!$V:$AC,COLUMN(),FALSE)) -> 4 | I4: =IFERROR(MATCH(A1,Таблица!V:V,0)-1,"") -> 18 | J4: В Гостях | K4: =COUNTIF(Очные!S:S,"Гости") -> 1 | L4: =COUNTIFS(Очные!W:W,"В") -> 0 | M4: =COUNTIFS(Очные!W:W,"Н") -> 0 | N4: =COUNTIFS(Очные!W:W,"П") -> 1 | O4: =SUM(Очные!X:X) -> 0 | P4: =SUM(Очные!Y:Y) -> 3 | S4: Прогноз 1 | W4: Прогноз 2 | AA4: Прогноз 3
A5: Форма 5 Общ | B5: =IF($I$5="","",VLOOKUP($A$1&5,Форма!$BB:$BI,COLUMN(),FALSE)) -> 5 | C5: =IF($I$5="","",VLOOKUP($A$1&5,Форма!$BB:$BI,COLUMN(),FALSE)) -> 2 | D5: =IF($I$5="","",VLOOKUP($A$1&5,Форма!$BB:$BI,COLUMN(),FALSE)) -> 0 | E5: =IF($I$5="","",VLOOKUP($A$1&5,Форма!$BB:$BI,COLUMN(),FALSE)) -> 3 | F5: =IF($I$5="","",VLOOKUP($A$1&5,Форма!$BB:$BI,COLUMN(),FALSE)) -> 11 | G5: =IF($I$5="","",VLOOKUP($A$1&5,Форма!$BB:$BI,COLUMN(),FALSE)) -> 6 | H5: =IF($I$5="","",VLOOKUP($A$1&5,Форма!$BB:$BI,COLUMN(),FALSE)) -> 6 | I5: =IFERROR(MATCH(A1&5,Форма!BB:BB,0)-1,"") -> 14 | S5: 1 | T5: Х | U5: 2 | W5: 1 | X5: Х | Y5: 2 | AA5: 1 | AB5: Х | AC5: 2
S6: =T32+T34 -> 0.3839766715 | T6: =U32+T34 -> -0.05949374699 | U6: =V32+T34 -> 0.6755170755 | V6: =SUM(S6:U6) -> 1 | W6: =W13+Z11 -> 0.1323953824 | X6: =X13+Z11 -> 0.1594516595 | Y6: =Y13+Z11 -> 0.7081529582 | Z6: =SUM(W6:Y6) -> 1 | AA6: =AB32 -> 0.7272727273 | AB6: =AB34 -> -0.4090909091 | AC6: =AB33 -> 0.6818181818
A7: =Очные!B1 -> Sheffield Utd U23 | B7: Игр ГОСТЕЙ | C7: В | D7: Н | E7: П | F7: Заб | G7: Проп | H7: Очки | I7: Место | K7: ОЧНЫЕ ГОСТЕЙ | L7: В | M7: Н | N7: П | O7: Заб | P7: Проп
A8: Общая | B8: =IF($I$8="","",VLOOKUP($A$7,Таблица!$B:$I,COLUMN(),FALSE)) -> 21 | C8: =IF($I$8="","",VLOOKUP($A$7,Таблица!$B:$I,COLUMN(),FALSE)) -> 14 | D8: =IF($I$8="","",VLOOKUP($A$7,Таблица!$B:$I,COLUMN(),FALSE)) -> 4 | E8: =IF($I$8="","",VLOOKUP($A$7,Таблица!$B:$I,COLUMN(),FALSE)) -> 3 | F8: =IF($I$8="","",VLOOKUP($A$7,Таблица!$B:$I,COLUMN(),FALSE)) -> 53 | G8: =IF($I$8="","",VLOOKUP($A$7,Таблица!$B:$I,COLUMN(),FALSE)) -> 19 | H8: =IF($I$8="","",VLOOKUP($A$7,Таблица!$B:$I,COLUMN(),FALSE)) -> 46 | I8: =IFERROR(MATCH(A7,Таблица!B:B,0)-1,"") -> 1 | J8: Общая | K8: =K9+K10 -> 4 | L8: =COUNTIFS(Очные!M:M,"В") -> 2 | M8: =COUNTIFS(Очные!M:M,"Н") -> 2 | N8: =COUNTIFS(Очные!M:M,"П") -> 0 | O8: =MAXA(Очные!N:N) -> 8 | P8: =MAXA(Очные!O:O) -> 3 | S8: 1К | T8: ТС | U8: 2К | W8: =G16*G20+G24*G28+G33*G37+G41*G28/8 -> 0.3338842975 | X8: =L16*L20+L24*L28+L33*L37+L41*L28/8 -> 1.39469697 | AB8: =((F5+G5)/2)/B5 -> 1.7 | AC8: =AB8+AB9 -> 3.7
A9: Дом | B9: =IF($I$9="","",VLOOKUP($A$7,Таблица!$L:$S,COLUMN(),FALSE)) -> 10 | C9: =IF($I$9="","",VLOOKUP($A$7,Таблица!$L:$S,COLUMN(),FALSE)) -> 7 | D9: =IF($I$9="","",VLOOKUP($A$7,Таблица!$L:$S,COLUMN(),FALSE)) -> 3 | E9: =IF($I$9="","",VLOOKUP($A$7,Таблица!$L:$S,COLUMN(),FALSE)) -> 0 | F9: =IF($I$9="","",VLOOKUP($A$7,Таблица!$L:$S,COLUMN(),FALSE)) -> 31 | G9: =IF($I$9="","",VLOOKUP($A$7,Таблица!$L:$S,COLUMN(),FALSE)) -> 9 | H9: =IF($I$9="","",VLOOKUP($A$7,Таблица!$L:$S,COLUMN(),FALSE)) -> 24 | I9: =IFERROR(MATCH(A7,Таблица!L:L,0)-1,"") -> 1 | J9: Дома | K9: =COUNTIF(Очные!S:S,"Дома") -> 3 | L9: =COUNTIFS(Очные!AA:AA,"В") -> 1 | M9: =COUNTIFS(Очные!AA:AA,"Н") -> 0 | N9: =COUNTIFS(Очные!AA:AA,"П") -> 0 | O9: =SUM(Очные!AB:AB) -> 3 | P9: =SUM(Очные!AC:AC) -> 0 | S9: =E45 -> 2.006060606 | U9: =O45 -> 3.533333333 | W9: =G17*G21+G25*G29 -> 0 | X9: =L17*L21+L25*L29 -> 0.05714285714 | AB9: =((F11+G11)/2)/B11 -> 2 | AC9: =IF(AB12>=2,"Да","Нет") -> Да
A10: Гости | B10: =IF($I$10="","",VLOOKUP($A$7,Таблица!$V:$AC,COLUMN(),FALSE)) -> 11 | C10: =IF($I$10="","",VLOOKUP($A$7,Таблица!$V:$AC,COLUMN(),FALSE)) -> 7 | D10: =IF($I$10="","",VLOOKUP($A$7,Таблица!$V:$AC,COLUMN(),FALSE)) -> 1 | E10: =IF($I$10="","",VLOOKUP($A$7,Таблица!$V:$AC,COLUMN(),FALSE)) -> 3 | F10: =IF($I$10="","",VLOOKUP($A$7,Таблица!$V:$AC,COLUMN(),FALSE)) -> 22 | G10: =IF($I$10="","",VLOOKUP($A$7,Таблица!$V:$AC,COLUMN(),FALSE)) -> 10 | H10: =IF($I$10="","",VLOOKUP($A$7,Таблица!$V:$AC,COLUMN(),FALSE)) -> 22 | I10: =IFERROR(MATCH(A7,Таблица!V:V,0)-1,"") -> 1 | J10: В Гостях | K10: =COUNTIF(Очные!S:S,"Гости") -> 1 | L10: =COUNTIFS(Очные!AD:AD,"В") -> 1 | M10: =COUNTIFS(Очные!AD:AD,"Н") -> 2 | N10: =COUNTIFS(Очные!AD:AD,"П") -> 0 | O10: =SUM(Очные!AE:AE) -> 5 | P10: =SUM(Очные!AF:AF) -> 3 | W10: =G18*G22+G26*G30 -> 0.6396694215 | X10: =L18*L22+L26*L30 -> 0 | AB10: =IF(AB8>=1.7,"1","0") -> 1 | AC10: =IF(AB9>=1.8,"1","0") -> 1
A11: Форма 5 Общ | B11: =IF($I$11="","",VLOOKUP($A$7&5,Форма!$BB:$BI,COLUMN(),FALSE)) -> 5 | C11: =IF($I$11="","",VLOOKUP($A$7&5,Форма!$BB:$BI,COLUMN(),FALSE)) -> 5 | D11: =IF($I$11="","",VLOOKUP($A$7&5,Форма!$BB:$BI,COLUMN(),FALSE)) -> 0 | E11: =IF($I$11="","",VLOOKUP($A$7&5,Форма!$BB:$BI,COLUMN(),FALSE)) -> 0 | F11: =IF($I$11="","",VLOOKUP($A$7&5,Форма!$BB:$BI,COLUMN(),FALSE)) -> 18 | G11: =IF($I$11="","",VLOOKUP($A$7&5,Форма!$BB:$BI,COLUMN(),FALSE)) -> 2 | H11: =IF($I$11="","",VLOOKUP($A$7&5,Форма!$BB:$BI,COLUMN(),FALSE)) -> 15 | I11: =IFERROR(MATCH(A7&5,Форма!BB:BB,0)-1,"") -> 1 | S11: Pa(B1)= | T11: P(B1)*PB1(A) | Z11: =Z12/3 -> 0.04148629149 | AB11: =AB10 -> 1 | AC11: =AC10 -> 1
D12: =((G10/B10/B3)*F3)-40% -> 2.161983471 | E12: =((G3/B3/B10)*F10)-40% -> 1.781818182 | F12: =SUM(D12:E13) -> 8.607603306 | G12: =F12/2 -> 4.303801653 | H12: =IF(G12>=4,("Over"),("")) -> Over | J12: =C3/B3 -> 0.7272727273 | K12: =(D3+D10)/(B3+B10) -> 0.04545454545 | L12: =C10/B10 -> 0.6363636364 | N12: =SUM(J12:L12) -> 1.409090909 | O12: =N12-100% -> 0.4090909091 | T12: P(A) | W12: =MEDIAN(G17,G21,G25,G29,G34,G38,G42) -> 0.04545454545 | Y12: =MEDIAN(L17,L21,L25,L29,L34,L38,L42) -> 0.1904761905 | Z12: =100%-Z13 -> 0.1244588745 | AB12: =AB11+AC11 -> 2
D13: =((G10/B10/B3)*F3)-4% -> 2.521983471 | E13: =((G3/B3/B10)*F10)-4% -> 2.141818182 | J13: =J12-O13 -> 0.5909090909 | K13: =K12-O13 -> -0.09090909091 | L13: =L12-O13 -> 0.5 | N13: =SUM(J13:M13) -> 1 | O13: =O12/3 -> 0.1363636364 | S13: P(A)=P(B1)*PB1(A)+P(B2)*PB2(A) | W13: =MEDIAN(G16,G20,G24,G28,G33,G37,G41) -> 0.09090909091 | X13: =(W12+Y12)/2 -> 0.117965368 | Y13: =MEDIAN(L16,L20,L24,L28,L33,L37,L41) -> 0.6666666667 | Z13: =SUM(W13:Y13) -> 0.8755411255
G14: =AVERAGE(G28:H29,G24:H25,G20:H21,G16:H17) -> 0.2204545455 | H14: =AVERAGE(G30,G26,G22,G18) -> 0.5590909091 | L14: =AVERAGE(L28:M29,L24:M25,L20:M21,L16:M17) -> 0.4480519481 | M14: =AVERAGE(L30,L26,L22,L18) -> 0.1038961039
B15: 1 Команда | D15: 2 Команда | G15: =A1 -> Cardiff U23 | J15: =A2 -> Общая | L15: =A7 -> Sheffield Utd U23 | O15: =J15 -> Общая | P15: 1 | Q15: Х | R15: 2 | T15: 1 | U15: Х | V15: 2
B16: 10 | C16: =B16*G16/100 -> 0.04090909091 | D16: =E16*L16/100 -> 0.06666666667 | E16: 10 | G16: =C2/B2 -> 0.4090909091 | J16: Побед | L16: =C8/B8 -> 0.6666666667 | P16: =(G16+G20+G24+G28)/4 -> 0.4068181818 | Q16: =(G17+G21+G25+G29+L29+L25+L21+L17)/8 -> 0.08971861472 | R16: =(L16+L20+L24+L28)/4 -> 0.7507575758 | T16: =(P16+P20+P24+P28)/4 -> 0.40625 | U16: =(Q16+Q20+Q24+Q28)/4 -> 0.08265692641 | V16: =(R16+R20+R24+R28)/4 -> 0.771780303 | W16: =SUM(T16:V16) -> 1.260687229
G17: =D2/B2 -> 0.04545454545 | J17: Ничья | L17: =D8/B8 -> 0.1904761905 | Y17: =S6*100 -> 38.39766715 | Z17: =T6*100 -> -5.949374699 | AA17: =U6*100 -> 67.55170755
G18: =E2/B2 -> 0.5454545455 | J18: Проигрыш | L18: =E8/B8 -> 0.1428571429 | Y18: =100/Y17 -> 2.604324883 | Z18: =100/Z17 -> -16.80848914 | AA18: 1.480347479
J19: Дом | O19: =J19 -> Дом | P19: 1 | Q19: Х | R19: 2
B20: 30 | C20: =B20*G20/100 -> 0.2181818182 | D20: =E20*L20/100 -> 0.035 | E20: 5 | G20: =C3/B3 -> 0.7272727273 | J20: Побед | L20: =C9/B9 -> 0.7 | P20: =G20 -> 0.7272727273 | Q20: =(G21+L21)/2 -> 0.15 | R20: =L20 -> 0.7 | T20: 1 | U20: Х | V20: 2 | Y20: =W6*100 -> 13.23953824 | Z20: =X6*100 -> 15.94516595 | AA20: 70.81529582
G21: =D3/B3 -> 0 | J21: Ничья | L21: =D9/B9 -> 0.3 | T21: =P20 -> 0.7272727273 | U21: =(Q20+Q24)/2 -> 0.1204545455 | V21: =R24 -> 0.6363636364 | W21: =SUM(T21:V21) -> 1.484090909 | Y21: =100/Y20 -> 7.553133515 | Z21: =100/Z20 -> 6.271493213 | AA21: 1.4121243
G22: =E3/B3 -> 0.2727272727 | J22: Проигрыш | L22: =E9/B9 -> 0
J23: Гости | O23: =J23 -> Гости | P23: 1 | Q23: Х | R23: 2 | Y23: Win | Z23: X | AA23: Lose
B24: 5 | C24: =B24*G24/100 -> 0.004545454545 | D24: =E24*L24/100 -> 0.1909090909 | E24: 30 | G24: =C4/B4 -> 0.09090909091 | J24: Побед | L24: =C10/B10 -> 0.6363636364 | P24: =G24 -> 0.09090909091 | Q24: =(G25+L25)/2 -> 0.09090909091 | R24: =L24 -> 0.6363636364
G25: =D4/B4 -> 0.09090909091 | J25: Ничья | L25: =D10/B10 -> 0.09090909091 | Y25: =(C5+C11)/B11 -> 1.4 | Z25: =(D5+D11)/B11 -> 0
G26: =E4/B4 -> 0.8181818182 | J26: Проигрыш | L26: =E10/B10 -> 0.2727272727
J27: Форма | O27: =J27 -> Форма | P27: 1 | Q27: Х | R27: 2 | T27: 1 | U27: Х | V27: 2
B28: 30 | C28: =B28*G28/100 -> 0.12 | D28: =E28*L28/100 -> 0.3 | E28: 30 | G28: =C5/B5 -> 0.4 | J28: Побед | L28: =C11/B11 -> 1 | P28: =G28 -> 0.4 | Q28: =(G29+L29)/2 -> 0 | R28: =L28 -> 1 | T28: =P28 -> 0.4 | U28: =Q28 -> 0 | V28: =R28 -> 1 | W28: =SUM(T28:V28) -> 1.4
G29: =D5/B5 -> 0 | J29: Ничья | L29: =D11/B11 -> 0
G30: =E5/B5 -> 0.6 | J30: Проигрыш | L30: =E11/B11 -> 0 | O30: Общая | P30: Дом | Q30: Гости | R30: Форма 5 | S30: Среднее
J31: Очные | N31: В % | O31: =C2/B2 -> 0.4090909091 | P31: =C3/B3 -> 0.7272727273 | Q31: =C4/B4 -> 0.09090909091 | R31: =C5/B5 -> 0.4 | S31: =AVERAGE(O31:R31) -> 0.4068181818 | T31: 1 | U31: Х | V31: 2 | W31: =(W16+W21+W28)/3 -> 1.381592713
J32: Общая | N32: Н % | O32: =D2/B2 -> 0.04545454545 | P32: =D3/B3 -> 0 | Q32: =D4/B4 -> 0.09090909091 | R32: =D5/B5 -> 0 | S32: =AVERAGE(O32:R32) -> 0.03409090909 | T32: =(T16+T21+T28)/3 -> 0.5111742424 | U32: =(U16+U21+U28)/3 -> 0.06770382395 | V32: =(V16+V21+V28)/3 -> 0.8027146465 | W32: =SUM(T32:V32) -> 1.381592713 | Z32: =C3/B3 -> 0.7272727273 | AA32: =(D3/B3)/2 -> 0 | AB32: =SUM(Z32:AA32) -> 0.7272727273
G33: =IFERROR(L2/K2,0) -> 0 | J33: Побед | L33: =IFERROR(L8/K8,0) -> 0.5 | N33: П % | O33: =E2/B2 -> 0.5454545455 | P33: =E3/B3 -> 0.2727272727 | Q33: =E4/B4 -> 0.8181818182 | R33: =E5/B5 -> 0.6 | S33: 0.5590909091 | Z33: =C10/B10 -> 0.6363636364 | AA33: =(D10/B10)/2 -> 0.04545454545 | AB33: =SUM(Z33:AA33) -> 0.6818181818
G34: =IFERROR(M2/K2,0) -> 0.5 | J34: Ничья | L34: =IFERROR(M8/K8,0) -> 0.5 | S34: =S31+S32-S33 -> -0.1181818182 | T34: =(100%-W31)/3 -> -0.1271975709 | AB34: =100%-AB33-AB32 -> -0.4090909091
G35: =IFERROR(N2/K2,0) -> 0.5 | J35: Проигрыш | L35: =IFERROR(N8/K8,0) -> 0 | N35: В % | O35: =C8/B8 -> 0.6666666667 | P35: =C9/B9 -> 0.7 | Q35: =C10/B10 -> 0.6363636364 | R35: =C11/B11 -> 1 | S35: =AVERAGE(O35:R35) -> 0.7507575758
J36: Дом | N36: Н % | O36: =D8/B8 -> 0.1904761905 | P36: =D9/B9 -> 0.3 | Q36: =D10/B10 -> 0.09090909091 | R36: =D11/B11 -> 0 | S36: =AVERAGE(O36:R36) -> 0.1453463203
B37: 20 | C37: =B37*G37/100 -> 0 | D37: =E37*L37/100 -> 0.01666666667 | E37: 5 | G37: =IFERROR(L3/K3,0) -> 0 | J37: Побед | L37: =IFERROR(L9/K9,0) -> 0.3333333333 | N37: П % | O37: =E8/B8 -> 0.1428571429 | P37: =E9/B9 -> 0 | Q37: =E10/B10 -> 0.2727272727 | R37: =E11/B11 -> 0 | S37: 0.1038961039
G38: =IFERROR(M3/K3,0) -> 0.6666666667 | J38: Ничья | L38: =IFERROR(M9/K9,0) -> 0 | S38: =S35+S36-S37 -> 0.7922077922
G39: =IFERROR(N3/K3,0) -> 0.3333333333 | J39: Проигрыш | L39: =IFERROR(N9/K9,0) -> 0
J40: Гости | S40: Кофициэнт букмекера стартовый | W40: Кофициэнт анализа 1 | AA40: =A1 -> Cardiff U23 | AC40: =A7 -> Sheffield Utd U23
B41: 5 | C41: =B41*G41/100 -> 0 | D41: =E41*L41/100 -> 0.2 | E41: 20 | G41: =IFERROR(L4/K4,0) -> 0 | J41: Побед | L41: =IFERROR(L10/K10,0) -> 1 | S41: 1 | T41: Х | U41: 2 | W41: 1 | X41: Х | Y41: 2 | Z41: в ср. пропущ. Дома | AA41: =G3/B3 -> 1.090909091 | AB41: по статистике матчей Дома/в Гостях | AC41: =G10/B10 -> 0.9090909091 | AD41: в ср. пропущ. в Гостях | AF41: по статистике Гостевых матчей
G42: =IFERROR(M4/K4,0) -> 0 | J42: Ничья | L42: =IFERROR(M10/K10,0) -> 2 | S42: =Коэффициенты!B2 -> 2.93 | T42: =Коэффициенты!B3 -> 3.8 | U42: =Коэффициенты!B4 -> 2.02 | W42: =Y18 -> 2.604324883 | X42: =Z18 -> -16.80848914 | Y42: =AA18 -> 1.480347479 | Z42: в ср. Поражен Дома | AA42: =E3/B3 -> 0.2727272727 | AC42: =E10/B10 -> 0.2727272727 | AD42: в ср. Поражен в Гостях
G43: =IFERROR(N4/K4,0) -> 1 | J43: Проигрыш | L43: =IFERROR(N10/K10,0) -> 0 | S43: =1/S42 -> 0.3412969283 | T43: =1/T42 -> 0.2631578947 | U43: 0.495049505 | W43: =S6 -> 0.3839766715 | X43: =T6 -> -0.05949374699 | Y43: =U6 -> 0.6755170755 | Z43: в ср. очков Дома | AA43: =H3/B3 -> 2.181818182 | AC43: =H10/B10 -> 2 | AD43: в ср. очков в Гостях
C44: =SUM(C16:C43) -> 0.3836363636 | D44: =SUM(D16:D43) -> 0.8092424242 | J44: Общая | Z44: в ср. Пропущено Хозяевами | AA44: =G5/B5 -> 1.2 | AB44: по Форме5 | AC44: =G11/B11 -> 0.4 | AD44: в ср. Пропущено Гостями | AF44: по Форме5
C45: =VALUE(TEXT((G48+G54+G57)/3,"0,00")) -> 2.01 | D45: =VALUE(TEXT((L51+L54+L57)/3,"0,00")) -> 3.53 | E45: =(G48+G54+G57)/3 -> 2.006060606 | G45: =F2/B2 -> 1.772727273 | J45: Забили | L45: =F8/B8 -> 2.523809524 | O45: =(L51+L54+L57)/3 -> 3.533333333 | S45: Кофициэнт букмекера актуальный | W45: Кофициэнт анализа 2 | Z45: в ср. Поражен Хозяев | AA45: =E5/B5 -> 0.6 | AC45: =E11/B11 -> 0 | AD45: в ср. Поражен Гостей
E46: =(G49+G55+G58)/3 -> 1.319191919 | G46: =G2/B2 -> 1.545454545 | J46: Пропустили | L46: =G8/B8 -> 0.9047619048 | O46: =(L52+L55+L58)/3 -> 1.436363636 | S46: 1 | T46: Х | U46: 2 | W46: 1 | X46: Х | Y46: 2 | AA46: =(AA41+AA42+AA43+AA44+AA45)/5 -> 1.069090909 | AB46: Проиграет | AC46: =(AC41+AC42+AC43+AC44+AC45)/5 -> 0.7163636364
C47: =100%-C44-D44 -> -0.1928787879 | E47: =(E45+O46)/2 -> 1.721212121 | J47: Дом | O47: =(O45+E46)/2 -> 2.426262626 | S47: =Коэффициенты!C2 -> 3.46 | T47: =Коэффициенты!C3 -> 4.27 | U47: =Коэффициенты!C4 -> 1.83 | W47: =Y21 -> 7.553133515 | X47: =Z21 -> 6.271493213 | Y47: =AA21 -> 1.4121243 | AA47: средние кф-ты поражения
C48: =SUMPRODUCT(C16:C41,B16:B41)/SUM(B16:B41) -> 0.1057727273 | D48: =SUMPRODUCT(D16:D41,E16:E41)/SUM(E16:E41) -> 0.1965227273 | E48: ср взвеш | G48: =F3/B3 -> 2.818181818 | I48: =G48 -> 2.818181818 | J48: Забили | L48: =F9/B9 -> 3.1 | S48: =1/S47 -> 0.289017341 | T48: =1/T47 -> 0.2341920375 | U48: 0.5464480874 | W48: =W6 -> 0.1323953824 | X48: =X6 -> 0.1594516595 | Y48: =Y6 -> 0.7081529582
C49: =C48/(C48+D48) -> 0.3498985039 | D49: =D48/(D48+C48) -> 0.6501014961 | G49: =G3/B3 -> 1.090909091 | I49: =G49 -> 1.090909091 | J49: Пропустили | L49: =G9/B9 -> 0.9 | AA49: =A1 -> Cardiff U23 | AC49: =A7 -> Sheffield Utd U23 | AD49: Adv
C50: =H3/B3 -> 2.181818182 | D50: =H10/B10 -> 2 | J50: Гости | Y50: в ср. забито Дома | AA50: =F3/B3 -> 2.818181818 | AB50: по статистике матчей Дома/в Гостях | AC50: =F10/B10 -> 2 | AD50: в ср. забито в Гостях
C51: =H5/B5 -> 1.2 | D51: =H11/B11 -> 3 | G51: =F4/B4 -> 0.7272727273 | J51: Забили | K51: =L51 -> 2 | L51: =F10/B10 -> 2 | Y51: в ср. Побед Дома | AA51: =C3/B3 -> 0.7272727273 | AC51: =C10/B10 -> 0.6363636364 | AD51: в ср. Побед в Гостях
C52: =(C50+C51)/2 -> 1.690909091 | D52: =(D50+D51)/2 -> 2.5 | G52: =G4/B4 -> 2 | J52: Пропустили | K52: =L52 -> 0.9090909091 | L52: =G10/B10 -> 0.9090909091 | S52: =H3/B3 -> 2.181818182 | U52: =H10/B10 -> 2 | Y52: в ср. очков Дома | AA52: =H3/B3 -> 2.181818182 | AC52: =H10/B10 -> 2 | AD52: в ср. очков в Гостях
C53: Adv | D53: Adv | J53: Форма | S53: =H5/B5 -> 1.2 | U53: =H11/B11 -> 3 | Y53: в ср. забито Хозяевами | AA53: =F5/B5 -> 2.2 | AB53: по Форме5 | AC53: =F11/B11 -> 3.6 | AD53: в ср. забито Гостями
B54: 1 Команда | D54: 2 Команда | G54: =F5/B5 -> 2.2 | J54: Забили | L54: =F11/B11 -> 3.6 | S54: =O3/K3 -> 1 | U54: =O10/K10 -> 5 | Y54: в ср. Побед Хозяев | AA54: =C5/B5 -> 0.4 | AC54: =C11/B11 -> 1 | AD54: в ср. Побед Гостей
B55: 10 | C55: =B55*G18/100 -> 0.05454545455 | D55: =E55*L18/100 -> 0.01428571429 | E55: 10 | G55: =G5/B5 -> 1.2 | J55: Пропустили | L55: =G11/B11 -> 0.4 | S55: =SUM(S52:S54) -> 4.381818182 | U55: =SUM(U52:U54) -> 10 | AA55: =(AA50+AA51+AA52+AA53+AA54)/5 -> 1.665454545 | AB55: Выйграет | AC55: =(AC50+AC51+AC52+AC53+AC54)/5 -> 1.847272727
J56: Очные | S56: =S55-U55 -> -5.618181818 | U56: =U55-S55 -> 5.618181818 | AA56: средние кф-ты победы
G57: =IFERROR(O3/K3,0) -> 1 | J57: Забили | L57: =IFERROR(O10/K10,0) -> 5 | AA57: =VALUE(TEXT(AA55-AA46,"0,000")) -> 0.596 | AC57: =VALUE(TEXT(AC55-AC46,"0,000")) -> 1.131
G58: =IFERROR(P3/K3,0) -> 1.666666667 | J58: Пропустили | L58: =IFERROR(P10/K10,0) -> 3 | AA58: Индексы Победы/Поражения
B59: 30 | C59: =B59*G22/100 -> 0.08181818182 | D59: =E59*L22/100 -> 0 | E59: 5
G60: 1 Команда | I60: 2 Команда | AA60: =AA49 -> Cardiff U23 | AC60: =AC49 -> Sheffield Utd U23
G61: 10 | H61: =G61*G17/100 -> 0.004545454545 | I61: =J61*L17/100 -> 0.01904761905 | J61: 10 | AA61: =F3/F2 -> 0.7948717949 | AB61: =J45 -> Забили | AC61: =F10/F8 -> 0.4150943396
AA62: =G3/G2 -> 0.3529411765 | AB62: =J46 -> Пропустили | AC62: =G10/G8 -> 0.5263157895
B63: 5 | C63: =B63*G26/100 -> 0.04090909091 | D63: =E63*L26/100 -> 0.08181818182 | E63: 30
G65: 30 | H65: =G65*G21/100 -> 0 | I65: =J65*L21/100 -> 0.015 | J65: 5
B67: 30 | C67: =B67*G30/100 -> 0.18 | D67: =E67*L30/100 -> 0 | E67: 30
G69: 5 | H69: =G69*G25/100 -> 0.004545454545 | I69: =J69*L25/100 -> 0.02727272727 | J69: 30
G73: 30 | H73: =G73*G29/100 -> 0 | I73: =J73*L29/100 -> 0 | J73: 30
B76: 20 | C76: =B76*G39/100 -> 0.06666666667 | D76: =E76*L39/100 -> 0 | E76: 5
B80: 5 | C80: =B80*G43/100 -> 0.05 | D80: =E80*L43/100 -> 0 | E80: 20
G82: 20 | H82: =G82*G38/100 -> 0.1333333333 | I82: =J82*L38/100 -> 0 | J82: 5
C83: =SUM(C55:C82) -> 0.4739393939 | D83: =SUM(D55:D82) -> 0.0961038961
B86: 1 Команда | D86: 2 Команда | G86: 5 | H86: =G86*G42/100 -> 0 | I86: =J86*L42/100 -> 0.4 | J86: 20
B87: =C44 -> 0.3836363636 | C87: Выйграет | E87: =D44 -> 0.8092424242
B89: 1 Команда | D89: 2 Команда | H89: =SUM(H61:H88) -> 0.1424242424 | I89: =SUM(I61:I88) -> 0.4613203463
B90: =C83 -> 0.4739393939 | C90: Проиграет | E90: =D83 -> 0.0961038961
H91: =SUMPRODUCT(C16:C41,B16:B41)/SUM(B16:B41) -> 0.1057727273 | I91: =SUMPRODUCT(D16:D41,E16:E41)/SUM(E16:E41) -> 0.1965227273 | J91: =H91+I92 -> 0.1317467532
B92: 1 Команда | D92: 2 Команда | H92: =SUMPRODUCT(C55:C80,B55:B80)/SUM(B55:B80) -> 0.1018787879 | I92: =SUMPRODUCT(D55:D80,E55:E80)/SUM(E55:E80) -> 0.02597402597 | J92: =I91+H92 -> 0.2984015152
B93: =(B87+E90)/2 -> 0.2398701299 | C93: =100%-B93-E93 -> 0.118538961 | E93: =(B90+E87)/2 -> 0.6415909091 | H93: =SUMPRODUCT(H61:H86,G61:G86)/SUM(G61:G86) -> 0.02734848485 | I93: =SUMPRODUCT(I61:I86,J61:J86)/SUM(J61:J86) -> 0.09083658009 | J93: =(H93+I93)/2 -> 0.05909253247
J94: =SUM(J91:J93) -> 0.4892408009
B95: 1 Команда | D95: 2 Команда
B96: =H89 -> 0.1424242424 | C96: ничья | E96: =I89 -> 0.4613203463 | H96: =(J91/J94) -> 0.2692881563 | I96: =(J93/J94) -> 0.1207841463 | J96: =(J92/J94) -> 0.6099276974
B98: 1 Команда | D98: 2 Команда
B99: =(B87+E90+B96)/3 -> 0.2073881674 | C99: =100%-B99-E99 -> 0.2111111111 | E99: =(B90+E87+E96)/3 -> 0.5815007215

Sheet Elizabet2 (hidden)
A1: HOME Team | F1: 16 | G1: =F1*2-2 -> 30 | I1: Prob. Goals | M1: Prob. CS | P1: Prob. Bets | S1: Prob. CS | AG1: команда1 | AH1: =C6/B6 -> 2.2 | AI1: =D6/B6 -> 1.2 | AL1: Очки
A2: ='Incognito DATA'!A1 -> Cardiff U23 | B2: Played | C2: G For | D2: G Against | E2: Points | F2: =TEXT(B3/(F1*2-2),"0%") -> 73% | G2: =IFERROR(B3&" / "&F2,"") -> 22 / 73% | I2: HOME | J2: AWAY | M2: HOME | N2: AWAY | P2: Forecasts | S2: main + addit. | U2: Totals | Y2: Total Forecasts | AG2: команда2 | AH2: =C12/B12 -> 3.6 | AI2: =D12/B12 -> 0.4 | AL2: =A2 -> Cardiff U23
A3: Overall | B3: ='Incognito DATA'!B2 -> 22 | C3: ='Incognito DATA'!F2 -> 39 | D3: ='Incognito DATA'!G2 -> 34 | E3: ='Incognito DATA'!H2 -> 28 | F3: =(C3/B3+D9/B9)/2 -> 1.338744589 | H3: Overall | I3: =F3 -> 1.338744589 | J3: =F9 -> 2.034632035 | M3: =IF(I3<1,IF(I3>0.9,CEILING(I3,1),FLOOR(I3,1)),IF(I3>1.54,CEILING(I3,1),FLOOR(I3,1))) -> 1 | N3: =IF(J3<1,IF(J3>0.95,CEILING(J3,1),FLOOR(J3,1)),IF(J3>1.7,CEILING(J3,1),FLOOR(J3,1))) -> 3 | O3: =ABS(I3-J3) -> 0.6958874459 | P3: =IF(I3>J3,"1X","X2") -> X2 | Q3: =IF(AND(I3>J3,O3>0.29),"W1",IF(AND(I3<J3,O3>0.29),"W2","X")) -> W2 | R3: =IF(COUNTIF(S$2:S3,S3)=1,MAX(R$2:R2)+1,"") -> 1 | S3: =M3&" - "&N3 -> 1 - 3 | U3: =(C3/B3)+(C9/B9) -> 4.296536797 | V3: Goals For | W3: =MOD(U3,1) -> 0.2965367965 | X3: =IF(W3>0.6,CEILING(U3,1),FLOOR(U3,1)) -> 4 | Y3: =TEXT(Z3,"0,00") -> O 2,5 | Z3: =IF(U5>=2.95,"O 2,5",IF(U5<1.8,"U 2,5","")) -> O 2,5 | AH3: =SUM(AH1:AH2) -> 5.8 | AI3: =SUM(AI1:AI2) -> 1.6 | AL3: Общие | AM3: =E3 -> 28 | AR3: На сколько процентов лучше хуже от нетрального поля
A4: @Home | B4: ='Incognito DATA'!B3 -> 11 | C4: ='Incognito DATA'!F3 -> 31 | D4: ='Incognito DATA'!G3 -> 12 | E4: ='Incognito DATA'!H3 -> 24 | F4: =(C4/B4+D11/B11)/2 -> 1.863636364 | H4: Home / Away | I4: =F4 -> 1.863636364 | J4: =F11 -> 1.545454545 | M4: =IF(I4<1,IF(I4>0.9,CEILING(I4,1),FLOOR(I4,1)),IF(I4>1.6,CEILING(I4,1),FLOOR(I4,1))) -> 2 | N4: =IF(J4<1,IF(J4>0.95,CEILING(J4,1),FLOOR(J4,1)),IF(J4>1.7,CEILING(J4,1),FLOOR(J4,1))) -> 1 | O4: =ABS(I4-J4) -> 0.3181818182 | P4: =IF(I4>J4,"1X","X2") -> 1X | Q4: =IF(AND(I4>J4,O4>0.29),"W1",IF(AND(I4<J4,O4>0.29),"W2","X")) -> W1 | R4: =IF(COUNTIF(S$2:S4,S4)=1,MAX(R$2:R3)+1,"") -> 2 | S4: =M4&" - "&N4 -> 2 - 1 | U4: =(D3/B3)+(D9/B9) -> 2.45021645 | V4: Goals Against | W4: =MOD(U4,1) -> 0.4502164502 | X4: =IF(W4>0.6,CEILING(U4,1),FLOOR(U4,1)) -> 2 | Y4: =Z4 -> O 2,5 | Z4: =IF(X8>=2.6,"O 2,5",IF(X8<2.3,"U 2,5","")) -> O 2,5 | AI4: =AH3+AI3 -> 7.4 | AL4: Дом | AM4: =E4 -> 24 | AN4: =AM4/AM3 -> 0.8571428571 | AO4: =AN4/0.5 -> 1.714285714 | AP4: =AO4 -> 1.714285714 | AQ4: =AP4*100-100 -> 71.42857143
A5: @Away | B5: ='Incognito DATA'!B4 -> 11 | C5: ='Incognito DATA'!F4 -> 8 | D5: ='Incognito DATA'!G4 -> 22 | E5: ='Incognito DATA'!H4 -> 4 | R5: =IF(COUNTIF(S$2:S5,S5)=1,MAX(R$2:R4)+1,"") ->  | U5: =I3+J3 -> 3.373376623 | V5: Overal | W5: =MOD(U5,1) -> 0.3733766234 | X5: =IF(W5>0.6,CEILING(U5,1),FLOOR(U5,1)) -> 3 | Y5: =TEXT(U5,"0,00") -> 3,37 | Z5: =IF(X8>=2.6,"O 1,5",IF(X8<0.8,"U 1,5","")) -> O 1,5 | AG5: голы по форме | AI5: =AI4/2 -> 3.7 | AL5: Выезд | AM5: =E5 -> 4 | AN5: =AM5/AM3 -> 0.1428571429 | AO5: =AN5/0.5 -> 0.2857142857 | AP5: =AO5 -> 0.2857142857 | AQ5: =AP5*100-100 -> -71.42857143
A6: Form 5 | B6: ='Incognito DATA'!B5 -> 5 | C6: ='Incognito DATA'!F5 -> 11 | D6: ='Incognito DATA'!G5 -> 6 | E6: ='Incognito DATA'!H5 -> 6 | F6: =(C6/B6+D12/B12)/2 -> 1.3 | H6: Form 5 | I6: =F6 -> 1.3 | J6: =F12 -> 2.4 | M6: =IF(I6<1,IF(I6>0.9,CEILING(I6,1),FLOOR(I6,1)),IF(I6>1.69,CEILING(I6,1),FLOOR(I6,1))) -> 1 | N6: =IF(J6<1,IF(J6>0.95,CEILING(J6,1),FLOOR(J6,1)),IF(J6>1.7,CEILING(J6,1),FLOOR(J6,1))) -> 3 | O6: =ABS(I6-J6) -> 1.1 | P6: =IF(I6>J6,"1X","X2") -> X2 | Q6: =IF(AND(I6>J6,O6>0.29),"W1",IF(AND(I6<J6,O6>0.29),"W2","X")) -> W2 | R6: =IF(COUNTIF(S$2:S6,S6)=1,MAX(R$2:R5)+1,"") ->  | S6: =M6&" - "&N6 -> 1 - 3 | U6: =I6+J6 -> 3.7 | V6: Form 5 | W6: =MOD(U6,1) -> 0.7 | X6: =IF(W6>0.6,CEILING(U6,1),FLOOR(U6,1)) -> 4 | AJ6: =IF(AI7<1,IF(AI7>0.9,CEILING(AI7,1),FLOOR(AI7,1)),IF(AI7>1.6,CEILING(AI7,1),FLOOR(AI7,1))) -> 2
A7: AWAY Team | K7: Additional CS | O7: 1 | P7: =IFERROR(VLOOKUP(O7,R$3:S$13,2,FALSE),"") -> 1 - 3 | Q7: =IF(P8="",""," / ") -> / | R7: =IF(COUNTIF(S$2:S7,S7)=1,MAX(R$2:R6)+1,"") ->  | U7: =I4+J4 -> 3.409090909 | V7: Home / Away | W7: =MOD(U7,1) -> 0.4090909091 | X7: =IF(W7>0.6,CEILING(U7,1),FLOOR(U7,1)) -> 3 | AG7: команда1 | AI7: =AG9/AH9 -> 1.816326531 | AJ7: =IF(AI8<1,IF(AI8>0.9,CEILING(AI8,1),FLOOR(AI8,1)),IF(AI8>1.5,CEILING(AI8,1),FLOOR(AI8,1))) -> 3 | AL7: =A8 -> Sheffield Utd U23
A8: ='Incognito DATA'!A7 -> Sheffield Utd U23 | B8: Played | C8: G For | D8: G Against | E8: Points | F8: =TEXT(B9/(F1*2-2),"0%") -> 70% | G8: =IFERROR(B9&" / "&F8,"") -> 21 / 70% | H8: Both To Score YES / NO | K8: =IF(AND(K3<=0.95,K3>=0.6),1,0) -> 0 | L8: =IF(AND(L3<=0.95,L3>=0.6),1,0) -> 0 | M8: =IF(K$14<9,"",IF(M3=N3,"",IF(M3>N3,N3,IF(N3>M3,M3,"")))) ->  | N8: =IF(K$14<9,"",IF(M3=N3,"",IF(M3<N3,N3,IF(N3<M3,M3,"")))) ->  | O8: 2 | P8: =IFERROR(VLOOKUP(O8,R$3:S$13,2,FALSE),"") -> 2 - 1 | R8: =IF(COUNTIF(S$2:S8,S8)=1,MAX(R$2:R7)+1,"") ->  | S8: =IF(M8="","",M8&" - "&N8) ->  | U8: =AVERAGE(U3:U7) -> 3.445844156 | X8: =SUM(X3:X7)/5 -> 3.2 | AG8: команда2 | AI8: =AG10/AH10 -> 2.638297872 | AL8: Общие | AM8: =E9 -> 46
A9: Overall | B9: ='Incognito DATA'!B8 -> 21 | C9: ='Incognito DATA'!F8 -> 53 | D9: ='Incognito DATA'!G8 -> 19 | E9: ='Incognito DATA'!H8 -> 46 | F9: =(C9/B9+D3/B3)/2 -> 2.034632035 | H9: =(C3/B3)+(C9/B9) -> 4.296536797 | I9: =(D3/B3)+(D9/B9) -> 2.45021645 | J9: =I3+J3 -> 3.373376623 | K9: =IF(AND(K4<=0.95,K4>=0.6),1,0) -> 0 | L9: =IF(AND(L4<=0.95,L4>=0.6),1,0) -> 0 | M9: =IF(K$14<9,"",IF(M4=N4,"",IF(M4>N4,N4,IF(N4>M4,M4,"")))) ->  | N9: =IF(K$14<9,"",IF(M4=N4,"",IF(M4<N4,N4,IF(N4<M4,M4,"")))) ->  | O9: 3 | R9: =IF(COUNTIF(S$2:S9,S9)=1,MAX(R$2:R8)+1,"") ->  | AG9: =C3+C4+C5+C6 -> 89 | AH9: =B3+B4+B5+B6 -> 49 | AL9: Дом | AM9: =E10 -> 24 | AN9: =AM9/AM8 -> 0.5217391304 | AO9: =AN9/0.5 -> 1.043478261 | AP9: =AO9 -> 1.043478261 | AQ9: =AP9*100-100 -> 4.347826087
A10: @Home | B10: ='Incognito DATA'!B9 -> 10 | C10: ='Incognito DATA'!F9 -> 31 | D10: ='Incognito DATA'!G9 -> 9 | E10: ='Incognito DATA'!H9 -> 24 | H10: =H9+I9+J9 -> 10.12012987 | I10: =IF(H10>8.55,"YES","") -> YES | K10: =IF(AND(K6<=0.95,K6>=0.6),1,0) -> 0 | L10: =IF(AND(L6<=0.95,L6>=0.6),1,0) -> 0 | M10: =IF(K$14<9,"",IF(M6=N6,"",IF(M6>N6,N6,IF(N6>M6,M6,"")))) ->  | N10: =IF(K$14<9,"",IF(M6=N6,"",IF(M6<N6,N6,IF(N6<M6,M6,"")))) ->  | O10: 4 | R10: =IF(COUNTIF(S$2:S10,S10)=1,MAX(R$2:R9)+1,"") ->  | V10: =AVERAGE(M3:M6) -> 1.333333333 | W10: =AVERAGE(N3:N6) -> 2.333333333 | AG10: =C9+C10+C11+C12 -> 124 | AH10: =B9+B10+B11+B12 -> 47 | AJ10: =AJ6+AJ7 -> 5 | AL10: Выезд | AM10: =E11 -> 22 | AN10: =AM10/AM8 -> 0.4782608696 | AO10: =AN10/0.5 -> 0.9565217391 | AP10: =AO10 -> 0.9565217391 | AQ10: =AP10*100-100 -> -4.347826087
A11: @Away | B11: ='Incognito DATA'!B10 -> 11 | C11: ='Incognito DATA'!F10 -> 22 | D11: ='Incognito DATA'!G10 -> 10 | E11: ='Incognito DATA'!H10 -> 22 | F11: =(C11/B11+D4/B4)/2 -> 1.545454545 | K11: =IF(ABS(K3-L3)<=0.25,1,0) -> 1 | L11: =IF((I3+J3)<=1.45,1,0) -> 0 | M11: =IF(L11=0,"",0) ->  | N11: =IF(L11=0,"",0) ->  | O11: 5 | R11: =IF(COUNTIF(S$2:S11,S11)=1,MAX(R$2:R10)+1,"") ->  | AG11: общие голы | AI11: =AI7+AI8 -> 4.454624403
A12: Form 5 | B12: ='Incognito DATA'!B11 -> 5 | C12: ='Incognito DATA'!F11 -> 18 | D12: ='Incognito DATA'!G11 -> 2 | E12: ='Incognito DATA'!H11 -> 15 | F12: =(C12/B12+D6/B6)/2 -> 2.4 | G12: Rank | H12: =A2 -> Cardiff U23 | I12: =IFERROR('Incognito DATA'!I2,"RISK") -> 14 | K12: =IF(ABS(K4-L4)<=0.25,1,0) -> 1 | L12: =IF((I4+J4)<=1.45,1,0) -> 0 | M12: =IF(L12=0,"",0) ->  | N12: =IF(L12=0,"",0) ->  | O12: 6 | R12: =IF(COUNTIF(S$2:S12,S12)=1,MAX(R$2:R11)+1,"") -> 
H13: =A8 -> Sheffield Utd U23 | I13: =IFERROR('Incognito DATA'!I8,"RISK") -> 1 | K13: =IF(ABS(K6-L6)<=0.25,1,0) -> 1 | L13: =IF((I6+J6)<=1.45,1,0) -> 0 | M13: =IF(L13=0,"",0) ->  | N13: =IF(L13=0,"",0) ->  | O13: 7 | R13: =IF(COUNTIF(S$2:S13,S13)=1,MAX(R$2:R12)+1,"") -> 
K14: =K13+K12+K11+K10+K9+K8+L8+L9+L10 -> 3 | L14: =L11+L12+L13 -> 0 | S14: =P7&Q7&P8&Q8&P9&Q9&P10&Q10&P11&Q11&P12&Q12&P13&Q13 -> 1 - 3 / 2 - 1 | T14: =AVERAGE(H29,H56,H83,H110) -> 1.842945233 | U14: ТС | V14: =AVERAGE(H30,H57,H84,H111) -> 2.267718715 | AD14: HOME @ home
A15: Пуассон | T15: Форма | V15: Среднее | W15: Прогноз | AD15: Победы | AF15: Ничьи | AH15: Порожения | AJ15: =A2 -> Cardiff U23 | AL15: =AD16*3 -> 24 | AM15: =AF16*1.5 -> 0 | AP15: =-AH16*AH16 -> -9
A16: Общая | B16: 1 | C16: X | D16: 2 | F16: Дома | G16: 1 | H16: X | I16: 2 | K16: В гостях | L16: 1 | M16: X | N16: 2 | P16: Дом\Гости | Q16: 1 | R16: X | S16: 2 | T16: =A143 -> 0.1950637088 | U16: П1 | V16: =AVERAGE(B17,G17,L17,Q17) -> 0.3076992672 | W16: =AVERAGE(V16,V22) -> 0.3170279282 | X16: П1 | AD16: ='Incognito DATA'!C3 -> 8 | AF16: ='Incognito DATA'!D3 -> 0 | AH16: ='Incognito DATA'!E3 -> 3 | AI16: =AL15+AM15+AP15 -> 15
B17: =A35 -> 0.254121581 | C17: =B35 -> 0.2149387946 | D17: =C35 -> 0.5309396244 | G17: =A62 -> 0.3683313405 | H17: =B62 -> 0.2078976263 | I17: =C62 -> 0.4237710332 | L17: =A89 -> 0.1446167756 | M17: =B89 -> 0.205465309 | N17: =C89 -> 0.6499179154 | Q17: =A116 -> 0.4637273716 | R17: =B116 -> 0.1613801881 | S17: =C116 -> 0.3748924403 | T17: =C143 -> 0.6174283995 | U17: X | V17: =AVERAGE(C17,H17,M17,R17) -> 0.1974204795 | W17: =AVERAGE(V17,V23) -> 0.1256658423 | X17: Х | AC17: =AD16+AF16+AH16 -> 11 | AD17: =AD16/AC17 -> 0.7272727273 | AF17: =AF16/AC17 -> 0 | AH17: =AH16/AC17 -> 0.2727272727 | AJ17: =A8 -> Sheffield Utd U23 | AL17: =AD18*3 -> 21 | AM17: =AF18*1.5 -> 1.5 | AP17: =-AH18*AH18 -> -9
A18: ОЗ | B18: Over 1.5 | C18: Over 2.5 | D18: Over 3.5 | F18: ОЗ | G18: Over 1.5 | H18: Over 2.5 | I18: Over 3.5 | K18: ОЗ | L18: Over 1.5 | M18: Over 2.5 | N18: Over 3.5 | P18: ОЗ | Q18: Over 1.5 | R18: Over 2.5 | S18: Over 3.5 | T18: =B143 -> 0.1875078917 | U18: П2 | V18: =AVERAGE(D17,I17,N17,S17) -> 0.4948802533 | W18: =AVERAGE(V18,V24) -> 0.5573062295 | X18: П2 | AD18: ='Incognito DATA'!C10 -> 7 | AF18: ='Incognito DATA'!D10 -> 1 | AH18: ='Incognito DATA'!E10 -> 3 | AI18: =AL17+AM17+AP17 -> 13.5 | AK18: =AD15 -> Победы | AL18: =AF15 -> Ничьи | AM18: =AH15 -> Порожения
A19: =F47 -> 0.6425123276 | B19: =B41 -> 0.8499069273 | C19: =B42 -> 0.6547932541 | D19: =B43 -> 0.4354794353 | F19: =F74 -> 0.7412339903 | G19: =B68 -> 0.9047826869 | H19: =B69 -> 0.7547484541 | I19: =B70 -> 0.5570843063 | K19: =F101 -> 0.4831199679 | L19: =B95 -> 0.7719529878 | M19: =B96 -> 0.5348226014 | N19: =B97 -> 0.3120637535 | P19: =F128 -> 0.9120213802 | Q19: =B122 -> 0.9833003631 | R19: =B123 -> 0.9468588948 | S19: =B124 -> 0.8703318114 | T19: =F155 -> 0.6613260994 | U19: ОЗ | V19: =AVERAGE(A19,F19,K19,P19) -> 0.6947219165 | AC19: =AD18+AF18+AH18 -> 11 | AD19: =AD18/AC19 -> 0.6363636364 | AF19: =AF18/AC19 -> 0.09090909091 | AH19: =AH18/AC19 -> 0.2727272727 | AJ19: =AJ15 -> Cardiff U23 | AK19: =AD17 -> 0.7272727273 | AL19: =AF17 -> 0 | AM19: =AH17 -> 0.2727272727
T20: =B150 -> 0.7143641734 | U20: ТБ2.5 | V20: =AVERAGE(C19,H19,M19,R19) -> 0.7228058011 | AD20: AWAY @ away | AJ20: =AJ17 -> Sheffield Utd U23 | AK20: =AD19 -> 0.6363636364 | AL20: =AF19 -> 0.09090909091 | AM20: =AH19 -> 0.2727272727
A21: Пиччетто
A22: Общая | B22: 1 | C22: X | D22: 2 | F22: Дом\Гости | G22: 1 | H22: X | I22: 2 | K22: Форма | L22: 1 | M22: X | N22: 2 | U22: П1 | V22: =AVERAGE(B23,G23,L23) -> 0.3263565891 | AG22: Счет | AH22: Общая | AI22: Дом\Вые | AJ22: Форма | AK22: среднее
B23: =IFERROR(IF(B22="","",((R33+T34)/(B3+B9))),"") -> 0.2790697674 | C23: =IFERROR(IF(C22="","",((S33+S34)/(B3+B9))),"") -> 0.1162790698 | D23: =IFERROR(IF(D22="","",((R34+T33)/(B9+B3))),"") -> 0.6046511628 | G23: =IFERROR(IF(G22="","",((R37+T38)/(B4+B11))),"") -> 0.5 | H23: =IFERROR(IF(H22="","",((S37+S38)/(B11+B4))),"") -> 0.04545454545 | I23: =IFERROR(IF(I22="","",((R38+T37)/(B11+B4))),"") -> 0.4545454545 | L23: =IFERROR(IF(L22="","",((R41+T42)/(B6+B12))),"") -> 0.2 | M23: =IFERROR(IF(M22="","",((S41+S42)/(B6+B12))),"") -> 0 | N23: =IFERROR(IF(N22="","",((R42+T41)/(B12+B6))),"") -> 0.8 | P23: 0 голов | Q23: пропустят | R23: забьют | U23: Х | V23: =AVERAGE(C23,H23,M23) -> 0.05391120507
O24: =A2 -> Cardiff U23 | P24: =B4/C4 -> 0.3548387097 | Q24: =D4/B4 -> 1.090909091 | R24: =C4/B4 -> 2.818181818 | U24: П2 | V24: =AVERAGE(D23,I23,N23) -> 0.6197322058 | AF24: =AK24 -> 0.02029252185 | AG24: 0 - 0 | AH24: =G33 -> 0.03431773431 | AI24: =G114 -> 0.001836304777 | AJ24: =G141 -> 0.02472352647 | AK24: =AVERAGE(AH24,AI24,AJ24) -> 0.02029252185 | AL24: =LARGE(AK24:AK39,1) -> 0.07152585959 | AM24: =VLOOKUP(AL24,AF24:AG39,2,FALSE) -> 1 - 2
O25: =A8 -> Sheffield Utd U23 | P25: =B11/C11 -> 0.5 | Q25: =D11/B11 -> 0.9090909091 | R25: =C11/B11 -> 2 | AF25: =AK25 -> 0.02816314238 | AG25: 1 - 0 | AH25: =G34 -> 0.04628903697 | AI25: =G115 -> 0.006059805764 | AJ25: =G142 -> 0.03214058441 | AK25: =AVERAGE(AH25:AJ25) -> 0.02816314238 | AL25: =LARGE(AK24:AK39,2) -> 0.06299046102 | AM25: =VLOOKUP(AL25,AF24:AG39,2,FALSE) -> 1 - 1
AF26: 0.02070274903 | AG26: 2 - 0 | AH26: =G35 -> 0.03121818772 | AI26: =G116 -> 0.009998679511 | AJ26: =G143 -> 0.02089137987 | AK26: 0.02070274903 | AL26: =LARGE(AK24:AK39,3) -> 0.05635268597 | AM26: =VLOOKUP(AL26,AF24:AG39,2,FALSE) -> 2 - 2
A27: Общая | R27: Атака | S27: Защита | U27: Победа по очкам | AF27: 0.01136252105 | AG27: 3 - 0 | AH27: =G36 -> 0.0140360844 | AI27: =G117 -> 0.01099854746 | AJ27: =G144 -> 0.009052931276 | AK27: 0.01136252105 | AL27: =LARGE(AK24:AK39,4) -> 0.05507261951 | AM27: =VLOOKUP(AL27,AF24:AG39,2,FALSE) -> 1 - 3
C28: Команда | D28: Забито | E28: Пропущено | F28: Игры | H28: Средний | K28: Алгоритм3 | Q28: =A2 -> Cardiff U23 | R28: =A197 -> 0.4639125346 | S28: =A224 -> 0.2369443246 | U28: =A2 -> Cardiff U23 | W28: =A251 -> 0.373403155 | AF28: 0.04475964444 | AG28: 0 -1 | AH28: =H33 -> 0.06943355546 | AI28: =H114 -> 0.005508914331 | AJ28: =H141 -> 0.05933646353 | AK28: 0.04475964444
B29: Дом | C29: =A2 -> Cardiff U23 | D29: =C3 -> 39 | E29: =D3 -> 34 | F29: =B3 -> 22 | H29: =(D29+E30)/(F30+F29) -> 1.348837209 | K29: 1 | L29: х | M29: 2 | Q29: =A8 -> Sheffield Utd U23 | R29: =C197 -> 0.2672561478 | S29: =C224 -> 0.2981547755 | U29: =A8 -> Sheffield Utd U23 | W29: =C251 -> 0.3266732386 | AF29: 0.04990268337 | AG29: 0 - 2 | AH29: =I33 -> 0.07024092238 | AI29: =I114 -> 0.008263371497 | AJ29: =I141 -> 0.07120375623 | AK29: 0.04990268337 | AM29: =AM24&" / "&AM25&" / "&AM26&" / "&AM27 -> 1 - 2 / 1 - 1 / 2 - 2 / 1 - 3
B30: Гости | C30: =A8 -> Sheffield Utd U23 | D30: =C9 -> 53 | E30: =D9 -> 19 | F30: =B9 -> 21 | H30: =(D30+E29)/(F29+F30) -> 2.023255814 | K30: =A170 -> 0.2767356965 | L30: =B170 -> 0.4775829318 | M30: =C170 -> 0.2456813717 | AF30: 0.03753272045 | AG30: 0 - 3 | AH30: =J33 -> 0.04737178486 | AI30: =J114 -> 0.008263371497 | AJ30: =J141 -> 0.05696300499 | AK30: 0.03753272045
Q31: Пиччетто | V31: ТБ2.5 | W31: =IFERROR(IF(V31="","",((C4+D11)/(B4+B11))),"") -> 1.863636364 | X31: =IFERROR(IF(V31="","",((C11+D4)/(B4+B11))),"") -> 1.545454545 | AF31: 0.06299046102 | AG31: 1 - 1 | AH31: =H34 -> 0.09365456317 | AI31: =H115 -> 0.01817941729 | AJ31: =H142 -> 0.07713740259 | AK31: 0.06299046102
G32: 0 | H32: 1 | I32: 2 | J32: 3 | K32: 4 | L32: 5 | M32: 6 | N32: 7 | O32: 8 | P32: 9 | Q32: ОБЩАЯ | R32: В | S32: Н | T32: П | AF32: 0.05635268597 | AG32: 2 - 2 | AH32: =I35 -> 0.06389682609 | AI32: =I116 -> 0.0449940578 | AJ32: =I143 -> 0.06016717402 | AK32: 0.05635268597
F33: 0 | G33: =POISSON(F33,H29,0)*POISSON(G32,H30,0) -> 0.03431773431 | H33: =POISSON(F33,H29,0)*POISSON(H32,H30,0) -> 0.06943355546 | I33: =POISSON(F33,H29,0)*POISSON(I32,H30,0) -> 0.07024092238 | J33: =POISSON(F33,H29,0)*POISSON(J32,H30,0) -> 0.04737178486 | K33: =POISSON(F33,H29,0)*POISSON(K32,H30,0) -> 0.02396130978 | L33: =POISSON(F33,H29,0)*POISSON(L32,H30,0) -> 0.009695971866 | M33: =POISSON(F33,H29,0)*POISSON(M32,H30,0) -> 0.003269571908 | N33: =POISSON(F33,H29,0)*POISSON(N32,H30,0) -> 0.0009450257675 | O33: =POISSON(F33,H29,0)*POISSON(O32,H30,0) -> 0.0002390036098 | P33: =POISSON(F33,H29,0)*POISSON(P32,H30,0) -> 5.372949368e-05 | Q33: Team 1 | R33: ='Incognito DATA'!C2 -> 9 | S33: ='Incognito DATA'!D2 -> 1 | T33: ='Incognito DATA'!E2 -> 12 | AF33: 0.02990888606 | AG33: 3 - 3 | AH33: =J36 -> 0.01937524094 | AI33: =J117 -> 0.04949346358 | AJ33: =J144 -> 0.02085795366 | AK33: 0.02990888606
A34: ="1" -> 1 | B34: ="X" -> X | C34: ="2" -> 2 | F34: 1 | G34: =POISSON(F34,H29,0)*POISSON(G32,H30,0) -> 0.04628903697 | H34: =POISSON(F34,H29,0)*POISSON(H32,H30,0) -> 0.09365456317 | I34: =POISSON(F34,H29,0)*POISSON(I32,H30,0) -> 0.09474356972 | J34: =POISSON(F34,H29,0)*POISSON(J32,H30,0) -> 0.06389682609 | K34: =POISSON(F34,H29,0)*POISSON(K32,H30,0) -> 0.03231990622 | L34: =POISSON(F34,H29,0)*POISSON(L32,H30,0) -> 0.01307828763 | M34: =POISSON(F34,H29,0)*POISSON(M32,H30,0) -> 0.004410120249 | N34: =POISSON(F34,H29,0)*POISSON(N32,H30,0) -> 0.001274685919 | O34: =POISSON(F34,H29,0)*POISSON(O32,H30,0) -> 0.0003223769621 | P34: =POISSON(F34,H29,0)*POISSON(P32,H30,0) -> 7.247234031e-05 | Q34: Team 2 | R34: ='Incognito DATA'!C8 -> 14 | S34: ='Incognito DATA'!D8 -> 4 | T34: ='Incognito DATA'!E8 -> 3 | AF34: 0.04776591001 | AG34: 2 - 1 | AH34: =H35 -> 0.06316237982 | AI34: =H116 -> 0.02999603853 | AJ34: =H143 -> 0.05013931168 | AK34: 0.04776591001
A35: =SUM(G34:G42,H35:H42,I36:I42,J37:J42,K38:K42,L39:L42,M40:M42,N41:N42,O42) -> 0.254121581 | B35: =SUM(G33,H34,I35,J36,K37,L38,M39,N40,O41,P42) -> 0.2149387946 | C35: =1-B35-A35 -> 0.5309396244 | F35: 2 | G35: =POISSON(F35,H29,0)*POISSON(G32,H30,0) -> 0.03121818772 | H35: =POISSON(F35,H29,0)*POISSON(H32,H30,0) -> 0.06316237982 | I35: =POISSON(F35,H29,0)*POISSON(I32,H30,0) -> 0.06389682609 | J35: =POISSON(F35,H29,0)*POISSON(J32,H30,0) -> 0.04309320829 | K35: =POISSON(F35,H29,0)*POISSON(K32,H30,0) -> 0.02179714606 | L35: =POISSON(F35,H29,0)*POISSON(L32,H30,0) -> 0.008820240497 | M35: =POISSON(F35,H29,0)*POISSON(M32,H30,0) -> 0.002974267144 | N35: =POISSON(F35,H29,0)*POISSON(N32,H30,0) -> 0.0008596718989 | O35: =POISSON(F35,H29,0)*POISSON(O32,H30,0) -> 0.0002174170209 | P35: =POISSON(F35,H29,0)*POISSON(P32,H30,0) -> 4.887669463e-05 | AF35: 0.02770708894 | AG35: 3 - 1 | AH35: =H36 -> 0.02839858937 | AI35: =H117 -> 0.03299564239 | AJ35: =H144 -> 0.02172703506 | AK35: 0.02770708894
A36: =1/A35 -> 3.935124266 | B36: =1/B35 -> 4.652487243 | C36: =1/C35 -> 1.883453323 | F36: 3 | G36: =POISSON(F36,H29,0)*POISSON(G32,H30,0) -> 0.0140360844 | H36: =POISSON(F36,H29,0)*POISSON(H32,H30,0) -> 0.02839858937 | I36: =POISSON(F36,H29,0)*POISSON(I32,H30,0) -> 0.02872880553 | J36: =POISSON(F36,H29,0)*POISSON(J32,H30,0) -> 0.01937524094 | K36: =POISSON(F36,H29,0)*POISSON(K32,H30,0) -> 0.009800267219 | L36: =POISSON(F36,H29,0)*POISSON(L32,H30,0) -> 0.003965689526 | M36: =POISSON(F36,H29,0)*POISSON(M32,H30,0) -> 0.001337267398 | N36: =POISSON(F36,H29,0)*POISSON(N32,H30,0) -> 0.0003865191483 | O36: =POISSON(F36,H29,0)*POISSON(O32,H30,0) -> 9.775338926e-05 | P36: =POISSON(F36,H29,0)*POISSON(P32,H30,0) -> 2.197556813e-05 | Q36: Д\Г | R36: В | S36: Н | T36: П | AF36: 0.03476490373 | AG36: 3 - 2 | AH36: =I36 -> 0.02872880553 | AI36: =I117 -> 0.04949346358 | AJ36: =I144 -> 0.02607244207 | AK36: 0.03476490373
F37: 4 | G37: =POISSON(F37,H29,0)*POISSON(G32,H30,0) -> 0.004733098229 | H37: =POISSON(F37,H29,0)*POISSON(H32,H30,0) -> 0.00957626851 | I37: =POISSON(F37,H29,0)*POISSON(I32,H30,0) -> 0.009687620469 | J37: =POISSON(F37,H29,0)*POISSON(J32,H30,0) -> 0.006533511479 | K37: =POISSON(F37,H29,0)*POISSON(K32,H30,0) -> 0.003304741272 | L37: =POISSON(F37,H29,0)*POISSON(L32,H30,0) -> 0.001337267398 | M37: =POISSON(F37,H29,0)*POISSON(M32,H30,0) -> 0.0004509390064 | N37: =POISSON(F37,H29,0)*POISSON(N32,H30,0) -> 0.0001303378523 | O37: =POISSON(F37,H29,0)*POISSON(O32,H30,0) -> 3.296335219e-05 | P37: =POISSON(F37,H29,0)*POISSON(P32,H30,0) -> 7.410365997e-06 | Q37: Team 1 | R37: ='Incognito DATA'!C3 -> 8 | S37: ='Incognito DATA'!D3 -> 0 | T37: ='Incognito DATA'!E3 -> 3 | AF37: 0.07152585959 | AG37: 1 - 2 | AH37: =I34 -> 0.09474356972 | AI37: =I115 -> 0.02726912594 | AJ37: =I142 -> 0.0925648831 | AK37: 0.07152585959
F38: 5 | G38: =POISSON(F38,H29,0)*POISSON(G32,H30,0) -> 0.001276835801 | H38: =POISSON(F38,H29,0)*POISSON(H32,H30,0) -> 0.002583365459 | I38: =POISSON(F38,H29,0)*POISSON(I32,H30,0) -> 0.002613404592 | J38: =POISSON(F38,H29,0)*POISSON(J32,H30,0) -> 0.001762528678 | K38: =POISSON(F38,H29,0)*POISSON(K32,H30,0) -> 0.0008915115988 | L38: =POISSON(F38,H29,0)*POISSON(L32,H30,0) -> 0.0003607512051 | M38: =POISSON(F38,H29,0)*POISSON(M32,H30,0) -> 0.0001216486622 | N38: =POISSON(F38,H29,0)*POISSON(N32,H30,0) -> 3.5160909e-05 | O38: =POISSON(F38,H29,0)*POISSON(O32,H30,0) -> 8.892439196e-06 | P38: =POISSON(F38,H29,0)*POISSON(P32,H30,0) -> 1.999075478e-06 | Q38: Team 2 | R38: ='Incognito DATA'!C10 -> 7 | S38: ='Incognito DATA'!D10 -> 1 | T38: ='Incognito DATA'!E10 -> 3 | AF38: 0.05507261951 | AG38: 1 - 3 | AH38: =J34 -> 0.06389682609 | AI38: =J115 -> 0.02726912594 | AJ38: =J142 -> 0.07405190648 | AK38: 0.05507261951
F39: 6 | G39: =POISSON(F39,H29,0)*POISSON(G32,H30,0) -> 0.0002870406065 | H39: =POISSON(F39,H29,0)*POISSON(H32,H30,0) -> 0.0005807565759 | I39: =POISSON(F39,H29,0)*POISSON(I32,H30,0) -> 0.0005875095594 | J39: =POISSON(F39,H29,0)*POISSON(J32,H30,0) -> 0.0003962273773 | K39: =POISSON(F39,H29,0)*POISSON(K32,H30,0) -> 0.0002004173362 | L39: =POISSON(F39,H29,0)*POISSON(L32,H30,0) -> 8.109910813e-05 | M39: =POISSON(F39,H29,0)*POISSON(M32,H30,0) -> 2.734737367e-05 | N39: =POISSON(F39,H29,0)*POISSON(N32,H30,0) -> 7.904390396e-06 | O39: =POISSON(F39,H29,0)*POISSON(O32,H30,0) -> 1.999075478e-06 | P39: =POISSON(F39,H29,0)*POISSON(P32,H30,0) -> 4.494045649e-07 | AF39: 0.04540700177 | AG39: 2 - 3 | AH39: =J35 -> 0.04309320829 | AI39: =J116 -> 0.0449940578 | AJ39: =J143 -> 0.04813373921 | AK39: 0.04540700177
A40: ТБ 0.5 | B40: =SUM(G33:P42)-G33 -> 0.9656295198 | C40: =1/B40 -> 1.035593858 | F40: 7 | G40: =POISSON(F40,H29,0)*POISSON(G32,H30,0) -> 5.531015009e-05 | H40: =POISSON(F40,H29,0)*POISSON(H32,H30,0) -> 0.0001119065827 | I40: =POISSON(F40,H29,0)*POISSON(I32,H30,0) -> 0.0001132078221 | J40: =POISSON(F40,H29,0)*POISSON(J32,H30,0) -> 7.63494614e-05 | K40: =POISSON(F40,H29,0)*POISSON(K32,H30,0) -> 3.861862292e-05 | L40: =POISSON(F40,H29,0)*POISSON(L32,H30,0) -> 1.562707067e-05 | M40: =POISSON(F40,H29,0)*POISSON(M32,H30,0) -> 5.269593598e-06 | N40: =POISSON(F40,H29,0)*POISSON(N32,H30,0) -> 1.523105126e-06 | O40: =POISSON(F40,H29,0)*POISSON(O32,H30,0) -> 3.852039127e-07 | P40: =POISSON(F40,H29,0)*POISSON(P32,H30,0) -> 8.659622844e-08 | Q40: Форма | R40: В | S40: Н | T40: П
A41: ТБ 1.5 | B41: =SUM(G35:G42,H34:H42,I33:I42,J33:P42) -> 0.8499069273 | C41: =1/B41 -> 1.176599423 | F41: 8 | G41: =POISSON(F41,H29,0)*POISSON(G32,H30,0) -> 9.325548562e-06 | H41: =POISSON(F41,H29,0)*POISSON(H32,H30,0) -> 1.886797035e-05 | I41: =POISSON(F41,H29,0)*POISSON(I32,H30,0) -> 1.908736535e-05 | J41: =POISSON(F41,H29,0)*POISSON(J32,H30,0) -> 1.287287431e-05 | K41: =POISSON(F41,H29,0)*POISSON(K32,H30,0) -> 6.511279445e-06 | L41: =POISSON(F41,H29,0)*POISSON(L32,H30,0) -> 2.634796799e-06 | M41: =POISSON(F41,H29,0)*POISSON(M32,H30,0) -> 8.884779903e-07 | N41: =POISSON(F41,H29,0)*POISSON(N32,H30,0) -> 2.568026085e-07 | O41: =POISSON(F41,H29,0)*POISSON(O32,H30,0) -> 6.494717133e-08 | P41: =POISSON(F41,H29,0)*POISSON(P32,H30,0) -> 1.460052689e-08 | Q41: Team 1 | R41: ='Incognito DATA'!C5 -> 2 | S41: ='Incognito DATA'!D5 -> 0 | T41: ='Incognito DATA'!E5 -> 3
A42: ТБ 2.5 | B42: =SUM(G36:G42,H35:H42,I34:I42,J33:P42) -> 0.6547932541 | C42: =1/B42 -> 1.527199607 | F42: 9 | G42: =POISSON(F42,H29,0)*POISSON(G32,H30,0) -> 1.397627433e-06 | H42: =POISSON(F42,H29,0)*POISSON(H32,H30,0) -> 2.82775783e-06 | I42: =POISSON(F42,H29,0)*POISSON(I32,H30,0) -> 2.860638735e-06 | J42: =POISSON(F42,H29,0)*POISSON(J32,H30,0) -> 1.929267984e-06 | K42: =POISSON(F42,H29,0)*POISSON(K32,H30,0) -> 9.758506662e-07 | L42: =POISSON(F42,H29,0)*POISSON(L32,H30,0) -> 3.948791068e-07 | M42: =POISSON(F42,H29,0)*POISSON(M32,H30,0) -> 1.331569081e-07 | N42: =POISSON(F42,H29,0)*POISSON(N32,H30,0) -> 3.848721264e-08 | O42: =POISSON(F42,H29,0)*POISSON(O32,H30,0) -> 9.733684593e-09 | P42: =POISSON(F42,H29,0)*POISSON(P32,H30,0) -> 2.18819266e-09 | Q42: Team 2 | R42: ='Incognito DATA'!C11 -> 5 | S42: ='Incognito DATA'!D11 -> 0 | T42: ='Incognito DATA'!E11 -> 0
A43: ТБ 3.5 | B43: =SUM(G37:G42,H36:H42,I35:I42,J34:J42,K33:P42) -> 0.4354794353 | C43: =1/B43 -> 2.296319686
A44: ТБ 4.5 | B44: =SUM(G38:G42,H37:H42,I36:I42,J35:J42,K34:K42,L33:P42) -> 0.2505927857 | C44: 3.990537865 | R44: забьют | S44: пропустят
A45: ТБ 5.5 | B45: =SUM(G39:G42,H38:H42,I37:I42,J36:J42,K35:K42,L34:L42,M33:P42) -> 0.1259017895 | C45: 7.942698863 | R45: =(C3+C4+C6)/(B3+B4+B6) -> 2.131578947 | S45: =(D3+D4+D6)/(B3+B4+B6) -> 1.368421053
R46: =(C9+C11+C12)/(B9+B11+B12) -> 2.513513514 | S46: =(D9+D11+D12)/(B9+B11+B12) -> 0.8378378378
A47: ТМ 0.5 | B47: =1-B40 -> 0.03437048023 | C47: 29.09473459 | E47: ОЗ | F47: =SUM(H34:P42) -> 0.6425123276 | G47: =1/F47 -> 1.556390371
A48: ТМ 1.5 | B48: 0.1500930727 | C48: 6.662532669 | E48: НЕ ОЗ | F48: =1-F47 -> 0.3574876724 | G48: =1/F48 -> 2.797299256
A49: ТМ 2.5 | B49: 0.3452067459 | C49: 2.896814769
A50: ТМ 3.5 | B50: 0.5645205647 | C50: 1.771414652 | E50: P | F50: =SUM(G33,G35,G37,G39,G41,H34,H36,H38,H40,H42,I33,I35,I37,I39,I41,J34,J36,J38,J40,J42,K33,K35,K37,K39,K41,L34,L36,L38,L40,L42)+SUM(M33,M35,M37,M39,M41,N34,N36,N38,N40,N42,O33,O35,O37,O39,O41,P34,P36,P38,P40,P42) -> 0.5005612804 | G50: =1/F50 -> 1.997757396 | Q50: BTTS ALL | R50: =AVERAGE(F47,F74,F101,F128,F155) -> 0.6880427531
A51: ТМ 4.5 | B51: 0.7494072143 | C51: 1.334388008 | E51: D | F51: =1-F50 -> 0.4994387196 | G51: =1/F51 -> 2.002247645
A52: ТМ 5.5 | B52: 0.8740982105 | C52: 1.144036205
A54: Дома | Q54: =(H56+H57+H83+H84)/2 -> 3.385281385 | S54: Очки команд
C55: Команда | D55: Забито | E55: Пропущено | F55: Игры | H55: Средний | S55: 1К | T55: Дом | V55: =U55/B4 ->  | W55: XP1
B56: Дом | C56: =A2 -> Cardiff U23 | D56: =C4 -> 31 | E56: =D4 -> 12 | F56: =B4 -> 11 | H56: =(D56+E57)/(F57+F56) -> 1.904761905 | S56: 2К | T56: Гости | V56: =U56/B11 ->  | W56: XP2
B57: Гости | C57: =A8 -> Sheffield Utd U23 | D57: =C10 -> 31 | E57: =D10 -> 9 | F57: =B10 -> 10 | H57: =(D57+E56)/(F56+F57) -> 2.047619048
S58: 1К | T58: Общая | V58: =U58/B3 ->  | W58: XP1
G59: 0 | H59: 1 | I59: 2 | J59: 3 | K59: 4 | L59: 5 | M59: 6 | N59: 7 | O59: 8 | P59: 9 | S59: 2К | T59: Общая | V59: =U59/B9 ->  | W59: XP2
F60: 0 | G60: =POISSON(F60,H56,0)*POISSON(G59,H57,0) -> 0.01920891178 | H60: =POISSON(F60,H56,0)*POISSON(H59,H57,0) -> 0.03933253365 | I60: =POISSON(F60,H56,0)*POISSON(I59,H57,0) -> 0.04026902254 | J60: =POISSON(F60,H56,0)*POISSON(J59,H57,0) -> 0.02748520586 | K60: =POISSON(F60,H56,0)*POISSON(K59,H57,0) -> 0.01406980776 | L60: =POISSON(F60,H56,0)*POISSON(L59,H57,0) -> 0.005761921274 | M60: =POISSON(F60,H56,0)*POISSON(M59,H57,0) -> 0.001966369959 | N60: =POISSON(F60,H56,0)*POISSON(N59,H57,0) -> 0.0005751966546 | O60: =POISSON(F60,H56,0)*POISSON(O59,H57,0) -> 0.0001472229533 | P60: =POISSON(F60,H56,0)*POISSON(P59,H57,0) -> 3.349516926e-05
A61: ="1" -> 1 | B61: ="X" -> X | C61: ="2" -> 2 | F61: 1 | G61: =POISSON(F61,H56,0)*POISSON(G59,H57,0) -> 0.03658840339 | H61: =POISSON(F61,H56,0)*POISSON(H59,H57,0) -> 0.07491911171 | I61: =POISSON(F61,H56,0)*POISSON(I59,H57,0) -> 0.07670290008 | J61: =POISSON(F61,H56,0)*POISSON(J59,H57,0) -> 0.05235277307 | K61: =POISSON(F61,H56,0)*POISSON(K59,H57,0) -> 0.02679963383 | L61: =POISSON(F61,H56,0)*POISSON(L59,H57,0) -> 0.01097508814 | M61: =POISSON(F61,H56,0)*POISSON(M59,H57,0) -> 0.003745466588 | N61: =POISSON(F61,H56,0)*POISSON(N59,H57,0) -> 0.001095612675 | O61: =POISSON(F61,H56,0)*POISSON(O59,H57,0) -> 0.0002804246729 | P61: =POISSON(F61,H56,0)*POISSON(P59,H57,0) -> 6.38003224e-05 | S61: 1К | T61: Форма 5 | V61: =U61/5 ->  | W61: XP1
A62: =SUM(G61:G69,H62:H69,I63:I69,J64:J69,K65:K69,L66:L69,M67:M69,N68:N69,O69) -> 0.3683313405 | B62: =SUM(G60,H61,I62,J63,K64,L65,M66,N67,O68,P69) -> 0.2078976263 | C62: =1-B62-A62 -> 0.4237710332 | F62: 2 | G62: =POISSON(F62,H56,0)*POISSON(G59,H57,0) -> 0.03484609847 | H62: =POISSON(F62,H56,0)*POISSON(H59,H57,0) -> 0.07135153496 | I62: =POISSON(F62,H56,0)*POISSON(I59,H57,0) -> 0.07305038103 | J62: =POISSON(F62,H56,0)*POISSON(J59,H57,0) -> 0.04985978388 | K62: =POISSON(F62,H56,0)*POISSON(K59,H57,0) -> 0.02552346079 | L62: =POISSON(F62,H56,0)*POISSON(L59,H57,0) -> 0.0104524649 | M62: =POISSON(F62,H56,0)*POISSON(M59,H57,0) -> 0.003567111036 | N62: =POISSON(F62,H56,0)*POISSON(N59,H57,0) -> 0.001043440643 | O62: =POISSON(F62,H56,0)*POISSON(O59,H57,0) -> 0.000267071117 | P62: =POISSON(F62,H56,0)*POISSON(P59,H57,0) -> 6.076221181e-05 | S62: 2К | T62: Форма 5 | V62: =U62/5 ->  | W62: XP2
A63: =1/A62 -> 2.714946815 | B63: =1/B62 -> 4.81005973 | C63: =1/C62 -> 2.359764877 | F63: 3 | G63: =POISSON(F63,H56,0)*POISSON(G59,H57,0) -> 0.02212450696 | H63: =POISSON(F63,H56,0)*POISSON(H59,H57,0) -> 0.04530256188 | I63: =POISSON(F63,H56,0)*POISSON(I59,H57,0) -> 0.0463811943 | J63: =POISSON(F63,H56,0)*POISSON(J59,H57,0) -> 0.03165700564 | K63: =POISSON(F63,H56,0)*POISSON(K59,H57,0) -> 0.01620537193 | L63: =POISSON(F63,H56,0)*POISSON(L59,H57,0) -> 0.006636485649 | M63: =POISSON(F63,H56,0)*POISSON(M59,H57,0) -> 0.002264832404 | N63: =POISSON(F63,H56,0)*POISSON(N59,H57,0) -> 0.0006625019957 | O63: =POISSON(F63,H56,0)*POISSON(O59,H57,0) -> 0.0001695689632 | P63: =POISSON(F63,H56,0)*POISSON(P59,H57,0) -> 3.85791821e-05
F64: 4 | G64: =POISSON(F64,H56,0)*POISSON(G59,H57,0) -> 0.01053547951 | H64: =POISSON(F64,H56,0)*POISSON(H59,H57,0) -> 0.02157264851 | I64: =POISSON(F64,H56,0)*POISSON(I59,H57,0) -> 0.022086283 | J64: =POISSON(F64,H56,0)*POISSON(J59,H57,0) -> 0.01507476459 | K64: =POISSON(F64,H56,0)*POISSON(K59,H57,0) -> 0.007716843778 | L64: =POISSON(F64,H56,0)*POISSON(L59,H57,0) -> 0.003160231261 | M64: =POISSON(F64,H56,0)*POISSON(M59,H57,0) -> 0.001078491621 | N64: =POISSON(F64,H56,0)*POISSON(N59,H57,0) -> 0.0003154771408 | O64: =POISSON(F64,H56,0)*POISSON(O59,H57,0) -> 8.074712533e-05 | P64: =POISSON(F64,H56,0)*POISSON(P59,H57,0) -> 1.83710391e-05
F65: 5 | G65: =POISSON(F65,H56,0)*POISSON(G59,H57,0) -> 0.004013516003 | H65: =POISSON(F65,H56,0)*POISSON(H59,H57,0) -> 0.008218151815 | I65: =POISSON(F65,H56,0)*POISSON(I59,H57,0) -> 0.008413822096 | J65: =POISSON(F65,H56,0)*POISSON(J59,H57,0) -> 0.005742767462 | K65: =POISSON(F65,H56,0)*POISSON(K59,H57,0) -> 0.002939750011 | L65: =POISSON(F65,H56,0)*POISSON(L59,H57,0) -> 0.001203897623 | M65: =POISSON(F65,H56,0)*POISSON(M59,H57,0) -> 0.0004108539508 | N65: =POISSON(F65,H56,0)*POISSON(N59,H57,0) -> 0.0001201817679 | O65: =POISSON(F65,H56,0)*POISSON(O59,H57,0) -> 3.076080965e-05 | P65: =POISSON(F65,H56,0)*POISSON(P59,H57,0) -> 6.998491084e-06
F66: 6 | G66: =POISSON(F66,H56,0)*POISSON(G59,H57,0) -> 0.001274132064 | H66: =POISSON(F66,H56,0)*POISSON(H59,H57,0) -> 0.002608937084 | I66: =POISSON(F66,H56,0)*POISSON(I59,H57,0) -> 0.002671054634 | J66: =POISSON(F66,H56,0)*POISSON(J59,H57,0) -> 0.001823100782 | K66: =POISSON(F66,H56,0)*POISSON(K59,H57,0) -> 0.0009332539716 | L66: =POISSON(F66,H56,0)*POISSON(L59,H57,0) -> 0.0003821897217 | M66: =POISSON(F66,H56,0)*POISSON(M59,H57,0) -> 0.0001304298257 | N66: =POISSON(F66,H56,0)*POISSON(N59,H57,0) -> 3.81529422e-05 | O66: =POISSON(F66,H56,0)*POISSON(O59,H57,0) -> 9.765336396e-06 | P66: =POISSON(F66,H56,0)*POISSON(P59,H57,0) -> 2.221743201e-06
A67: ТБ 0.5 | B67: =SUM(G60:P69)-G60 -> 0.9807036239 | C67: =1/B67 -> 1.019676053 | F67: 7 | G67: =POISSON(F67,H56,0)*POISSON(G59,H57,0) -> 0.0003467026025 | H67: =POISSON(F67,H56,0)*POISSON(H59,H57,0) -> 0.0007099148528 | I67: =POISSON(F67,H56,0)*POISSON(I59,H57,0) -> 0.0007268175874 | J67: =POISSON(F67,H56,0)*POISSON(J59,H57,0) -> 0.0004960818454 | K67: =POISSON(F67,H56,0)*POISSON(K59,H57,0) -> 0.0002539466589 | L67: =POISSON(F67,H56,0)*POISSON(L59,H57,0) -> 0.0001039972032 | M67: =POISSON(F67,H56,0)*POISSON(M59,H57,0) -> 3.549110902e-05 | N67: =POISSON(F67,H56,0)*POISSON(N59,H57,0) -> 1.038175298e-05 | O67: =POISSON(F67,H56,0)*POISSON(O59,H57,0) -> 2.657234394e-06 | P67: =POISSON(F67,H56,0)*POISSON(P59,H57,0) -> 6.045559731e-07
A68: ТБ 1.5 | B68: =SUM(G62:G69,H61:H69,I60:I69,J60:P69) -> 0.9047826869 | C68: =1/B68 -> 1.105237771 | F68: 8 | G68: =POISSON(F68,H56,0)*POISSON(G59,H57,0) -> 8.25482387e-05 | H68: =POISSON(F68,H56,0)*POISSON(H59,H57,0) -> 0.0001690273459 | I68: =POISSON(F68,H56,0)*POISSON(I59,H57,0) -> 0.0001730518065 | J68: =POISSON(F68,H56,0)*POISSON(J59,H57,0) -> 0.0001181147251 | K68: =POISSON(F68,H56,0)*POISSON(K59,H57,0) -> 6.046349022e-05 | L68: =POISSON(F68,H56,0)*POISSON(L59,H57,0) -> 2.476123885e-05 | M68: =POISSON(F68,H56,0)*POISSON(M59,H57,0) -> 8.450264053e-06 | N68: =POISSON(F68,H56,0)*POISSON(N59,H57,0) -> 2.471845948e-06 | O68: =POISSON(F68,H56,0)*POISSON(O59,H57,0) -> 6.326748556e-07 | P68: =POISSON(F68,H56,0)*POISSON(P59,H57,0) -> 1.439418984e-07
A69: ТБ 2.5 | B69: =SUM(G63:G69,H62:H69,I61:I69,J60:P69) -> 0.7547484541 | C69: =1/B69 -> 1.324944747 | F69: 9 | G69: =POISSON(F69,H56,0)*POISSON(G59,H57,0) -> 1.747052671e-05 | H69: =POISSON(F69,H56,0)*POISSON(H59,H57,0) -> 3.577298326e-05 | I69: =POISSON(F69,H56,0)*POISSON(I59,H57,0) -> 3.662472096e-05 | J69: =POISSON(F69,H56,0)*POISSON(J59,H57,0) -> 2.499782542e-05 | K69: =POISSON(F69,H56,0)*POISSON(K59,H57,0) -> 1.279650587e-05 | L69: =POISSON(F69,H56,0)*POISSON(L59,H57,0) -> 5.240473831e-06 | M69: =POISSON(F69,H56,0)*POISSON(M59,H57,0) -> 1.788415673e-06 | N69: =POISSON(F69,H56,0)*POISSON(N59,H57,0) -> 5.231419995e-07 | O69: =POISSON(F69,H56,0)*POISSON(O59,H57,0) -> 1.338994403e-07 | P69: =POISSON(F69,H56,0)*POISSON(P59,H57,0) -> 3.046389383e-08
A70: ТБ 3.5 | B70: =SUM(G64:G69,H63:H69,I62:I69,J61:J69,K60:P69) -> 0.5570843063 | C70: =1/B70 -> 1.79506044
A71: ТБ 4.5 | B71: =SUM(G65:G69,H64:H69,I63:I69,J62:J69,K61:K69,L60:P69) -> 0.361773303 | C71: 2.764161953
A72: ТБ 5.5 | B72: =SUM(G66:G69,H65:H69,I64:I69,J63:J69,K62:K69,L61:L69,M60:P69) -> 0.2073846052 | C72: 4.821958693
A74: ТМ 0.5 | B74: =1-B67 -> 0.0192963761 | C74: 51.82320219 | E74: ОЗ | F74: =SUM(H61:P69) -> 0.7412339903 | G74: =1/F74 -> 1.349101651
A75: ТМ 1.5 | B75: 0.09521731313 | C75: 10.50229173 | E75: НЕ ОЗ | F75: =1-F74 -> 0.2587660097 | G75: =1/F75 -> 3.864495191
A76: ТМ 2.5 | B76: 0.2452515459 | C76: 4.077446267
A77: ТМ 3.5 | B77: 0.4429156937 | C77: 2.257766013 | E77: P | F77: =SUM(G60,G62,G64,G66,G68,H61,H63,H65,H67,H69,I60,I62,I64,I66,I68,J61,J63,J65,J67,J69,K60,K62,K64,K66,K68,L61,L63,L65,L67,L69)+SUM(M60,M62,M64,M66,M68,N61,N63,N65,N67,N69,O60,O62,O64,O66,O68,P61,P63,P65,P67,P69) -> 0.5001401473 | G77: =1/F77 -> 1.999439568
A78: ТМ 4.5 | B78: 0.638226697 | C78: 1.566841382 | E78: D | F78: =1-F77 -> 0.4998598527 | G78: =1/F78 -> 2.000560746
A79: ТМ 5.5 | B79: 0.7926153948 | C79: 1.261645947
A81: В гостях
C82: Команда | D82: Забито | E82: Пропущено | F82: Игры | H82: Средний
B83: Дом | C83: =A2 -> Cardiff U23 | D83: =C5 -> 8 | E83: =D5 -> 22 | F83: =B5 -> 11 | H83: =(D83+E84)/(F84+F83) -> 0.8181818182
B84: Гости | C84: =A8 -> Sheffield Utd U23 | D84: =C11 -> 22 | E84: =D11 -> 10 | F84: =B11 -> 11 | H84: =(D84+E83)/(F83+F84) -> 2
G86: 0 | H86: 1 | I86: 2 | J86: 3 | K86: 4 | L86: 5 | M86: 6 | N86: 7 | O86: 8 | P86: 9
F87: 0 | G87: =POISSON(F87,H83,0)*POISSON(G86,H84,0) -> 0.05971441573 | H87: =POISSON(F87,H83,0)*POISSON(H86,H84,0) -> 0.1194288315 | I87: =POISSON(F87,H83,0)*POISSON(I86,H84,0) -> 0.1194288315 | J87: =POISSON(F87,H83,0)*POISSON(J86,H84,0) -> 0.07961922098 | K87: =POISSON(F87,H83,0)*POISSON(K86,H84,0) -> 0.03980961049 | L87: =POISSON(F87,H83,0)*POISSON(L86,H84,0) -> 0.0159238442 | M87: =POISSON(F87,H83,0)*POISSON(M86,H84,0) -> 0.005307948065 | N87: =POISSON(F87,H83,0)*POISSON(N86,H84,0) -> 0.00151655659 | O87: =POISSON(F87,H83,0)*POISSON(O86,H84,0) -> 0.0003791391475 | P87: =POISSON(F87,H83,0)*POISSON(P86,H84,0) -> 8.425314389e-05
A88: ="1" -> 1 | B88: ="X" -> X | C88: ="2" -> 2 | F88: 1 | G88: =POISSON(F88,H83,0)*POISSON(G86,H84,0) -> 0.04885724924 | H88: =POISSON(F88,H83,0)*POISSON(H86,H84,0) -> 0.09771449847 | I88: =POISSON(F88,H83,0)*POISSON(I86,H84,0) -> 0.09771449847 | J88: =POISSON(F88,H83,0)*POISSON(J86,H84,0) -> 0.06514299898 | K88: =POISSON(F88,H83,0)*POISSON(K86,H84,0) -> 0.03257149949 | L88: =POISSON(F88,H83,0)*POISSON(L86,H84,0) -> 0.0130285998 | M88: =POISSON(F88,H83,0)*POISSON(M86,H84,0) -> 0.004342866599 | N88: =POISSON(F88,H83,0)*POISSON(N86,H84,0) -> 0.001240819028 | O88: =POISSON(F88,H83,0)*POISSON(O86,H84,0) -> 0.0003102047571 | P88: =POISSON(F88,H83,0)*POISSON(P86,H84,0) -> 6.893439046e-05
A89: =SUM(G88:G96,H89:H96,I90:I96,J91:J96,K92:K96,L93:L96,M94:M96,N95:N96,O96) -> 0.1446167756 | B89: =SUM(G87,H88,I89,J90,K91,L92,M93,N94,O95,P96) -> 0.205465309 | C89: =1-B89-A89 -> 0.6499179154 | F89: 2 | G89: =POISSON(F89,H83,0)*POISSON(G86,H84,0) -> 0.01998705651 | H89: =POISSON(F89,H83,0)*POISSON(H86,H84,0) -> 0.03997411301 | I89: =POISSON(F89,H83,0)*POISSON(I86,H84,0) -> 0.03997411301 | J89: =POISSON(F89,H83,0)*POISSON(J86,H84,0) -> 0.02664940867 | K89: =POISSON(F89,H83,0)*POISSON(K86,H84,0) -> 0.01332470434 | L89: =POISSON(F89,H83,0)*POISSON(L86,H84,0) -> 0.005329881735 | M89: =POISSON(F89,H83,0)*POISSON(M86,H84,0) -> 0.001776627245 | N89: =POISSON(F89,H83,0)*POISSON(N86,H84,0) -> 0.0005076077843 | O89: =POISSON(F89,H83,0)*POISSON(O86,H84,0) -> 0.0001269019461 | P89: =POISSON(F89,H83,0)*POISSON(P86,H84,0) -> 2.820043246e-05
A90: =1/A89 -> 6.914827107 | B90: =1/B89 -> 4.867001659 | C90: =1/C89 -> 1.538655846 | F90: 3 | G90: =POISSON(F90,H83,0)*POISSON(G86,H84,0) -> 0.005451015411 | H90: =POISSON(F90,H83,0)*POISSON(H86,H84,0) -> 0.01090203082 | I90: =POISSON(F90,H83,0)*POISSON(I86,H84,0) -> 0.01090203082 | J90: =POISSON(F90,H83,0)*POISSON(J86,H84,0) -> 0.007268020547 | K90: =POISSON(F90,H83,0)*POISSON(K86,H84,0) -> 0.003634010274 | L90: =POISSON(F90,H83,0)*POISSON(L86,H84,0) -> 0.001453604109 | M90: =POISSON(F90,H83,0)*POISSON(M86,H84,0) -> 0.0004845347032 | N90: =POISSON(F90,H83,0)*POISSON(N86,H84,0) -> 0.0001384384866 | O90: =POISSON(F90,H83,0)*POISSON(O86,H84,0) -> 3.460962165e-05 | P90: =POISSON(F90,H83,0)*POISSON(P86,H84,0) -> 7.691027034e-06
F91: 4 | G91: =POISSON(F91,H83,0)*POISSON(G86,H84,0) -> 0.001114980425 | H91: =POISSON(F91,H83,0)*POISSON(H86,H84,0) -> 0.00222996085 | I91: =POISSON(F91,H83,0)*POISSON(I86,H84,0) -> 0.00222996085 | J91: =POISSON(F91,H83,0)*POISSON(J86,H84,0) -> 0.001486640567 | K91: =POISSON(F91,H83,0)*POISSON(K86,H84,0) -> 0.0007433202833 | L91: =POISSON(F91,H83,0)*POISSON(L86,H84,0) -> 0.0002973281133 | M91: =POISSON(F91,H83,0)*POISSON(M86,H84,0) -> 9.91093711e-05 | N91: =POISSON(F91,H83,0)*POISSON(N86,H84,0) -> 2.831696317e-05 | O91: =POISSON(F91,H83,0)*POISSON(O86,H84,0) -> 7.079240793e-06 | P91: =POISSON(F91,H83,0)*POISSON(P86,H84,0) -> 1.573164621e-06
F92: 5 | G92: =POISSON(F92,H83,0)*POISSON(G86,H84,0) -> 0.0001824513423 | H92: =POISSON(F92,H83,0)*POISSON(H86,H84,0) -> 0.0003649026845 | I92: =POISSON(F92,H83,0)*POISSON(I86,H84,0) -> 0.0003649026845 | J92: =POISSON(F92,H83,0)*POISSON(J86,H84,0) -> 0.0002432684563 | K92: =POISSON(F92,H83,0)*POISSON(K86,H84,0) -> 0.0001216342282 | L92: =POISSON(F92,H83,0)*POISSON(L86,H84,0) -> 4.865369127e-05 | M92: =POISSON(F92,H83,0)*POISSON(M86,H84,0) -> 1.621789709e-05 | N92: =POISSON(F92,H83,0)*POISSON(N86,H84,0) -> 4.633684883e-06 | O92: =POISSON(F92,H83,0)*POISSON(O86,H84,0) -> 1.158421221e-06 | P92: =POISSON(F92,H83,0)*POISSON(P86,H84,0) -> 2.574269379e-07
F93: 6 | G93: =POISSON(F93,H83,0)*POISSON(G86,H84,0) -> 2.487972849e-05 | H93: =POISSON(F93,H83,0)*POISSON(H86,H84,0) -> 4.975945698e-05 | I93: =POISSON(F93,H83,0)*POISSON(I86,H84,0) -> 4.975945698e-05 | J93: =POISSON(F93,H83,0)*POISSON(J86,H84,0) -> 3.317297132e-05 | K93: =POISSON(F93,H83,0)*POISSON(K86,H84,0) -> 1.658648566e-05 | L93: =POISSON(F93,H83,0)*POISSON(L86,H84,0) -> 6.634594264e-06 | M93: =POISSON(F93,H83,0)*POISSON(M86,H84,0) -> 2.211531421e-06 | N93: =POISSON(F93,H83,0)*POISSON(N86,H84,0) -> 6.318661204e-07 | O93: =POISSON(F93,H83,0)*POISSON(O86,H84,0) -> 1.579665301e-07 | P93: =POISSON(F93,H83,0)*POISSON(P86,H84,0) -> 3.510367335e-08
A94: ТБ 0.5 | B94: =SUM(G87:P96)-G87 -> 0.9402390685 | C94: =1/B94 -> 1.063559294 | F94: 7 | G94: =POISSON(F94,H83,0)*POISSON(G86,H84,0) -> 2.908020213e-06 | H94: =POISSON(F94,H83,0)*POISSON(H86,H84,0) -> 5.816040426e-06 | I94: =POISSON(F94,H83,0)*POISSON(I86,H84,0) -> 5.816040426e-06 | J94: =POISSON(F94,H83,0)*POISSON(J86,H84,0) -> 3.877360284e-06 | K94: =POISSON(F94,H83,0)*POISSON(K86,H84,0) -> 1.938680142e-06 | L94: =POISSON(F94,H83,0)*POISSON(L86,H84,0) -> 7.754720568e-07 | M94: =POISSON(F94,H83,0)*POISSON(M86,H84,0) -> 2.584906856e-07 | N94: =POISSON(F94,H83,0)*POISSON(N86,H84,0) -> 7.38544816e-08 | O94: =POISSON(F94,H83,0)*POISSON(O86,H84,0) -> 1.84636204e-08 | P94: =POISSON(F94,H83,0)*POISSON(P86,H84,0) -> 4.103026756e-09
A95: ТБ 1.5 | B95: =SUM(G89:G96,H88:H96,I87:I96,J87:P96) -> 0.7719529878 | C95: =1/B95 -> 1.295415674 | F95: 8 | G95: =POISSON(F95,H83,0)*POISSON(G86,H84,0) -> 2.974111582e-07 | H95: =POISSON(F95,H83,0)*POISSON(H86,H84,0) -> 5.948223163e-07 | I95: =POISSON(F95,H83,0)*POISSON(I86,H84,0) -> 5.948223163e-07 | J95: =POISSON(F95,H83,0)*POISSON(J86,H84,0) -> 3.965482109e-07 | K95: =POISSON(F95,H83,0)*POISSON(K86,H84,0) -> 1.982741054e-07 | L95: =POISSON(F95,H83,0)*POISSON(L86,H84,0) -> 7.930964217e-08 | M95: =POISSON(F95,H83,0)*POISSON(M86,H84,0) -> 2.643654739e-08 | N95: =POISSON(F95,H83,0)*POISSON(N86,H84,0) -> 7.553299255e-09 | O95: =POISSON(F95,H83,0)*POISSON(O86,H84,0) -> 1.888324814e-09 | P95: =POISSON(F95,H83,0)*POISSON(P86,H84,0) -> 4.196277364e-10
A96: ТБ 2.5 | B96: =SUM(G90:G96,H89:H96,I88:I96,J87:P96) -> 0.5348226014 | C96: =1/B96 -> 1.869778871 | F96: 9 | G96: =POISSON(F96,H83,0)*POISSON(G86,H84,0) -> 2.703737801e-08 | H96: =POISSON(F96,H83,0)*POISSON(H86,H84,0) -> 5.407475603e-08 | I96: =POISSON(F96,H83,0)*POISSON(I86,H84,0) -> 5.407475603e-08 | J96: =POISSON(F96,H83,0)*POISSON(J86,H84,0) -> 3.604983735e-08 | K96: =POISSON(F96,H83,0)*POISSON(K86,H84,0) -> 1.802491868e-08 | L96: =POISSON(F96,H83,0)*POISSON(L86,H84,0) -> 7.20996747e-09 | M96: =POISSON(F96,H83,0)*POISSON(M86,H84,0) -> 2.40332249e-09 | N96: =POISSON(F96,H83,0)*POISSON(N86,H84,0) -> 6.866635686e-10 | O96: =POISSON(F96,H83,0)*POISSON(O86,H84,0) -> 1.716658922e-10 | P96: =POISSON(F96,H83,0)*POISSON(P86,H84,0) -> 3.814797603e-11
A97: ТБ 3.5 | B97: =SUM(G91:G96,H90:H96,I89:I96,J88:J96,K87:P96) -> 0.3120637535 | C97: =1/B97 -> 3.204473409
A98: ТБ 4.5 | B98: =SUM(G92:G96,H91:H96,I90:I96,J89:J96,K88:K96,L87:P96) -> 0.1551200198 | C98: 6.446621147
A99: ТБ 5.5 | B99: =SUM(G93:G96,H92:H96,I91:I96,J90:J96,K89:K96,L88:L96,M87:P96) -> 0.06666082444 | C99: 15.00131462
A101: ТМ 0.5 | B101: =1-B94 -> 0.05976093146 | C101: 16.73334025 | E101: ОЗ | F101: =SUM(H88:P96) -> 0.4831199679 | G101: =1/F101 -> 2.069879257
A102: ТМ 1.5 | B102: 0.2280470122 | C102: 4.385060741 | E102: НЕ ОЗ | F102: =1-F101 -> 0.5168800321 | G102: =1/F102 -> 1.934684913
A103: ТМ 2.5 | B103: 0.4651773986 | C103: 2.149717512
A104: ТМ 3.5 | B104: 0.6879362465 | C104: 1.453623072 | E104: P | F104: =SUM(G87,G89,G91,G93,G95,H88,H90,H92,H94,H96,I87,I89,I91,I93,I95,J88,J90,J92,J94,J96,K87,K89,K91,K93,K95,L88,L90,L92,L94,L96)+SUM(M87,M89,M91,M93,M95,N88,N90,N92,N94,N96,O87,O89,O91,O93,O95,P88,P90,P92,P94,P96) -> 0.5017565086 | G104: =1/F104 -> 1.992998562
A105: ТМ 4.5 | B105: 0.8448799802 | C105: 1.183600066 | E105: D | F105: =1-F104 -> 0.4982434914 | G105: =1/F105 -> 2.007050804
A106: ТМ 5.5 | B106: 0.9333391756 | C106: 1.071421865
A108: Дом/Гости
C109: Команда | D109: Забито | E109: Пропущено | F109: Игры | H109: Средний
B110: Дом | C110: =A2 -> Cardiff U23 | D110: =C4 -> 31 | E110: =D4 -> 12 | F110: =B6 -> 5 | H110: =(D110+E111)/(F111+F110) -> 3.3 | I110: =H110+H111 -> 6.3
B111: Гости | C111: =A8 -> Sheffield Utd U23 | D111: =C12 -> 18 | E111: =D12 -> 2 | F111: =B12 -> 5 | H111: =(D111+E110)/(F110+F111) -> 3
G113: 0 | H113: 1 | I113: 2 | J113: 3 | K113: 4 | L113: 5 | M113: 6 | N113: 7 | O113: 8 | P113: 9
F114: 0 | G114: =POISSON(F114,H110,0)*POISSON(G113,H111,0) -> 0.001836304777 | H114: =POISSON(F114,H110,0)*POISSON(H113,H111,0) -> 0.005508914331 | I114: =POISSON(F114,H110,0)*POISSON(I113,H111,0) -> 0.008263371497 | J114: =POISSON(F114,H110,0)*POISSON(J113,H111,0) -> 0.008263371497 | K114: =POISSON(F114,H110,0)*POISSON(K113,H111,0) -> 0.006197528622 | L114: =POISSON(F114,H110,0)*POISSON(L113,H111,0) -> 0.003718517173 | M114: =POISSON(F114,H110,0)*POISSON(M113,H111,0) -> 0.001859258587 | N114: =POISSON(F114,H110,0)*POISSON(N113,H111,0) -> 0.0007968251086 | O114: =POISSON(F114,H110,0)*POISSON(O113,H111,0) -> 0.0002988094157 | P114: =POISSON(F114,H110,0)*POISSON(P113,H111,0) -> 9.960313858e-05
A115: ="1" -> 1 | B115: ="X" -> X | C115: ="2" -> 2 | F115: 1 | G115: =POISSON(F115,H110,0)*POISSON(G113,H111,0) -> 0.006059805764 | H115: =POISSON(F115,H110,0)*POISSON(H113,H111,0) -> 0.01817941729 | I115: =POISSON(F115,H110,0)*POISSON(I113,H111,0) -> 0.02726912594 | J115: =POISSON(F115,H110,0)*POISSON(J113,H111,0) -> 0.02726912594 | K115: =POISSON(F115,H110,0)*POISSON(K113,H111,0) -> 0.02045184445 | L115: =POISSON(F115,H110,0)*POISSON(L113,H111,0) -> 0.01227110667 | M115: =POISSON(F115,H110,0)*POISSON(M113,H111,0) -> 0.006135553336 | N115: =POISSON(F115,H110,0)*POISSON(N113,H111,0) -> 0.002629522858 | O115: =POISSON(F115,H110,0)*POISSON(O113,H111,0) -> 0.0009860710719 | P115: =POISSON(F115,H110,0)*POISSON(P113,H111,0) -> 0.0003286903573
A116: =SUM(G115:G123,H116:H123,I117:I123,J118:J123,K119:K123,L120:L123,M121:M123,N122:N123,O123) -> 0.4637273716 | B116: =SUM(G114,H115,I116,J117,K118,L119,M120,N121,O122,P123) -> 0.1613801881 | C116: =1-B116-A116 -> 0.3748924403 | F116: 2 | G116: =POISSON(F116,H110,0)*POISSON(G113,H111,0) -> 0.009998679511 | H116: =POISSON(F116,H110,0)*POISSON(H113,H111,0) -> 0.02999603853 | I116: =POISSON(F116,H110,0)*POISSON(I113,H111,0) -> 0.0449940578 | J116: =POISSON(F116,H110,0)*POISSON(J113,H111,0) -> 0.0449940578 | K116: =POISSON(F116,H110,0)*POISSON(K113,H111,0) -> 0.03374554335 | L116: =POISSON(F116,H110,0)*POISSON(L113,H111,0) -> 0.02024732601 | M116: =POISSON(F116,H110,0)*POISSON(M113,H111,0) -> 0.010123663 | N116: =POISSON(F116,H110,0)*POISSON(N113,H111,0) -> 0.004338712716 | O116: =POISSON(F116,H110,0)*POISSON(O113,H111,0) -> 0.001627017269 | P116: =POISSON(F116,H110,0)*POISSON(P113,H111,0) -> 0.0005423390895
A117: =1/A116 -> 2.156439454 | B117: =1/B116 -> 6.196547495 | C117: =1/C116 -> 2.667431755 | F117: 3 | G117: =POISSON(F117,H110,0)*POISSON(G113,H111,0) -> 0.01099854746 | H117: =POISSON(F117,H110,0)*POISSON(H113,H111,0) -> 0.03299564239 | I117: =POISSON(F117,H110,0)*POISSON(I113,H111,0) -> 0.04949346358 | J117: =POISSON(F117,H110,0)*POISSON(J113,H111,0) -> 0.04949346358 | K117: =POISSON(F117,H110,0)*POISSON(K113,H111,0) -> 0.03712009768 | L117: =POISSON(F117,H110,0)*POISSON(L113,H111,0) -> 0.02227205861 | M117: =POISSON(F117,H110,0)*POISSON(M113,H111,0) -> 0.01113602931 | N117: =POISSON(F117,H110,0)*POISSON(N113,H111,0) -> 0.004772583988 | O117: =POISSON(F117,H110,0)*POISSON(O113,H111,0) -> 0.001789718995 | P117: =POISSON(F117,H110,0)*POISSON(P113,H111,0) -> 0.0005965729985
F118: 4 | G118: =POISSON(F118,H110,0)*POISSON(G113,H111,0) -> 0.009073801656 | H118: =POISSON(F118,H110,0)*POISSON(H113,H111,0) -> 0.02722140497 | I118: =POISSON(F118,H110,0)*POISSON(I113,H111,0) -> 0.04083210745 | J118: =POISSON(F118,H110,0)*POISSON(J113,H111,0) -> 0.04083210745 | K118: =POISSON(F118,H110,0)*POISSON(K113,H111,0) -> 0.03062408059 | L118: =POISSON(F118,H110,0)*POISSON(L113,H111,0) -> 0.01837444835 | M118: =POISSON(F118,H110,0)*POISSON(M113,H111,0) -> 0.009187224177 | N118: =POISSON(F118,H110,0)*POISSON(N113,H111,0) -> 0.00393738179 | O118: =POISSON(F118,H110,0)*POISSON(O113,H111,0) -> 0.001476518171 | P118: =POISSON(F118,H110,0)*POISSON(P113,H111,0) -> 0.0004921727238
F119: 5 | G119: =POISSON(F119,H110,0)*POISSON(G113,H111,0) -> 0.005988709093 | H119: =POISSON(F119,H110,0)*POISSON(H113,H111,0) -> 0.01796612728 | I119: =POISSON(F119,H110,0)*POISSON(I113,H111,0) -> 0.02694919092 | J119: =POISSON(F119,H110,0)*POISSON(J113,H111,0) -> 0.02694919092 | K119: =POISSON(F119,H110,0)*POISSON(K113,H111,0) -> 0.02021189319 | L119: =POISSON(F119,H110,0)*POISSON(L113,H111,0) -> 0.01212713591 | M119: =POISSON(F119,H110,0)*POISSON(M113,H111,0) -> 0.006063567957 | N119: =POISSON(F119,H110,0)*POISSON(N113,H111,0) -> 0.002598671981 | O119: =POISSON(F119,H110,0)*POISSON(O113,H111,0) -> 0.000974501993 | P119: =POISSON(F119,H110,0)*POISSON(P113,H111,0) -> 0.0003248339977
F120: 6 | G120: =POISSON(F120,H110,0)*POISSON(G113,H111,0) -> 0.003293790001 | H120: =POISSON(F120,H110,0)*POISSON(H113,H111,0) -> 0.009881370004 | I120: =POISSON(F120,H110,0)*POISSON(I113,H111,0) -> 0.01482205501 | J120: =POISSON(F120,H110,0)*POISSON(J113,H111,0) -> 0.01482205501 | K120: =POISSON(F120,H110,0)*POISSON(K113,H111,0) -> 0.01111654125 | L120: =POISSON(F120,H110,0)*POISSON(L113,H111,0) -> 0.006669924752 | M120: =POISSON(F120,H110,0)*POISSON(M113,H111,0) -> 0.003334962376 | N120: =POISSON(F120,H110,0)*POISSON(N113,H111,0) -> 0.00142926959 | O120: =POISSON(F120,H110,0)*POISSON(O113,H111,0) -> 0.0005359760962 | P120: =POISSON(F120,H110,0)*POISSON(P113,H111,0) -> 0.0001786586987
A121: ТБ 0.5 | B121: =SUM(G114:P123)-G114 -> 0.9948690832 | C121: =1/B121 -> 1.005157379 | F121: 7 | G121: =POISSON(F121,H110,0)*POISSON(G113,H111,0) -> 0.001552786715 | H121: =POISSON(F121,H110,0)*POISSON(H113,H111,0) -> 0.004658360145 | I121: =POISSON(F121,H110,0)*POISSON(I113,H111,0) -> 0.006987540217 | J121: =POISSON(F121,H110,0)*POISSON(J113,H111,0) -> 0.006987540217 | K121: =POISSON(F121,H110,0)*POISSON(K113,H111,0) -> 0.005240655163 | L121: =POISSON(F121,H110,0)*POISSON(L113,H111,0) -> 0.003144393098 | M121: =POISSON(F121,H110,0)*POISSON(M113,H111,0) -> 0.001572196549 | N121: =POISSON(F121,H110,0)*POISSON(N113,H111,0) -> 0.0006737985209 | O121: =POISSON(F121,H110,0)*POISSON(O113,H111,0) -> 0.0002526744453 | P121: =POISSON(F121,H110,0)*POISSON(P113,H111,0) -> 8.422481511e-05
A122: ТБ 1.5 | B122: =SUM(G116:G123,H115:H123,I114:I123,J114:P123) -> 0.9833003631 | C122: =1/B122 -> 1.016983251 | F122: 8 | G122: =POISSON(F122,H110,0)*POISSON(G113,H111,0) -> 0.0006405245199 | H122: =POISSON(F122,H110,0)*POISSON(H113,H111,0) -> 0.00192157356 | I122: =POISSON(F122,H110,0)*POISSON(I113,H111,0) -> 0.002882360339 | J122: =POISSON(F122,H110,0)*POISSON(J113,H111,0) -> 0.002882360339 | K122: =POISSON(F122,H110,0)*POISSON(K113,H111,0) -> 0.002161770255 | L122: =POISSON(F122,H110,0)*POISSON(L113,H111,0) -> 0.001297062153 | M122: =POISSON(F122,H110,0)*POISSON(M113,H111,0) -> 0.0006485310764 | N122: =POISSON(F122,H110,0)*POISSON(N113,H111,0) -> 0.0002779418899 | O122: =POISSON(F122,H110,0)*POISSON(O113,H111,0) -> 0.0001042282087 | P122: =POISSON(F122,H110,0)*POISSON(P113,H111,0) -> 3.474273623e-05
A123: ТБ 2.5 | B123: =SUM(G117:G123,H116:H123,I115:I123,J114:P123) -> 0.9468588948 | C123: =1/B123 -> 1.056123574 | F123: 9 | G123: =POISSON(F123,H110,0)*POISSON(G113,H111,0) -> 0.0002348589906 | H123: =POISSON(F123,H110,0)*POISSON(H113,H111,0) -> 0.0007045769719 | I123: =POISSON(F123,H110,0)*POISSON(I113,H111,0) -> 0.001056865458 | J123: =POISSON(F123,H110,0)*POISSON(J113,H111,0) -> 0.001056865458 | K123: =POISSON(F123,H110,0)*POISSON(K113,H111,0) -> 0.0007926490933 | L123: =POISSON(F123,H110,0)*POISSON(L113,H111,0) -> 0.000475589456 | M123: =POISSON(F123,H110,0)*POISSON(M113,H111,0) -> 0.000237794728 | N123: =POISSON(F123,H110,0)*POISSON(N113,H111,0) -> 0.0001019120263 | O123: =POISSON(F123,H110,0)*POISSON(O113,H111,0) -> 3.821700986e-05 | P123: =POISSON(F123,H110,0)*POISSON(P113,H111,0) -> 1.273900329e-05
A124: ТБ 3.5 | B124: =SUM(G118:G123,H117:H123,I116:I123,J115:J123,K114:P123) -> 0.8703318114 | C124: =1/B124 -> 1.148987072
A125: ТБ 4.5 | B125: =SUM(G119:G123,H118:H123,I117:I123,J116:J123,K115:K123,L114:P123) -> 0.749801655 | C125: 1.33368604
A126: ТБ 5.5 | B126: =SUM(G120:G123,H119:H123,I118:I123,J117:J123,K116:K123,L115:L123,M114:P123) -> 0.5979336579 | C126: 1.672426341
A128: ТМ 0.5 | B128: =1-B121 -> 0.005130916762 | C128: 194.8969446 | E128: ОЗ | F128: =SUM(H115:P123) -> 0.9120213802 | G128: =1/F128 -> 1.096465523
A129: ТМ 1.5 | B129: 0.01669963686 | C129: 59.88154165 | E129: НЕ ОЗ | F129: =1-F128 -> 0.08797861984 | G129: =1/F129 -> 11.3663979
A130: ТМ 2.5 | B130: 0.05314110516 | C130: 18.81782468
A131: ТМ 3.5 | B131: 0.1296681886 | C131: 7.711991745 | E131: P | F131: =SUM(G114,G116,G118,G120,G122,H115,H117,H119,H121,H123,I114,I116,I118,I120,I122,J115,J117,J119,J121,J123,K114,K116,K118,K120,K122,L115,L117,L119,L121,L123)+SUM(M114,M116,M118,M120,M122,N115,N117,N119,N121,N123,O114,O116,O118,O120,O122,P115,P117,P119,P121,P123) -> 0.4983528495 | G131: =1/F131 -> 2.006610379
A132: ТМ 4.5 | B132: 0.250198345 | C132: 3.996828996 | E132: D | F132: =1-F131 -> 0.5016471505 | G132: =1/F132 -> 1.993433032
A133: ТМ 5.5 | B133: 0.4020663421 | C133: 2.487151734
A135: Форма
C136: Команда | D136: Забито | E136: Пропущено | F136: Игры | H136: Средний
B137: Дом | C137: =C110 -> Cardiff U23 | D137: =C6 -> 11 | E137: =D6 -> 6 | F137: =B6 -> 5 | H137: =(D137+E138)/(F138+F137) -> 1.3
B138: Гости | C138: =C111 -> Sheffield Utd U23 | D138: =C12 -> 18 | E138: =D12 -> 2 | F138: =B12 -> 5 | H138: =(D138+E137)/(F137+F138) -> 2.4
G140: 0 | H140: 1 | I140: 2 | J140: 3 | K140: 4 | L140: 5 | M140: 6 | N140: 7 | O140: 8 | P140: 9
F141: 0 | G141: =POISSON(F141,H137,0)*POISSON(G140,H138,0) -> 0.02472352647 | H141: =POISSON(F141,H137,0)*POISSON(H140,H138,0) -> 0.05933646353 | I141: =POISSON(F141,H137,0)*POISSON(I140,H138,0) -> 0.07120375623 | J141: =POISSON(F141,H137,0)*POISSON(J140,H138,0) -> 0.05696300499 | K141: =POISSON(F141,H137,0)*POISSON(K140,H138,0) -> 0.03417780299 | L141: =POISSON(F141,H137,0)*POISSON(L140,H138,0) -> 0.01640534544 | M141: =POISSON(F141,H137,0)*POISSON(M140,H138,0) -> 0.006562138175 | N141: =POISSON(F141,H137,0)*POISSON(N140,H138,0) -> 0.002249875946 | O141: =POISSON(F141,H137,0)*POISSON(O140,H138,0) -> 0.0006749627837 | P141: =POISSON(F141,H137,0)*POISSON(P140,H138,0) -> 0.0001799900756
A142: ="1" -> 1 | B142: ="X" -> X | C142: ="2" -> 2 | F142: 1 | G142: =POISSON(F142,H137,0)*POISSON(G140,H138,0) -> 0.03214058441 | H142: =POISSON(F142,H137,0)*POISSON(H140,H138,0) -> 0.07713740259 | I142: =POISSON(F142,H137,0)*POISSON(I140,H138,0) -> 0.0925648831 | J142: =POISSON(F142,H137,0)*POISSON(J140,H138,0) -> 0.07405190648 | K142: =POISSON(F142,H137,0)*POISSON(K140,H138,0) -> 0.04443114389 | L142: =POISSON(F142,H137,0)*POISSON(L140,H138,0) -> 0.02132694907 | M142: =POISSON(F142,H137,0)*POISSON(M140,H138,0) -> 0.008530779627 | N142: =POISSON(F142,H137,0)*POISSON(N140,H138,0) -> 0.002924838729 | O142: =POISSON(F142,H137,0)*POISSON(O140,H138,0) -> 0.0008774516188 | P142: =POISSON(F142,H137,0)*POISSON(P140,H138,0) -> 0.0002339870983
A143: =SUM(G142:G150,H143:H150,I144:I150,J145:J150,K146:K150,L147:L150,M148:M150,N149:N150,O150) -> 0.1950637088 | B143: =SUM(G141,H142,I143,J144,K145,L146,M147,N148,O149,P150) -> 0.1875078917 | C143: =1-B143-A143 -> 0.6174283995 | F143: 2 | G143: =POISSON(F143,H137,0)*POISSON(G140,H138,0) -> 0.02089137987 | H143: =POISSON(F143,H137,0)*POISSON(H140,H138,0) -> 0.05013931168 | I143: =POISSON(F143,H137,0)*POISSON(I140,H138,0) -> 0.06016717402 | J143: =POISSON(F143,H137,0)*POISSON(J140,H138,0) -> 0.04813373921 | K143: =POISSON(F143,H137,0)*POISSON(K140,H138,0) -> 0.02888024353 | L143: =POISSON(F143,H137,0)*POISSON(L140,H138,0) -> 0.01386251689 | M143: =POISSON(F143,H137,0)*POISSON(M140,H138,0) -> 0.005545006758 | N143: =POISSON(F143,H137,0)*POISSON(N140,H138,0) -> 0.001901145174 | O143: =POISSON(F143,H137,0)*POISSON(O140,H138,0) -> 0.0005703435522 | P143: =POISSON(F143,H137,0)*POISSON(P140,H138,0) -> 0.0001520916139
A144: =1/A143 -> 5.12653023 | B144: =1/B143 -> 5.333108867 | C144: =1/C143 -> 1.619620997 | F144: 3 | G144: =POISSON(F144,H137,0)*POISSON(G140,H138,0) -> 0.009052931276 | H144: =POISSON(F144,H137,0)*POISSON(H140,H138,0) -> 0.02172703506 | I144: =POISSON(F144,H137,0)*POISSON(I140,H138,0) -> 0.02607244207 | J144: =POISSON(F144,H137,0)*POISSON(J140,H138,0) -> 0.02085795366 | K144: =POISSON(F144,H137,0)*POISSON(K140,H138,0) -> 0.0125147722 | L144: =POISSON(F144,H137,0)*POISSON(L140,H138,0) -> 0.006007090654 | M144: =POISSON(F144,H137,0)*POISSON(M140,H138,0) -> 0.002402836262 | N144: =POISSON(F144,H137,0)*POISSON(N140,H138,0) -> 0.0008238295754 | O144: =POISSON(F144,H137,0)*POISSON(O140,H138,0) -> 0.0002471488726 | P144: =POISSON(F144,H137,0)*POISSON(P140,H138,0) -> 6.590636603e-05
F145: 4 | G145: =POISSON(F145,H137,0)*POISSON(G140,H138,0) -> 0.002942202665 | H145: =POISSON(F145,H137,0)*POISSON(H140,H138,0) -> 0.007061286395 | I145: =POISSON(F145,H137,0)*POISSON(I140,H138,0) -> 0.008473543674 | J145: =POISSON(F145,H137,0)*POISSON(J140,H138,0) -> 0.006778834939 | K145: =POISSON(F145,H137,0)*POISSON(K140,H138,0) -> 0.004067300964 | L145: =POISSON(F145,H137,0)*POISSON(L140,H138,0) -> 0.001952304463 | M145: =POISSON(F145,H137,0)*POISSON(M140,H138,0) -> 0.000780921785 | N145: =POISSON(F145,H137,0)*POISSON(N140,H138,0) -> 0.000267744612 | O145: =POISSON(F145,H137,0)*POISSON(O140,H138,0) -> 8.03233836e-05 | P145: =POISSON(F145,H137,0)*POISSON(P140,H138,0) -> 2.141956896e-05
F146: 5 | G146: =POISSON(F146,H137,0)*POISSON(G140,H138,0) -> 0.0007649726928 | H146: =POISSON(F146,H137,0)*POISSON(H140,H138,0) -> 0.001835934463 | I146: =POISSON(F146,H137,0)*POISSON(I140,H138,0) -> 0.002203121355 | J146: =POISSON(F146,H137,0)*POISSON(J140,H138,0) -> 0.001762497084 | K146: =POISSON(F146,H137,0)*POISSON(K140,H138,0) -> 0.001057498251 | L146: =POISSON(F146,H137,0)*POISSON(L140,H138,0) -> 0.0005075991603 | M146: =POISSON(F146,H137,0)*POISSON(M140,H138,0) -> 0.0002030396641 | N146: =POISSON(F146,H137,0)*POISSON(N140,H138,0) -> 6.961359912e-05 | O146: =POISSON(F146,H137,0)*POISSON(O140,H138,0) -> 2.088407974e-05 | P146: =POISSON(F146,H137,0)*POISSON(P140,H138,0) -> 5.56908793e-06
F147: 6 | G147: =POISSON(F147,H137,0)*POISSON(G140,H138,0) -> 0.0001657440834 | H147: =POISSON(F147,H137,0)*POISSON(H140,H138,0) -> 0.0003977858003 | I147: =POISSON(F147,H137,0)*POISSON(I140,H138,0) -> 0.0004773429603 | J147: =POISSON(F147,H137,0)*POISSON(J140,H138,0) -> 0.0003818743683 | K147: =POISSON(F147,H137,0)*POISSON(K140,H138,0) -> 0.000229124621 | L147: =POISSON(F147,H137,0)*POISSON(L140,H138,0) -> 0.0001099798181 | M147: =POISSON(F147,H137,0)*POISSON(M140,H138,0) -> 4.399192722e-05 | N147: =POISSON(F147,H137,0)*POISSON(N140,H138,0) -> 1.508294648e-05 | O147: =POISSON(F147,H137,0)*POISSON(O140,H138,0) -> 4.524883943e-06 | P147: =POISSON(F147,H137,0)*POISSON(P140,H138,0) -> 1.206635718e-06
A148: ТБ 0.5 | B148: =SUM(G141:P150)-G141 -> 0.9750737601 | C148: =1/B148 -> 1.02556344 | F148: 7 | G148: =POISSON(F148,H137,0)*POISSON(G140,H138,0) -> 3.078104407e-05 | H148: =POISSON(F148,H137,0)*POISSON(H140,H138,0) -> 7.387450576e-05 | I148: =POISSON(F148,H137,0)*POISSON(I140,H138,0) -> 8.864940692e-05 | J148: =POISSON(F148,H137,0)*POISSON(J140,H138,0) -> 7.091952553e-05 | K148: =POISSON(F148,H137,0)*POISSON(K140,H138,0) -> 4.255171532e-05 | L148: =POISSON(F148,H137,0)*POISSON(L140,H138,0) -> 2.042482335e-05 | M148: =POISSON(F148,H137,0)*POISSON(M140,H138,0) -> 8.169929341e-06 | N148: =POISSON(F148,H137,0)*POISSON(N140,H138,0) -> 2.801118631e-06 | O148: =POISSON(F148,H137,0)*POISSON(O140,H138,0) -> 8.403355894e-07 | P148: =POISSON(F148,H137,0)*POISSON(P140,H138,0) -> 2.240894905e-07
A149: ТБ 1.5 | B149: =SUM(G143:G150,H142:H150,I141:I150,J141:P150) -> 0.8835967121 | C149: 1.131738027 | F149: 8 | G149: =POISSON(F149,H137,0)*POISSON(G140,H138,0) -> 5.001919661e-06 | H149: =POISSON(F149,H137,0)*POISSON(H140,H138,0) -> 1.200460719e-05 | I149: =POISSON(F149,H137,0)*POISSON(I140,H138,0) -> 1.440552862e-05 | J149: =POISSON(F149,H137,0)*POISSON(J140,H138,0) -> 1.15244229e-05 | K149: =POISSON(F149,H137,0)*POISSON(K140,H138,0) -> 6.914653739e-06 | L149: =POISSON(F149,H137,0)*POISSON(L140,H138,0) -> 3.319033795e-06 | M149: =POISSON(F149,H137,0)*POISSON(M140,H138,0) -> 1.327613518e-06 | N149: =POISSON(F149,H137,0)*POISSON(N140,H138,0) -> 4.551817776e-07 | O149: =POISSON(F149,H137,0)*POISSON(O140,H138,0) -> 1.365545333e-07 | P149: =POISSON(F149,H137,0)*POISSON(P140,H138,0) -> 3.641454221e-08
A150: ТБ 2.5 | B150: =SUM(G144:G150,H143:H150,I142:I150,J141:P150) -> 0.7143641734 | C150: 1.399846237 | F150: 9 | G150: =POISSON(F150,H137,0)*POISSON(G140,H138,0) -> 7.224995066e-07 | H150: =POISSON(F150,H137,0)*POISSON(H140,H138,0) -> 1.733998816e-06 | I150: =POISSON(F150,H137,0)*POISSON(I140,H138,0) -> 2.080798579e-06 | J150: =POISSON(F150,H137,0)*POISSON(J140,H138,0) -> 1.664638863e-06 | K150: =POISSON(F150,H137,0)*POISSON(K140,H138,0) -> 9.987833179e-07 | L150: =POISSON(F150,H137,0)*POISSON(L140,H138,0) -> 4.794159926e-07 | M150: =POISSON(F150,H137,0)*POISSON(M140,H138,0) -> 1.91766397e-07 | N150: =POISSON(F150,H137,0)*POISSON(N140,H138,0) -> 6.574847899e-08 | O150: =POISSON(F150,H137,0)*POISSON(O140,H138,0) -> 1.97245437e-08 | P150: =POISSON(F150,H137,0)*POISSON(P140,H138,0) -> 5.259878319e-09
A151: ТБ 3.5 | B151: =SUM(G145:G150,H144:H150,I143:I150,J142:J150,K141:P150) -> 0.5056440424 | C151: 1.977675828
A152: ТБ 4.5 | B152: =SUM(G146:G150,H145:H150,I144:I150,J143:J150,K142:K150,L141:P150) -> 0.3125779212 | C152: 3.199202286
A153: ТБ 5.5 | B153: =SUM(G147:G150,H146:H150,I145:I150,J144:J150,K143:K150,L142:L150,M141:P150) -> 0.1697089915 | C153: 5.892439707
A155: ТМ 0.5 | B155: =1-B148 -> 0.02492623993 | C155: =1/B155 -> 40.11836533 | E155: ОЗ | F155: =SUM(H142:P150) -> 0.6613260994 | G155: =1/F155 -> 1.512113314
A156: ТМ 1.5 | B156: 0.1164032879 | C156: 8.590822633 | E156: НЕ ОЗ | F156: =1-F155 -> 0.3386739006 | G156: =1/F156 -> 2.952692836
A157: ТМ 2.5 | B157: 0.2856358266 | C157: 3.500961389
A158: ТМ 3.5 | B158: 0.4943559576 | C158: 2.022833921 | E158: P | F158: =SUM(G141,G143,G145,G147,G149,H142,H144,H146,H148,H150,I141,I143,I145,I147,I149,J142,J144,J146,J148,J150,K141,K143,K145,K147,K149,L142,L144,L146,L148,L150)+SUM(M141,M143,M145,M147,M149,N142,N144,N146,N148,N150,O141,O143,O145,O147,O149,P142,P144,P146,P148,P150) -> 0.5001994474 | G158: =1/F158 -> 1.999202529
A159: ТМ 4.5 | B159: 0.6874220788 | C159: 1.454710331 | E159: D | F159: =1-F158 -> 0.4998005526 | G159: =1/F159 -> 2.000798108
A160: ТМ 5.5 | B160: 0.8302910085 | C160: 1.204397
A162: Побед Дома\выезд
C163: Команда | D163: Победы | E163: Порожения | F163: Игры | H163: Средний
B164: Дом | C164: =A2 -> Cardiff U23 | D164: =AD16 -> 8 | E164: =AH16 -> 3 | F164: =B4 -> 11 | H164: =(D164+E165)/(F165+F164) -> 0.5
B165: Гости | C165: =A8 -> Sheffield Utd U23 | D165: =AD18 -> 7 | E165: =AH18 -> 3 | F165: =B11 -> 11 | H165: =(D165+E164)/(F164+F165) -> 0.4545454545
G167: 0 | H167: 1 | I167: 2 | J167: 3 | K167: 4 | L167: 5 | M167: 6 | N167: 7 | O167: 8 | P167: 9
F168: 0 | G168: =POISSON(F168,H164,0)*POISSON(G167,H165,0) -> 0.3849870989 | H168: =POISSON(F168,H164,0)*POISSON(H167,H165,0) -> 0.1749941359 | I168: =POISSON(F168,H164,0)*POISSON(I167,H165,0) -> 0.03977139452 | J168: =POISSON(F168,H164,0)*POISSON(J167,H165,0) -> 0.006025968866 | K168: =POISSON(F168,H164,0)*POISSON(K167,H165,0) -> 0.0006847691893 | L168: =POISSON(F168,H164,0)*POISSON(L167,H165,0) -> 6.225174449e-05 | M168: =POISSON(F168,H164,0)*POISSON(M167,H165,0) -> 4.716041249e-06 | N168: =POISSON(F168,H164,0)*POISSON(N167,H165,0) -> 3.062364447e-07 | O168: =POISSON(F168,H164,0)*POISSON(O167,H165,0) -> 1.7399798e-08 | P168: =POISSON(F168,H164,0)*POISSON(P167,H165,0) -> 8.787776766e-10
A169: ="1" -> 1 | B169: ="X" -> X | C169: ="2" -> 2 | F169: 1 | G169: =POISSON(F169,H164,0)*POISSON(G167,H165,0) -> 0.1924935495 | H169: =POISSON(F169,H164,0)*POISSON(H167,H165,0) -> 0.08749706794 | I169: =POISSON(F169,H164,0)*POISSON(I167,H165,0) -> 0.01988569726 | J169: =POISSON(F169,H164,0)*POISSON(J167,H165,0) -> 0.003012984433 | K169: =POISSON(F169,H164,0)*POISSON(K167,H165,0) -> 0.0003423845947 | L169: =POISSON(F169,H164,0)*POISSON(L167,H165,0) -> 3.112587224e-05 | M169: =POISSON(F169,H164,0)*POISSON(M167,H165,0) -> 2.358020624e-06 | N169: =POISSON(F169,H164,0)*POISSON(N167,H165,0) -> 1.531182224e-07 | O169: =POISSON(F169,H164,0)*POISSON(O167,H165,0) -> 8.699898998e-09 | P169: =POISSON(F169,H164,0)*POISSON(P167,H165,0) -> 4.393888383e-10
A170: =SUM(G169:G177,H170:H177,I171:I177,J172:J177,K173:K177,L174:L177,M175:M177,N176:N177,O177) -> 0.2767356965 | B170: =SUM(G168,H169,I170,J171,K172,L173,M174,N175,O176,P177) -> 0.4775829318 | C170: =1-B170-A170 -> 0.2456813717 | F170: 2 | G170: =POISSON(F170,H164,0)*POISSON(G167,H165,0) -> 0.04812338737 | H170: =POISSON(F170,H164,0)*POISSON(H167,H165,0) -> 0.02187426698 | I170: =POISSON(F170,H164,0)*POISSON(I167,H165,0) -> 0.004971424315 | J170: =POISSON(F170,H164,0)*POISSON(J167,H165,0) -> 0.0007532461083 | K170: =POISSON(F170,H164,0)*POISSON(K167,H165,0) -> 8.559614867e-05 | L170: =POISSON(F170,H164,0)*POISSON(L167,H165,0) -> 7.781468061e-06 | M170: =POISSON(F170,H164,0)*POISSON(M167,H165,0) -> 5.895051561e-07 | N170: =POISSON(F170,H164,0)*POISSON(N167,H165,0) -> 3.827955559e-08 | O170: =POISSON(F170,H164,0)*POISSON(O167,H165,0) -> 2.17497475e-09 | P170: =POISSON(F170,H164,0)*POISSON(P167,H165,0) -> 1.098472096e-10
A171: =1/A170 -> 3.613556229 | B171: =1/B170 -> 2.093877175 | C171: =1/C170 -> 4.07031267 | F171: 3 | G171: =POISSON(F171,H164,0)*POISSON(G167,H165,0) -> 0.008020564561 | H171: =POISSON(F171,H164,0)*POISSON(H167,H165,0) -> 0.003645711164 | I171: =POISSON(F171,H164,0)*POISSON(I167,H165,0) -> 0.0008285707191 | J171: =POISSON(F171,H164,0)*POISSON(J167,H165,0) -> 0.000125541018 | K171: =POISSON(F171,H164,0)*POISSON(K167,H165,0) -> 1.426602478e-05 | L171: =POISSON(F171,H164,0)*POISSON(L167,H165,0) -> 1.296911343e-06 | M171: =POISSON(F171,H164,0)*POISSON(M167,H165,0) -> 9.825085935e-08 | N171: =POISSON(F171,H164,0)*POISSON(N167,H165,0) -> 6.379925932e-09 | O171: =POISSON(F171,H164,0)*POISSON(O167,H165,0) -> 3.624957916e-10 | P171: =POISSON(F171,H164,0)*POISSON(P167,H165,0) -> 1.830786826e-11
F172: 4 | G172: =POISSON(F172,H164,0)*POISSON(G167,H165,0) -> 0.00100257057 | H172: =POISSON(F172,H164,0)*POISSON(H167,H165,0) -> 0.0004557138955 | I172: =POISSON(F172,H164,0)*POISSON(I167,H165,0) -> 0.0001035713399 | J172: =POISSON(F172,H164,0)*POISSON(J167,H165,0) -> 1.569262726e-05 | K172: =POISSON(F172,H164,0)*POISSON(K167,H165,0) -> 1.783253097e-06 | L172: =POISSON(F172,H164,0)*POISSON(L167,H165,0) -> 1.621139179e-07 | M172: =POISSON(F172,H164,0)*POISSON(M167,H165,0) -> 1.228135742e-08 | N172: =POISSON(F172,H164,0)*POISSON(N167,H165,0) -> 7.974907415e-10 | O172: =POISSON(F172,H164,0)*POISSON(O167,H165,0) -> 4.531197395e-11 | P172: =POISSON(F172,H164,0)*POISSON(P167,H165,0) -> 2.288483533e-12
F173: 5 | G173: =POISSON(F173,H164,0)*POISSON(G167,H165,0) -> 0.000100257057 | H173: =POISSON(F173,H164,0)*POISSON(H167,H165,0) -> 4.557138955e-05 | I173: =POISSON(F173,H164,0)*POISSON(I167,H165,0) -> 1.035713399e-05 | J173: =POISSON(F173,H164,0)*POISSON(J167,H165,0) -> 1.569262726e-06 | K173: =POISSON(F173,H164,0)*POISSON(K167,H165,0) -> 1.783253097e-07 | L173: =POISSON(F173,H164,0)*POISSON(L167,H165,0) -> 1.621139179e-08 | M173: =POISSON(F173,H164,0)*POISSON(M167,H165,0) -> 1.228135742e-09 | N173: =POISSON(F173,H164,0)*POISSON(N167,H165,0) -> 7.974907415e-11 | O173: =POISSON(F173,H164,0)*POISSON(O167,H165,0) -> 4.531197395e-12 | P173: =POISSON(F173,H164,0)*POISSON(P167,H165,0) -> 2.288483533e-13
F174: 6 | G174: =POISSON(F174,H164,0)*POISSON(G167,H165,0) -> 8.354754751e-06 | H174: =POISSON(F174,H164,0)*POISSON(H167,H165,0) -> 3.797615796e-06 | I174: =POISSON(F174,H164,0)*POISSON(I167,H165,0) -> 8.630944991e-07 | J174: =POISSON(F174,H164,0)*POISSON(J167,H165,0) -> 1.307718938e-07 | K174: =POISSON(F174,H164,0)*POISSON(K167,H165,0) -> 1.486044248e-08 | L174: =POISSON(F174,H164,0)*POISSON(L167,H165,0) -> 1.350949316e-09 | M174: =POISSON(F174,H164,0)*POISSON(M167,H165,0) -> 1.023446452e-10 | N174: =POISSON(F174,H164,0)*POISSON(N167,H165,0) -> 6.645756179e-12 | O174: =POISSON(F174,H164,0)*POISSON(O167,H165,0) -> 3.775997829e-13 | P174: =POISSON(F174,H164,0)*POISSON(P167,H165,0) -> 1.907069611e-14
A175: ТБ 0.5 | B175: =SUM(G168:P177)-G168 -> 0.6150129008 | C175: =1/B175 -> 1.625982152 | F175: 7 | G175: =POISSON(F175,H164,0)*POISSON(G167,H165,0) -> 5.967681965e-07 | H175: =POISSON(F175,H164,0)*POISSON(H167,H165,0) -> 2.712582711e-07 | I175: =POISSON(F175,H164,0)*POISSON(I167,H165,0) -> 6.164960708e-08 | J175: =POISSON(F175,H164,0)*POISSON(J167,H165,0) -> 9.340849557e-09 | K175: =POISSON(F175,H164,0)*POISSON(K167,H165,0) -> 1.061460177e-09 | L175: =POISSON(F175,H164,0)*POISSON(L167,H165,0) -> 9.649637972e-11 | M175: =POISSON(F175,H164,0)*POISSON(M167,H165,0) -> 7.310331797e-12 | N175: =POISSON(F175,H164,0)*POISSON(N167,H165,0) -> 4.746968699e-13 | O175: =POISSON(F175,H164,0)*POISSON(O167,H165,0) -> 2.697141306e-14 | P175: =POISSON(F175,H164,0)*POISSON(P167,H165,0) -> 1.362192579e-15
A176: ТБ 1.5 | B176: =SUM(G170:G177,H169:H177,I168:I177,J168:P177) -> 0.2475252155 | C176: 4.039992443 | F176: 8 | G176: =POISSON(F176,H164,0)*POISSON(G167,H165,0) -> 3.729801228e-08 | H176: =POISSON(F176,H164,0)*POISSON(H167,H165,0) -> 1.695364195e-08 | I176: =POISSON(F176,H164,0)*POISSON(I167,H165,0) -> 3.853100442e-09 | J176: =POISSON(F176,H164,0)*POISSON(J167,H165,0) -> 5.838030973e-10 | K176: =POISSON(F176,H164,0)*POISSON(K167,H165,0) -> 6.634126106e-11 | L176: =POISSON(F176,H164,0)*POISSON(L167,H165,0) -> 6.031023733e-12 | M176: =POISSON(F176,H164,0)*POISSON(M167,H165,0) -> 4.568957373e-13 | N176: =POISSON(F176,H164,0)*POISSON(N167,H165,0) -> 2.966855437e-14 | O176: =POISSON(F176,H164,0)*POISSON(O167,H165,0) -> 1.685713317e-15 | P176: =POISSON(F176,H164,0)*POISSON(P167,H165,0) -> 8.513703619e-17
A177: ТБ 2.5 | B177: =SUM(G171:G177,H170:H177,I169:I177,J168:P177) -> 0.07213336568 | C177: 13.86321005 | F177: 9 | G177: =POISSON(F177,H164,0)*POISSON(G167,H165,0) -> 2.072111793e-09 | H177: =POISSON(F177,H164,0)*POISSON(H167,H165,0) -> 9.41868997e-10 | I177: =POISSON(F177,H164,0)*POISSON(I167,H165,0) -> 2.140611357e-10 | J177: =POISSON(F177,H164,0)*POISSON(J167,H165,0) -> 3.243350541e-11 | K177: =POISSON(F177,H164,0)*POISSON(K167,H165,0) -> 3.685625614e-12 | L177: =POISSON(F177,H164,0)*POISSON(L167,H165,0) -> 3.35056874e-13 | M177: =POISSON(F177,H164,0)*POISSON(M167,H165,0) -> 2.538309652e-14 | N177: =POISSON(F177,H164,0)*POISSON(N167,H165,0) -> 1.648253021e-15 | O177: =POISSON(F177,H164,0)*POISSON(O167,H165,0) -> 9.365073981e-17 | P177: =POISSON(F177,H164,0)*POISSON(P167,H165,0) -> 4.729835344e-18
A178: ТБ 3.5 | B178: =SUM(G172:G177,H171:H177,I170:I177,J169:J177,K168:P177) -> 0.01632686801 | C178: 61.24873425
A179: ТБ 4.5 | B179: =SUM(G173:G177,H172:H177,I171:I177,J170:J177,K169:K177,L168:P177) -> 0.00300940834 | C179: 332.2912303
A180: ТБ 5.5 | B180: =SUM(G174:G177,H173:H177,I172:I177,J171:J177,K170:K177,L169:L177,M168:P177) -> 0.0004669842212 | C180: 2141.399976
A182: ТМ 0.5 | B182: =1-B175 -> 0.3849870992 | C182: =1/B182 -> 2.597489636 | E182: ОЗ | F182: =SUM(H169:P177) -> 0.1437200202 | G182: =1/F182 -> 6.957972861
A183: ТМ 1.5 | B183: 0.7524747845 | C183: 1.328948186 | E183: НЕ ОЗ | F183: =1-F182 -> 0.8562799798 | G183: =1/F183 -> 1.167842322
A184: ТМ 2.5 | B184: 0.9278666343 | C184: 1.077741092
A185: ТМ 3.5 | B185: 0.983673132 | C185: 1.016597859 | E185: P | F185: =SUM(G168,G170,G172,G174,G176,H169,H171,H173,H175,H177,I168,I170,I172,I174,I176,J169,J171,J173,J175,J177,K168,K170,K172,K174,K176,L169,L171,L173,L175,L177)+SUM(M168,M170,M172,M174,M176,N169,N171,N173,N175,N177,O168,O170,O172,O174,O176,P169,P171,P173,P175,P177) -> 0.574107533 | G185: =1/F185 -> 1.741833964
A186: ТМ 4.5 | B186: 0.9969905917 | C186: 1.003018492 | E186: D | F186: =1-F185 -> 0.425892467 | G186: =1/F186 -> 2.348010537
A187: ТМ 5.5 | B187: 0.9995330158 | C187: 1.000467202
A189: Атака
C190: Команда | D190: Забито | E190: Порожения | F190: Игры | H190: Средний
B191: Дом | C191: =C164 -> Cardiff U23 | D191: =C4 -> 31 | E191: =AH43 -> 0 | F191: =B4 -> 11 | H191: =(D191+E192)/(F192+F191) -> 1.409090909
B192: Гости | C192: =C165 -> Sheffield Utd U23 | D192: =C11 -> 22 | E192: =AH45 -> 0 | F192: =B11 -> 11 | H192: =(D192+E191)/(F191+F192) -> 1
G194: 0 | H194: 1 | I194: 2 | J194: 3 | K194: 4 | L194: 5 | M194: 6 | N194: 7 | O194: 8 | P194: 9
F195: 0 | G195: =POISSON(F195,H191,0)*POISSON(G194,H192,0) -> 0.08989698197 | H195: =POISSON(F195,H191,0)*POISSON(H194,H192,0) -> 0.08989698197 | I195: =POISSON(F195,H191,0)*POISSON(I194,H192,0) -> 0.04494849098 | J195: =POISSON(F195,H191,0)*POISSON(J194,H192,0) -> 0.01498283033 | K195: =POISSON(F195,H191,0)*POISSON(K194,H192,0) -> 0.003745707582 | L195: =POISSON(F195,H191,0)*POISSON(L194,H192,0) -> 0.0007491415164 | M195: =POISSON(F195,H191,0)*POISSON(M194,H192,0) -> 0.0001248569194 | N195: =POISSON(F195,H191,0)*POISSON(N194,H192,0) -> 1.783670277e-05 | O195: =POISSON(F195,H191,0)*POISSON(O194,H192,0) -> 2.229587846e-06 | P195: =POISSON(F195,H191,0)*POISSON(P194,H192,0) -> 2.477319829e-07
A196: ="1" -> 1 | B196: ="X" -> X | C196: ="2" -> 2 | F196: 1 | G196: =POISSON(F196,H191,0)*POISSON(G194,H192,0) -> 0.12667302 | H196: =POISSON(F196,H191,0)*POISSON(H194,H192,0) -> 0.12667302 | I196: =POISSON(F196,H191,0)*POISSON(I194,H192,0) -> 0.06333651002 | J196: =POISSON(F196,H191,0)*POISSON(J194,H192,0) -> 0.02111217001 | K196: =POISSON(F196,H191,0)*POISSON(K194,H192,0) -> 0.005278042502 | L196: =POISSON(F196,H191,0)*POISSON(L194,H192,0) -> 0.0010556085 | M196: =POISSON(F196,H191,0)*POISSON(M194,H192,0) -> 0.0001759347501 | N196: =POISSON(F196,H191,0)*POISSON(N194,H192,0) -> 2.513353572e-05 | O196: =POISSON(F196,H191,0)*POISSON(O194,H192,0) -> 3.141691965e-06 | P196: =POISSON(F196,H191,0)*POISSON(P194,H192,0) -> 3.49076885e-07
A197: =SUM(G196:G204,H197:H204,I198:I204,J199:J204,K200:K204,L201:L204,M202:M204,N203:N204,O204) -> 0.4639125346 | B197: =SUM(G195,H196,I197,J198,K199,L200,M201,N202,O203,P204) -> 0.2688313176 | C197: =1-B197-A197 -> 0.2672561478 | F197: 2 | G197: =POISSON(F197,H191,0)*POISSON(G194,H192,0) -> 0.08924690048 | H197: =POISSON(F197,H191,0)*POISSON(H194,H192,0) -> 0.08924690048 | I197: =POISSON(F197,H191,0)*POISSON(I194,H192,0) -> 0.04462345024 | J197: =POISSON(F197,H191,0)*POISSON(J194,H192,0) -> 0.01487448341 | K197: =POISSON(F197,H191,0)*POISSON(K194,H192,0) -> 0.003718620853 | L197: =POISSON(F197,H191,0)*POISSON(L194,H192,0) -> 0.0007437241707 | M197: =POISSON(F197,H191,0)*POISSON(M194,H192,0) -> 0.0001239540284 | N197: =POISSON(F197,H191,0)*POISSON(N194,H192,0) -> 1.770771835e-05 | O197: =POISSON(F197,H191,0)*POISSON(O194,H192,0) -> 2.213464794e-06 | P197: =POISSON(F197,H191,0)*POISSON(P194,H192,0) -> 2.459405326e-07
A198: =1/A197 -> 2.155578747 | B198: =1/B197 -> 3.719804705 | C198: =1/C197 -> 3.741728705 | F198: 3 | G198: =POISSON(F198,H191,0)*POISSON(G194,H192,0) -> 0.04191899871 | H198: =POISSON(F198,H191,0)*POISSON(H194,H192,0) -> 0.04191899871 | I198: =POISSON(F198,H191,0)*POISSON(I194,H192,0) -> 0.02095949936 | J198: =POISSON(F198,H191,0)*POISSON(J194,H192,0) -> 0.006986499785 | K198: =POISSON(F198,H191,0)*POISSON(K194,H192,0) -> 0.001746624946 | L198: =POISSON(F198,H191,0)*POISSON(L194,H192,0) -> 0.0003493249893 | M198: =POISSON(F198,H191,0)*POISSON(M194,H192,0) -> 5.822083154e-05 | N198: =POISSON(F198,H191,0)*POISSON(N194,H192,0) -> 8.317261649e-06 | O198: =POISSON(F198,H191,0)*POISSON(O194,H192,0) -> 1.039657706e-06 | P198: =POISSON(F198,H191,0)*POISSON(P194,H192,0) -> 1.155175229e-07
F199: 4 | G199: =POISSON(F199,H191,0)*POISSON(G194,H192,0) -> 0.01476692 | H199: =POISSON(F199,H191,0)*POISSON(H194,H192,0) -> 0.01476692 | I199: =POISSON(F199,H191,0)*POISSON(I194,H192,0) -> 0.00738346 | J199: =POISSON(F199,H191,0)*POISSON(J194,H192,0) -> 0.002461153333 | K199: =POISSON(F199,H191,0)*POISSON(K194,H192,0) -> 0.0006152883334 | L199: =POISSON(F199,H191,0)*POISSON(L194,H192,0) -> 0.0001230576667 | M199: =POISSON(F199,H191,0)*POISSON(M194,H192,0) -> 2.050961111e-05 | N199: =POISSON(F199,H191,0)*POISSON(N194,H192,0) -> 2.929944445e-06 | O199: =POISSON(F199,H191,0)*POISSON(O194,H192,0) -> 3.662430556e-07 | P199: =POISSON(F199,H191,0)*POISSON(P194,H192,0) -> 4.069367284e-08
F200: 5 | G200: =POISSON(F200,H191,0)*POISSON(G194,H192,0) -> 0.004161586546 | H200: =POISSON(F200,H191,0)*POISSON(H194,H192,0) -> 0.004161586546 | I200: =POISSON(F200,H191,0)*POISSON(I194,H192,0) -> 0.002080793273 | J200: =POISSON(F200,H191,0)*POISSON(J194,H192,0) -> 0.0006935977576 | K200: =POISSON(F200,H191,0)*POISSON(K194,H192,0) -> 0.0001733994394 | L200: =POISSON(F200,H191,0)*POISSON(L194,H192,0) -> 3.467988788e-05 | M200: =POISSON(F200,H191,0)*POISSON(M194,H192,0) -> 5.779981313e-06 | N200: =POISSON(F200,H191,0)*POISSON(N194,H192,0) -> 8.257116162e-07 | O200: =POISSON(F200,H191,0)*POISSON(O194,H192,0) -> 1.03213952e-07 | P200: =POISSON(F200,H191,0)*POISSON(P194,H192,0) -> 1.146821689e-08
F201: 6 | G201: =POISSON(F201,H191,0)*POISSON(G194,H192,0) -> 0.0009773422948 | H201: =POISSON(F201,H191,0)*POISSON(H194,H192,0) -> 0.0009773422948 | I201: =POISSON(F201,H191,0)*POISSON(I194,H192,0) -> 0.0004886711474 | J201: =POISSON(F201,H191,0)*POISSON(J194,H192,0) -> 0.0001628903825 | K201: =POISSON(F201,H191,0)*POISSON(K194,H192,0) -> 4.072259562e-05 | L201: =POISSON(F201,H191,0)*POISSON(L194,H192,0) -> 8.144519124e-06 | M201: =POISSON(F201,H191,0)*POISSON(M194,H192,0) -> 1.357419854e-06 | N201: =POISSON(F201,H191,0)*POISSON(N194,H192,0) -> 1.93917122e-07 | O201: =POISSON(F201,H191,0)*POISSON(O194,H192,0) -> 2.423964025e-08 | P201: =POISSON(F201,H191,0)*POISSON(P194,H192,0) -> 2.693293361e-09
A202: ТБ 0.5 | B202: =SUM(G195:P204)-G195 -> 0.9101005273 | C202: =1/B202 -> 1.098779717 | F202: 7 | G202: =POISSON(F202,H191,0)*POISSON(G194,H192,0) -> 0.0001967377347 | H202: =POISSON(F202,H191,0)*POISSON(H194,H192,0) -> 0.0001967377347 | I202: =POISSON(F202,H191,0)*POISSON(I194,H192,0) -> 9.836886734e-05 | J202: =POISSON(F202,H191,0)*POISSON(J194,H192,0) -> 3.278962245e-05 | K202: =POISSON(F202,H191,0)*POISSON(K194,H192,0) -> 8.197405611e-06 | L202: =POISSON(F202,H191,0)*POISSON(L194,H192,0) -> 1.639481122e-06 | M202: =POISSON(F202,H191,0)*POISSON(M194,H192,0) -> 2.732468537e-07 | N202: =POISSON(F202,H191,0)*POISSON(N194,H192,0) -> 3.903526482e-08 | O202: =POISSON(F202,H191,0)*POISSON(O194,H192,0) -> 4.879408102e-09 | P202: =POISSON(F202,H191,0)*POISSON(P194,H192,0) -> 5.421564558e-10
A203: ТБ 1.5 | B203: =SUM(G197:G204,H196:H204,I195:I204,J195:P204) -> 0.6935305253 | C203: 1.4418976 | F203: 8 | G203: =POISSON(F203,H191,0)*POISSON(G194,H192,0) -> 3.465266918e-05 | H203: =POISSON(F203,H191,0)*POISSON(H194,H192,0) -> 3.465266918e-05 | I203: =POISSON(F203,H191,0)*POISSON(I194,H192,0) -> 1.732633459e-05 | J203: =POISSON(F203,H191,0)*POISSON(J194,H192,0) -> 5.775444863e-06 | K203: =POISSON(F203,H191,0)*POISSON(K194,H192,0) -> 1.443861216e-06 | L203: =POISSON(F203,H191,0)*POISSON(L194,H192,0) -> 2.887722431e-07 | M203: =POISSON(F203,H191,0)*POISSON(M194,H192,0) -> 4.812870719e-08 | N203: =POISSON(F203,H191,0)*POISSON(N194,H192,0) -> 6.875529598e-09 | O203: =POISSON(F203,H191,0)*POISSON(O194,H192,0) -> 8.594411998e-10 | P203: =POISSON(F203,H191,0)*POISSON(P194,H192,0) -> 9.549346664e-11
A204: ТБ 2.5 | B204: =SUM(G198:G204,H197:H204,I196:I204,J195:P204) -> 0.4326621138 | C204: 2.311272395 | F204: 9 | G204: =POISSON(F204,H191,0)*POISSON(G194,H192,0) -> 5.425417901e-06 | H204: =POISSON(F204,H191,0)*POISSON(H194,H192,0) -> 5.425417901e-06 | I204: =POISSON(F204,H191,0)*POISSON(I194,H192,0) -> 2.712708951e-06 | J204: =POISSON(F204,H191,0)*POISSON(J194,H192,0) -> 9.042363169e-07 | K204: =POISSON(F204,H191,0)*POISSON(K194,H192,0) -> 2.260590792e-07 | L204: =POISSON(F204,H191,0)*POISSON(L194,H192,0) -> 4.521181584e-08 | M204: =POISSON(F204,H191,0)*POISSON(M194,H192,0) -> 7.535302641e-09 | N204: =POISSON(F204,H191,0)*POISSON(N194,H192,0) -> 1.076471806e-09 | O204: =POISSON(F204,H191,0)*POISSON(O194,H192,0) -> 1.345589757e-10 | P204: =POISSON(F204,H191,0)*POISSON(P194,H192,0) -> 1.49509973e-11
A205: ТБ 3.5 | B205: =SUM(G199:G204,H198:H204,I197:I204,J196:J204,K195:P204) -> 0.2231768742 | C205: 4.480750989
A206: ТБ 4.5 | B206: =SUM(G200:G204,H199:H204,I198:I204,J197:J204,K196:K204,L195:P204) -> 0.09700962768 | C206: 10.30825521
A207: ТБ 5.5 | B207: =SUM(G201:G204,H200:H204,I199:I204,J198:J204,K197:K204,L196:L204,M195:P204) -> 0.03621995434 | C207: 27.60909057
A209: ТМ 0.5 | B209: =1-B202 -> 0.08989947272 | C209: =1/B209 -> 11.12353576 | E209: ОЗ | F209: =SUM(H196:P204) -> 0.4776506201 | G209: =1/F209 -> 2.09358045
A210: ТМ 1.5 | B210: 0.3064694747 | C210: 3.26296771 | E210: НЕ ОЗ | F210: =1-F209 -> 0.5223493799 | G210: =1/F210 -> 1.914427466
A211: ТМ 2.5 | B211: 0.5673378862 | C211: 1.762618052
A212: ТМ 3.5 | B212: 0.7768231258 | C212: 1.287294323 | E212: P | F212: =SUM(G195,G197,G199,G201,G203,H196,H198,H200,H202,H204,I195,I197,I199,I201,I203,J196,J198,J200,J202,J204,K195,K197,K199,K201,K203,L196,L198,L200,L202,L204)+SUM(M195,M197,M199,M201,M203,N196,N198,N200,N202,N204,O195,O197,O199,O201,O203,P196,P198,P200,P202,P204) -> 0.504039361 | G212: =1/F212 -> 1.983972041
A213: ТМ 4.5 | B213: 0.9029903723 | C213: 1.107431519 | E213: D | F213: =1-F212 -> 0.495960639 | G213: =1/F213 -> 2.016289039
A214: ТМ 5.5 | B214: 0.9637800457 | C214: 1.037581142
A216: Защита
C217: Команда | D217: Забито | E217: Пропущенно | F217: Игры | H217: Средний
B218: Дом | C218: =C191 -> Cardiff U23 | D218: =D37 -> 0 | E218: =D4 -> 12 | F218: =B4 -> 11 | H218: =(D218+E219)/(F219+F218) -> 0.4545454545
... 69 more rows

Sheet Mill (hidden)
B2: Тест №1 Анализ 10 последних игр команд дома и в гостях | H2: =IF(ДомаДома!N2="В",1,0) -> 0 | I2: =IF(C7="Победа",1,0) -> 0 | J2: =IF(ГостиГости!N2="В",1,0) -> 1 | K2: =IF(E7="Победа",1,0) -> 1 | M2: =IF(F20>F21,B20,IF(F20<F21,B21,"Ничья")) -> П2 | V2: 2.5
H3: =IF(ДомаДома!N3="В",1,0) -> 1 | I3: =IF(C8="Победа",1,0) -> 1 | J3: =IF(ГостиГости!N3="В",1,0) -> 1 | K3: =IF(E8="Победа",1,0) -> 1 | V3: 2.5
H4: =IF(ДомаДома!N4="В",1,0) -> 1 | I4: 0 | J4: =IF(ГостиГости!N4="В",1,0) -> 0 | K4: 1 | V4: 2.5
B5: Последние 10 игр команды 1 | D5: Последние 10 игр команды 2 | H5: =IF(ДомаДома!N5="В",1,0) -> 0 | I5: 0 | J5: =IF(ГостиГости!N5="В",1,0) -> 0 | K5: 1 | V5: 2.5
B6: № игры | C6: Исход | D6: № игры | E6: Исход | H6: =IF(ДомаДома!N6="В",1,0) -> 1 | I6: 1 | J6: =IF(ГостиГости!N6="В",1,0) -> 1 | K6: 1 | V6: 2.5
B7: 1 | C7: =IF(Дома!N2="В","Победа",IF(Дома!N2="П","Поражение","Ничья")) -> Поражение | D7: 1 | E7: =IF(Гости!N2="В","Победа",IF(Гости!N2="П","Поражение","Ничья")) -> Победа | H7: =IF(ДомаДома!N7="В",1,0) -> 1 | I7: 0 | J7: =IF(ГостиГости!N7="В",1,0) -> 1 | K7: 0 | V7: 2.5
B8: 2 | C8: =IF(Дома!N3="В","Победа",IF(Дома!N3="П","Поражение","Ничья")) -> Победа | D8: 2 | E8: =IF(Гости!N3="В","Победа",IF(Гости!N3="П","Поражение","Ничья")) -> Победа | H8: =IF(ДомаДома!N8="В",1,0) -> 1 | I8: 1 | J8: =IF(ГостиГости!N8="В",1,0) -> 1 | K8: 0 | V8: 2.5
B9: 3 | C9: =IF(Дома!N4="В","Победа",IF(Дома!N4="П","Поражение","Ничья")) -> Поражение | D9: 3 | E9: =IF(Гости!N4="В","Победа",IF(Гости!N4="П","Поражение","Ничья")) -> Победа | H9: =IF(ДомаДома!N9="В",1,0) -> 1 | I9: 1 | J9: =IF(ГостиГости!N9="В",1,0) -> 0 | K9: 0 | V9: 2.5
B10: 4 | C10: =IF(Дома!N5="В","Победа",IF(Дома!N5="П","Поражение","Ничья")) -> Поражение | D10: 4 | E10: =IF(Гости!N5="В","Победа",IF(Гости!N5="П","Поражение","Ничья")) -> Победа | H10: =IF(ДомаДома!N10="В",1,0) -> 1 | I10: 1 | J10: =IF(ГостиГости!N10="В",1,0) -> 1 | K10: 1
B11: 5 | C11: =IF(Дома!N6="В","Победа",IF(Дома!N6="П","Поражение","Ничья")) -> Победа | D11: 5 | E11: =IF(Гости!N6="В","Победа",IF(Гости!N6="П","Поражение","Ничья")) -> Победа | H11: =IF(ДомаДома!N11="В",1,0) -> 1 | I11: 1 | J11: =IF(ГостиГости!N11="В",1,0) -> 1 | K11: 1
B12: 6 | C12: =IF(Дома!N7="В","Победа",IF(Дома!N7="П","Поражение","Ничья")) -> Поражение | D12: 6 | E12: =IF(Гости!N7="В","Победа",IF(Гости!N7="П","Поражение","Ничья")) -> Ничья | H12: =SUM(H2:H11) -> 8 | I12: =SUM(I2:I11) -> 6 | J12: =SUM(J2:J11) -> 7 | K12: =SUM(K2:K11) -> 7 | P12: =IF(C7="Победа",2,IF(C7="Ничья",1,0)) -> 0 | Q12: =IF(C7="Победа",1,0) -> 0 | R12: =IF(E7="Победа",2,IF(E7="Ничья",1,0)) -> 2 | S12: =IF(E7="Победа",1,0) -> 1
B13: 7 | C13: =IF(Дома!N8="В","Победа",IF(Дома!N8="П","Поражение","Ничья")) -> Победа | D13: 7 | E13: =IF(Гости!N8="В","Победа",IF(Гости!N8="П","Поражение","Ничья")) -> Ничья | P13: =IF(C8="Победа",2,IF(C8="Ничья",1,0)) -> 2 | Q13: =IF(C8="Победа",1,0) -> 1 | R13: =IF(E8="Победа",2,IF(E8="Ничья",1,0)) -> 2 | S13: =IF(E8="Победа",1,0) -> 1
B14: 8 | C14: =IF(Дома!N9="В","Победа",IF(Дома!N9="П","Поражение","Ничья")) -> Победа | D14: 8 | E14: =IF(Гости!N9="В","Победа",IF(Гости!N9="П","Поражение","Ничья")) -> Поражение | P14: 0 | Q14: 0 | R14: 2 | S14: 1
B15: 9 | C15: =IF(Дома!N10="В","Победа",IF(Дома!N10="П","Поражение","Ничья")) -> Победа | D15: 9 | E15: =IF(Гости!N10="В","Победа",IF(Гости!N10="П","Поражение","Ничья")) -> Победа | P15: 0 | Q15: 0 | R15: 2 | S15: 1
B16: 10 | C16: =IF(Дома!N11="В","Победа",IF(Дома!N11="П","Поражение","Ничья")) -> Победа | D16: 10 | E16: =IF(Гости!N11="В","Победа",IF(Гости!N11="П","Поражение","Ничья")) -> Победа | P16: 2 | Q16: 1 | R16: 2 | S16: 1
P17: 0 | Q17: 0 | R17: 1 | S17: 0
B18: Итог анализа Теста №1 | H18: =SUM(H2:H6) -> 3 | I18: =SUM(I2:I6) -> 2 | J18: =SUM(J2:J6) -> 3 | K18: =SUM(K2:K6) -> 5 | P18: 2 | Q18: 1 | R18: 1 | S18: 0
B19: Команда | C19: Очки | D19: Значение Теста | E19: Число | F19: ИТОГ | P19: 2 | Q19: 1 | R19: 0 | S19: 0
B20: П1 | C20: =P22 -> 12 | D20: =IF(C20>18,4,IF(C20>15,3,IF(C20>10,2,IF(C20>5,1,0)))) -> 2 | E20: =IF(Q22>=9,3,IF(Q22>=6,2,IF(Q22>=4,1,0))) -> 2 | F20: =IF(C20>C21,1,0)+IF(D20>D21,1,0)+E20 -> 2 | P20: 2 | Q20: 1 | R20: 2 | S20: 1
B21: П2 | C21: =R22 -> 16 | D21: =IF(C21>18,4,IF(C21>15,3,IF(C21>10,2,IF(C21>5,1,0)))) -> 3 | E21: =IF(S22>=9,3,IF(S22>=6,2,IF(S22>=4,1,0))) -> 2 | F21: =IF(C21>C20,1,0)+IF(D21>D20,1,0)+E21 -> 4 | P21: =IF(C16="Победа",2,IF(C16="Ничья",1,0)) -> 2 | Q21: 1 | R21: =IF(E16="Победа",2,IF(E16="Ничья",1,0)) -> 2 | S21: =IF(E16="Победа",1,0) -> 1
D22: Последние три игры команд между собой | P22: =SUM(P12:P21) -> 12 | Q22: =SUM(Q12:Q21) -> 6 | R22: =SUM(R12:R21) -> 16 | S22: =SUM(S12:S21) -> 7
C23: КОМАНДА 1 | D23: гости | E23: Очки | H23: хозяева | I23: КОМАНДА 2 | J23: Очки | K23: П1 +
B24: 1 игра | C24: =ДомаДома!L2 -> 0 | D24: =ДомаДома!M2 -> 2 | E24: =IF(C24>D24,2+(C24-D24),IF(C24=D24,1,0)) -> 0 | G24: 1 игра | H24: =ГостиГости!M2 -> 0 | I24: =ГостиГости!L2 -> 2 | J24: =IF(I24>H24,2+(I24-H24),IF(H24=I24,1,0)) -> 4 | K24: П2 + | P24: =Очные!A1 -> Cardiff U23 | R24: ввод данных | V24: РАСЧЁТ ДАННЫХ | X24: Очки | Y24: Итоговые очки
B25: 2 игра | C25: =ДомаДома!L3 -> 6 | D25: =ДомаДома!M3 -> 1 | E25: =IF(C25>D25,2+(C25-D25),IF(C25=D25,1,0)) -> 7 | G25: 2 игра | H25: =ГостиГости!M3 -> 0 | I25: =ГостиГости!L3 -> 4 | J25: =IF(I25>H25,2+(I25-H25),IF(H25=I25,1,0)) -> 6 | K25: П1 - | P25: Место в турнирной таблице | R25: =VLOOKUP(P24,P46:Q78,2,FALSE) -> 5 | S25: из | T25: =MAX(Таблица!A:A) -> 9
B26: 3 игра | C26: =ДомаДома!L4 -> 4 | D26: =ДомаДома!M4 -> 0 | E26: =IF(C26>D26,2+(C26-D26),IF(C26=D26,1,0)) -> 6 | G26: 3 игра | H26: =ГостиГости!M4 -> 2 | I26: =ГостиГости!L4 -> 2 | J26: =IF(I26>H26,2+(I26-H26),IF(H26=I26,1,0)) -> 1 | K26: П2 - | V26: Команда1 | X26: =S46+S47+IF(R27>R39,U46,0) -> 19 | Y26: =X26*U47 -> 33.68181818
D27: Итого: | E27: =SUM(E24,E25,E26) +1 -> 14 | I27: Итого: | J27: =SUM(J24,J25,J26) -> 11 | K27: 1Х | P27: Сколько мячей забито | R27: =VLOOKUP(P24,Таблица!B2:G45,6,FALSE) -> 39
B28: какая команда дома | C28: Счёт | D28: Счёт | E28: Очки | F28: Какая команда победила | G28: Какая команда в гостях | K28: Х2 | V28: Команда2 | X28: =T46+T47+IF(R39>R27,U46,0) -> 34 | Y28: =X28*U48 -> 85.80952381
B29: =IF(Очные!C2=Очные!A1,1,2) -> 1 | C29: =IF(B29=1,Очные!E2,Очные!F2) -> 1 | D29: =IF(B29=2,Очные!E2,Очные!F2) -> 3 | E29: =IF(C29>D29,3+(C29-D29),IF(C29=D29,1,IF(D29>C29,3+(D29-C29),0))) -> 5 | F29: =IF(C29>D29,B29,IF(D29>C29,B29,0)) -> 1 | G29: =IF(B29=2,1,2) -> 2 | J29: =IF(F29=0,1,0) -> 0 | K29: Ф1(+1) | P29: Сколько мячей забито за последние 3 игры дома | R29: =ДомаДома!S4 -> 10
B30: =IF(Очные!C3=Очные!A1,1,2) -> 1 | C30: =IF(B30=1,Очные!E3,Очные!F3) -> 1 | D30: =IF(B30=2,Очные!E3,Очные!F3) -> 1 | E30: =IF(C30>D30,3+(C30-D30),IF(C30=D30,0,IF(D30>C30,3+(D30-C30),0))) -> 0 | F30: =IF(C30>D30,B30,IF(D30>C30,B30,0)) -> 0 | G30: =IF(B30=2,1,2) -> 2 | J30: =IF(B29=2,1,0) -> 0 | K30: Ф2(+1)
B31: =IF(Очные!C4=Очные!A1,1,2) -> 2 | C31: =IF(B31=1,Очные!E4,Очные!F4) -> 0 | D31: =IF(B31=2,Очные!E4,Очные!F4) -> 3 | E31: =IF(C31>D31,3+(C31-D31),IF(C31=D31,0,IF(D31>C31,3+(D31-C31),0))) -> 6 | F31: =IF(C31>D31,B31,IF(D31>C31,B31,0)) -> 2 | G31: =IF(B31=2,1,2) -> 1 | J31: =IF(J30=J29,1,0) -> 1 | K31: Х П1
B32: ИТОГ | K32: Х П2 | P32: Игр сыграно за сезон | R32: =VLOOKUP(P24,Таблица!B2:C50,2,FALSE) -> 22
B33: Дополнительная информация, НЕОБЯЗАТЕЛЬНО для заполнения:
B34: Кто выше в турнирной таблице? | D34: =IF(R25<R37,1,2) -> 2 | E34: =IF(C38>D38,1,IF(C38=D38,0,2)) -> 1 | F34: =IF(E34=1,C38-D38,IF(E34=2,D38-C38,0)) -> 2 | G34: =IF(D34=1,1,2)+IF(F34>0,99,0) -> 101 | I34: =IF(G29=1,1,0) -> 0 | J34: =IF(G29=2,1,0) -> 1
C35: 1 | D35: 2 | E35: Для к1 | F35: Для к2 | I35: =IF(G30=1,1,0) -> 0 | J35: =IF(G30=2,1,0) -> 1
B36: Очки | C36: =E27+IF(F29=1,E29,0)+IF(F30=1,E30,0)+IF(F31=1,E31,0) -> 19 | D36: =J27+IF(F29=2,E29,0)+IF(F30=2,E30,0)+IF(F31=2,E31,0) -> 17 | E36: =IF(E34=1,F34,0) -> 2 | F36: =IF(E34=2,F34,0) -> 0 | I36: =IF(G31=1,1,0) -> 1 | J36: =IF(G31=2,1,0) -> 0 | P36: =Очные!B1 -> Sheffield Utd U23 | R36: ввод данных | V36: Вероятный исход в процентах
B37: Доп. Очки | E37: =IF(E36>12,K23,IF(E36>7,K25,IF(E36>4,K27,IF(E36>0,K29,0)))) -> Ф1(+1) | F37: =IF(F36>13,K24,IF(F36>7,K26,IF(F36>4,K28,IF(F36>0,K30,0)))) -> 0 | I37: =SUM(I34:I36) -> 1 | J37: =SUM(J34:J36) -> 2 | P37: Место в турнирной таблице | R37: =VLOOKUP(P36,P46:Q78,2,FALSE) -> 1 | S37: из | T37: =T25 -> 9 | V37: П1 | W37: =(X26/S49) -> 0.4 | X37: П2 | Y37: =(X28/S49) -> 0.7157894737
B38: Итоговые: | C38: =SUM(C36,C37) -> 19 | D38: =SUM(D36,D37) -> 17
B39: ИТОГО: | C39: =IF(E34=1,E37,IF(G34=1,K31,IF(E34=2,F37,K32))) -> Ф1(+1) | P39: Сколько мячей забито | R39: =VLOOKUP(P36,Таблица!B2:G45,6,FALSE) -> 53 | W39: Ничья | X39: =1-(W37+Y37) -> -0.1157894737
B41: Тест №3 Общая теория | P41: Мячей забито за последние 3 игры в гостях | R41: =ГостиГости!S4 -> 8
V42: ТМ 2,5 | W42: =100-Y42 -> -58.79568519 | X42: ТБ2,5 | Y42: =(S53/T52)*100-10 -> 158.7956852
B43: Расчёт команды 1 | F43: Число | G43: Расчёт команды 2 | K43: Число
B44: Сколько Побед из 5 последних игр дома | F44: =H18 -> 3 | G44: Сколько Побед из 5 последних игр в гостях | K44: =J18 -> 3 | P44: Игр сыграно за сезон | R44: =VLOOKUP(P36,Таблица!B2:C50,2,FALSE) -> 21
B45: Сколько Побед из 5 последних игр вообще | F45: =I18 -> 2 | G45: Сколько Побед из 5 последних игр вообще | K45: =K18 -> 5
B46: Сколько Побед из 3 последних игр между командами | F46: =I37 -> 1 | G46: Сколько Побед из 3 последних игр между командами | K46: 0 | P46: =Таблица!B2 -> Sheffield Utd U23 | Q46: =Таблица!A2 -> 1 | S46: =T25-R25 -> 4 | T46: =T37-R37 -> 8 | U46: =IF(R27>R39,R27-R39,IF(R39>R27,R39-R27,0)) -> 14
F47: =SUM(F44:F46)/13 -> 0.4615384615 | K47: =SUM(K44:K46)/13 -> 0.6153846154 | P47: =Таблица!B3 -> Nottingham U23 | Q47: =Таблица!A3 -> 2 | S47: =(R29*3)/2 -> 15 | T47: =(R41*3)/2 -> 12 | U47: =R27/R32 -> 1.772727273
F48: =(1+1-1)/3 -> 0.3333333333 | K48: =(1+1-1)/3 -> 0.3333333333 | P48: =Таблица!B4 -> Birmingham U23 | Q48: =Таблица!A4 -> 3 | U48: =R39/R44 -> 2.523809524
F49: =F47/F48 -> 1.384615385 | G49: 1 | H49: =F49+G49+K49 -> 4.230769231 | I49: Итог | J49: =IF(F50>K50,"П1",IF(K50>F50,"П2","Х")) -> П2 | K49: =K47/K48 -> 1.846153846 | P49: =Таблица!B5 -> Barnsley U23 | Q49: =Таблица!A5 -> 4 | S49: =T25-1+5+((R32+R44)/2)+(((R27+R44)/2)/2)-2 -> 47.5
F50: =((H49-F49)*F49)/3 -> 1.313609467 | H50: =(H49-G49)*1/3 -> 1.076923077 | K50: =((H49-K49)*K49)/3 -> 1.467455621 | P50: =Таблица!B6 -> Hull U23 | Q50: =Таблица!A6 -> 5
P51: =Таблица!B7 -> Wigan U23 | Q51: =Таблица!A7 -> 6 | S51: =(R27/R32)+R29/3 -> 5.106060606 | T51: =(R32+R44)/2 -> 21.5
B52: Тест №4 Тоталы | P52: =Таблица!B8 -> Coventry U23 | Q52: =Таблица!A8 -> 7 | S52: =R39/R44+R41/3 -> 5.19047619 | T52: =((T51/4)*3+(T51/2)+(T51)+(T51/5)*4)/T51 -> 3.05
B53: Второй анализ. | C53: Команда 1 | D53: Команда 2 | E53: =C54*C55 -> 5.416666667 | F53: =D54+D55 -> 4.666666667 | G53: П1 | P53: =Таблица!B9 -> Crewe U23 | Q53: =Таблица!A9 -> 8 | S53: =(S51+S52)/2 -> 5.148268398
B54: Забьёт в абстрактном матче | C54: =(C24+C25+C26+1+H24+H25+H26)/6 -> 2.166666667 | D54: =(D24+D25+D26+I24+I25+I26+1)/6 -> 2 | E54: =E53/F53 -> 1.160714286 | F54: =F53/E53 -> 0.8615384615 | G54: П2 | P54: =Таблица!B10 -> Sheffield Wed U23 | Q54: =Таблица!A10 -> 9
B55: Забьёт/пропустит в конкретном | C55: =(C24+C25+C26)/(D24+D25+D26+1) -> 2.5 | D55: =(I24+I25+I26)/(H24+H25+H26+1) -> 2.666666667 | G55: Х | H55: Итог | I55: =IF(E56>F56,G53,IF(F56>E56,G54,G55)) -> П1 | P55: =Таблица!B11 -> Bristol City U23 | Q55: =Таблица!A11 -> 1
B56: Забьёт в этом матче | C56: =E54 -> 1.160714286 | D56: =F54 -> 0.8615384615 | E56: =C54+C55+C56 -> 5.827380952 | F56: =D54+D55+D56 -> 5.528205128 | P56: =Таблица!B12 -> Ipswich U23 | Q56: =Таблица!A12 -> 2
P57: =Таблица!B13 -> Charlton U23 | Q57: =Таблица!A13 -> 3
C58: Mill+ Исход | P58: =Таблица!B14 -> Watford U23 | Q58: =Таблица!A14 -> 4
P59: =Таблица!B15 -> Cardiff U23 | Q59: =Таблица!A15 -> 5
B60: Первая партия | G60: Первая партия | P60: =Таблица!B16 -> Millwall U23 | Q60: =Таблица!A16 -> 6
B61: Игра | C61: Команда 1 | D61: Гости | E61: Очки | G61: Игра | H61: Домашняя | I61: Команда 2 | J61: Очки | P61: =Таблица!B17 -> QPR U23 | Q61: =Таблица!A17 -> 7
B62: 1 игра | C62: =ДомаДома!L2 -> 0 | D62: =ДомаДома!M2 -> 2 | E62: =IF(C62>D62,2+(C62-D62),IF(C62=D62,1,0)) -> 0 | G62: 1 игра | H62: =ГостиГости!M2 -> 0 | I62: =ГостиГости!L2 -> 2 | J62: =IF(I62>H62,2+(I62-H62),IF(H62=I62,1,0)) -> 4 | P62: =Таблица!B18 -> Swansea U23 | Q62: =Таблица!A18 -> 8
B63: 2 игра | C63: =ДомаДома!L3 -> 6 | D63: =ДомаДома!M3 -> 1 | E63: =IF(C63>D63,2+(C63-D63),IF(C63=D63,1,0)) -> 7 | G63: 2 игра | H63: =ГостиГости!M3 -> 0 | I63: =ГостиГости!L3 -> 4 | J63: =IF(I63>H63,2+(I63-H63),IF(H63=I63,1,0)) -> 6 | P63: =Таблица!B19 -> Colchester U23 | Q63: =Таблица!A19 -> 9
D64: Итог: | E64: =E62+E63 -> 7 | I64: Итог: | J64: =J62+J63 -> 10 | P64: =Таблица!B20 -> 0 | Q64: =Таблица!A20 -> 0
B65: Вторая партия | G65: Вторая партия | P65: =Таблица!B21 -> 0 | Q65: =Таблица!A21 -> 0
B66: Игра | C66: Команда 1 | D66: Гости | E66: Очки | G66: Игра | H66: Домашняя | I66: Команда2 | J66: Очки | P66: =Таблица!B22 -> 0 | Q66: =Таблица!A22 -> 0
B67: 5 игра | C67: =ДомаДома!L6 -> 3 | D67: =ДомаДома!M6 -> 0 | E67: 5 | G67: 5 игра | H67: =ГостиГости!M6 -> 0 | I67: =ГостиГости!L6 -> 2 | J67: =IF(I67>H67,2+(I67-H67),IF(H67=I67,1,0)) -> 4 | P67: =Таблица!B23 -> 0 | Q67: =Таблица!A23 -> 0
B68: 6 игра | C68: =ДомаДома!L7 -> 4 | D68: =ДомаДома!M7 -> 1 | E68: 5 | G68: 6 игра | H68: =ГостиГости!M7 -> 0 | I68: =ГостиГости!L7 -> 1 | J68: =IF(I68>H68,2+(I68-H68),IF(H68=I68,1,0)) -> 3 | P68: =Таблица!B24 -> 0 | Q68: =Таблица!A24 -> 0
D69: Итог: | E69: =SUM(E67:E68) -> 10 | I69: Итог: | J69: =J67+J68 -> 7 | P69: =Таблица!B25 -> 0 | Q69: =Таблица!A25 -> 0
B70: Сколько побед за последни 10 игр: | E70: =H12 -> 8 | G70: Сколько побед за последни 10 игр: | J70: =J12 -> 7 | P70: =Таблица!B26 -> 0 | Q70: =Таблица!A26 -> 0
B71: Итоговые очки: | D71: Очки | E71: Динамика | F71: Итоговые очки | H71: 10BUH1 | I71: 10BUH2 | P71: =Таблица!B27 -> 0 | Q71: =Таблица!A27 -> 0
B72: Команда 1 | D72: =E64+E69+IF(F29=1,E29,0)+IF(F30=1,E30,0)+IF(F31=1,E31,0) -> 22 | E72: =IF(E64>E69,2,IF(E64=E69,1,0)) -> 0 | F72: =IF(E72=2,D72+(D72*0.3),IF(E72=1,D72,IF(E72=0,D72-(D72*0.3),0)))+IF(E64>J64,(D72*0.15),0)+H72 -> 17.6 | H72: =IF(E70<=4,-(D72*0.2),IF(E70>=6,D72*0.1,IF(E70>=9,D72*0.2,0))) -> 2.2 | I72: =IF(J70<=4,-(D73*0.2),IF(J70>=6,D73*0.1,IF(J70>=9,D73*0.2,0))) -> 2.3 | P72: =Таблица!B28 -> 0 | Q72: =Таблица!A28 -> 0
B73: Команда 2 | D73: =J64+J69+IF(F29=2,E29,0)+IF(F30=2,E30,0)+IF(F31=2,E31,0) -> 23 | E73: =IF(J64>J69,2,IF(J64=J69,1,0)) -> 2 | F73: =IF(E73=2,D73+(D73*0.3),IF(E73=1,D73,IF(E73=0,D73-(D73*0.3),0)))+IF(J64>E64,(D73*0.15),0)+I72 -> 35.65 | H73: КТО ПОБЕДИЛ | I73: Разница | P73: =Таблица!B29 -> 0 | Q73: =Таблица!A29 -> 0
H74: =IF(F72>F73,1,IF(F72=F73,0,2)) -> 2 | I74: =IF(H74=1,F72-F73,IF(H74=2,F73-F72,0)) -> 18.05 | P74: =Таблица!B30 -> 0 | Q74: =Таблица!A30 -> 0
B75: Mill+(Исход): | C75: =IF(H74=1,I76,I77) -> П2 | H75: П1 | I75: ИТОГ | P75: =Таблица!B31 -> 0 | Q75: =Таблица!A31 -> 0
H76: П2 | I76: =IF(I74<6,H79,IF(I74<10,H77,H75)) -> П1 | P76: =Таблица!B32 -> 0 | Q76: =Таблица!A32 -> 0
H77: 1Х | I77: =IF(I74<6,H80,IF(I74<10,H78,H76)) -> П2 | P77: =Таблица!B33 -> 0 | Q77: =Таблица!A33 -> 0
H78: Х2 | P78: =Таблица!B34 -> 0 | Q78: =Таблица!A34 -> 0
H79: Ф1(+1)
H80: Ф2(+1)
D89: Фут17 | G89: ОЗ | H89: Тотал | I89: 1й забьет | J89: =IF(C97>D97,"1 тайм П1",IF(D97>C97,"1 тайм П2","1 тайм Х")) -> 1 тайм П1 | K89: =C97& " - " &D97 -> 1 - 0
C90: =IF(C91-TRUNC(C91)>=0.7,TRUNC(C91)+1,TRUNC(C91)) -> 2 | D90: =IF(D91-TRUNC(D91)>=0.7,TRUNC(D91)+1,TRUNC(D91)) -> 1 | G90: =IF(AND(C90>0,D90>0),"ОЗ-да","ОЗ-нет") -> ОЗ-да | H90: =IF(C90+D90>2,"ТБ2.5","ТМ2.5") -> ТБ2.5 | I90: =IF(C92>D92,P24,P36) -> Cardiff U23 | J90: =IF(C90>D90,"Матч П1",IF(D90>C90,"Матч П2","Матч X")) -> Матч П1 | K90: =C90& " - " &D90 -> 2 - 1
C91: =SUM(C93:C95) -> 1.8 | D91: =SUM(D93:D95) -> 0.8 | J91: =J89&"/"&J90 -> 1 тайм П1/Матч П1
C92: =C91/2 -> 0.9 | D92: =D91/2 -> 0.4
A93: 0 | B93: =AVERAGE(ДомаДома!L2:L6) -> 3.4 | C93: =B93*0.4 -> 1.36 | D93: =E93*0.4 -> 0.64 | E93: =AVERAGE(ДомаДома!M2:M6) -> 1.6 | F93: 0
A94: 0 | B94: =AVERAGE(ГостиГости!L2:L6) -> 2.2 | C94: =B94*0.2 -> 0.44 | D94: =E94*0.2 -> 0.16 | E94: =AVERAGE(ГостиГости!M2:M6) -> 0.8 | F94: 0
A95: 0 | B95: =AVERAGE(A93:A97) -> 0 | C95: =B95*0.4 -> 0 | D95: =E95*0.4 -> 0 | E95: =AVERAGE(F93:F97) -> 0 | F95: 0
A96: 0 | F96: 0
A97: 0 | C97: =IF(C92-TRUNC(C92)>=0.7,TRUNC(C92)+1,TRUNC(C92)) -> 1 | D97: =IF(D92-TRUNC(D92)>=0.7,TRUNC(D92)+1,TRUNC(D92)) -> 0 | F97: 0

Sheet Beta8 (hidden)
B2: MyBet_MySkore_v10_11_1 | H2: Wanga-Bet_v1_010_2 | K2: "Динамика" | M2: Altadar
B4: =CONCATENATE(Расчеты!E14," / ",Расчеты!H14) -> 14 / 18 | C4: =Расчеты!F14 -> Cardiff U23 | E4: =Расчеты!I14 -> Sheffield Utd U23 | G4: =CONCATENATE(Расчеты!K14," / ",Расчеты!H14) -> 1 / 18 | H4: =C4 -> Cardiff U23 | I4: - | J4: =E4 -> Sheffield Utd U23 | K4: =Расчеты!Z50 -> П2 | M4: ИСХОДЫ №1 | P4: ДИ №1 | S4: ТОТАЛЫ №1 | U4: ТС | X4: ИТБ №1
B6: Точный Счет "Програмный" | D6: Точный Счет по Миллеру | F6: Точный Счет на ТМ (2А,ЗА) | H6: Точный Счет Матча | K6: "Теория Лиги" | M6: П1 | N6: Х | O6: П2 | P6: 1Х | Q6: 12 | R6: Х2 | S6: ТБ | T6: ТМ | U6: ТС №1 | V6: =Расчеты!G118 -> 1 | W6: =Расчеты!H118 -> 2 | X6: ИТБ1 | Y6: ИТБ2
M7: =Расчеты!C104 -> 0.4105263158 | N7: =Расчеты!D104 -> 0.3368421053 | O7: =Расчеты!E104 -> 0.2526315789 | P7: =Расчеты!C107 -> 0.3736842105 | Q7: =Расчеты!D107 -> 0.3315789474 | R7: =Расчеты!E107 -> 0.2947368421 | S7: =Расчеты!C110 -> 2.65 | T7: =Расчеты!D110 -> 3.75 | U7: ТС №2 | V7: =Расчеты!G119 -> 0 | W7: =Расчеты!H119 -> 0 | X7: =Расчеты!C114 -> 1.325 | Y7: =Расчеты!D114 -> 2.625
B8: =CONCATENATE(Расчеты!F12," - ",Расчеты!F13) -> 3 - 2 | C8: =CONCATENATE(Расчеты!G12," - ",Расчеты!G13) -> 2 - 2 | D8: =CONCATENATE(Расчеты!N18," - ",Расчеты!N20) -> -1 - 4 | E8: =CONCATENATE(Расчеты!O18," - ",Расчеты!O20) -> -1 - 4 | F8: =CONCATENATE(Расчеты!H12," - ",Расчеты!H13) -> 3 - 2 | G8: =CONCATENATE(Расчеты!I12," - ",Расчеты!I13) -> 3 - 3 | H8: =Расчеты!AE57 -> 3 | I8: : | J8: =Расчеты!AG57 -> 2 | K8: П1 | L8: =Расчеты!T67/100 -> 0.3362831858 | M8: ИСХОДЫ №2 | P8: ДИ №2 | S8: =Расчеты!C111 -> 0.5859375 | T8: =Расчеты!D111 -> 0.4140625 | U8: ТС №3 | V8: =Расчеты!G120 -> 0 | W8: =Расчеты!H120 -> 1 | X8: =Расчеты!C115 -> 0.664556962 | Y8: =Расчеты!D115 -> 0.335443038
S9: ТОТАЛЫ №2 | U9: ТС №4 | V9: =Расчеты!G121 -> 2 | W9: =Расчеты!H121 -> 3 | X9: ИТБ №2
B10: Первый гол забьёт: | E10: Если условие слабое то 1 гол забьет: | H10: Первый Гол Забьёт: | K10: Х | L10: =Расчеты!U67/100 -> -0.09734513274 | M10: П1 | N10: Х | O10: П2 | P10: 1Х | Q10: 12 | R10: Х2 | U10: ТС №5 | V10: =Расчеты!G122 -> 1 | W10: =Расчеты!H122 -> 2
M11: =Расчеты!F103 -> 0.2857142857 | N11: =Расчеты!G103 -> 0 | O11: =Расчеты!H103 -> 0.7142857143 | P11: =Расчеты!F107 -> 0.1428571429 | Q11: =Расчеты!G107 -> 0.5 | R11: =Расчеты!H107 -> 0.3571428571 | S11: ТБ | T11: ТМ | U11: ТС №6 | V11: =Расчеты!G123 -> 3 | W11: =Расчеты!H123 -> 4 | X11: ИТБ1 | Y11: ИТБ2
B12: =Расчеты!J12 -> 2.416666667 | C12: =IF(Расчеты!K12="К1","Команда 1","Команда 2") -> Команда 2 | E12: =IF(Расчеты!K13="К1","Команда 1","Команда 2") -> Команда 2 | H12: =Расчеты!G87 -> 2 команда | K12: П2 | L12: =Расчеты!V67/100 -> 0.7610619469 | M12: ИСХОДЫ №3 | P12: ДИ №3 | S12: =Расчеты!E110 -> 1.6 | T12: =Расчеты!F110 -> 5.8 | X12: =Расчеты!E114 -> 0.8 | Y12: =Расчеты!F114 -> 2.32
B13: =Расчеты!J13 -> 3.111111111 | S13: =Расчеты!E111 -> 0.7837837838 | T13: =Расчеты!F111 -> 0.2162162162 | X13: =Расчеты!E115 -> 0.2564102564 | Y13: =Расчеты!F115 -> 0.7435897436
B14: Обе забьют? | D14: =Расчеты!L14 -> Нет | E14: Индикатор ТБ 2,5 | G14: =Расчеты!C28 -> ТБ 2,5 | H14: Вероятность забитого гола: | K14: ТБ 2,5 | L14: =Расчеты!X67/100 -> 1.587956852 | M14: П1 | N14: Х | O14: П2 | P14: 1Х | Q14: 12 | R14: Х2 | S14: ТОТАЛЫ №3 | X14: ИТМ №1
M15: =Расчеты!I104 -> 0.2402597403 | N15: =Расчеты!J104 -> 0.5 | O15: =Расчеты!K104 -> 0.2597402597 | P15: =Расчеты!I107 -> 0.3701298701 | Q15: =Расчеты!J107 -> 0.25 | R15: =Расчеты!K107 -> 0.3798701299
B16: Средние показатели команд за 5 домашних и гостевых матчей | F16: Возможный Тотал матча | G16: =Расчеты!D14 -> 4.628571429 | H16: Команда 1 | J16: Команда 2 | K16: ТМ 2,5 | L16: =Расчеты!W67/100 -> -0.5879568519 | M16: ИСХОДЫ №4 | P16: ДИ №4 | S16: ="Тотал №1 "&Расчеты!G110 -> Тотал №1 ТМ(4,56) | X16: ИТМ1 | Y16: ИТМ2
B17: Команды: | C17: Тотал | D17: Забито | E17: Пропущено | S17: ="Тотал №2 "&Расчеты!H110 -> Тотал №2 ТМ(5,56) | X17: =Расчеты!G114 -> 1.6625 | Y17: =Расчеты!H114 -> 1.4125
B18: =C4 -> Cardiff U23 | C18: =Расчеты!J25 -> 5 | D18: =Расчеты!K25 -> 3.4 | E18: =Расчеты!L25 -> 1.6 | F18: % прохода ТБ 2,5 | G18: =Расчеты!M12 -> 1.32244898 | H18: =Расчеты!R97 -> ДА | J18: =Расчеты!S97 -> ДА | K18: Теория "0 голов" | M18: П1 | N18: П2 | P18: =Расчеты!L107 -> Х2 | S18: ="Тотал №3 "&Расчеты!I110 -> Тотал №3 ТМ(3,56) | X18: =Расчеты!G115 -> 0.4593495935 | Y18: =Расчеты!H115 -> 0.5406504065
B19: =E4 -> Sheffield Utd U23 | C19: =Расчеты!J26 -> 3 | D19: =Расчеты!K26 -> 2.2 | E19: =Расчеты!L26 -> 0.8 | F19: Ставка на тотал | G19: =Расчеты!M13 -> ТБ 2 | M19: =Расчеты!L104 -> 0.4591836735 | N19: =Расчеты!M104 -> 0.5408163265 | S19: ДОП. ИНФО. ПО ГОЛАХ | X19: ИТМ №2
B20: EW-легкая победа, W-победа простая, D-ничья, L-проигрыш, HL-позорный проигрыш | H20: Обе забьют? | I20: =Расчеты!T97 -> ДА | K20: =Расчеты!AB82 -> 1 | L20: =Расчеты!AC82 -> 1 | P20: ФОРА (ИСХОД)
B21: =C4 -> Cardiff U23 | C21: =Расчеты!Q20 -> HL | D21: =Расчеты!R20 -> EW | E21: =Расчеты!S20 -> HL | F21: =Расчеты!T20 -> HL | G21: =Расчеты!U20 -> EW | K21: =Расчеты!AB83 -> 0.279364503 | L21: =Расчеты!AC83 -> 0.3586370996 | S21: ="В матче будет забито: "&Расчеты!I117&", "&Расчеты!J117&" гола" -> В матче будет забито: 3, 4 гола | X21: ИТМ1 | Y21: ИТМ2
B22: =E4 -> Sheffield Utd U23 | C22: =Расчеты!V20 -> EW | D22: =Расчеты!W20 -> EW | E22: =Расчеты!X20 -> EW | F22: =Расчеты!Y20 -> EW | G22: =Расчеты!Z20 -> W | H22: Теория "Синдиката" | K22: =Расчеты!Z75 -> П1 | P22: =Расчеты!M107 -> Ф2(0) | S22: ="ОЗ: "&Расчеты!I119&"/"&Расчеты!J119 -> ОЗ: НЕТ/НЕТ | X22: =Расчеты!I114 -> 1.66 | Y22: =Расчеты!J114 -> 0.9
B23: ВСЕГО | D23: ДОМА | F23: ВЫЕЗД | X23: =Расчеты!I115 -> 0.335443038 | Y23: =Расчеты!J115 -> 0.664556962
B24: W/D/L | C24: Забито/Проп. | D24: W/D/L | E24: Забито/Проп. | F24: W/D/L | G24: Забито/Проп. | H24: Тест № 1 | I24: =Расчеты!D76 -> П2 | K24: Теория "П/Т" | S24: ДИСТАНЦИЯ
B25: =Расчеты!H8 -> 6/0/4 | C25: =Расчеты!I8 -> 29/12 | D25: =Расчеты!O8 -> 5/0/2 | E25: =Расчеты!P8 -> 25/9 | F25: =Расчеты!V8 -> 1/0/2 | G25: =Расчеты!W8 -> 4/3 | H25: Тест № 2 | I25: =Расчеты!D77 -> X2
B26: =Расчеты!H9 -> 7/2/1 | C26: =Расчеты!I9 -> 28/9 | D26: =Расчеты!O9 -> 4/1/0 | E26: =Расчеты!P9 -> 17/5 | F26: =Расчеты!V9 -> 3/1/1 | G26: =Расчеты!W9 -> 11/4 | H26: Тест № 3 | I26: =Расчеты!D78 -> П1 | K26: Обе забьют? | S26: ="Больше мотивации в "& Расчеты!I123 -> Больше мотивации в Команда 2
B27: Команды: | C27: Сила атаки | D27: Сила обороны | E27: Серии | F27: ТБ 2,5 | G27: Рейтинг | H27: Тест № 4 | I27: =Расчеты!D79 -> П2 | K27: =Расчеты!AM46 -> Нет
B28: =C4 -> Cardiff U23 | C28: =Расчеты!Q25 -> 3.470588235 | D28: =Расчеты!R25 -> 0.44 | E28: =Расчеты!N12 -> ПВППВ | F28: =Расчеты!O12 -> -++-+ | G28: =Расчеты!P12 -> 0.4656084656 | H28: Тотал | I28: =Расчеты!D80 -> ТБ 2,5 | K28: 1 команда | L28: =Расчеты!AF47 -> Нет
B29: =E4 -> Sheffield Utd U23 | C29: =Расчеты!Q26 -> 2.272727273 | D29: =Расчеты!R26 -> 0.2881355932 | E29: =Расчеты!N13 -> ВВВВВ | F29: =Расчеты!O13 -> -++++ | G29: =Расчеты!P13 -> 0.6920634921 | H29: Счет матча | K29: 2 команда | L29: =Расчеты!AG47 -> Нет
B30: Исход матча | C30: ТБ 2,5 | D30: Мощь | F30: Вероятность гола | K30: New Total Bomb 2016 39
B31: =Расчеты!W26 -> 1Х | C31: =Расчеты!P14 -> 0.75 | D31: 1 команда | E31: 2 команда | F31: 1 команда | G31: 2 команда | H31: =CONCATENATE(Расчеты!Q66," - ",Расчеты!Q67) -> 1 - 4
D32: =Расчеты!Q12 -> 1.992857143 | E32: =Расчеты!Q13 -> 1.55 | F32: =Расчеты!R12 -> Да | G32: =Расчеты!R13 -> Да | K32: К1 | L32: Результат 1 | N32: Результат 2 | P32: ПРОГНОЗ | R32: К2
B33: Линия БК bet365 | C33: П1 | D33: Х | E33: П2 | F33: ТБ 2,5 | G33: ТМ 2,5 | H33: ОЗ "Да" | I33: ОЗ "Нет" | J33: Маржа (%) ТБ: | L33: =Расчеты!V112 -> 1 | M33: =Расчеты!W112 -> 1 | N33: =Расчеты!X112 -> 2 | O33: =Расчеты!Y112 -> 2 | P33: =Расчеты!Z112 -> X2
B34: Коэффициенты: | C34: =Расчеты!E33 -> 2.93 | D34: =Расчеты!F33 -> 3.8 | E34: =Расчеты!G33 -> 2.02 | F34: =Расчеты!J33 -> 1.45 | G34: =Расчеты!K33 -> 2.68 | H34: =Расчеты!N33 -> 1.36 | I34: =Расчеты!O33 -> 2.88 | J34: =Расчеты!K31 -> 0.06278950077 | K34: =Расчеты!V120 -> 1.738461009 | R34: =Расчеты!W120 -> 1.973400476
B35: Вероятность %: | C35: =Расчеты!E34 -> 0.3104098089 | D35: =Расчеты!F34 -> 0.2393423 | E35: =Расчеты!G34 -> 0.4502478911 | F35: =Расчеты!J34 -> 0.6489104116 | G35: =Расчеты!K34 -> 0.3510895884 | H35: =Расчеты!N34 -> 0.679245283 | I35: =Расчеты!O34 -> 0.320754717 | J35: Маржа (%) ОЗ: | M35: 1 | N35: X | O35: 2 | P35: ТБ2,5 | Q35: ТМ2,5
B36: Валуйность %: | C36: =C35-C39 -> -0.1524878764 | D36: =D35-D39 -> 0.0502054204 | E36: =E35-E39 -> 0.1080652228 | F36: =F35-I42 -> -0.1914649707 | G36: =G35-I39 -> 0.1914649707 | H36: =H35-D42 -> -0.1305601207 | I36: =I35-E42 -> 0.1305601207 | J36: =Расчеты!O31 -> 0.08251633987 | K36: % | M36: =Расчеты!X116 -> 34.55805196 | N36: =Расчеты!Y116 -> 21.43059952 | O36: =Расчеты!Z116 -> 43.86571793 | P36: =Расчеты!AB116 -> 71.65687693 | Q36: =Расчеты!AA116 -> 28.34312307
B37: Маржа (%) 1х2: | C37: =Расчеты!G31 -> 0.09950432801 | D37: Вероятность событий и распределение коэффициентов в соответсвии с распределением Пуассона | K37: Кф | M37: =Расчеты!X117 -> 2.893681627 | N37: =Расчеты!Y117 -> 4.666225034 | O37: =Расчеты!Z117 -> 2.279684563 | P37: =Расчеты!AB117 -> 1.395539469 | Q37: =Расчеты!AA117 -> 3.528192703
B38: Исход | C38: П1 | D38: Х | E38: П2 | F38: 1К забьет "Да" | G38: 2К забьет "Да" | H38: ТМ 1,5 | I38: ТМ 2,5 | J38: ТМ 3,5
B39: Вероятность в %: | C39: =Расчеты!AD17/100 -> 0.4628976853 | D39: =Расчеты!AD18/100 -> 0.1891368796 | E39: =Расчеты!AD19/100 -> 0.3421826683 | F39: =Расчеты!AD26/100 -> 0.916874094 | G39: =Расчеты!AD28/100 -> 0.8831626053 | H39: =Расчеты!AD21/100 -> 0.05498385065 | I39: =Расчеты!AD23/100 -> 0.1596246176 | J39: =Расчеты!AD25/100 -> 0.3210703724
B40: Коэффициенты: | C40: =Расчеты!AE17 -> 2.160304603 | D40: =Расчеты!AE18 -> 5.287176156 | E40: =Расчеты!AE19 -> 2.922415693 | F40: =Расчеты!AE26 -> 1.090662291 | G40: =Расчеты!AE28 -> 1.132294318 | H40: =Расчеты!AE21 -> 18.18715838 | I40: =Расчеты!AE23 -> 6.264697857 | J40: =Расчеты!AE25 -> 3.114581992 | K40: МОЖНО СТАВИТЬ | N40: =Расчеты!Y118 -> OK | O40: =Расчеты!Z118 -> OK | P40: =Расчеты!AA118 -> OK | Q40: =Расчеты!AB118 -> OK | R40: =Расчеты!AC118 -> NO
B41: Вероятный счет | D41: Обе забьют "Да" | E41: Обе забьют "Нет" | F41: 1К забьет "Нет" | G41: 2К забьет "Нет" | H41: ТБ 1,5 | I41: ТБ 2,5 | J41: ТБ 3,5 | K41: % | N41: =Расчеты!Y119 -> 97.55679989 | O41: =Расчеты!Z119 -> 88.4879795 | P41: =Расчеты!AA119 -> 71.65687693 | Q41: =Расчеты!AB119 -> 50.83196981 | R41: =Расчеты!AC119 -> 33.98087867
B42: =Расчеты!S12 -> 2 | C42: =Расчеты!S13 -> 2 | D42: =Расчеты!AD30/100 -> 0.8098054037 | E42: =Расчеты!AD31/100 -> 0.1901945963 | F42: =Расчеты!AD27/100 -> 0.08312590604 | G42: =Расчеты!AD29/100 -> 0.1168373947 | H42: =Расчеты!AD20/100 -> 0.9450161493 | I42: =Расчеты!AD22/100 -> 0.8403753824 | J42: =Расчеты!AD24/100 -> 0.6789296276 | K42: БОЛЬШЕ | N42: 0.5 | O42: 1.5 | P42: 2.5 | Q42: 3.5 | R42: 4.5
D43: =Расчеты!AE30 -> 1.234864568 | E43: =Расчеты!AE31 -> 5.257772931 | F43: =Расчеты!AE27 -> 12.02994406 | G43: =Расчеты!AE29 -> 8.558903618 | H43: =Расчеты!AE20 -> 1.058182975 | I43: =Расчеты!AE22 -> 1.189944424 | J43: =Расчеты!AE24 -> 1.472906704 | K43: Кф | N43: =Расчеты!Y121 -> 1.025043873 | O43: =Расчеты!Z121 -> 1.130096998 | P43: =Расчеты!AA121 -> 1.395539469 | Q43: =Расчеты!AB121 -> 1.967265884 | R43: =Расчеты!AC121 -> 2.942831495
B44: Tyresyas 39 | C44: Показатели | G44: Прогноз
C45: Дома | D45: Гости | E45: Тотал | F45: Дельта | G45: К1 Заб | H45: 2К Заб | I45: ОЗ | J45: Тотал1 | K45: Тотал2 | L45: 1X2 | M45: ОНЗ | N45: Чет/нечет
B46: Вариант1 | C46: =Расчеты!AK66 -> 2.35 | D46: =Расчеты!AL66 -> 2.65 | E46: =Расчеты!AM66 -> 5 | F46: =Расчеты!AN66 -> -0.3 | G46: =Расчеты!AO66 -> Да | H46: =Расчеты!AP66 -> Да | I46: =Расчеты!AQ66 -> Да | J46: =Расчеты!AR66 -> ТБ2.5 | K46: =Расчеты!AS66 -> ТБ2.5 | L46: =Расчеты!AT66 -> - | M46: =Расчеты!AU66 -> - | N46: =Расчеты!AV66 -> Чет
B47: Вариант2 | C47: =Расчеты!AK67 -> 1.787878788 | D47: =Расчеты!AL67 -> 1.039393939 | E47: =Расчеты!AM67 -> 2.827272727 | F47: =Расчеты!AN67 -> 0.7484848485 | G47: =Расчеты!AO67 -> Да | H47: =Расчеты!AP67 -> - | I47: =Расчеты!AQ67 -> - | J47: =Расчеты!AR67 -> ТБ1.5 | K47: =Расчеты!AS67 -> - | L47: =Расчеты!AT67 -> - | M47: =Расчеты!AU67 -> - | N47: =Расчеты!AV67 -> Чет
B48: Вариант3 | C48: =Расчеты!AK68 -> 0.6666666667 | D48: =Расчеты!AL68 -> 0.9333333333 | E48: =Расчеты!AM68 -> 1.6 | F48: =Расчеты!AN68 -> -0.2666666667 | G48: =Расчеты!AO68 -> - | H48: =Расчеты!AP68 -> - | I48: =Расчеты!AQ68 -> - | J48: =Расчеты!AR68 -> ТМ3.5 | K48: =Расчеты!AS68 -> - | L48: =Расчеты!AT68 -> - | M48: =Расчеты!AU68 -> - | N48: =Расчеты!AV68 -> Чет
B49: Вариант4 | C49: =Расчеты!AK69 -> 2.75 | D49: =Расчеты!AL69 -> 0.7 | E49: =Расчеты!AM69 -> 3.45 | F49: =Расчеты!AN69 -> 2.05 | G49: =Расчеты!AO69 -> Да | H49: =Расчеты!AP69 -> - | I49: =Расчеты!AQ69 -> - | J49: =Расчеты!AR69 -> ТБ1.5 | K49: =Расчеты!AS69 -> - | L49: =Расчеты!AT69 -> П1 | M49: =Расчеты!AU69 -> - | N49: =Расчеты!AV69 -> Чет
B50: Вариант5 | C50: =Расчеты!AK70 -> 1.933333333 | D50: =Расчеты!AL70 -> 1.642424242 | E50: =Расчеты!AM70 -> 3.575757576 | F50: =Расчеты!AN70 -> 0.2909090909 | G50: =Расчеты!AO70 -> Да | H50: =Расчеты!AP70 -> Да | I50: =Расчеты!AQ70 -> Да | J50: =Расчеты!AR70 -> ТБ2.5 | K50: =Расчеты!AS70 -> ТБ1.5 | L50: =Расчеты!AT70 -> - | M50: =Расчеты!AU70 -> - | N50: =Расчеты!AV70 -> Нечет
B51: Вариант6 | C51: =Расчеты!AK71 -> 2.266666667 | D51: =Расчеты!AL71 -> 2.066666667 | E51: =Расчеты!AM71 -> 4.333333333 | F51: =Расчеты!AN71 -> 0.2 | G51: =Расчеты!AO71 -> Да | H51: =Расчеты!AP71 -> Да | I51: =Расчеты!AQ71 -> Да | J51: =Расчеты!AR71 -> ТБ2.5 | K51: =Расчеты!AS71 -> ТБ1.5 | L51: =Расчеты!AT71 -> - | M51: =Расчеты!AU71 -> - | N51: =Расчеты!AV71 -> Нечет
B52: Вариант7 | C52: =Расчеты!AK89 -> 2.2 | D52: =Расчеты!AL89 -> 0.8 | E52: =Расчеты!AM89 -> 3 | F52: =Расчеты!AN89 -> 1.4 | G52: =Расчеты!AO89 -> Да | H52: =Расчеты!AP89 -> - | I52: =Расчеты!AQ89 -> - | J52: =Расчеты!AR89 -> ТБ1.5 | K52: =Расчеты!AS89 -> - | L52: =Расчеты!AT89 -> 1X | M52: =Расчеты!AU89 -> - | N52: =Расчеты!AV89 -> Чет
B53: Вариант8 | C53: =Расчеты!AK90 -> 2.012121212 | D53: =Расчеты!AL90 -> 1.060606061 | E53: =Расчеты!AM90 -> 3.072727273 | F53: =Расчеты!AN90 -> 0.9515151515 | G53: =Расчеты!AO90 -> Да | H53: =Расчеты!AP90 -> - | I53: =Расчеты!AQ90 -> - | J53: =Расчеты!AR90 -> ТБ1.5 | K53: =Расчеты!AS90 -> - | L53: =Расчеты!AT90 -> - | M53: =Расчеты!AU90 -> - | N53: =Расчеты!AV90 -> Чет
B54: Вариант9 | C54: =Расчеты!AK91 -> 3.133333333 | D54: =Расчеты!AL91 -> 1.166666667 | E54: =Расчеты!AM91 -> 4.3 | F54: =Расчеты!AN91 -> 1.966666667 | G54: =Расчеты!AO91 -> Да | H54: =Расчеты!AP91 -> - | I54: =Расчеты!AQ91 -> - | J54: =Расчеты!AR91 -> ТБ2.5 | K54: =Расчеты!AS91 -> ТБ1.5 | L54: =Расчеты!AT91 -> П1 | M54: =Расчеты!AU91 -> - | N54: =Расчеты!AV91 -> Нечет
B55: Вариант10 | C55: =Расчеты!AK92 -> 3 | D55: =Расчеты!AL92 -> 1.45 | E55: =Расчеты!AM92 -> 4.45 | F55: =Расчеты!AN92 -> 1.55 | G55: =Расчеты!AO92 -> Да | H55: =Расчеты!AP92 -> - | I55: =Расчеты!AQ92 -> - | J55: =Расчеты!AR92 -> ТБ2.5 | K55: =Расчеты!AS92 -> ТБ1.5 | L55: =Расчеты!AT92 -> П1 | M55: =Расчеты!AU92 -> - | N55: =Расчеты!AV92 -> Чет
B56: Вариант11 | C56: =Расчеты!AK93 -> 1.866666667 | D56: =Расчеты!AL93 -> 1.557575758 | E56: =Расчеты!AM93 -> 3.424242424 | F56: =Расчеты!AN93 -> 0.3090909091 | G56: =Расчеты!AO93 -> Да | H56: =Расчеты!AP93 -> Да | I56: =Расчеты!AQ93 -> Да | J56: =Расчеты!AR93 -> ТБ1.5 | K56: =Расчеты!AS93 -> - | L56: =Расчеты!AT93 -> - | M56: =Расчеты!AU93 -> - | N56: =Расчеты!AV93 -> Чет
B57: Вариант12 | C57: =Расчеты!AK94 -> 1.533333333 | D57: =Расчеты!AL94 -> 1.133333333 | E57: =Расчеты!AM94 -> 2.666666667 | F57: =Расчеты!AN94 -> 0.4 | G57: =Расчеты!AO94 -> Да | H57: =Расчеты!AP94 -> - | I57: =Расчеты!AQ94 -> - | J57: =Расчеты!AR94 -> ТБ1.5 | K57: =Расчеты!AS94 -> - | L57: =Расчеты!AT94 -> - | M57: =Расчеты!AU94 -> - | N57: =Расчеты!AV94 -> Чет

Sheet Valui (hidden)
D4: ='Incognito DATA'!A1 -> Cardiff U23 | J4: ='Incognito DATA'!A7 -> Sheffield Utd U23 | P4: SVIZZERA B
P5: 01.09.2014 ore 19.45
D9: BOOK | G9: Quota 1 | I9: Quota X | K9: Quota 2
D10: WILLIAM HILL
G11: =Коэффициенты!C2 -> 3.46 | I11: =Коэффициенты!C3 -> 4.27 | K11: =Коэффициенты!C4 -> 1.83
D13: probabilità percentuale quote | G13: =100/G11 -> 28.9017341 | I13: =100/I11 -> 23.41920375 | K13: =100/K11 -> 54.64480874 | M13: =SUM(G13+I13+K13) -> 106.9657466 | O13: AGGIO DEL BOOK | Q13: =M13-100 -> 6.965746594
G16: =(M29+M40)/2 -> 35 | I16: =(N29+N40)/2 -> 2.272727273 | K16: =(O29+O40)/2 -> 62.72727273 | M16: Picchetto tecnico
M17: Esso è ricavato dalla media del picchetto casa/fuori e del picchetto forma
G18: =100/G16 -> 2.857142857 | I18: =100/I16 -> 44 | K18: =100/K16 -> 1.594202899 | M18: costituito dalle ultime 5 giornate totali
M20: Vinte casa | N20: Nulle casa | O20: Perse casa
E21: SEGNO 1 | G21: =G16-G13 -> 6.098265896 | I21: =IF(G21>9.99,"value 1","-") -> - | M21: ='Incognito DATA'!C3 -> 8 | N21: ='Incognito DATA'!D3 -> 0 | O21: ='Incognito DATA'!E3 -> 3 | Q21: =D4 -> Cardiff U23
M22: Vinte fuori | N22: Nulle fuori | O22: Perse fuori
E23: SEGNO X | G23: =I16-I13 -> -21.14647647 | I23: =IF(G23>9.99,"value Х","-") -> - | M23: ='Incognito DATA'!C10 -> 7 | N23: ='Incognito DATA'!D10 -> 1 | O23: ='Incognito DATA'!E10 -> 3 | Q23: =J4 -> Sheffield Utd U23
E25: SEGNO 2 | G25: =K16-K13 -> 8.082463984 | I25: =IF(G25>9.99,"value 2","-") -> - | M25: Segno 1 | N25: Segno X | O25: Segno 2
M26: =M21+O23 -> 11 | N26: =N21+N23 -> 1 | O26: =O21+M23 -> 10
M28: % SEGNO 1 | N28: % SEGNO X | O28: % SEGNO 2
M29: =M26*100/(M26+N26+O26) -> 50 | N29: =N26*100/(M26+N26+O26) -> 4.545454545 | O29: =O26*100/(M26+N26+O26) -> 45.45454545
M31: Vinte u5 | N31: Nulle u5 | O31: Perse u5
M32: ='Incognito DATA'!C5 -> 2 | N32: ='Incognito DATA'!D5 -> 0 | O32: ='Incognito DATA'!E5 -> 3 | Q32: =D4 -> Cardiff U23
M33: Vinte u5 | N33: Nulle u5 | O33: Perse u5
M34: ='Incognito DATA'!C11 -> 5 | N34: ='Incognito DATA'!D11 -> 0 | O34: ='Incognito DATA'!E11 -> 0 | Q34: =J4 -> Sheffield Utd U23
M36: Segno 1 | N36: Segno X | O36: Segno 2
M37: =M32+O34 -> 2 | N37: =N32+N34 -> 0 | O37: =M34+O32 -> 8
M39: % SEGNO 1 | N39: % SEGNO X | O39: % SEGNO 2
M40: =M37*100/(M37+N37+O37) -> 20 | N40: =N37*100/(M37+N37+O37) -> 0 | O40: =O37*100/(M37+N37+O37) -> 80
M41: =M40/100 -> 0.2 | N41: =N40/100 -> 0 | O41: 0.8

Sheet Poisson (hidden)
D6: Команда | E6: Забито | F6: Пропущено | G6: Игры | I6: Средний
C7: Дом | D7: ='Incognito DATA'!A1 -> Cardiff U23 | E7: ='Incognito DATA'!F5 -> 11 | F7: ='Incognito DATA'!G5 -> 6 | G7: ='Incognito DATA'!B5 -> 5 | I7: =(E7+F8)/(G8+G7) -> 1.3
C8: Гости | D8: ='Incognito DATA'!A7 -> Sheffield Utd U23 | E8: ='Incognito DATA'!F11 -> 18 | F8: ='Incognito DATA'!G11 -> 2 | G8: ='Incognito DATA'!B11 -> 5 | I8: =(E8+F7)/(G7+G8) -> 2.4
H10: 0 | I10: 1 | J10: 2 | K10: 3 | L10: 4 | M10: 5 | N10: 6 | O10: 7 | P10: 8 | Q10: 9
G11: 0 | H11: =POISSON(G11,I7,0)*POISSON(H10,I8,0) -> 0.02472352647 | I11: =POISSON(G11,I7,0)*POISSON(I10,I8,0) -> 0.05933646353 | J11: =POISSON(G11,I7,0)*POISSON(J10,I8,0) -> 0.07120375623 | K11: =POISSON(G11,I7,0)*POISSON(K10,I8,0) -> 0.05696300499 | L11: =POISSON(G11,I7,0)*POISSON(L10,I8,0) -> 0.03417780299 | M11: =POISSON(G11,I7,0)*POISSON(M10,I8,0) -> 0.01640534544 | N11: =POISSON(G11,I7,0)*POISSON(N10,I8,0) -> 0.006562138175 | O11: =POISSON(G11,I7,0)*POISSON(O10,I8,0) -> 0.002249875946 | P11: =POISSON(G11,I7,0)*POISSON(P10,I8,0) -> 0.0006749627837 | Q11: =POISSON(G11,I7,0)*POISSON(Q10,I8,0) -> 0.0001799900756
B12: ="1" -> 1 | C12: ="X" -> X | D12: ="2" -> 2 | G12: 1 | H12: =POISSON(G12,I7,0)*POISSON(H10,I8,0) -> 0.03214058441 | I12: =POISSON(G12,I7,0)*POISSON(I10,I8,0) -> 0.07713740259 | J12: =POISSON(G12,I7,0)*POISSON(J10,I8,0) -> 0.0925648831 | K12: =POISSON(G12,I7,0)*POISSON(K10,I8,0) -> 0.07405190648 | L12: =POISSON(G12,I7,0)*POISSON(L10,I8,0) -> 0.04443114389 | M12: =POISSON(G12,I7,0)*POISSON(M10,I8,0) -> 0.02132694907 | N12: =POISSON(G12,I7,0)*POISSON(N10,I8,0) -> 0.008530779627 | O12: =POISSON(G12,I7,0)*POISSON(O10,I8,0) -> 0.002924838729 | P12: =POISSON(G12,I7,0)*POISSON(P10,I8,0) -> 0.0008774516188 | Q12: =POISSON(G12,I7,0)*POISSON(Q10,I8,0) -> 0.0002339870983
B13: =SUM(H12:H20,I13:I20,J14:J20,K15:K20,L16:L20,M17:M20,N18:N20,O19:O20,P20) -> 0.1950637088 | C13: =SUM(H11,I12,J13,K14,L15,M16,N17,O18,P19,Q20) -> 0.1875078917 | D13: =1-C13-B13 -> 0.6174283995 | G13: 2 | H13: =POISSON(G13,I7,0)*POISSON(H10,I8,0) -> 0.02089137987 | I13: =POISSON(G13,I7,0)*POISSON(I10,I8,0) -> 0.05013931168 | J13: =POISSON(G13,I7,0)*POISSON(J10,I8,0) -> 0.06016717402 | K13: =POISSON(G13,I7,0)*POISSON(K10,I8,0) -> 0.04813373921 | L13: =POISSON(G13,I7,0)*POISSON(L10,I8,0) -> 0.02888024353 | M13: =POISSON(G13,I7,0)*POISSON(M10,I8,0) -> 0.01386251689 | N13: =POISSON(G13,I7,0)*POISSON(N10,I8,0) -> 0.005545006758 | O13: =POISSON(G13,I7,0)*POISSON(O10,I8,0) -> 0.001901145174 | P13: =POISSON(G13,I7,0)*POISSON(P10,I8,0) -> 0.0005703435522 | Q13: =POISSON(G13,I7,0)*POISSON(Q10,I8,0) -> 0.0001520916139
B14: =1/B13 -> 5.12653023 | C14: =1/C13 -> 5.333108867 | D14: =1/D13 -> 1.619620997 | G14: 3 | H14: =POISSON(G14,I7,0)*POISSON(H10,I8,0) -> 0.009052931276 | I14: =POISSON(G14,I7,0)*POISSON(I10,I8,0) -> 0.02172703506 | J14: =POISSON(G14,I7,0)*POISSON(J10,I8,0) -> 0.02607244207 | K14: =POISSON(G14,I7,0)*POISSON(K10,I8,0) -> 0.02085795366 | L14: =POISSON(G14,I7,0)*POISSON(L10,I8,0) -> 0.0125147722 | M14: =POISSON(G14,I7,0)*POISSON(M10,I8,0) -> 0.006007090654 | N14: =POISSON(G14,I7,0)*POISSON(N10,I8,0) -> 0.002402836262 | O14: =POISSON(G14,I7,0)*POISSON(O10,I8,0) -> 0.0008238295754 | P14: =POISSON(G14,I7,0)*POISSON(P10,I8,0) -> 0.0002471488726 | Q14: =POISSON(G14,I7,0)*POISSON(Q10,I8,0) -> 6.590636603e-05
G15: 4 | H15: =POISSON(G15,I7,0)*POISSON(H10,I8,0) -> 0.002942202665 | I15: =POISSON(G15,I7,0)*POISSON(I10,I8,0) -> 0.007061286395 | J15: =POISSON(G15,I7,0)*POISSON(J10,I8,0) -> 0.008473543674 | K15: =POISSON(G15,I7,0)*POISSON(K10,I8,0) -> 0.006778834939 | L15: =POISSON(G15,I7,0)*POISSON(L10,I8,0) -> 0.004067300964 | M15: =POISSON(G15,I7,0)*POISSON(M10,I8,0) -> 0.001952304463 | N15: =POISSON(G15,I7,0)*POISSON(N10,I8,0) -> 0.000780921785 | O15: =POISSON(G15,I7,0)*POISSON(O10,I8,0) -> 0.000267744612 | P15: =POISSON(G15,I7,0)*POISSON(P10,I8,0) -> 8.03233836e-05 | Q15: =POISSON(G15,I7,0)*POISSON(Q10,I8,0) -> 2.141956896e-05
G16: 5 | H16: =POISSON(G16,I7,0)*POISSON(H10,I8,0) -> 0.0007649726928 | I16: =POISSON(G16,I7,0)*POISSON(I10,I8,0) -> 0.001835934463 | J16: =POISSON(G16,I7,0)*POISSON(J10,I8,0) -> 0.002203121355 | K16: =POISSON(G16,I7,0)*POISSON(K10,I8,0) -> 0.001762497084 | L16: =POISSON(G16,I7,0)*POISSON(L10,I8,0) -> 0.001057498251 | M16: =POISSON(G16,I7,0)*POISSON(M10,I8,0) -> 0.0005075991603 | N16: =POISSON(G16,I7,0)*POISSON(N10,I8,0) -> 0.0002030396641 | O16: =POISSON(G16,I7,0)*POISSON(O10,I8,0) -> 6.961359912e-05 | P16: =POISSON(G16,I7,0)*POISSON(P10,I8,0) -> 2.088407974e-05 | Q16: =POISSON(G16,I7,0)*POISSON(Q10,I8,0) -> 5.56908793e-06
G17: 6 | H17: =POISSON(G17,I7,0)*POISSON(H10,I8,0) -> 0.0001657440834 | I17: =POISSON(G17,I7,0)*POISSON(I10,I8,0) -> 0.0003977858003 | J17: =POISSON(G17,I7,0)*POISSON(J10,I8,0) -> 0.0004773429603 | K17: =POISSON(G17,I7,0)*POISSON(K10,I8,0) -> 0.0003818743683 | L17: =POISSON(G17,I7,0)*POISSON(L10,I8,0) -> 0.000229124621 | M17: =POISSON(G17,I7,0)*POISSON(M10,I8,0) -> 0.0001099798181 | N17: =POISSON(G17,I7,0)*POISSON(N10,I8,0) -> 4.399192722e-05 | O17: =POISSON(G17,I7,0)*POISSON(O10,I8,0) -> 1.508294648e-05 | P17: =POISSON(G17,I7,0)*POISSON(P10,I8,0) -> 4.524883943e-06 | Q17: =POISSON(G17,I7,0)*POISSON(Q10,I8,0) -> 1.206635718e-06
B18: ТБ 0.5 | C18: =VALUE(TEXT(SUM(H11:Q20)-H11,"0,000")) -> 0.975 | D18: =1/C18 -> 1.025641026 | G18: 7 | H18: =POISSON(G18,I7,0)*POISSON(H10,I8,0) -> 3.078104407e-05 | I18: =POISSON(G18,I7,0)*POISSON(I10,I8,0) -> 7.387450576e-05 | J18: =POISSON(G18,I7,0)*POISSON(J10,I8,0) -> 8.864940692e-05 | K18: =POISSON(G18,I7,0)*POISSON(K10,I8,0) -> 7.091952553e-05 | L18: =POISSON(G18,I7,0)*POISSON(L10,I8,0) -> 4.255171532e-05 | M18: =POISSON(G18,I7,0)*POISSON(M10,I8,0) -> 2.042482335e-05 | N18: =POISSON(G18,I7,0)*POISSON(N10,I8,0) -> 8.169929341e-06 | O18: =POISSON(G18,I7,0)*POISSON(O10,I8,0) -> 2.801118631e-06 | P18: =POISSON(G18,I7,0)*POISSON(P10,I8,0) -> 8.403355894e-07 | Q18: =POISSON(G18,I7,0)*POISSON(Q10,I8,0) -> 2.240894905e-07
B19: ТБ 1.5 | C19: =VALUE(TEXT(SUM(H13:H20,I12:I20,J11:J20,K11:Q20),"0,000")) -> 0.884 | D19: =1/C19 -> 1.131221719 | G19: 8 | H19: =POISSON(G19,I7,0)*POISSON(H10,I8,0) -> 5.001919661e-06 | I19: =POISSON(G19,I7,0)*POISSON(I10,I8,0) -> 1.200460719e-05 | J19: =POISSON(G19,I7,0)*POISSON(J10,I8,0) -> 1.440552862e-05 | K19: =POISSON(G19,I7,0)*POISSON(K10,I8,0) -> 1.15244229e-05 | L19: =POISSON(G19,I7,0)*POISSON(L10,I8,0) -> 6.914653739e-06 | M19: =POISSON(G19,I7,0)*POISSON(M10,I8,0) -> 3.319033795e-06 | N19: =POISSON(G19,I7,0)*POISSON(N10,I8,0) -> 1.327613518e-06 | O19: =POISSON(G19,I7,0)*POISSON(O10,I8,0) -> 4.551817776e-07 | P19: =POISSON(G19,I7,0)*POISSON(P10,I8,0) -> 1.365545333e-07 | Q19: =POISSON(G19,I7,0)*POISSON(Q10,I8,0) -> 3.641454221e-08
B20: ТБ 2.5 | C20: =VALUE(TEXT(SUM(H14:H20,I13:I20,J12:J20,K11:Q20),"0,000")) -> 0.714 | D20: =1/C20 -> 1.400560224 | G20: 9 | H20: =POISSON(G20,I7,0)*POISSON(H10,I8,0) -> 7.224995066e-07 | I20: =POISSON(G20,I7,0)*POISSON(I10,I8,0) -> 1.733998816e-06 | J20: =POISSON(G20,I7,0)*POISSON(J10,I8,0) -> 2.080798579e-06 | K20: =POISSON(G20,I7,0)*POISSON(K10,I8,0) -> 1.664638863e-06 | L20: =POISSON(G20,I7,0)*POISSON(L10,I8,0) -> 9.987833179e-07 | M20: =POISSON(G20,I7,0)*POISSON(M10,I8,0) -> 4.794159926e-07 | N20: =POISSON(G20,I7,0)*POISSON(N10,I8,0) -> 1.91766397e-07 | O20: =POISSON(G20,I7,0)*POISSON(O10,I8,0) -> 6.574847899e-08 | P20: =POISSON(G20,I7,0)*POISSON(P10,I8,0) -> 1.97245437e-08 | Q20: =POISSON(G20,I7,0)*POISSON(Q10,I8,0) -> 5.259878319e-09
B21: ТБ 3.5 | C21: =VALUE(TEXT(SUM(H15:H20,I14:I20,J13:J20,K12:K20,L11:Q20),"0,000")) -> 0.506 | D21: =1/C21 -> 1.976284585
B22: ТБ 4.5 | C22: =VALUE(TEXT(SUM(H16:H20,I15:I20,J14:J20,K13:K20,L12:L20,M11:Q20),"0,000")) -> 0.313 | D22: 3.194888179
B23: ТБ 5.5 | C23: =VALUE(TEXT(SUM(H17:H20,I16:I20,J15:J20,K14:K20,L13:L20,M12:M20,N11:Q20),"0,000")) -> 0.17 | D23: 5.882352941
B25: ТМ 0.5 | C25: =1-C18 -> 0.025 | D25: 40 | F25: ОЗ | G25: =VALUE(TEXT(SUM(I12:Q20),"0,000")) -> 0.661 | H25: =1/G25 -> 1.512859304
B26: ТМ 1.5 | C26: 0.116 | D26: 8.620689655 | F26: НЕ ОЗ | G26: =1-G25 -> 0.339 | H26: =1/G26 -> 2.949852507
B27: ТМ 2.5 | C27: 0.286 | D27: 3.496503497
B28: ТМ 3.5 | C28: 0.494 | D28: 2.024291498 | F28: P | G28: =VALUE(TEXT(SUM(H11,H13,H15,H17,H19,I12,I14,I16,I18,I20,J11,J13,J15,J17,J19,K12,K14,K16,K18,K20,L11,L13,L15,L17,L19,M12,M14,M16,M18,M20)+SUM(N11,N13,N15,N17,N19,O12,O14,O16,O18,O20,P11,P13,P15,P17,P19,Q12,Q14,Q16,Q18,Q20),"0,000")) -> 0.5 | H28: =1/G28 -> 2
B29: ТМ 4.5 | C29: 0.687 | D29: 1.455604076 | F29: D | G29: =1-G28 -> 0.5 | H29: =1/G29 -> 2
B30: ТМ 5.5 | C30: 0.83 | D30: 1.204819277

Sheet Графики (hidden)
A1: ='Incognito DATA'!A1 -> Cardiff U23 | B1: =TREND(F2:F8,E2:E8,E9) -> 2.571428571 | N1: И | O1: В | P1: Н | Q1: П | R1: З | S1: П | U1: В | V1: Н | W1: П | X1: З | Y1: П | BB1: # | BC1: 1 | BD1: X | BE1: 2 | BF1: ТМ1.5 | BG1: ТБ1.5 | BH1: ТМ2.5 | BI1: ТБ2.5 | BJ1: ТМ3.5 | BK1: ТБ3.5 | BL1: BTS Y | BM1: BTS N | BN1: 1X | BO1: X2 | BP1: 12
A2: дома | B2: =ДомаДома!L2 -> 0 | C2: =ДомаДома!M2 -> 2 | D2: =ДомаДома!N2 -> П | E2: 1 | F2: =B8 -> 4 | G2: =B2-C2 -> -2 | H2: =G2+H3 -> 20 | I2: 5 | J2: =Дома!L2 -> 0 | K2: =Дома!M2 -> 2 | L2: =Дома!N2 -> П | M2: =Дома!I2 -> Дома | N2: =IF(OR(M2="Гости",M2="Дома"),1,0) -> 1 | O2: =IF(M2="Дома",IF(L2="В",1,0),0) -> 0 | P2: =IF(M2="Дома",IF(L2="Н",1,0),0) -> 0 | Q2: =IF(M2="Дома",IF(L2="П",1,0),0) -> 1 | R2: =IF(M2="Дома",J2,0) -> 0 | S2: =IF(M2="Дома",K2,0) -> 2 | U2: =IF(M2="Гости",IF(L2="В",1,0),0) -> 0 | V2: =IF(M2="Гости",IF(L2="Н",1,0),0) -> 0 | W2: =IF(M2="Гости",IF(L2="П",1,0),0) -> 0 | X2: =IF(M2="Гости",J2,0) -> 0 | Y2: =IF(M2="Гости",K2,0) -> 0 | AQ2: =Дома!I2 -> Дома | AR2: =IF(OR(AQ2="Гости",AQ2="Дома"),1,0) -> 1 | AS2: =Дома!L2 -> 0 | AT2: =Дома!M2 -> 2 | AU2: =Дома!N2 -> П | AV2: =IF(AU2="","",IF((AS2+AT2)>1,"ТБ1.5","ТМ1.5")) -> ТБ1.5 | AW2: =IF(AU2="","",IF((AS2+AT2)>2,"ТБ2.5","ТМ2.5")) -> ТМ2.5 | AX2: =IF(AU2="","",IF((AS2+AT2)>3,"ТБ3.5","ТМ3.5")) -> ТМ3.5 | AY2: =IF(AU2="","",IF(AND(AS2>0,AT2>0),"BTS Y","BTS N")) -> BTS N | BA2: ALL H| A | BB2: =MAX(AR2:AR11) -> 10 | BC2: =COUNTIF(AU2:AU11,"В") -> 6 | BD2: =COUNTIF(AU2:AU11,"Н") -> 0 | BE2: =COUNTIF(AU2:AU11,"П") -> 4 | BF2: =COUNTIF($AV2:$AY11,BF1) -> 0 | BG2: =COUNTIF($AV2:$AY11,BG1) -> 1 | BH2: 2 | BI2: 8 | BJ2: 1 | BK2: 0 | BL2: 4 | BM2: 6 | BN2: =BC2+BD2 -> 6 | BO2: =BD2+BE2 -> 4 | BP2: =BC2+BE2 -> 10
B3: =ДомаДома!L3 -> 6 | C3: =ДомаДома!M3 -> 1 | D3: =ДомаДома!N3 -> В | E3: 2 | F3: =B7 -> 4 | G3: =B3-C3 -> 5 | H3: =H4+G3 -> 22 | I3: m | J3: =Дома!L3 -> 6 | K3: =Дома!M3 -> 1 | L3: =Дома!N3 -> В | M3: =Дома!I3 -> Дома | N3: =IF(OR(M3="Гости",M3="Дома"),N2+1,N2) -> 2 | O3: =IF(M3="Дома",IF(L3="В",O2+1,O2+0),O2+0) -> 1 | P3: =IF(M3="Дома",IF(L3="Н",P2+1,P2+0),P2+0) -> 0 | Q3: =IF(M3="Дома",IF(L3="П",Q2+1,Q2+0),Q2+0) -> 1 | R3: =IF(M3="Дома",R2+J3,R2+0) -> 6 | S3: =IF(M3="Дома",S2+K3,S2+0) -> 3 | U3: =IF(M3="Гости",IF(L3="В",U2+1,U2+0),U2+0) -> 0 | V3: =IF(M3="Гости",IF(L3="Н",V2+1,V2+0),V2+0) -> 0 | W3: =IF(M3="Гости",IF(L3="П",W2+1,W2+0),W2+0) -> 0 | X3: =IF(M3="Гости",X2+J3,X2+0) -> 0 | Y3: =IF(M3="Гости",Y2+K3,Y2+0) -> 0 | AQ3: =Дома!I3 -> Дома | AR3: =IF(OR(AQ3="Гости",AQ3="Дома"),AR2+1,AR2) -> 2 | AS3: =Дома!L3 -> 6 | AT3: =Дома!M3 -> 1 | AU3: =Дома!N3 -> В | AW3: =IF(AU3="","",IF((AS3+AT3)>2,"ТБ2.5","ТМ2.5")) -> ТБ2.5 | AY3: =IF(AU3="","",IF(AND(AS3>0,AT3>0),"BTS Y","BTS N")) -> BTS Y | BB3: =MAX(AR14:AR23) -> 10 | BC3: =COUNTIF(AU14:AU23,"В") -> 7 | BD3: =COUNTIF(AU14:AU23,"Н") -> 2 | BE3: =COUNTIF(AU14:AU23,"П") -> 1 | BF3: =COUNTIF($AV14:$AY23,BF1) -> 0 | BG3: =COUNTIF($AV14:$AY23,BG1) -> 0 | BH3: 3 | BI3: 7 | BJ3: 0 | BK3: 0 | BL3: 5 | BM3: 5 | BN3: =BC3+BD3 -> 9 | BO3: =BD3+BE3 -> 3 | BP3: =BC3+BE3 -> 8
B4: =ДомаДома!L4 -> 4 | C4: =ДомаДома!M4 -> 0 | D4: =ДомаДома!N4 -> В | E4: 3 | F4: =B6 -> 3 | G4: 4 | H4: 17 | I4: a | J4: =Дома!L4 -> 1 | K4: =Дома!M4 -> 2 | L4: =Дома!N4 -> П | M4: =Дома!I4 -> Гости | N4: =IF(OR(M4="Гости",M4="Дома"),N3+1,N3) -> 3 | O4: =IF(M4="Дома",IF(L4="В",O3+1,O3+0),O3+0) -> 1 | P4: =IF(M4="Дома",IF(L4="Н",P3+1,P3+0),P3+0) -> 0 | Q4: =IF(M4="Дома",IF(L4="П",Q3+1,Q3+0),Q3+0) -> 1 | R4: =IF(M4="Дома",R3+J4,R3+0) -> 6 | S4: =IF(M4="Дома",S3+K4,S3+0) -> 3 | U4: =IF(M4="Гости",IF(L4="В",U3+1,U3+0),U3+0) -> 0 | V4: =IF(M4="Гости",IF(L4="Н",V3+1,V3+0),V3+0) -> 0 | W4: =IF(M4="Гости",IF(L4="П",W3+1,W3+0),W3+0) -> 1 | X4: =IF(M4="Гости",X3+J4,X3+0) -> 1 | Y4: =IF(M4="Гости",Y3+K4,Y3+0) -> 2 | AQ4: =Дома!I4 -> Гости | AR4: 3 | AS4: =Дома!L4 -> 1 | AT4: =Дома!M4 -> 2 | AU4: =Дома!N4 -> П | AW4: ТБ2.5 | AY4: BTS Y | BC4: =BC2/$BB$2 -> 0.6 | BD4: =BD2/$BB$2 -> 0 | BE4: 0.4 | BF4: 0 | BG4: 0.1 | BH4: 0.2 | BI4: 0.8 | BJ4: 0.1 | BK4: 0 | BL4: 0.4 | BM4: 0.6 | BN4: 0.6 | BO4: 0.4 | BP4: 1
B5: =ДомаДома!L5 -> 4 | C5: =ДомаДома!M5 -> 5 | D5: =ДомаДома!N5 -> П | E5: 4 | F5: =B5 -> 4 | G5: -1 | H5: 13 | I5: t | J5: =Дома!L5 -> 0 | K5: =Дома!M5 -> 1 | L5: =Дома!N5 -> П | M5: =Дома!I5 -> Гости | N5: 4 | O5: 1 | P5: 0 | Q5: 1 | R5: 6 | S5: 3 | U5: 0 | V5: 0 | W5: 2 | X5: 1 | Y5: 3 | AQ5: =Дома!I5 -> Гости | AR5: 4 | AS5: =Дома!L5 -> 0 | AT5: =Дома!M5 -> 1 | AU5: =Дома!N5 -> П | AW5: ТМ2.5 | AY5: BTS N | BC5: =BC3/$BB$3 -> 0.7 | BD5: =BD3/$BB$3 -> 0.2 | BE5: 0.1 | BF5: 0 | BG5: 0 | BH5: 0.3 | BI5: 0.7 | BJ5: 0 | BK5: 0 | BL5: 0.5 | BM5: 0.5 | BN5: 0.9 | BO5: 0.3 | BP5: 0.8
B6: =ДомаДома!L6 -> 3 | C6: =ДомаДома!M6 -> 0 | D6: =ДомаДома!N6 -> В | E6: 5 | F6: =B4 -> 4 | G6: 3 | H6: =H7+G6 -> 14 | I6: h | J6: =Дома!L6 -> 4 | K6: =Дома!M6 -> 0 | L6: =Дома!N6 -> В | M6: =Дома!I6 -> Дома | N6: 5 | O6: 2 | P6: 0 | Q6: 1 | R6: 10 | S6: 3 | U6: 0 | V6: 0 | W6: 2 | X6: 1 | Y6: 3 | AQ6: =Дома!I6 -> Дома | AR6: 5 | AS6: =Дома!L6 -> 4 | AT6: =Дома!M6 -> 0 | AU6: =Дома!N6 -> В | AW6: ТБ2.5 | AY6: BTS N | BC6: =(BC4+BE5)/2 -> 0.35 | BD6: =(BD4+BD5)/2 -> 0.1 | BE6: =(BC5+BE4)/2 -> 0.55 | BF6: =(BF4+BF5)/2 -> 0 | BG6: =(BG4+BG5)/2 -> 0.05 | BH6: 0.25 | BI6: 0.75 | BJ6: 0.05 | BK6: 0 | BL6: 0.45 | BM6: 0.55 | BN6: 0.75 | BO6: 0.35 | BP6: 0.9
B7: =ДомаДома!L7 -> 4 | C7: =ДомаДома!M7 -> 1 | D7: =ДомаДома!N7 -> В | E7: 6 | F7: =B3 -> 6 | G7: 3 | H7: =H8+G7 -> 11 | J7: =Очные!AG2 -> 1 | K7: =Очные!AH2 -> 3 | L7: =Очные!G2 -> П | M7: =Очные!S2 -> Дома | N7: 6 | O7: 2 | P7: 0 | Q7: 2 | R7: 11 | S7: 6 | U7: 0 | V7: 0 | W7: 2 | X7: 1 | Y7: 3 | AQ7: =Дома!I7 -> Дома | AR7: 6 | AS7: =Дома!L7 -> 4 | AT7: =Дома!M7 -> 5 | AU7: =Дома!N7 -> П | AW7: ТБ2.5 | AY7: BTS Y | BC7: =Коэффициенты!C2 -> 3.46 | BD7: =Коэффициенты!C3 -> 4.27 | BE7: =Коэффициенты!C4 -> 1.83 | BF7: =BH7*2 -> 5.64 | BG7: =(BI7-35%)/100*100 -> 1.05 | BH7: =Коэффициенты!C6 -> 2.82 | BI7: =Коэффициенты!C5 -> 1.4 | BJ7: =(BH7+30%)/100*100 -> 3.12 | BK7: =(BI7+30%)/100*100 -> 1.7 | BL7: =Коэффициенты!C7 -> 1.46 | BM7: =Коэффициенты!C8 -> 2.59 | BN7: =BC7/1.8 -> 1.922222222 | BO7: =BE7/1.8 -> 1.016666667 | BP7: =(BC7+BE7)/3.8 -> 1.392105263
B8: =ДомаДома!L8 -> 4 | C8: =ДомаДома!M8 -> 0 | D8: =ДомаДома!N8 -> В | E8: 7 | F8: =B2 -> 0 | G8: 4 | H8: =H9+G8 -> 8 | J8: =Очные!AG3 -> 1 | K8: =Очные!AH3 -> 1 | L8: =Очные!G3 -> Н | M8: =Очные!S3 -> Дома | N8: 7 | O8: 2 | P8: 1 | Q8: 2 | R8: 12 | S8: 7 | U8: 0 | V8: 0 | W8: 2 | X8: 1 | Y8: 3 | AQ8: =Дома!I8 -> Гости | AR8: 7 | AS8: =Дома!L8 -> 3 | AT8: =Дома!M8 -> 0 | AU8: =Дома!N8 -> В | AW8: ТБ2.5 | AY8: BTS N | BC8: =((1/BC7)+BC6)/2 -> 0.3195086705 | BD8: =((1/BD7)+BD6)/2 -> 0.1670960187 | BE8: 0.5482240437 | BF8: 0.08865248227 | BG8: =((1/BG7)+BG6)/2 -> 0.5011904762 | BH8: 0.3023049645 | BI8: 0.7321428571 | BJ8: 0.1852564103 | BK8: 0.2941176471 | BL8: 0.5674657534 | BM8: 0.4680501931 | BN8: 0.6351156069 | BO8: 0.6668032787 | BP8: 0.809168242
B9: =ДомаДома!L9 -> 2 | C9: =ДомаДома!M9 -> 1 | D9: =ДомаДома!N9 -> В | E9: 8 | G9: 1 | H9: =H10+G9 -> 4 | J9: =Очные!AG4 -> 0 | K9: =Очные!AH4 -> 3 | L9: =Очные!G4 -> П | M9: =Очные!S4 -> Гости | N9: 8 | O9: 2 | P9: 1 | Q9: 2 | R9: 12 | S9: 7 | U9: 0 | V9: 0 | W9: 3 | X9: 1 | Y9: 6 | AQ9: =Дома!I9 -> Дома | AR9: 8 | AS9: =Дома!L9 -> 3 | AT9: =Дома!M9 -> 0 | AU9: =Дома!N9 -> В | AW9: ТБ2.5 | AY9: BTS N | BA9: H| A | BB9: =MAX(AR26:AR35) -> 10 | BC9: =COUNTIF(AU26:AU35,"В") -> 8 | BD9: =COUNTIF(AU26:AU35,"Н") -> 0 | BE9: =COUNTIF(AU26:AU35,"П") -> 2 | BF9: =COUNTIF($AV26:$AY35,BF1) -> 0 | BG9: =COUNTIF($AV26:$AY35,BG1) -> 0 | BH9: 3 | BI9: 7 | BJ9: 0 | BK9: 0 | BL9: 4 | BM9: 6 | BN9: =BC9+BD9 -> 8 | BO9: =BD9+BE9 -> 2 | BP9: =BC9+BE9 -> 10
B10: =ДомаДома!L10 -> 1 | C10: =ДомаДома!M10 -> 0 | D10: =ДомаДома!N10 -> В | G10: 1 | H10: =H11+G10 -> 3 | J10: =Очные!AG5 -> 1 | K10: =Очные!AH5 -> 1 | L10: =Очные!G5 -> Н | M10: =Очные!S5 -> Дома | N10: 9 | O10: 2 | P10: 2 | Q10: 2 | R10: 13 | S10: 8 | U10: 0 | V10: 0 | W10: 3 | X10: 1 | Y10: 6 | AQ10: =Дома!I10 -> Дома | AR10: 9 | AS10: =Дома!L10 -> 4 | AT10: =Дома!M10 -> 1 | AU10: =Дома!N10 -> В | AW10: ТБ2.5 | AY10: BTS Y | BB10: =MAX(AR2:AR11) -> 10 | BC10: =COUNTIF(AU38:AU47,"В") -> 7 | BD10: =COUNTIF(AU38:AU47,"Н") -> 1 | BE10: =COUNTIF(AU38:AU47,"П") -> 2 | BF10: =COUNTIF($AV38:$AY47,BF1) -> 0 | BG10: =COUNTIF($AV38:$AY47,BG1) -> 0 | BH10: 4 | BI10: 6 | BJ10: 0 | BK10: 0 | BL10: 4 | BM10: 6 | BN10: =BC10+BD10 -> 8 | BO10: =BD10+BE10 -> 3 | BP10: =BC10+BE10 -> 9
B11: =ДомаДома!L11 -> 2 | C11: =ДомаДома!M11 -> 0 | D11: =ДомаДома!N11 -> В | G11: 2 | H11: =G11 -> 2 | J11: =Очные!AG6 ->  | K11: =Очные!AH6 ->  | L11: =Очные!G6 ->  | M11: =Очные!S6 ->  | N11: 9 | O11: 2 | P11: 2 | Q11: 2 | R11: 13 | S11: 8 | U11: 0 | V11: 0 | W11: 3 | X11: 1 | Y11: 6 | AQ11: =Дома!I11 -> Дома | AR11: 10 | AS11: =Дома!L11 -> 4 | AT11: =Дома!M11 -> 0 | AU11: =Дома!N11 -> В | AW11: ТБ2.5 | AY11: BTS N | BC11: =BC9/$BB$9 -> 0.8 | BD11: =BD9/$BB$9 -> 0 | BE11: =BE9/$BB$9 -> 0.2 | BF11: =BF9/$BB$9 -> 0 | BG11: 0 | BH11: 0.3 | BI11: 0.7 | BJ11: 0 | BK11: 0 | BL11: 0.4 | BM11: 0.6 | BN11: 0.8 | BO11: 0.2 | BP11: 1
BC12: =BC10/$BB$10 -> 0.7 | BD12: =BD10/$BB$10 -> 0.1 | BE12: 0.2 | BF12: =BF10/$BB$10 -> 0 | BG12: 0 | BH12: 0.4 | BI12: 0.6 | BJ12: 0 | BK12: 0 | BL12: 0.4 | BM12: 0.6 | BN12: 0.8 | BO12: 0.3 | BP12: 0.9
A13: ='Incognito DATA'!A7 -> Sheffield Utd U23 | B13: =TREND(F14:F20,E2:E8,E9) -> 2.571428571 | N13: И | BC13: =(BC11+BE12)/2 -> 0.5 | BD13: =(BD11+BD12)/2 -> 0.05 | BE13: =(BC12+BE11)/2 -> 0.45 | BF13: =(BF11+BF12)/2 -> 0 | BG13: =(BG11+BG12)/2 -> 0 | BH13: =(BH11+BH12)/2 -> 0.35 | BI13: 0.65 | BJ13: 0 | BK13: 0 | BL13: =(BL11+BL12)/2 -> 0.4 | BM13: 0.6 | BN13: 0.8 | BO13: 0.25 | BP13: 0.95
A14: гости | B14: =ГостиГости!L2 -> 2 | C14: =ГостиГости!M2 -> 0 | D14: =ГостиГости!N2 -> В | F14: =B20 -> 3 | G14: =B14-C14 -> 2 | H14: =H15+G14 -> 14 | J14: =Гости!L2 -> 2 | K14: =Гости!M2 -> 0 | L14: =Гости!N2 -> В | M14: =Гости!I2 -> Гости | O14: =IF(M14="Дома",IF(L14="В",1,0),0) -> 0 | P14: =IF(M14="Дома",IF(L14="Н",1,0),0) -> 0 | Q14: =IF(M14="Дома",IF(L14="П",1,0),0) -> 0 | R14: =IF(M14="Дома",J14,0) -> 0 | S14: =IF(M14="Дома",K14,0) -> 0 | U14: =IF(M14="Гости",IF(L14="В",1,0),0) -> 1 | V14: =IF(M14="Гости",IF(L14="Н",1,0),0) -> 0 | W14: =IF(M14="Гости",IF(L14="П",1,0),0) -> 0 | X14: =IF(M14="Гости",J14,0) -> 2 | Y14: =IF(M14="Гости",K14,0) -> 0 | AQ14: =Гости!I2 -> Гости | AR14: =IF(OR(AQ14="Гости",AQ14="Дома"),1,0) -> 1 | AS14: =Гости!L2 -> 2 | AT14: =Гости!M2 -> 0 | AU14: =Гости!N2 -> В | AW14: =IF(AU14="","",IF((AS14+AT14)>2,"ТБ2.5","ТМ2.5")) -> ТМ2.5 | AY14: =IF(AU14="","",IF(AND(AS14>0,AT14>0),"BTS Y","BTS N")) -> BTS N | BC14: =BC7 -> 3.46 | BD14: =BD7 -> 4.27 | BE14: 1.83 | BF14: 5.64 | BG14: 1.05 | BH14: 2.82 | BI14: 1.4 | BJ14: 3.12 | BK14: 1.7 | BL14: 1.46 | BM14: 2.59 | BN14: 1.922222222 | BO14: 1.016666667 | BP14: =BP7 -> 1.392105263
B15: =ГостиГости!L3 -> 4 | C15: =ГостиГости!M3 -> 0 | D15: =ГостиГости!N3 -> В | F15: =B19 -> 1 | G15: =B15-C15 -> 4 | H15: =H16+G15 -> 12 | J15: =Гости!L3 -> 4 | K15: =Гости!M3 -> 0 | L15: =Гости!N3 -> В | M15: =Гости!I3 -> Гости | O15: =IF(M15="Дома",IF(L15="В",O14+1,O14+0),O14+0) -> 0 | P15: =IF(M15="Дома",IF(L15="Н",P14+1,P14+0),P14+0) -> 0 | Q15: =IF(M15="Дома",IF(L15="П",Q14+1,Q14+0),Q14+0) -> 0 | R15: =IF(M15="Дома",R14+J15,R14+0) -> 0 | S15: =IF(M15="Дома",S14+K15,S14+0) -> 0 | U15: =IF(M15="Гости",IF(L15="В",U14+1,U14+0),U14+0) -> 2 | V15: =IF(M15="Гости",IF(L15="Н",V14+1,V14+0),V14+0) -> 0 | W15: =IF(M15="Гости",IF(L15="П",W14+1,W14+0),W14+0) -> 0 | X15: =IF(M15="Гости",X14+J15,X14+0) -> 6 | Y15: =IF(M15="Гости",Y14+K15,Y14+0) -> 0 | AQ15: =Гости!I3 -> Гости | AR15: =IF(OR(AQ15="Гости",AQ15="Дома"),AR14+1,AR14) -> 2 | AS15: =Гости!L3 -> 4 | AT15: =Гости!M3 -> 0 | AU15: =Гости!N3 -> В | AW15: =IF(AU15="","",IF((AS15+AT15)>2,"ТБ2.5","ТМ2.5")) -> ТБ2.5 | AY15: =IF(AU15="","",IF(AND(AS15>0,AT15>0),"BTS Y","BTS N")) -> BTS N | BC15: =((1/BC14)+BC13)/2 -> 0.3945086705 | BD15: =((1/BD14)+BD13)/2 -> 0.1420960187 | BE15: =((1/BE14)+BE13)/2 -> 0.4982240437 | BF15: 0.08865248227 | BG15: 0.4761904762 | BH15: 0.3523049645 | BI15: 0.6821428571 | BJ15: 0.1602564103 | BK15: 0.2941176471 | BL15: 0.5424657534 | BM15: 0.4930501931 | BN15: 0.6601156069 | BO15: 0.6168032787 | BP15: 0.834168242
B16: =ГостиГости!L4 -> 2 | C16: =ГостиГости!M4 -> 2 | D16: =ГостиГости!N4 -> Н | F16: =B18 -> 2 | G16: 0 | H16: 8 | J16: =Гости!L4 -> 4 | K16: =Гости!M4 -> 0 | L16: =Гости!N4 -> В | M16: =Гости!I4 -> Дома | O16: =IF(M16="Дома",IF(L16="В",O15+1,O15+0),O15+0) -> 1 | P16: =IF(M16="Дома",IF(L16="Н",P15+1,P15+0),P15+0) -> 0 | Q16: =IF(M16="Дома",IF(L16="П",Q15+1,Q15+0),Q15+0) -> 0 | R16: =IF(M16="Дома",R15+J16,R15+0) -> 4 | S16: =IF(M16="Дома",S15+K16,S15+0) -> 0 | U16: =IF(M16="Гости",IF(L16="В",U15+1,U15+0),U15+0) -> 2 | V16: =IF(M16="Гости",IF(L16="Н",V15+1,V15+0),V15+0) -> 0 | W16: =IF(M16="Гости",IF(L16="П",W15+1,W15+0),W15+0) -> 0 | X16: =IF(M16="Гости",X15+J16,X15+0) -> 6 | Y16: =IF(M16="Гости",Y15+K16,Y15+0) -> 0 | AQ16: =Гости!I4 -> Дома | AR16: 3 | AS16: =Гости!L4 -> 4 | AT16: =Гости!M4 -> 0 | AU16: =Гости!N4 -> В | AW16: ТБ2.5 | AY16: BTS N | BA16: H2H | BB16: =MAX(AR50:AR59) -> 4 | BC16: =COUNTIF(AU50:AU59,"В") -> 0 | BD16: =COUNTIF(AU50:AU59,"Н") -> 2 | BE16: =COUNTIF(AU50:AU59,"П") -> 2 | BF16: =COUNTIF($AV50:$AY59,BF1) -> 0 | BG16: =COUNTIF($AV50:$AY59,BG1) -> 0 | BH16: 2 | BI16: 2 | BJ16: 0 | BK16: 0 | BL16: 3 | BM16: 1 | BN16: =BC16+BD16 -> 2 | BO16: =BD16+BE16 -> 4 | BP16: =BC16+BE16 -> 2
B17: =ГостиГости!L5 -> 1 | C17: =ГостиГости!M5 -> 2 | D17: =ГостиГости!N5 -> П | F17: =B17 -> 1 | G17: -1 | H17: 8 | J17: =Гости!L5 -> 5 | K17: =Гости!M5 -> 0 | L17: =Гости!N5 -> В | M17: =Гости!I5 -> Дома | O17: 2 | P17: 0 | Q17: 0 | R17: 9 | S17: 0 | U17: 2 | V17: 0 | W17: 0 | X17: 6 | Y17: 0 | AQ17: =Гости!I5 -> Дома | AR17: 4 | AS17: =Гости!L5 -> 5 | AT17: =Гости!M5 -> 0 | AU17: =Гости!N5 -> В | AW17: ТБ2.5 | AY17: BTS N | BB17: =BB16 -> 4 | BC17: =BE16 -> 2 | BD17: =BD16 -> 2 | BE17: =BC16 -> 0 | BF17: =BF16 -> 0 | BG17: =BG16 -> 0 | BH17: 2 | BI17: 2 | BJ17: 0 | BK17: 0 | BL17: 3 | BM17: 1 | BN17: =BC17+BD17 -> 4 | BO17: =BD17+BE17 -> 2 | BP17: =BC17+BE17 -> 2
B18: =ГостиГости!L6 -> 2 | C18: =ГостиГости!M6 -> 0 | D18: =ГостиГости!N6 -> В | F18: =B16 -> 2 | G18: 2 | H18: 9 | J18: =Гости!L6 -> 3 | K18: =Гости!M6 -> 2 | L18: =Гости!N6 -> В | M18: =Гости!I6 -> Дома | O18: 3 | P18: 0 | Q18: 0 | R18: 12 | S18: 2 | U18: 2 | V18: 0 | W18: 0 | X18: 6 | Y18: 0 | AQ18: =Гости!I6 -> Дома | AR18: 5 | AS18: =Гости!L6 -> 3 | AT18: =Гости!M6 -> 2 | AU18: =Гости!N6 -> В | AW18: ТБ2.5 | AY18: BTS Y | BC18: =IFERROR(BC16/$BB$16, "") -> 0 | BD18: =IFERROR(BD16/$BB$16, "") -> 0.5 | BE18: 0.5 | BF18: 0 | BG18: 0 | BH18: 0.5 | BI18: 0.5 | BJ18: 0 | BK18: 0 | BL18: 0.75 | BM18: 0.25 | BN18: 0.5 | BO18: 1 | BP18: 0.5
B19: =ГостиГости!L7 -> 1 | C19: =ГостиГости!M7 -> 0 | D19: =ГостиГости!N7 -> В | F19: =B15 -> 4 | G19: 1 | H19: 7 | J19: =Очные!AH2 -> 3 | K19: =Очные!AG2 -> 1 | L19: =Очные!M2 -> В | M19: =Очные!Z2 -> Гости | O19: 3 | P19: 0 | Q19: 0 | R19: 12 | S19: 2 | U19: 3 | V19: 0 | W19: 0 | X19: 9 | Y19: 1 | AQ19: =Гости!I7 -> Дома | AR19: 6 | AS19: =Гости!L7 -> 1 | AT19: =Гости!M7 -> 1 | AU19: =Гости!N7 -> Н | AW19: ТМ2.5 | AY19: BTS Y | BC19: =IFERROR(BC17/$BB$17, "") -> 0.5 | BD19: =IFERROR(BD17/$BB$17, "") -> 0.5 | BE19: 0 | BF19: 0 | BG19: 0 | BH19: 0.5 | BI19: 0.5 | BJ19: 0 | BK19: 0 | BL19: 0.75 | BM19: 0.25 | BN19: 1 | BO19: 0.5 | BP19: 0.5
B20: =ГостиГости!L8 -> 3 | C20: =ГостиГости!M8 -> 2 | D20: =ГостиГости!N8 -> В | F20: =B14 -> 2 | G20: 1 | H20: 6 | J20: =Очные!AH3 -> 1 | K20: =Очные!AG3 -> 1 | L20: =Очные!M3 -> Н | M20: =Очные!Z3 -> Гости | O20: 3 | P20: 0 | Q20: 0 | R20: 12 | S20: 2 | U20: 3 | V20: 1 | W20: 0 | X20: 10 | Y20: 2 | AQ20: =Гости!I8 -> Гости | AR20: 7 | AS20: =Гости!L8 -> 2 | AT20: =Гости!M8 -> 2 | AU20: =Гости!N8 -> Н | AW20: ТБ2.5 | AY20: BTS Y | BC20: =IFERROR((BC18+BE19)/2,"-") -> 0 | BD20: =IFERROR((BD18+BD19)/2,"-") -> 0.5 | BE20: =IFERROR((BE18+BC19)/2,"-") -> 0.5 | BF20: =IFERROR((BF18+BF19)/2,"-") -> 0 | BG20: 0 | BH20: 0.5 | BI20: 0.5 | BJ20: 0 | BK20: 0 | BL20: 0.75 | BM20: 0.25 | BN20: 0.75 | BO20: 0.75 | BP20: 0.5
B21: =ГостиГости!L9 -> 0 | C21: =ГостиГости!M9 -> 1 | D21: =ГостиГости!N9 -> П | G21: -1 | H21: 5 | J21: =Очные!AH4 -> 3 | K21: =Очные!AG4 -> 0 | L21: =Очные!M4 -> В | M21: =Очные!Z4 -> Дома | O21: 4 | P21: 0 | Q21: 0 | R21: 15 | S21: 2 | U21: 3 | V21: 1 | W21: 0 | X21: 10 | Y21: 2 | AQ21: =Гости!I9 -> Гости | AR21: 8 | AS21: =Гости!L9 -> 1 | AT21: =Гости!M9 -> 2 | AU21: =Гости!N9 -> П | AW21: ТБ2.5 | AY21: BTS Y | BC21: =BC14 -> 3.46 | BD21: =BD14 -> 4.27 | BE21: 1.83 | BF21: 5.64 | BG21: 1.05 | BH21: 2.82 | BI21: 1.4 | BJ21: 3.12 | BK21: 1.7 | BL21: 1.46 | BM21: 2.59 | BN21: 1.922222222 | BO21: 1.016666667 | BP21: =BP14 -> 1.392105263
B22: =ГостиГости!L10 -> 3 | C22: =ГостиГости!M10 -> 0 | D22: =ГостиГости!N10 -> В | G22: 3 | H22: =H23+G22 -> 6 | J22: =Очные!AH5 -> 1 | K22: =Очные!AG5 -> 1 | L22: =Очные!M5 -> Н | M22: =Очные!Z5 -> Гости | O22: 4 | P22: 0 | Q22: 0 | R22: 15 | S22: 2 | U22: 3 | V22: 2 | W22: 0 | X22: 11 | Y22: 3 | AQ22: =Гости!I10 -> Гости | AR22: 9 | AS22: =Гости!L10 -> 2 | AT22: =Гости!M10 -> 0 | AU22: =Гости!N10 -> В | AW22: ТМ2.5 | AY22: BTS N | BC22: =IFERROR(((1/BC21)+BC20)/2,"-") -> 0.1445086705 | BD22: =IFERROR(((1/BD21)+BD20)/2,"-") -> 0.3670960187 | BE22: 0.5232240437 | BF22: 0.08865248227 | BG22: 0.4761904762 | BH22: 0.4273049645 | BI22: 0.6071428571 | BJ22: 0.1602564103 | BK22: 0.2941176471 | BL22: 0.7174657534 | BM22: 0.3180501931 | BN22: 0.6351156069 | BO22: 0.8668032787 | BP22: 0.609168242
B23: =ГостиГости!L11 -> 4 | C23: =ГостиГости!M11 -> 1 | D23: =ГостиГости!N11 -> В | G23: 3 | H23: =G23 -> 3 | J23: =Очные!AH6 ->  | K23: =Очные!AG6 ->  | L23: =Очные!M6 ->  | M23: =Очные!Z6 ->  | O23: 4 | P23: 0 | Q23: 0 | R23: 15 | S23: 2 | U23: 3 | V23: 2 | W23: 0 | X23: 11 | Y23: 3 | AQ23: =Гости!I11 -> Дома | AR23: 10 | AS23: =Гости!L11 -> 4 | AT23: =Гости!M11 -> 2 | AU23: =Гости!N11 -> В | AW23: ТБ2.5 | AY23: BTS Y | BC23: 1 | BD23: X | BE23: 2 | BF23: ТМ1.5 | BG23: ТБ1.5 | BH23: ТМ2.5 | BI23: ТБ2.5 | BJ23: ТМ3.5 | BK23: ТБ3.5 | BL23: BTS Y | BM23: BTS N | BN23: 1X | BO23: X2 | BP23: 12
BC24: =LARGE(BC6:BE6,1) -> 0.55 | BD24: =HLOOKUP(BC24,$BC$6:$BE$23,18,0) -> 2 | BF24: =LARGE(BF6:BG6,1) -> 0.05 | BG24: =HLOOKUP(BF24,BF6:BG23,18,0) -> ТБ1.5 | BH24: =LARGE(BH6:BI6,1) -> 0.75 | BI24: =HLOOKUP(BH24,BH6:BI23,18,0) -> ТБ2.5 | BJ24: =LARGE(BJ6:BK6,1) -> 0.05 | BK24: =HLOOKUP(BJ24,BJ6:BK23,18,0) -> ТМ3.5 | BL24: =LARGE(BL6:BM6,1) -> 0.55 | BM24: =HLOOKUP(BL24,BL6:BM23,18,0) -> BTS N
A25: total | D25: =TREND(F26:F32,E2:E8,E9) -> 3.785714286 | N25: В | O25: Н | P25: П | Q25: З | R25: П | S25: О | U25: И | V25: В | W25: Н | X25: П | Y25: З | Z25: П | AA25: О | AC25: И | AD25: В | AE25: Н | AF25: П | AG25: З | AH25: П | AI25: О | AJ25: рейтинг | AM25: ср заб | BC25: =LARGE(BC8:BE8,1) -> 0.5482240437 | BD25: =HLOOKUP(BC25,$BC$8:$BE$23,16,0) -> 2 | BF25: =LARGE(BF8:BG8,1) -> 0.5011904762 | BG25: =HLOOKUP(BF25,BF8:BG23,16,0) -> ТБ1.5 | BH25: =LARGE(BH8:BI8,1) -> 0.7321428571 | BI25: =HLOOKUP(BH25,BH8:BI23,16,0) -> ТБ2.5 | BJ25: =LARGE(BJ8:BK8,1) -> 0.2941176471 | BK25: =HLOOKUP(BJ25,BJ8:BK23,16,0) -> ТБ3.5 | BL25: =LARGE(BL8:BM8,1) -> 0.5674657534 | BM25: =HLOOKUP(BL25,BL8:BM23,16,0) -> BTS Y
B26: =AVERAGE(B2:C2) -> 1 | C26: =AVERAGE(B14:C14) -> 1 | D26: =SUM(B26:C26) -> 2 | F26: =D32 -> 4.5 | J26: =A1 -> Cardiff U23 | M26: =SUM(AO42:AO69)/100 -> 0.2872707476 | N26: =COUNTIF(L2:L11,"В") -> 2 | O26: =COUNTIF(L2:L11,"Н") -> 2 | P26: =COUNTIF(L2:L11,"П") -> 5 | Q26: =SUM(J2:J11) -> 14 | R26: =SUM(K2:K11) -> 14 | S26: =N26*3+O26 -> 8 | U26: =COUNTIF(M2:M11,"Дома") -> 6 | V26: =MAX(O2:O11) -> 2 | W26: =MAX(P2:P11) -> 2 | X26: 2 | Y26: 13 | Z26: 8 | AA26: =V26*3+W26 -> 8 | AC26: =COUNTIF(M2:M11,"Гости") -> 3 | AD26: =MAX(U2:U11) -> 0 | AE26: =MAX(V2:V11) -> 0 | AF26: 3 | AG26: 1 | AH26: 6 | AI26: =AD26*3+AE26 -> 0 | AJ26: =(((AA26+AI26)*1.5+(Y26*1.5)+(Z26*1.5))-(AG26*1.5)-(AH26*1.5))/15 -> 2.2 | AK26: =Q26/10 -> 1.4 | AL26: =Y26/U26 -> 2.166666667 | AM26: =AVERAGE(AK26:AL26) -> 1.783333333 | AQ26: =ДомаДома!I2 -> Дома | AR26: =IF(OR(AQ26="Гости",AQ26="Дома"),1,0) -> 1 | AS26: =ДомаДома!L2 -> 0 | AT26: =ДомаДома!M2 -> 2 | AU26: =ДомаДома!N2 -> П | AW26: =IF(AU26="","",IF((AS26+AT26)>2,"ТБ2.5","ТМ2.5")) -> ТМ2.5 | AY26: =IF(AU26="","",IF(AND(AS26>0,AT26>0),"BTS Y","BTS N")) -> BTS N
B27: 3.5 | C27: =AVERAGE(B15:C15) -> 2 | D27: =SUM(B27:C27) -> 5.5 | F27: =D31 -> 3 | J27: =A13 -> Sheffield Utd U23 | M27: =SUM(AO73:AO100)/100 -> 0.5147210602 | N27: =COUNTIF(L14:L23,"В") -> 7 | O27: =COUNTIF(L14:L23,"Н") -> 2 | P27: =COUNTIF(L14:L23,"П") -> 0 | Q27: =SUM(J14:J23) -> 26 | R27: =SUM(K14:K23) -> 5 | S27: =N27*3+O27 -> 23 | U27: =COUNTIF(M14:M23,"Дома") -> 4 | V27: =MAX(O14:O23) -> 4 | W27: =MAX(P14:P23) -> 0 | X27: 0 | Y27: 15 | Z27: 2 | AA27: =V27*3+W27 -> 12 | AC27: =COUNTIF(M14:M23,"Гости") -> 5 | AD27: =MAX(U14:U23) -> 3 | AE27: =MAX(V14:V23) -> 2 | AF27: 0 | AG27: 11 | AH27: 3 | AI27: =AD27*3+AE27 -> 11 | AJ27: =(((AA27+AI27)*1.5+(Y27*1.5)+(Z27*1.5))-(AG27*1.5)-(AH27*1.5))/15 -> 2.6 | AK27: =Q27/10 -> 2.6 | AL27: =AG27/AC27 -> 2.2 | AM27: =AVERAGE(AK27:AL27) -> 2.4 | AQ27: =ДомаДома!I3 -> Дома | AR27: =IF(OR(AQ27="Гости",AQ27="Дома"),AR26+1,AR26) -> 2 | AS27: =ДомаДома!L3 -> 6 | AT27: =ДомаДома!M3 -> 1 | AU27: =ДомаДома!N3 -> В | AW27: =IF(AU27="","",IF((AS27+AT27)>2,"ТБ2.5","ТМ2.5")) -> ТБ2.5 | AY27: =IF(AU27="","",IF(AND(AS27>0,AT27>0),"BTS Y","BTS N")) -> BTS Y | BC27: =LARGE(BC13:BE13,1) -> 0.5 | BD27: =HLOOKUP(BC27,$BC$13:$BE$23,11,0) -> 1 | BF27: =LARGE(BF13:BG13,1) -> 0 | BG27: =HLOOKUP(BF27,BF13:BG23,11,0) -> ТМ1.5 | BH27: =LARGE(BH13:BI13,1) -> 0.65 | BI27: =HLOOKUP(BH27,BH13:BI23,11,0) -> ТБ2.5 | BJ27: =LARGE(BJ13:BK13,1) -> 0 | BK27: =HLOOKUP(BJ27,BJ13:BK23,11,0) -> ТМ3.5 | BL27: =LARGE(BL13:BM13,1) -> 0.6 | BM27: =HLOOKUP(BL27,BL13:BM23,11,0) -> BTS N
B28: 2 | C28: 2 | D28: 4 | F28: =D30 -> 2.5 | K28: =MAX(N2:N11) -> 9 | L28: DR | M28: =SUM(AO104:AO110)/100 -> 0.1941266906 | AQ28: =ДомаДома!I4 -> Дома | AR28: 3 | AS28: =ДомаДома!L4 -> 4 | AT28: =ДомаДома!M4 -> 0 | AU28: =ДомаДома!N4 -> В | AW28: ТБ2.5 | AY28: BTS N | BC28: =LARGE(BC15:BE15,1) -> 0.4982240437 | BD28: =HLOOKUP(BC28,$BC$15:$BE$23,9,0) -> 2 | BF28: =LARGE(BF15:BG15,1) -> 0.4761904762 | BG28: =HLOOKUP(BF28,BF15:BG23,9,0) -> ТБ1.5 | BH28: =LARGE(BH15:BI15,1) -> 0.6821428571 | BI28: =HLOOKUP(BH28,BH15:BI23,9,0) -> ТБ2.5 | BJ28: =LARGE(BJ15:BK15,1) -> 0.2941176471 | BK28: =HLOOKUP(BJ28,BJ15:BK23,9,0) -> ТБ3.5 | BL28: =LARGE(BL15:BM15,1) -> 0.5424657534 | BM28: =HLOOKUP(BL28,BL15:BM23,9,0) -> BTS Y
B29: 4.5 | C29: 1.5 | D29: 6 | F29: =D29 -> 6 | AL29: хоз | AM29: гости | AQ29: =ДомаДома!I5 -> Дома | AR29: 4 | AS29: =ДомаДома!L5 -> 4 | AT29: =ДомаДома!M5 -> 5 | AU29: =ДомаДома!N5 -> П | AW29: ТБ2.5 | AY29: BTS Y
B30: 1.5 | C30: 1 | D30: 2.5 | F30: =D28 -> 4 | M30: =AVERAGE(N30:O30) -> 0.1769230769 | N30: =V26/U26/(V26/U26+W26/U26+AD27/AC27+AE27/AC27) -> 0.2 | O30: =N26/K28/(N26/K28+O26/K28+N27/K28+O27/K28) -> 0.1538461538 | AK30: 0 | AL30: =POISSON(AK30,$AM$26,FALSE)*100 -> 16.80769559 | AM30: =POISSON(AK30,$AM$27,FALSE)*100 -> 9.071795329 | AN30: 0 | AQ30: =ДомаДома!I6 -> Дома | AR30: 5 | AS30: =ДомаДома!L6 -> 3 | AT30: =ДомаДома!M6 -> 0 | AU30: =ДомаДома!N6 -> В | AW30: ТБ2.5 | AY30: BTS N | BC30: =LARGE(BC20:BE20,1) -> 0.5 | BD30: =HLOOKUP(BC30,$BC$20:$BE$23,4,0) -> X | BF30: =LARGE(BF20:BG20,1) -> 0 | BG30: =HLOOKUP(BF30,BF20:BG23,4,0) -> ТМ1.5 | BH30: =LARGE(BH20:BI20,1) -> 0.5 | BI30: =HLOOKUP(BH30,BH20:BI23,4,0) -> ТМ2.5 | BJ30: =LARGE(BJ20:BK20,1) -> 0 | BK30: =HLOOKUP(BJ30,BJ20:BK23,4,0) -> ТМ3.5 | BL30: =LARGE(BL20:BM20,1) -> 0.75 | BM30: =HLOOKUP(BL30,BL20:BM23,4,0) -> BTS Y
B31: 2.5 | C31: 0.5 | D31: 3 | F31: =D27 -> 5.5 | M31: =AVERAGE(N31:O31) -> 0.3738461538 | N31: =(W26/U26+AE27/AC27)/(V26/U26+W26/U26+AD27/AC27+AE27/AC27) -> 0.44 | O31: =(O26/K28+O27/K28)/(N26/K28+O26/K28+N27/K28+O27/K28) -> 0.3076923077 | AK31: 1 | AL31: =POISSON(AK31,$AM$26,FALSE)*100 -> 29.97372381 | AM31: =POISSON(AK31,$AM$27,FALSE)*100 -> 21.77230879 | AN31: 1 | AQ31: =ДомаДома!I7 -> Дома | AR31: 6 | AS31: =ДомаДома!L7 -> 4 | AT31: =ДомаДома!M7 -> 1 | AU31: =ДомаДома!N7 -> В | AW31: ТБ2.5 | AY31: BTS Y | BC31: =LARGE(BC22:BE22,1) -> 0.5232240437 | BD31: =HLOOKUP(BC31,$BC$22:$BE$23,2,0) -> 2 | BF31: =LARGE(BF22:BG22,1) -> 0.4761904762 | BG31: =HLOOKUP(BF31,BF22:BG23,2,0) -> ТБ1.5 | BH31: =LARGE(BH22:BI22,1) -> 0.6071428571 | BI31: =HLOOKUP(BH31,BH22:BI23,2,0) -> ТБ2.5 | BJ31: =LARGE(BJ22:BK22,1) -> 0.2941176471 | BK31: =HLOOKUP(BJ31,BJ22:BK23,2,0) -> ТБ3.5 | BL31: =LARGE(BL22:BM22,1) -> 0.7174657534 | BM31: =HLOOKUP(BL31,BL22:BM23,2,0) -> BTS Y
B32: 2 | C32: 2.5 | D32: 4.5 | F32: =D26 -> 2 | M32: 0.4492307692 | N32: =AD27/AC27/(V26/U26+W26/U26+AD27/AC27+AE27/AC27) -> 0.36 | O32: =N27/K28/(N26/K28+O26/K28+N27/K28+O27/K28) -> 0.5384615385 | AK32: 2 | AL32: 26.7265704 | AM32: 26.12677055 | AN32: 2 | AQ32: =ДомаДома!I8 -> Дома | AR32: 7 | AS32: =ДомаДома!L8 -> 4 | AT32: =ДомаДома!M8 -> 0 | AU32: =ДомаДома!N8 -> В | AW32: ТБ2.5 | AY32: BTS N
B33: 1.5 | C33: 0.5 | D33: 2 | AK33: 3 | AL33: 15.88746129 | AM33: 20.90141644 | AN33: 3 | AQ33: =ДомаДома!I9 -> Дома | AR33: 8 | AS33: =ДомаДома!L9 -> 2 | AT33: =ДомаДома!M9 -> 1 | AU33: =ДомаДома!N9 -> В | AW33: ТБ2.5 | AY33: BTS Y | BC33: 1 | BD33: X | BE33: 2 | BF33: ТМ1.5 | BG33: ТБ1.5 | BH33: ТМ2.5 | BI33: ТБ2.5 | BJ33: ТМ3.5 | BK33: ТБ3.5 | BL33: BTS Y | BM33: BTS N | BN33: 1X | BO33: X2 | BP33: 12
B34: 0.5 | C34: 1.5 | D34: 2 | AK34: 4 | AL34: 7.083159826 | AM34: 12.54084986 | AN34: 4 | AQ34: =ДомаДома!I10 -> Дома | AR34: 9 | AS34: =ДомаДома!L10 -> 1 | AT34: =ДомаДома!M10 -> 0 | AU34: =ДомаДома!N10 -> В | AW34: ТМ2.5 | AY34: BTS N | BC34: =COUNTIF($BD$24:$BD$31,BC33) -> 1 | BD34: =COUNTIF($BD$24:$BM$31,BD33) -> 1 | BE34: =COUNTIF($BD$24:$BD$31,BE33) -> 4 | BF34: =COUNTIF($BD$24:$BM$31,BF33) -> 2 | BG34: =COUNTIF($BD$24:$BM$31,BG33) -> 4 | BH34: 1 | BI34: 5 | BJ34: 3 | BK34: 3 | BL34: 4 | BM34: 2
B35: 1 | C35: 2.5 | D35: 3.5 | AK35: 5 | AL35: 2.526327005 | AM35: 6.019607934 | AN35: 5 | AQ35: =ДомаДома!I11 -> Дома | AR35: 10 | AS35: =ДомаДома!L11 -> 2 | AT35: =ДомаДома!M11 -> 0 | AU35: =ДомаДома!N11 -> В | AW35: ТМ2.5 | AY35: BTS N | BC35: П1 | BD35: X | BE35: П2 | BF35: ТМ1.5 | BG35: ТБ1.5 | BH35: ТМ2.5 | BI35: ТБ2.5 | BJ35: ТМ3.5 | BK35: ТБ3.5 | BL35: BTS Y | BM35: BTS N
AK36: 6 | AL36: 0.7508805264 | AM36: 2.407843174 | AN36: 6 | BD36: =LARGE(BC34:BE34,1) -> 4 | BG36: =LARGE(BF34:BG34,1) -> 4 | BI36: =LARGE(BH34:BI34,1) -> 5 | BK36: =LARGE(BJ34:BK34,1) -> 3 | BM36: =LARGE(BL34:BM34,1) -> 4
AK37: 7 | AL37: 0.1912957531 | AM37: 0.825546231 | AN37: 7 | BD37: =HLOOKUP(BD36,BC34:BE35,2,0) -> П2 | BG37: =HLOOKUP(BG36,BF34:BG35,2,0) -> ТБ1.5 | BI37: =HLOOKUP(BI36,BH34:BI35,2,0) -> ТБ2.5 | BK37: =HLOOKUP(BK36,BJ34:BK35,2,0) -> ТМ3.5 | BM37: =HLOOKUP(BM36,BL34:BM35,2,0) -> BTS Y
AK38: =MATCH(AL38,AL30:AL37,0) -> 2 | AL38: =MAX(AL30:AL37) -> 29.97372381 | AM38: =MAX(AM30:AM37) -> 26.12677055 | AN38: =MATCH(AM38,AM30:AM37,0) -> 3 | AQ38: =ГостиГости!I2 -> Гости | AR38: =IF(OR(AQ38="Гости",AQ38="Дома"),1,0) -> 1 | AS38: =ГостиГости!L2 -> 2 | AT38: =ГостиГости!M2 -> 0 | AU38: =ГостиГости!N2 -> В | AW38: =IF(AU38="","",IF((AS38+AT38)>2,"ТБ2.5","ТМ2.5")) -> ТМ2.5 | AY38: =IF(AU38="","",IF(AND(AS38>0,AT38>0),"BTS Y","BTS N")) -> BTS N | BD38: =IF(COUNTIF(BC24:BC31,50%)>0,"NO","") -> NO | BG38: =IF(COUNTIF(BF24:BF31,50%)>0,"NO","") ->  | BI38: =IF(COUNTIF(BH24:BH31,50%)>0,"NO","") -> NO | BK38: =IF(COUNTIF(BJ24:BJ31,50%)>0,"NO","") ->  | BM38: =IF(COUNTIF(BL24:BL31,50%)>0,"NO","") -> 
AQ39: =ГостиГости!I3 -> Гости | AR39: =IF(OR(AQ39="Гости",AQ39="Дома"),AR38+1,AR38) -> 2 | AS39: =ГостиГости!L3 -> 4 | AT39: =ГостиГости!M3 -> 0 | AU39: =ГостиГости!N3 -> В | AW39: =IF(AU39="","",IF((AS39+AT39)>2,"ТБ2.5","ТМ2.5")) -> ТБ2.5 | AY39: =IF(AU39="","",IF(AND(AS39>0,AT39>0),"BTS Y","BTS N")) -> BTS N | BD39: =IF(BC22="-",IF(BD38="",IF(BD36>=4,BD37,"-"),""),IF(BD38="",IF(BD36>=5,BD37,"-"),"")) ->  | BG39: =IF(BF22="-",IF(BG38="",IF(BG36>=4,BG37,"-"),""),IF(BG38="",IF(BG36>=5,BG37,"-"),"")) -> - | BI39: =IF(BH22="-",IF(BI38="",IF(BI36>=4,BI37,"-"),""),IF(BI38="",IF(BI36>=5,BI37,"-"),"")) ->  | BK39: =IF(BJ22="-",IF(BK38="",IF(BK36>=4,BK37,"-"),""),IF(BK38="",IF(BK36>=5,BK37,"-"),"")) -> - | BM39: =IF(BL22="-",IF(BM38="",IF(BM36>=4,BM37,"-"),""),IF(BM38="",IF(BM36>=5,BM37,"-"),"")) -> -
AK40: хоз | AQ40: =ГостиГости!I4 -> Гости | AR40: 3 | AS40: =ГостиГости!L4 -> 2 | AT40: =ГостиГости!M4 -> 2 | AU40: =ГостиГости!N4 -> Н | AW40: ТБ2.5 | AY40: BTS Y
AM41: H | AN41: A | AO41: EXP | AQ41: =ГостиГости!I5 -> Гости | AR41: 4 | AS41: =ГостиГости!L5 -> 1 | AT41: =ГостиГости!M5 -> 2 | AU41: =ГостиГости!N5 -> П | AW41: ТБ2.5 | AY41: BTS Y
AK42: 7 | AL42: 0 | AM42: =VLOOKUP(AK42,$AK$30:$AM$37,2) -> 0.1912957531 | AN42: =VLOOKUP(AL42,$AK$30:$AM$37,3) -> 9.071795329 | AO42: =(AM42*AN42)/100 -> 0.0173539592 | AQ42: =ГостиГости!I6 -> Гости | AR42: 5 | AS42: =ГостиГости!L6 -> 2 | AT42: =ГостиГости!M6 -> 0 | AU42: =ГостиГости!N6 -> В | AW42: ТМ2.5 | AY42: BTS N | BC42: ЕСЛИ(СЧЁТЕСЛИ(BC24:BC31;50%)>0;"NO";"")
AK43: 7 | AL43: 1 | AM43: =VLOOKUP(AK43,$AK$30:$AM$37,2) -> 0.1912957531 | AN43: =VLOOKUP(AL43,$AK$30:$AM$37,3) -> 21.77230879 | AO43: 0.04164950208 | AQ43: =ГостиГости!I7 -> Гости | AR43: 6 | AS43: =ГостиГости!L7 -> 1 | AT43: =ГостиГости!M7 -> 0 | AU43: =ГостиГости!N7 -> В | AW43: ТМ2.5 | AY43: BTS N
AK44: 7 | AL44: 2 | AM44: 0.1912957531 | AN44: 26.12677055 | AO44: 0.04997940249 | AQ44: =ГостиГости!I8 -> Гости | AR44: 7 | AS44: =ГостиГости!L8 -> 3 | AT44: =ГостиГости!M8 -> 2 | AU44: =ГостиГости!N8 -> В | AW44: ТБ2.5 | AY44: BTS Y
AK45: 7 | AL45: 3 | AM45: 0.1912957531 | AN45: 20.90141644 | AO45: 0.03998352199 | AQ45: =ГостиГости!I9 -> Гости | AR45: 8 | AS45: =ГостиГости!L9 -> 0 | AT45: =ГостиГости!M9 -> 1 | AU45: =ГостиГости!N9 -> П | AW45: ТМ2.5 | AY45: BTS N
AK46: 7 | AL46: 4 | AM46: 0.1912957531 | AN46: 12.54084986 | AO46: 0.0239901132 | AQ46: =ГостиГости!I10 -> Гости | AR46: 9 | AS46: =ГостиГости!L10 -> 3 | AT46: =ГостиГости!M10 -> 0 | AU46: =ГостиГости!N10 -> В | AW46: ТБ2.5 | AY46: BTS N
AK47: 7 | AL47: 5 | AM47: 0.1912957531 | AN47: 6.019607934 | AO47: 0.01151525433 | AQ47: =ГостиГости!I11 -> Гости | AR47: 10 | AS47: =ГостиГости!L11 -> 4 | AT47: =ГостиГости!M11 -> 1 | AU47: =ГостиГости!N11 -> В | AW47: ТБ2.5 | AY47: BTS Y
AK48: 7 | AL48: 6 | AM48: 0.1912957531 | AN48: 2.407843174 | AO48: 0.004606101734
AK49: 6 | AL49: 0 | AM49: 0.7508805264 | AN49: 9.071795329 | AO49: 0.06811834452
AK50: 6 | AL50: 1 | AM50: 0.7508805264 | AN50: 21.77230879 | AO50: 0.1634840268 | AQ50: =Очные!S2 -> Дома | AR50: =IF(OR(AQ50="Гости",AQ50="Дома"),1,0) -> 1 | AS50: =Очные!AG2 -> 1 | AT50: =Очные!AH2 -> 3 | AU50: =Очные!G2 -> П | AW50: =IF(AU50="","",IF((AS50+AT50)>2,"ТБ2.5","ТМ2.5")) -> ТБ2.5 | AY50: =IF(AU50="","",IF(AND(AS50>0,AT50>0),"BTS Y","BTS N")) -> BTS Y
AK51: 6 | AL51: 2 | AM51: 0.7508805264 | AN51: 26.12677055 | AO51: 0.1961808322 | AQ51: =Очные!S3 -> Дома | AR51: =IF(OR(AQ51="Гости",AQ51="Дома"),AR50+1,AR50) -> 2 | AS51: =Очные!AG3 -> 1 | AT51: =Очные!AH3 -> 1 | AU51: =Очные!G3 -> Н | AW51: =IF(AU51="","",IF((AS51+AT51)>2,"ТБ2.5","ТМ2.5")) -> ТМ2.5 | AY51: =IF(AU51="","",IF(AND(AS51>0,AT51>0),"BTS Y","BTS N")) -> BTS Y
AK52: 6 | AL52: 3 | AM52: 0.7508805264 | AN52: 20.90141644 | AO52: 0.1569446658 | AQ52: =Очные!S4 -> Гости | AR52: =IF(OR(AQ52="Гости",AQ52="Дома"),AR51+1,AR51) -> 3 | AS52: =Очные!AG4 -> 0 | AT52: =Очные!AH4 -> 3 | AU52: =Очные!G4 -> П | AW52: ТБ2.5 | AY52: BTS N
AK53: 6 | AL53: 4 | AM53: 0.7508805264 | AN53: 12.54084986 | AO53: 0.09416679946 | AQ53: =Очные!S5 -> Дома | AR53: 4 | AS53: =Очные!AG5 -> 1 | AT53: =Очные!AH5 -> 1 | AU53: =Очные!G5 -> Н | AW53: ТМ2.5 | AY53: BTS Y
AK54: 6 | AL54: 5 | AM54: 0.7508805264 | AN54: 6.019607934 | AO54: 0.04520006374 | AQ54: =Очные!S6 ->  | AR54: 4 | AS54: =Очные!AG6 ->  | AT54: =Очные!AH6 ->  | AU54: =Очные!G6 -> 
AK55: 5 | AL55: 0 | AM55: 2.526327005 | AN55: 9.071795329 | AO55: 0.2291832152 | AQ55: =Очные!S7 ->  | AR55: 4 | AS55: =Очные!AG7 ->  | AT55: =Очные!AH7 ->  | AU55: =Очные!G7 -> 
AK56: 5 | AL56: 1 | AM56: 2.526327005 | AN56: 21.77230879 | AO56: 0.5500397165 | AQ56: =Очные!S8 ->  | AR56: 4 | AS56: =Очные!AG8 ->  | AT56: =Очные!AH8 ->  | AU56: =Очные!G8 -> 
AK57: 5 | AL57: 2 | AM57: 2.526327005 | AN57: 26.12677055 | AO57: 0.6600476598 | AQ57: =Очные!S9 ->  | AR57: 4 | AS57: =Очные!AG9 ->  | AT57: =Очные!AH9 ->  | AU57: =Очные!G9 -> 
AK58: 5 | AL58: 3 | AM58: 2.526327005 | AN58: 20.90141644 | AO58: 0.5280381278 | AQ58: =Очные!S10 ->  | AR58: 4 | AS58: =Очные!AG10 ->  | AT58: =Очные!AH10 ->  | AU58: =Очные!G10 -> 
AK59: 5 | AL59: 4 | AM59: 2.526327005 | AN59: 12.54084986 | AO59: 0.3168228767 | AQ59: =Очные!S11 ->  | AR59: 4 | AS59: =Очные!AG11 ->  | AT59: =Очные!AH11 ->  | AU59: =Очные!G11 -> 
AK60: 4 | AL60: 0 | AM60: 7.083159826 | AN60: 9.071795329 | AO60: 0.6425697622
AK61: 4 | AL61: 1 | AM61: 7.083159826 | AN61: 21.77230879 | AO61: 1.542167429
AK62: 4 | AL62: 2 | AM62: 7.083159826 | AN62: 26.12677055 | AO62: 1.850600915
AK63: 4 | AL63: 3 | AM63: 7.083159826 | AN63: 20.90141644 | AO63: 1.480480732
AK64: 3 | AL64: 0 | AM64: 15.88746129 | AN64: 9.071795329 | AO64: 1.441277971
AK65: 3 | AL65: 1 | AM65: 15.88746129 | AN65: 21.77230879 | AO65: 3.459067131
AK66: 3 | AL66: 2 | AM66: 15.88746129 | AN66: 26.12677055 | AO66: 4.150880558
AK67: 2 | AL67: 0 | AM67: 26.7265704 | AN67: 9.071795329 | AO67: 2.424579765
AK68: 2 | AL68: 1 | AM68: 26.7265704 | AN68: 21.77230879 | AO68: 5.818991436
AK69: 1 | AL69: 0 | AM69: 29.97372381 | AN69: 9.071795329 | AO69: 2.719154877
AK71: гости
AK73: 0 | AL73: 7 | AM73: =VLOOKUP(AK73,$AK$30:$AM$37,2) -> 16.80769559 | AN73: =VLOOKUP(AL73,$AK$30:$AM$37,3) -> 0.825546231 | AO73: =(AM73*AN73)/100 -> 0.1387552975
AK74: 1 | AL74: 7 | AM74: =VLOOKUP(AK74,$AK$30:$AM$37,2) -> 29.97372381 | AN74: =VLOOKUP(AL74,$AK$30:$AM$37,3) -> 0.825546231 | AO74: 0.2474469472
AK75: 2 | AL75: 7 | AM75: 26.7265704 | AN75: 0.825546231 | AO75: 0.2206401946
AK76: 3 | AL76: 7 | AM76: 15.88746129 | AN76: 0.825546231 | AO76: 0.1311583379
AK77: 4 | AL77: 7 | AM77: 7.083159826 | AN77: 0.825546231 | AO77: 0.05847475898
AK78: 5 | AL78: 7 | AM78: 2.526327005 | AN78: 0.825546231 | AO78: 0.02085599737
AK79: 6 | AL79: 7 | AM79: 0.7508805264 | AN79: 0.825546231 | AO79: 0.006198865885
AK80: 0 | AL80: 6 | AM80: 16.80769559 | AN80: 2.407843174 | AO80: 0.404702951
AK81: 1 | AL81: 6 | AM81: 29.97372381 | AN81: 2.407843174 | AO81: 0.7217202627
AK82: 2 | AL82: 6 | AM82: 26.7265704 | AN82: 2.407843174 | AO82: 0.6435339009
AK83: 3 | AL83: 6 | AM83: 15.88746129 | AN83: 2.407843174 | AO83: 0.3825451522
AK84: 4 | AL84: 6 | AM84: 7.083159826 | AN84: 2.407843174 | AO84: 0.1705513804
AK85: 5 | AL85: 6 | AM85: 2.526327005 | AN85: 2.407843174 | AO85: 0.06082999233
AK86: 0 | AL86: 5 | AM86: 16.80769559 | AN86: 6.019607934 | AO86: 1.011757378
AK87: 1 | AL87: 5 | AM87: 29.97372381 | AN87: 6.019607934 | AO87: 1.804300657
AK88: 2 | AL88: 5 | AM88: 26.7265704 | AN88: 6.019607934 | AO88: 1.608834752
AK89: 3 | AL89: 5 | AM89: 15.88746129 | AN89: 6.019607934 | AO89: 0.9563628805
AK90: 4 | AL90: 5 | AM90: 7.083159826 | AN90: 6.019607934 | AO90: 0.4263784509
AK91: 0 | AL91: 4 | AM91: 16.80769559 | AN91: 12.54084986 | AO91: 2.10782787
AK92: 1 | AL92: 4 | AM92: 29.97372381 | AN92: 12.54084986 | AO92: 3.758959701
AK93: 2 | AL93: 4 | AM93: 26.7265704 | AN93: 12.54084986 | AO93: 3.351739067
AK94: 3 | AL94: 4 | AM94: 15.88746129 | AN94: 12.54084986 | AO94: 1.992422668
AK95: 0 | AL95: 3 | AM95: 16.80769559 | AN95: 20.90141644 | AO95: 3.51304645
AK96: 1 | AL96: 3 | AM96: 29.97372381 | AN96: 20.90141644 | AO96: 6.264932836
AK97: 2 | AL97: 3 | AM97: 26.7265704 | AN97: 20.90141644 | AO97: 5.586231778
AK98: 0 | AL98: 2 | AM98: 16.80769559 | AN98: 26.12677055 | AO98: 4.391308062
AK99: 1 | AL99: 2 | AM99: 29.97372381 | AN99: 26.12677055 | AO99: 7.831166045
AK100: 0 | AL100: 1 | AM100: 16.80769559 | AN100: 21.77230879 | AO100: 3.659423385
AK102: ничья
AK104: 0 | AL104: 0 | AM104: =VLOOKUP(AK104,$AK$30:$AM$37,2) -> 16.80769559 | AN104: =VLOOKUP(AL104,$AK$30:$AM$37,3) -> 9.071795329 | AO104: =(AM104*AN104)/100 -> 1.524759744
AK105: 1 | AL105: 1 | AM105: =VLOOKUP(AK105,$AK$30:$AM$37,2) -> 29.97372381 | AN105: =VLOOKUP(AL105,$AK$30:$AM$37,3) -> 21.77230879 | AO105: 6.525971704
AK106: 2 | AL106: 2 | AM106: 26.7265704 | AN106: 26.12677055 | AO106: 6.982789723
AK107: 3 | AL107: 3 | AM107: 15.88746129 | AN107: 20.90141644 | AO107: 3.320704446
AK108: 4 | AL108: 4 | AM108: 7.083159826 | AN108: 12.54084986 | AO108: 0.8882884393
AK109: 5 | AL109: 5 | AM109: 2.526327005 | AN109: 6.019607934 | AO109: 0.1520749808
AK110: 6 | AL110: 6 | AM110: 0.7508805264 | AN110: 2.407843174 | AO110: 0.0180800255

Sheet Архив
A1: Дата | B1: Лига | C1: ХОЗЯЕВА | D1: ГОСТИ | E1: matchID | F1: 1 | G1: X | H1: 2 | I1: 1 | J1: X | K1: 2 | L1: 1 | M1: X | N1: 2 | O1: 1 | P1: X | Q1: 2 | R1: 1 | S1: X | T1: 2 | U1: 1 | V1: X | W1: 2 | X1: 1 | Y1: X | Z1: 2 | AA1: 1 | AB1: X | AC1: 2 | AD1: 1 | AE1: X | AF1: 2 | AG1: 1 | AH1: X | AI1: 2 | AJ1: NTB | AK1: R | AL1: total | AM1: BTS | AN1: П1 | AO1: Х | AP1: П2 | AQ1: ТМ2,5 | AR1: ТБ2,5 | AS1: ОЗДа | AT1: ОЗНет | AU1: Счет | AV1: Ставка | AW1: +/- | AX1: + | AY1: =BE1/BC1 ->  | AZ1: - | BA1: =BF1/BC1 ->  | BB1: Прогнозов =>>> | BC1: =BE1+BF1 -> 0 | BE1: =COUNTIF(AW$2:AW$1048576,"+") -> 0 | BF1: =COUNTIF(AW$2:AW$1048576,"-") -> 0
A2: 20.05.20 21:00 | B2: БЕЛАРУСЬ: Высшая лига | C2: Динамо Брест | D2: БАТЭ | E2: j34VoLMB | F2: 0.351789272 | G2: -0.03230076628 | H2: 0.6805114943 | I2: 0.3370563272 | J2: 0.03271604938 | K2: 0.6302276235 | L2: 0.325308642 | M2: 0.02716049383 | N2: 0.6475308642 | O2: 0.1948795544 | P2: 0.2210539621 | Q2: 0.5840664834 | R2: 0.2944017096 | S2: 0.06134981735 | T2: 0.6442484731 | U2: 0.511627907 | V2: -0.6589147287 | W2: 1.147286822 | X2: 0.3666666667 | Y2: 0.06666666667 | Z2: 0.5666666667 | AA2: 0.2841743937 | AB2: 0.1709216972 | AC2: 0.5449039091 | AD2: 0.1955809741 | AE2: 0.1836320977 | AF2: 0.6166963427 | AG2: 0.2756410256 | AH2: 0.2435897436 | AI2: 0.4807692308 | AJ2: П2 | AK2: - | AL2: - | AM2: - | AN2: 3.4 | AO2: 3.8 | AP2: 1.95 | AQ2: 2.2 | AR2: 1.65 | AS2: 1.61 | AT2: 2.2
A3: 04.10.20 14:00 | B3: FINLAND: Kakkonen Group C | C3: Hercules | D3: JJK Jyvaskyla | E3: rHkk2tvK | F3: 0.4701098901 | G3: 0.2265567766 | H3: 0.3033333333 | I3: 0.5883864978 | J3: 0.04904354904 | K3: 0.3625699532 | L3: 0.6031746032 | M3: 0.03174603175 | N3: 0.3650793651 | O3: 0.4443910131 | P3: 0.2446845503 | Q3: 0.3109244366 | R3: 0.597690689 | S3: 0.02575863857 | T3: 0.3765506725 | U3: 0.6197183099 | V3: 0.08450704225 | W3: 0.2957746479 | X3: 0.6388888889 | Y3: 0.05555555556 | Z3: 0.3055555556 | AA3: 0.5270932803 | AB3: 0.1518059161 | AC3: 0.3211008036 | AD3: 0.3826687187 | AE3: 0.3864837936 | AF3: 0.2308453099 | AG3: 0.8 | AH3: 0 | AI3: 0.2 | AJ3: П1 | AL3: ТБ2.5 | AM3: BTS Y | AN3: 2 | AO3: 3.75 | AP3: 2.87 | AQ3: 2.4 | AR3: 1.53 | AS3: 1.5 | AT3: 2.5
A4: 04.10.20 14:00 | B4: FRANCE: Ligue 1 | C4: Montpellier | D4: Nimes | E4: 250Ie2Zs | F4: 0.6833333333 | G4: 0.2033333333 | H4: 0.1133333333 | I4: 0.6601851852 | J4: 0.2657407407 | K4: 0.07407407407 | L4: 0.5444444444 | M4: 0.3111111111 | N4: 0.1444444444 | O4: 0.4716209197 | P4: 0.2220106846 | Q4: 0.3063683957 | R4: 0.7232479853 | S4: 0.169233908 | T4: 0.1075181067 | U4: 1.04 | V4: -0.328 | W4: 0.288 | X4: 0.9333333333 | Y4: 0.1333333333 | Z4: -0.06666666667 | AA4: 0.5317686741 | AB4: 0.2506107347 | AC4: 0.2176205913 | AD4: 0.67604324 | AE4: 0.1926632491 | AF4: 0.1297309837 | AG4: 0.4761904762 | AH4: 0.4523809524 | AI4: 0.07142857143 | AJ4: П1 | AL4: - | AN4: 1.7 | AO4: 3.8 | AP4: 5 | AQ4: 2.05 | AR4: 1.8 | AS4: 1.75 | AT4: 2
A5: 04.10.20 14:00 | B5: RUSSIA: PFL - Group 4 | C5: Ulyanovsk | D5: Dynamo Barnaul | E5: GzNHnIVF | F5: 0.8632142857 | G5: -0.2476587302 | H5: 0.3844444444 | I5: 0.7383184524 | J5: -0.03783068783 | K5: 0.2995122354 | L5: 0.7185185185 | M5: -0.08148148148 | N5: 0.362962963 | O5: 0.6372519111 | P5: 0.2230307106 | Q5: 0.1397173783 | R5: 0.7772561204 | S5: 0.02359125488 | T5: 0.1991526248 | U5: 0.5666666667 | V5: 0.03333333333 | W5: 0.4 | X5: 0.8333333333 | Y5: -0.1666666667 | Z5: 0.3333333333 | AA5: 0.6024807388 | AB5: 0.1675726502 | AC5: 0.229946611 | AD5: 0.4900468169 | AE5: 0.3614881954 | AF5: 0.1484564205 | AG5: 0.7142857143 | AH5: 0.07142857143 | AI5: 0.2142857143 | AJ5: П1 | AM5: BTS N | AN5: 1.52 | AO5: 3.88 | AP5: 5.85 | AQ5: 1.73 | AR5: 2.1 | AS5: 2.03 | AT5: 1.7

Sheet Дома (hidden)
A1: Чемпионат | B1: Дата/Время | C1: Дома | D1: Гости | E1: К1 в 1Т | F1: К2 в 1Т | G1: К1 во 2Т | H1: К2 во 2Т | I1: Где играли | J1: К1 Голов | K1: К2 Голов | L1: Забито | M1: Пропущено | N1: Результат | O1: Всего Игр | P1: Всего выиграно | Q1: Всего ничьих | R1: Всего проиграно | S1: Всего забито | T1: Всего пропущено | U1: Всего очков | V1: Дома игр | W1: Дома выиграно | X1: Дома ничьих | Y1: Дома проиграно | Z1: Дома забито | AA1: Дома пропущено | AB1: Дома очков | AC1: Гости игр | AD1: Гости выиграно | AE1: Гости ничьих | AF1: Гости проиграно | AG1: Гости забито | AH1: Гости пропущено | AI1: Гости очков | AJ1: Тотал
A2: ENGLAND: Professional Development League | B2: 2021.04.13 15:00 | C2: Cardiff U23 | D2: Sheffield Utd U23 | E2: 0 | F2: 0 | G2: 0 | H2: 2 | I2: Дома | J2: =IF(I2="","",E2+G2) -> 0 | K2: =IF(I2="","",F2+H2) -> 2 | L2: =IF(I2="","",IF(I2="Дома",J2,K2)) -> 0 | M2: =IF(I2="","",IF(I2="Дома",K2,J2)) -> 2 | N2: =IF(I2="","",IF(I2="Дома",IF(J2>K2,"В",IF(J2=K2,"Н","П")),IF(J2<K2,"В",IF(J2=K2,"Н","П")))) -> П | O2: =IF(I2="","",1) -> 1 | P2: =IF(I2="","",IF(N2="В",1,0)) -> 0 | Q2: =IF(I2="","",IF(N2="Н",1,0)) -> 0 | R2: =IF(I2="","",IF(N2="П",1,0)) -> 1 | S2: =IF(I2="","",L2) -> 0 | T2: =IF(I2="","",M2) -> 2 | U2: =IF(I2="","",P2*3+Q2) -> 0 | V2: =IF(I2="","",IF(I2="Дома",1,0)) -> 1 | W2: =IF(I2="","",IF(I2="Дома",IF(N2="В",1,0),0)) -> 0 | X2: =IF(I2="","",IF(I2="Дома",IF(N2="Н",1,0),0)) -> 0 | Y2: =IF(I2="","",IF(I2="Дома",IF(N2="П",1,0),0)) -> 1 | Z2: =IF(I2="","",IF(I2="Дома",L2,0)) -> 0 | AA2: =IF(I2="","",IF(I2="Дома",M2,0)) -> 2 | AB2: =IF(I2="","",IF(I2="Дома",W2*3+X2,0)) -> 0 | AC2: =IF(I2="","",IF(I2="Гости",1,0)) -> 0 | AD2: =IF(I2="","",IF(I2="Гости",IF(N2="В",1,0),0)) -> 0 | AE2: =IF(I2="","",IF(I2="Гости",IF(N2="Н",1,0),0)) -> 0 | AF2: =IF(I2="","",IF(I2="Гости",IF(N2="П",1,0),0)) -> 0 | AG2: =IF(I2="","",IF(I2="Гости",L2,0)) -> 0 | AH2: =IF(I2="","",IF(I2="Гости",M2,0)) -> 0 | AI2: =IF(I2="","",IF(I2="Гости",AD2*3+AE2,0)) -> 0 | AJ2: =IF(I2="Дома",L2+M2,"") -> 2
A3: ENGLAND: Professional Development League | B3: 2021.03.30 15:00 | C3: Cardiff U23 | D3: Wigan U23 | E3: 4 | F3: 0 | G3: 2 | H3: 1 | I3: Дома | J3: =IF(I3="","",E3+G3) -> 6 | K3: =IF(I3="","",F3+H3) -> 1 | L3: =IF(I3="","",IF(I3="Дома",J3,K3)) -> 6 | M3: =IF(I3="","",IF(I3="Дома",K3,J3)) -> 1 | N3: =IF(I3="","",IF(I3="Дома",IF(J3>K3,"В",IF(J3=K3,"Н","П")),IF(J3<K3,"В",IF(J3=K3,"Н","П")))) -> В | O3: =IF(I3="","",O2+1) -> 2 | P3: =IF(I3="","",IF(N3="В",P2+1,P2)) -> 1 | Q3: =IF(I3="","",IF(N3="Н",Q2+1,Q2)) -> 0 | R3: =IF(I3="","",IF(N3="П",R2+1,R2)) -> 1 | S3: =IF(I3="","",S2+L3) -> 6 | T3: =IF(I3="","",T2+M3) -> 3 | U3: =IF(I3="","",P3*3+Q3) -> 3 | V3: =IF(I3="","",IF(I3="Дома",V2+1,V2+0)) -> 2 | W3: =IF(I3="","",IF(I3="Дома",IF(N3="В",W2+1,W2),W2)) -> 1 | X3: =IF(I3="","",IF(I3="Дома",IF(N3="Н",X2+1,X2),X2)) -> 0 | Y3: =IF(I3="","",IF(I3="Дома",IF(N3="П",Y2+1,Y2),Y2)) -> 1 | Z3: =IF(I3="","",IF(I3="Дома",L3+Z2,Z2)) -> 6 | AA3: =IF(I3="","",IF(I3="Дома",M3+AA2,AA2)) -> 3 | AB3: =IF(I3="","",IF(I3="Дома",W3*3+X3,AB2)) -> 3 | AC3: =IF(I3="","",IF(I3="Гости",AC2+1,AC2+0)) -> 0 | AD3: =IF(I3="","",IF(I3="Гости",IF(N3="В",AD2+1,AD2),AD2)) -> 0 | AE3: =IF(I3="","",IF(I3="Гости",IF(N3="Н",AE2+1,AE2),AE2)) -> 0 | AF3: =IF(I3="","",IF(I3="Гости",IF(N3="П",AF2+1,AF2),AF2)) -> 0 | AG3: =IF(I3="","",IF(I3="Гости",L3+AG2,AG2)) -> 0 | AH3: =IF(I3="","",IF(I3="Гости",M3+AH2,AH2)) -> 0 | AI3: =IF(I3="","",IF(I3="Гости",AD3*3+AE3,AI2)) -> 0 | AJ3: =IF(I3="Дома",L3+M3,"") -> 7
A4: ENGLAND: Professional Development League | B4: 2021.03.22 22:00 | C4: Birmingham U23 | D4: Cardiff U23 | E4: 1 | F4: 0 | G4: 1 | H4: 1 | I4: Гости | J4: 2 | K4: 1 | L4: 1 | M4: 2 | N4: П | O4: 3 | P4: =IF(I4="","",IF(N4="В",P3+1,P3)) -> 1 | Q4: =IF(I4="","",IF(N4="Н",Q3+1,Q3)) -> 0 | R4: =IF(I4="","",IF(N4="П",R3+1,R3)) -> 2 | S4: =IF(I4="","",S3+L4) -> 7 | T4: =IF(I4="","",T3+M4) -> 5 | U4: 3 | V4: =IF(I4="","",IF(I4="Дома",V3+1,V3+0)) -> 2 | W4: =IF(I4="","",IF(I4="Дома",IF(N4="В",W3+1,W3),W3)) -> 1 | X4: =IF(I4="","",IF(I4="Дома",IF(N4="Н",X3+1,X3),X3)) -> 0 | Y4: =IF(I4="","",IF(I4="Дома",IF(N4="П",Y3+1,Y3),Y3)) -> 1 | Z4: =IF(I4="","",IF(I4="Дома",L4+Z3,Z3)) -> 6 | AA4: =IF(I4="","",IF(I4="Дома",M4+AA3,AA3)) -> 3 | AB4: =IF(I4="","",IF(I4="Дома",W4*3+X4,AB3)) -> 3 | AC4: =IF(I4="","",IF(I4="Гости",AC3+1,AC3+0)) -> 1 | AD4: =IF(I4="","",IF(I4="Гости",IF(N4="В",AD3+1,AD3),AD3)) -> 0 | AE4: =IF(I4="","",IF(I4="Гости",IF(N4="Н",AE3+1,AE3),AE3)) -> 0 | AF4: =IF(I4="","",IF(I4="Гости",IF(N4="П",AF3+1,AF3),AF3)) -> 1 | AG4: =IF(I4="","",IF(I4="Гости",L4+AG3,AG3)) -> 1 | AH4: =IF(I4="","",IF(I4="Гости",M4+AH3,AH3)) -> 2 | AI4: =IF(I4="","",IF(I4="Гости",AD4*3+AE4,AI3)) -> 0
A5: ENGLAND: Professional Development League | B5: 2021.03.16 17:00 | C5: QPR U23 | D5: Cardiff U23 | E5: 0 | F5: 0 | G5: 1 | H5: 0 | I5: Гости | J5: 1 | K5: 0 | L5: 0 | M5: 1 | N5: П | O5: 4 | P5: 1 | Q5: 0 | R5: 3 | S5: 7 | T5: 6 | U5: 3 | V5: 2 | W5: 1 | X5: 0 | Y5: 1 | Z5: 6 | AA5: 3 | AB5: 3 | AC5: 2 | AD5: 0 | AE5: 0 | AF5: 2 | AG5: 1 | AH5: 3 | AI5: 0
A6: ENGLAND: Professional Development League | B6: 2021.03.09 16:00 | C6: Cardiff U23 | D6: Watford U23 | E6: 2 | F6: 0 | G6: 2 | H6: 0 | I6: Дома | J6: 4 | K6: 0 | L6: 4 | M6: 0 | N6: В | O6: 5 | P6: 2 | Q6: 0 | R6: 3 | S6: 11 | T6: 6 | U6: 6 | V6: 3 | W6: 2 | X6: 0 | Y6: 1 | Z6: 10 | AA6: 3 | AB6: 6 | AC6: 2 | AD6: 0 | AE6: 0 | AF6: 2 | AG6: 1 | AH6: 3 | AI6: 0 | AJ6: 4
A7: ENGLAND: Professional Development League | B7: 2021.03.01 17:00 | C7: Cardiff U23 | D7: Charlton U23 | E7: 1 | F7: 4 | G7: 3 | H7: 1 | I7: Дома | J7: 4 | K7: 5 | L7: 4 | M7: 5 | N7: П | O7: 6 | P7: 2 | Q7: 0 | R7: 4 | S7: 15 | T7: 11 | U7: 6 | V7: 4 | W7: 2 | X7: 0 | Y7: 2 | Z7: 14 | AA7: 8 | AB7: 6 | AC7: 2 | AD7: 0 | AE7: 0 | AF7: 2 | AG7: 1 | AH7: 3 | AI7: 0 | AJ7: 9
A8: ENGLAND: Professional Development League | B8: 2021.02.23 16:00 | C8: Bristol City U23 | D8: Cardiff U23 | E8: 0 | F8: 3 | G8: 0 | H8: 0 | I8: Гости | J8: 0 | K8: 3 | L8: 3 | M8: 0 | N8: В | O8: 7 | P8: 3 | Q8: 0 | R8: 4 | S8: 18 | T8: 11 | U8: 9 | V8: 4 | W8: 2 | X8: 0 | Y8: 2 | Z8: 14 | AA8: 8 | AB8: 6 | AC8: 3 | AD8: 1 | AE8: 0 | AF8: 2 | AG8: 4 | AH8: 3 | AI8: 3
A9: ENGLAND: Professional Development League | B9: 2021.02.16 16:00 | C9: Cardiff U23 | D9: Millwall U23 | E9: 2 | F9: 0 | G9: 1 | H9: 0 | I9: Дома | J9: 3 | K9: 0 | L9: 3 | M9: 0 | N9: =IF(I9="","",IF(I9="Дома",IF(J9>K9,"В",IF(J9=K9,"Н","П")),IF(J9<K9,"В",IF(J9=K9,"Н","П")))) -> В | O9: 8 | P9: 4 | Q9: 0 | R9: 4 | S9: 21 | T9: 11 | U9: 12 | V9: 5 | W9: 3 | X9: 0 | Y9: 2 | Z9: 17 | AA9: 8 | AB9: 9 | AC9: 3 | AD9: 1 | AE9: 0 | AF9: 2 | AG9: 4 | AH9: 3 | AI9: 3 | AJ9: 3
A10: ENGLAND: Professional Development League | B10: 2021.02.09 16:00 | C10: Cardiff U23 | D10: Colchester U23 | E10: 3 | F10: 0 | G10: 1 | H10: 1 | I10: Дома | J10: 4 | K10: 1 | L10: 4 | M10: 1 | N10: =IF(I10="","",IF(I10="Дома",IF(J10>K10,"В",IF(J10=K10,"Н","П")),IF(J10<K10,"В",IF(J10=K10,"Н","П")))) -> В | O10: 9 | P10: 5 | Q10: 0 | R10: 4 | S10: 25 | T10: 12 | U10: 15 | V10: 6 | W10: 4 | X10: 0 | Y10: 2 | Z10: 21 | AA10: 9 | AB10: 12 | AC10: 3 | AD10: 1 | AE10: 0 | AF10: 2 | AG10: 4 | AH10: 3 | AI10: 3 | AJ10: 5
A11: ENGLAND: Professional Development League | B11: 2021.02.02 16:00 | C11: Cardiff U23 | D11: Ipswich U23 | E11: 2 | F11: 0 | G11: 2 | H11: 0 | I11: Дома | J11: 4 | K11: 0 | L11: 4 | M11: 0 | N11: В | O11: 10 | P11: 6 | Q11: 0 | R11: 4 | S11: 29 | T11: 12 | U11: 18 | V11: 7 | W11: 5 | X11: 0 | Y11: 2 | Z11: 25 | AA11: 9 | AB11: 15 | AC11: 3 | AD11: 1 | AE11: 0 | AF11: 2 | AG11: 4 | AH11: 3 | AI11: 3 | AJ11: 4
A12: ENGLAND: Professional Development League | B12: 2021.01.19 16:00 | C12: Cardiff U23 | D12: Swansea U23 | E12: 0 | F12: 1 | G12: 2 | H12: 0 | I12: Дома | J12: 2 | K12: 1 | L12: 2 | M12: 1 | N12: В | O12: 11 | P12: 7 | Q12: 0 | R12: 4 | S12: 31 | T12: 13 | U12: =IF(I12="","",P12*3+Q12) -> 21 | V12: 8 | W12: 6 | X12: 0 | Y12: 2 | Z12: 27 | AA12: 10 | AB12: 18 | AC12: 3 | AD12: 1 | AE12: 0 | AF12: 2 | AG12: 4 | AH12: 3 | AI12: 3 | AJ12: 3
A13: ENGLAND: Professional Development League | B13: 2021.01.11 16:00 | C13: Charlton U23 | D13: Cardiff U23 | E13: 0 | F13: 0 | G13: 4 | H13: 0 | I13: Гости | J13: 4 | K13: 0 | L13: 0 | M13: 4 | N13: П | O13: 12 | P13: 7 | Q13: 0 | R13: 5 | S13: 31 | T13: 17 | U13: 21 | V13: 8 | W13: 6 | X13: 0 | Y13: 2 | Z13: 27 | AA13: 10 | AB13: 18 | AC13: 4 | AD13: 1 | AE13: 0 | AF13: 3 | AG13: 4 | AH13: 7 | AI13: 3
A14: ENGLAND: Professional Development League | B14: 2020.12.22 16:00 | C14: Cardiff U23 | D14: QPR U23 | E14: 0 | F14: 0 | G14: 1 | H14: 0 | I14: Дома | J14: 1 | K14: 0 | L14: 1 | M14: 0 | N14: В | O14: 13 | P14: 8 | Q14: 0 | R14: 5 | S14: 32 | T14: 17 | U14: 24 | V14: 9 | W14: 7 | X14: 0 | Y14: 2 | Z14: 28 | AA14: 10 | AB14: 21 | AC14: 4 | AD14: 1 | AE14: 0 | AF14: 3 | AG14: 4 | AH14: 7 | AI14: 3 | AJ14: 1
A15: ENGLAND: Professional Development League | B15: 2020.12.15 16:00 | C15: Watford U23 | D15: Cardiff U23 | E15: 2 | F15: 1 | G15: 0 | H15: 1 | I15: Гости | J15: 2 | K15: 2 | L15: 2 | M15: 2 | N15: Н | O15: 14 | P15: 8 | Q15: 1 | R15: 5 | S15: 34 | T15: 19 | U15: 25 | V15: 9 | W15: 7 | X15: 0 | Y15: 2 | Z15: 28 | AA15: 10 | AB15: 21 | AC15: 5 | AD15: 1 | AE15: 1 | AF15: 3 | AG15: 6 | AH15: 9 | AI15: 4
A16: ENGLAND: Professional Development League | B16: 2020.11.28 14:00 | C16: Colchester U23 | D16: Cardiff U23 | E16: 0 | F16: 0 | G16: 2 | H16: 0 | I16: Гости | J16: 2 | K16: 0 | L16: 0 | M16: 2 | N16: П | O16: 15 | P16: 8 | Q16: 1 | R16: 6 | S16: 34 | T16: 21 | U16: 25 | V16: 9 | W16: 7 | X16: 0 | Y16: 2 | Z16: 28 | AA16: 10 | AB16: 21 | AC16: 6 | AD16: 1 | AE16: 1 | AF16: 4 | AG16: 6 | AH16: 11 | AI16: 4
A17: ENGLAND: Professional Development League | B17: 2020.11.25 14:00 | C17: Millwall U23 | D17: Cardiff U23 | E17: 1 | F17: 0 | G17: 1 | H17: 0 | I17: Гости | J17: 2 | K17: 0 | L17: 0 | M17: 2 | N17: П | O17: 16 | P17: 8 | Q17: 1 | R17: 7 | S17: 34 | T17: 23 | U17: 25 | V17: 9 | W17: 7 | X17: 0 | Y17: 2 | Z17: 28 | AA17: 10 | AB17: 21 | AC17: 7 | AD17: 1 | AE17: 1 | AF17: 5 | AG17: 6 | AH17: 13 | AI17: 4
A18: ENGLAND: Professional Development League | B18: 2020.11.01 16:30 | C18: Crewe U23 | D18: Cardiff U23 | E18: 0 | F18: 0 | G18: 1 | H18: 0 | I18: Гости | J18: 1 | K18: 0 | L18: 0 | M18: 1 | N18: П | O18: 17 | P18: 8 | Q18: 1 | R18: 8 | S18: 34 | T18: 24 | U18: 25 | V18: 9 | W18: 7 | X18: 0 | Y18: 2 | Z18: 28 | AA18: 10 | AB18: 21 | AC18: 8 | AD18: 1 | AE18: 1 | AF18: 6 | AG18: 6 | AH18: 14 | AI18: 4
A19: ENGLAND: Professional Development League | B19: 2020.10.27 16:00 | C19: Cardiff U23 | D19: Hull U23 | E19: 1 | F19: 0 | G19: 1 | H19: 0 | I19: Дома | J19: 2 | K19: 0 | L19: 2 | M19: 0 | N19: В | O19: 18 | P19: 9 | Q19: 1 | R19: 8 | S19: 36 | T19: 24 | U19: 28 | V19: 10 | W19: 8 | X19: 0 | Y19: 2 | Z19: 30 | AA19: 10 | AB19: 24 | AC19: 8 | AD19: 1 | AE19: 1 | AF19: 6 | AG19: 6 | AH19: 14 | AI19: 4 | AJ19: 2
A20: ENGLAND: Professional Development League | B20: 2020.10.20 16:00 | C20: Sheffield Wed U23 | D20: Cardiff U23 | E20: 0 | F20: 0 | G20: 1 | H20: 0 | I20: Гости | J20: 1 | K20: 0 | L20: 0 | M20: 1 | N20: П | O20: 19 | P20: 9 | Q20: 1 | R20: 9 | S20: 36 | T20: 25 | U20: 28 | V20: 10 | W20: 8 | X20: 0 | Y20: 2 | Z20: 30 | AA20: 10 | AB20: 24 | AC20: 9 | AD20: 1 | AE20: 1 | AF20: 7 | AG20: 6 | AH20: 15 | AI20: 4
A21: ENGLAND: Professional Development League | B21: 2020.10.06 15:00 | C21: Ipswich U23 | D21: Cardiff U23 | E21: 1 | F21: 1 | G21: 1 | H21: 0 | I21: Гости | J21: 2 | K21: 1 | L21: 1 | M21: 2 | N21: П | O21: 20 | P21: 9 | Q21: 1 | R21: 10 | S21: 37 | T21: 27 | U21: 28 | V21: 10 | W21: 8 | X21: 0 | Y21: 2 | Z21: 30 | AA21: 10 | AB21: 24 | AC21: 10 | AD21: 1 | AE21: 1 | AF21: 8 | AG21: 7 | AH21: 17 | AI21: 4
A22: ENGLAND: Professional Development League | B22: 2020.09.22 15:00 | C22: Cardiff U23 | D22: Bristol City U23 | E22: 0 | F22: 1 | G22: 1 | H22: 1 | I22: Дома | J22: 1 | K22: 2 | L22: 1 | M22: 2 | N22: П | O22: 21 | P22: 9 | Q22: 1 | R22: 11 | S22: 38 | T22: 29 | U22: 28 | V22: 11 | W22: 8 | X22: 0 | Y22: 3 | Z22: 31 | AA22: 12 | AB22: 24 | AC22: 10 | AD22: 1 | AE22: 1 | AF22: 8 | AG22: 7 | AH22: 17 | AI22: 4 | AJ22: 3
A23: ENGLAND: Professional Development League | B23: 2020.09.14 15:00 | C23: Swansea U23 | D23: Cardiff U23 | E23: 3 | F23: 0 | G23: 2 | H23: 1 | I23: Гости | J23: 5 | K23: 1 | L23: 1 | M23: 5 | N23: П | O23: 22 | P23: 9 | Q23: 1 | R23: 12 | S23: 39 | T23: 34 | U23: 28 | V23: 11 | W23: 8 | X23: 0 | Y23: 3 | Z23: 31 | AA23: 12 | AB23: 24 | AC23: 11 | AD23: 1 | AE23: 1 | AF23: 9 | AG23: 8 | AH23: 22 | AI23: 4
A24: ENGLAND: Professional Development League | B24: 2020.03.12 17:00 | C24: Charlton U23 | D24: Cardiff U23 | E24: 1 | F24: 0 | G24: 1 | H24: 1 | I24: Гости | J24: 2 | K24: 1 | L24: 1 | M24: 2 | N24: П | O24: 23 | P24: 9 | Q24: 1 | R24: 13 | S24: 40 | T24: 36 | U24: 28 | V24: 11 | W24: 8 | X24: 0 | Y24: 3 | Z24: 31 | AA24: 12 | AB24: 24 | AC24: 12 | AD24: 1 | AE24: 1 | AF24: 10 | AG24: 9 | AH24: 24 | AI24: 4
A25: ENGLAND: Professional Development League | B25: 2020.03.09 16:00 | C25: Cardiff U23 | D25: Ipswich U23 | E25: 0 | F25: 1 | G25: 1 | H25: 0 | I25: Дома | J25: 1 | K25: 1 | L25: 1 | M25: 1 | N25: Н | O25: 24 | P25: 9 | Q25: 2 | R25: 13 | S25: 41 | T25: 37 | U25: 29 | V25: 12 | W25: 8 | X25: 1 | Y25: 3 | Z25: 32 | AA25: 13 | AB25: 25 | AC25: 12 | AD25: 1 | AE25: 1 | AF25: 10 | AG25: 9 | AH25: 24 | AI25: 4 | AJ25: 2
A26: ENGLAND: Professional Development League | B26: 2020.03.02 16:00 | C26: Cardiff U23 | D26: Watford U23 | E26: 2 | F26: 0 | G26: 1 | H26: 1 | I26: Дома | J26: 3 | K26: 1 | L26: 3 | M26: 1 | N26: В | O26: 25 | P26: 10 | Q26: 2 | R26: 13 | S26: 44 | T26: 38 | U26: 32 | V26: 13 | W26: 9 | X26: 1 | Y26: 3 | Z26: 35 | AA26: 14 | AB26: 28 | AC26: 12 | AD26: 1 | AE26: 1 | AF26: 10 | AG26: 9 | AH26: 24 | AI26: 4 | AJ26: 4
A27: ENGLAND: Professional Development League | B27: 2020.02.11 22:00 | C27: Cardiff U23 | D27: Bristol City U23 | E27: 1 | F27: 1 | G27: 2 | H27: 1 | I27: Дома | J27: 3 | K27: 2 | L27: 3 | M27: 2 | N27: В | O27: 26 | P27: 11 | Q27: 2 | R27: 13 | S27: 47 | T27: 40 | U27: 35 | V27: 14 | W27: 10 | X27: 1 | Y27: 3 | Z27: 38 | AA27: 16 | AB27: 31 | AC27: 12 | AD27: 1 | AE27: 1 | AF27: 10 | AG27: 9 | AH27: 24 | AI27: 4 | AJ27: 5
A28: ENGLAND: Professional Development League | B28: 2020.02.03 17:00 | C28: Millwall U23 | D28: Cardiff U23 | E28: 1 | F28: 0 | G28: 2 | H28: 0 | I28: Гости | J28: 3 | K28: 0 | L28: 0 | M28: 3 | N28: П | O28: 27 | P28: 11 | Q28: 2 | R28: 14 | S28: 47 | T28: 43 | U28: 35 | V28: 14 | W28: 10 | X28: 1 | Y28: 3 | Z28: 38 | AA28: 16 | AB28: 31 | AC28: 13 | AD28: 1 | AE28: 1 | AF28: 11 | AG28: 9 | AH28: 27 | AI28: 4
A29: ENGLAND: Professional Development League | B29: 2020.01.29 16:00 | C29: Crystal Palace U23 | D29: Cardiff U23 | E29: 1 | F29: 0 | G29: 1 | H29: 3 | I29: Гости | J29: 2 | K29: 3 | L29: 3 | M29: 2 | N29: В | O29: 28 | P29: 12 | Q29: 2 | R29: 14 | S29: 50 | T29: 45 | U29: 38 | V29: 14 | W29: 10 | X29: 1 | Y29: 3 | Z29: 38 | AA29: 16 | AB29: 31 | AC29: 14 | AD29: 2 | AE29: 1 | AF29: 11 | AG29: 12 | AH29: 29 | AI29: 7
A30: ENGLAND: Professional Development League | B30: 2020.01.20 16:00 | C30: Coventry U23 | D30: Cardiff U23 | E30: 0 | F30: 0 | G30: 1 | H30: 1 | I30: Гости | J30: 1 | K30: 1 | L30: 1 | M30: 1 | N30: Н | O30: 29 | P30: 12 | Q30: 3 | R30: 14 | S30: 51 | T30: 46 | U30: 39 | V30: 14 | W30: 10 | X30: 1 | Y30: 3 | Z30: 38 | AA30: 16 | AB30: 31 | AC30: 15 | AD30: 2 | AE30: 2 | AF30: 11 | AG30: 13 | AH30: 30 | AI30: 8
A31: ENGLAND: Professional Development League | B31: 2020.01.13 16:00 | C31: Cardiff U23 | D31: Colchester U23 | E31: 2 | F31: 0 | G31: 0 | H31: 1 | I31: Дома | J31: 2 | K31: 1 | L31: 2 | M31: 1 | N31: В | O31: 30 | P31: 13 | Q31: 3 | R31: 14 | S31: 53 | T31: 47 | U31: 42 | V31: 15 | W31: 11 | X31: 1 | Y31: 3 | Z31: 40 | AA31: 17 | AB31: 34 | AC31: 15 | AD31: 2 | AE31: 2 | AF31: 11 | AG31: 13 | AH31: 30 | AI31: 8 | AJ31: 3
A32: ENGLAND: Professional Development League | B32: 2020.01.06 16:00 | C32: Cardiff U23 | D32: Coventry U23 | E32: 0 | F32: 0 | G32: 0 | H32: 1 | I32: Дома | J32: 0 | K32: 1 | L32: 0 | M32: 1 | N32: П | O32: 31 | P32: 13 | Q32: 3 | R32: 15 | S32: 53 | T32: 48 | U32: 42 | V32: 16 | W32: 11 | X32: 1 | Y32: 4 | Z32: 40 | AA32: 18 | AB32: 34 | AC32: 15 | AD32: 2 | AE32: 2 | AF32: 11 | AG32: 13 | AH32: 30 | AI32: 8 | AJ32: 1
A33: ENGLAND: Professional Development League | B33: 2019.12.16 16:00 | C33: QPR U23 | D33: Cardiff U23 | E33: 3 | F33: 0 | G33: 1 | H33: 1 | I33: Гости | J33: 4 | K33: 1 | L33: 1 | M33: 4 | N33: П | O33: 32 | P33: 13 | Q33: 3 | R33: 16 | S33: 54 | T33: 52 | U33: 42 | V33: 16 | W33: 11 | X33: 1 | Y33: 4 | Z33: 40 | AA33: 18 | AB33: 34 | AC33: 16 | AD33: 2 | AE33: 2 | AF33: 12 | AG33: 14 | AH33: 34 | AI33: 8
A34: ENGLAND: Professional Development League | B34: 2019.12.09 16:00 | C34: Watford U23 | D34: Cardiff U23 | E34: 0 | F34: 1 | G34: 1 | H34: 0 | I34: Гости | J34: 1 | K34: 1 | L34: 1 | M34: 1 | N34: Н | O34: 33 | P34: 13 | Q34: 4 | R34: 16 | S34: 55 | T34: 53 | U34: 43 | V34: 16 | W34: 11 | X34: 1 | Y34: 4 | Z34: 40 | AA34: 18 | AB34: 34 | AC34: 17 | AD34: 2 | AE34: 3 | AF34: 12 | AG34: 15 | AH34: 35 | AI34: 9
A35: ENGLAND: Professional Development League | B35: 2019.11.25 16:00 | C35: Cardiff U23 | D35: Charlton U23 | E35: 0 | F35: 0 | G35: 0 | H35: 0 | I35: Дома | J35: 0 | K35: 0 | L35: 0 | M35: 0 | N35: Н | O35: =IF(I35="","",O34+1) -> 34 | P35: 13 | Q35: 5 | R35: 16 | S35: 55 | T35: 53 | U35: 44 | V35: 17 | W35: 11 | X35: 2 | Y35: 4 | Z35: 40 | AA35: 18 | AB35: 35 | AC35: 17 | AD35: 2 | AE35: 3 | AF35: 12 | AG35: 15 | AH35: 35 | AI35: 9 | AJ35: 0
A36: ENGLAND: Professional Development League | B36: 2019.11.11 16:00 | C36: Bristol City U23 | D36: Cardiff U23 | E36: 2 | F36: 1 | G36: 0 | H36: 1 | I36: Гости | J36: 2 | K36: 2 | L36: 2 | M36: 2 | N36: Н | O36: 35 | P36: 13 | Q36: 6 | R36: 16 | S36: 57 | T36: 55 | U36: 45 | V36: 17 | W36: 11 | X36: 2 | Y36: 4 | Z36: 40 | AA36: 18 | AB36: 35 | AC36: 18 | AD36: 2 | AE36: 4 | AF36: 12 | AG36: 17 | AH36: 37 | AI36: 10
A37: ENGLAND: Professional Development League | B37: 2019.11.04 16:00 | C37: Cardiff U23 | D37: Birmingham U23 | E37: 0 | F37: 1 | G37: 0 | H37: 0 | I37: Дома | J37: 0 | K37: 1 | L37: 0 | M37: 1 | N37: П | O37: 36 | P37: 13 | Q37: 6 | R37: 17 | S37: 57 | T37: 56 | U37: 45 | V37: 18 | W37: 11 | X37: 2 | Y37: 5 | Z37: 40 | AA37: 19 | AB37: 35 | AC37: 18 | AD37: 2 | AE37: 4 | AF37: 12 | AG37: 17 | AH37: 37 | AI37: 10 | AJ37: 1
A38: ENGLAND: Professional Development League | B38: 2019.10.28 22:00 | C38: Cardiff U23 | D38: Crystal Palace U23 | E38: 1 | F38: 0 | G38: 2 | H38: 0 | I38: Дома | J38: 3 | K38: 0 | L38: 3 | M38: 0 | N38: В | O38: 37 | P38: 14 | Q38: 6 | R38: 17 | S38: 60 | T38: 56 | U38: 48 | V38: 19 | W38: 12 | X38: 2 | Y38: 5 | Z38: 43 | AA38: 19 | AB38: 38 | AC38: 18 | AD38: 2 | AE38: 4 | AF38: 12 | AG38: 17 | AH38: 37 | AI38: 10 | AJ38: 3
A39: ENGLAND: Professional Development League | B39: 2019.10.21 15:00 | C39: Colchester U23 | D39: Cardiff U23 | E39: 0 | F39: 0 | G39: 0 | H39: 2 | I39: Гости | J39: 0 | K39: 2 | L39: 2 | M39: 0 | N39: В | O39: 38 | P39: 15 | Q39: 6 | R39: 17 | S39: 62 | T39: 56 | U39: 51 | V39: 19 | W39: 12 | X39: 2 | Y39: 5 | Z39: 43 | AA39: 19 | AB39: 38 | AC39: 19 | AD39: 3 | AE39: 4 | AF39: 12 | AG39: 19 | AH39: 37 | AI39: 13
A40: ENGLAND: Professional Development League | B40: 2019.10.14 15:00 | C40: Ipswich U23 | D40: Cardiff U23 | E40: 2 | F40: 0 | G40: 1 | H40: 1 | I40: Гости | J40: 3 | K40: 1 | L40: 1 | M40: 3 | N40: П | O40: 39 | P40: 15 | Q40: 6 | R40: 18 | S40: 63 | T40: 59 | U40: 51 | V40: 19 | W40: 12 | X40: 2 | Y40: 5 | Z40: 43 | AA40: 19 | AB40: 38 | AC40: 20 | AD40: 3 | AE40: 4 | AF40: 13 | AG40: 20 | AH40: 40 | AI40: 13
A41: ENGLAND: Professional Development League | B41: 2019.10.07 15:00 | C41: Cardiff U23 | D41: Millwall U23 | E41: 0 | F41: 0 | G41: 2 | H41: 1 | I41: Дома | J41: 2 | K41: 1 | L41: 2 | M41: 1 | N41: В | O41: 40 | P41: 16 | Q41: 6 | R41: 18 | S41: 65 | T41: 60 | U41: 54 | V41: 20 | W41: 13 | X41: 2 | Y41: 5 | Z41: 45 | AA41: 20 | AB41: 41 | AC41: 20 | AD41: 3 | AE41: 4 | AF41: 13 | AG41: 20 | AH41: 40 | AI41: 13 | AJ41: 3
J67: =IF(I67="","",E67+G67) ->  | K67: =IF(I67="","",F67+H67) ->  | L67: =IF(I67="","",IF(I67="Дома",J67,K67)) ->  | M67: =IF(I67="","",IF(I67="Дома",K67,J67)) ->  | O67: =IF(I67="","",O66+1) ->  | U67: =IF(I67="","",P67*3+Q67) ->  | AJ67: =IF(I67="Дома",L67+M67,"") -> 
P68: =IF(I68="","",IF(N68="В",P67+1,P67)) ->  | Q68: =IF(I68="","",IF(N68="Н",Q67+1,Q67)) ->  | R68: =IF(I68="","",IF(N68="П",R67+1,R67)) ->  | S68: =IF(I68="","",S67+L68) ->  | T68: =IF(I68="","",T67+M68) ->  | V68: =IF(I68="","",IF(I68="Дома",V67+1,V67+0)) ->  | W68: =IF(I68="","",IF(I68="Дома",IF(N68="В",W67+1,W67),W67)) ->  | X68: =IF(I68="","",IF(I68="Дома",IF(N68="Н",X67+1,X67),X67)) ->  | Y68: =IF(I68="","",IF(I68="Дома",IF(N68="П",Y67+1,Y67),Y67)) ->  | Z68: =IF(I68="","",IF(I68="Дома",L68+Z67,Z67)) ->  | AA68: =IF(I68="","",IF(I68="Дома",M68+AA67,AA67)) ->  | AB68: =IF(I68="","",IF(I68="Дома",W68*3+X68,AB67)) ->  | AC68: =IF(I68="","",IF(I68="Гости",AC67+1,AC67+0)) ->  | AD68: =IF(I68="","",IF(I68="Гости",IF(N68="В",AD67+1,AD67),AD67)) ->  | AE68: =IF(I68="","",IF(I68="Гости",IF(N68="Н",AE67+1,AE67),AE67)) ->  | AF68: =IF(I68="","",IF(I68="Гости",IF(N68="П",AF67+1,AF67),AF67)) ->  | AG68: =IF(I68="","",IF(I68="Гости",L68+AG67,AG67)) ->  | AH68: =IF(I68="","",IF(I68="Гости",M68+AH67,AH67)) ->  | AI68: =IF(I68="","",IF(I68="Гости",AD68*3+AE68,AI67)) -> 
N74: =IF(I74="","",IF(I74="Дома",IF(J74>K74,"В",IF(J74=K74,"Н","П")),IF(J74<K74,"В",IF(J74=K74,"Н","П")))) -> 
O99: =IF(I99="","",O98+1) -> 
J131: =IF(I131="","",E131+G131) ->  | K131: =IF(I131="","",F131+H131) ->  | L131: =IF(I131="","",IF(I131="Дома",J131,K131)) ->  | M131: =IF(I131="","",IF(I131="Дома",K131,J131)) ->  | O131: =IF(I131="","",O130+1) ->  | U131: =IF(I131="","",P131*3+Q131) ->  | AJ131: =IF(I131="Дома",L131+M131,"") -> 
P132: =IF(I132="","",IF(N132="В",P131+1,P131)) ->  | Q132: =IF(I132="","",IF(N132="Н",Q131+1,Q131)) ->  | R132: =IF(I132="","",IF(N132="П",R131+1,R131)) ->  | S132: =IF(I132="","",S131+L132) ->  | T132: =IF(I132="","",T131+M132) ->  | V132: =IF(I132="","",IF(I132="Дома",V131+1,V131+0)) ->  | W132: =IF(I132="","",IF(I132="Дома",IF(N132="В",W131+1,W131),W131)) ->  | X132: =IF(I132="","",IF(I132="Дома",IF(N132="Н",X131+1,X131),X131)) ->  | Y132: =IF(I132="","",IF(I132="Дома",IF(N132="П",Y131+1,Y131),Y131)) ->  | Z132: =IF(I132="","",IF(I132="Дома",L132+Z131,Z131)) ->  | AA132: =IF(I132="","",IF(I132="Дома",M132+AA131,AA131)) ->  | AB132: =IF(I132="","",IF(I132="Дома",W132*3+X132,AB131)) ->  | AC132: =IF(I132="","",IF(I132="Гости",AC131+1,AC131+0)) ->  | AD132: =IF(I132="","",IF(I132="Гости",IF(N132="В",AD131+1,AD131),AD131)) ->  | AE132: =IF(I132="","",IF(I132="Гости",IF(N132="Н",AE131+1,AE131),AE131)) ->  | AF132: =IF(I132="","",IF(I132="Гости",IF(N132="П",AF131+1,AF131),AF131)) ->  | AG132: =IF(I132="","",IF(I132="Гости",L132+AG131,AG131)) ->  | AH132: =IF(I132="","",IF(I132="Гости",M132+AH131,AH131)) ->  | AI132: =IF(I132="","",IF(I132="Гости",AD132*3+AE132,AI131)) -> 
N138: =IF(I138="","",IF(I138="Дома",IF(J138>K138,"В",IF(J138=K138,"Н","П")),IF(J138<K138,"В",IF(J138=K138,"Н","П")))) -> 

Sheet Гости (hidden)
A1: Чемпионат | B1: Дата/Время | C1: Дома | D1: Гости | E1: К1 в 1Т | F1: К2 в 1Т | G1: К1 во 2Т | H1: К2 во 2Т | I1: Где играли | J1: К1 Голов | K1: К2 Голов | L1: Забито | M1: Пропущено | N1: Результат | O1: Всего Игр | P1: Всего выиграно | Q1: Всего ничьих | R1: Всего проиграно | S1: Всего забито | T1: Всего пропущено | U1: Всего очков | V1: Дома игр | W1: Дома выиграно | X1: Дома ничьих | Y1: Дома проиграно | Z1: Дома забито | AA1: Дома пропущено | AB1: Дома очков | AC1: Гости игр | AD1: Гости выиграно | AE1: Гости ничьих | AF1: Гости проиграно | AG1: Гости забито | AH1: Гости пропущено | AI1: Гости очков | AJ1: Тотал
A2: ENGLAND: Professional Development League | B2: 2021.04.13 15:00 | C2: Cardiff U23 | D2: Sheffield Utd U23 | E2: 0 | F2: 0 | G2: 0 | H2: 2 | I2: Гости | J2: =IF(I2="","",E2+G2) -> 0 | K2: =IF(I2="","",F2+H2) -> 2 | L2: =IF(I2="","",IF(I2="Дома",J2,K2)) -> 2 | M2: =IF(I2="","",IF(I2="Дома",K2,J2)) -> 0 | N2: =IF(I2="","",IF(I2="Дома",IF(J2>K2,"В",IF(J2=K2,"Н","П")),IF(J2<K2,"В",IF(J2=K2,"Н","П")))) -> В | O2: =IF(I2="","",1) -> 1 | P2: =IF(I2="","",IF(N2="В",1,0)) -> 1 | Q2: =IF(I2="","",IF(N2="Н",1,0)) -> 0 | R2: =IF(I2="","",IF(N2="П",1,0)) -> 0 | S2: =IF(I2="","",L2) -> 2 | T2: =IF(I2="","",M2) -> 0 | U2: =IF(I2="","",P2*3+Q2) -> 3 | V2: =IF(I2="","",IF(I2="Дома",1,0)) -> 0 | W2: =IF(I2="","",IF(I2="Дома",IF(N2="В",1,0),0)) -> 0 | X2: =IF(I2="","",IF(I2="Дома",IF(N2="Н",1,0),0)) -> 0 | Y2: =IF(I2="","",IF(I2="Дома",IF(N2="П",1,0),0)) -> 0 | Z2: =IF(I2="","",IF(I2="Дома",L2,0)) -> 0 | AA2: =IF(I2="","",IF(I2="Дома",M2,0)) -> 0 | AB2: =IF(I2="","",IF(I2="Дома",W2*3+X2,0)) -> 0 | AC2: =IF(I2="","",IF(I2="Гости",1,0)) -> 1 | AD2: =IF(I2="","",IF(I2="Гости",IF(N2="В",1,0),0)) -> 1 | AE2: =IF(I2="","",IF(I2="Гости",IF(N2="Н",1,0),0)) -> 0 | AF2: =IF(I2="","",IF(I2="Гости",IF(N2="П",1,0),0)) -> 0 | AG2: =IF(I2="","",IF(I2="Гости",L2,0)) -> 2 | AH2: =IF(I2="","",IF(I2="Гости",M2,0)) -> 0 | AI2: =IF(I2="","",IF(I2="Гости",AD2*3+AE2,0)) -> 3 | AJ2: =IF(I2="Гости",L2+M2,"") -> 2
A3: ENGLAND: Professional Development League | B3: 2021.03.26 17:00 | C3: Sheffield Wed U23 | D3: Sheffield Utd U23 | E3: 0 | F3: 1 | G3: 0 | H3: 3 | I3: Гости | J3: =IF(I3="","",E3+G3) -> 0 | K3: =IF(I3="","",F3+H3) -> 4 | L3: =IF(I3="","",IF(I3="Дома",J3,K3)) -> 4 | M3: =IF(I3="","",IF(I3="Дома",K3,J3)) -> 0 | N3: =IF(I3="","",IF(I3="Дома",IF(J3>K3,"В",IF(J3=K3,"Н","П")),IF(J3<K3,"В",IF(J3=K3,"Н","П")))) -> В | O3: =IF(I3="","",O2+1) -> 2 | P3: =IF(I3="","",IF(N3="В",P2+1,P2)) -> 2 | Q3: =IF(I3="","",IF(N3="Н",Q2+1,Q2)) -> 0 | R3: =IF(I3="","",IF(N3="П",R2+1,R2)) -> 0 | S3: =IF(I3="","",S2+L3) -> 6 | T3: =IF(I3="","",T2+M3) -> 0 | U3: =IF(I3="","",P3*3+Q3) -> 6 | V3: =IF(I3="","",IF(I3="Дома",V2+1,V2+0)) -> 0 | W3: =IF(I3="","",IF(I3="Дома",IF(N3="В",W2+1,W2),W2)) -> 0 | X3: =IF(I3="","",IF(I3="Дома",IF(N3="Н",X2+1,X2),X2)) -> 0 | Y3: =IF(I3="","",IF(I3="Дома",IF(N3="П",Y2+1,Y2),Y2)) -> 0 | Z3: =IF(I3="","",IF(I3="Дома",L3+Z2,Z2)) -> 0 | AA3: =IF(I3="","",IF(I3="Дома",M3+AA2,AA2)) -> 0 | AB3: =IF(I3="","",IF(I3="Дома",W3*3+X3,AB2)) -> 0 | AC3: =IF(I3="","",IF(I3="Гости",AC2+1,AC2+0)) -> 2 | AD3: =IF(I3="","",IF(I3="Гости",IF(N3="В",AD2+1,AD2),AD2)) -> 2 | AE3: =IF(I3="","",IF(I3="Гости",IF(N3="Н",AE2+1,AE2),AE2)) -> 0 | AF3: =IF(I3="","",IF(I3="Гости",IF(N3="П",AF2+1,AF2),AF2)) -> 0 | AG3: =IF(I3="","",IF(I3="Гости",L3+AG2,AG2)) -> 6 | AH3: =IF(I3="","",IF(I3="Гости",M3+AH2,AH2)) -> 0 | AI3: =IF(I3="","",IF(I3="Гости",AD3*3+AE3,AI2)) -> 6 | AJ3: =IF(I3="Гости",L3+M3,"") -> 4
A4: ENGLAND: Professional Development League | B4: 2021.03.22 16:00 | C4: Sheffield Utd U23 | D4: QPR U23 | E4: 2 | F4: 0 | G4: 2 | H4: 0 | I4: Дома | J4: 4 | K4: 0 | L4: 4 | M4: 0 | N4: В | O4: 3 | P4: =IF(I4="","",IF(N4="В",P3+1,P3)) -> 3 | Q4: =IF(I4="","",IF(N4="Н",Q3+1,Q3)) -> 0 | R4: =IF(I4="","",IF(N4="П",R3+1,R3)) -> 0 | S4: =IF(I4="","",S3+L4) -> 10 | T4: =IF(I4="","",T3+M4) -> 0 | U4: 9 | V4: =IF(I4="","",IF(I4="Дома",V3+1,V3+0)) -> 1 | W4: =IF(I4="","",IF(I4="Дома",IF(N4="В",W3+1,W3),W3)) -> 1 | X4: =IF(I4="","",IF(I4="Дома",IF(N4="Н",X3+1,X3),X3)) -> 0 | Y4: =IF(I4="","",IF(I4="Дома",IF(N4="П",Y3+1,Y3),Y3)) -> 0 | Z4: =IF(I4="","",IF(I4="Дома",L4+Z3,Z3)) -> 4 | AA4: =IF(I4="","",IF(I4="Дома",M4+AA3,AA3)) -> 0 | AB4: =IF(I4="","",IF(I4="Дома",W4*3+X4,AB3)) -> 3 | AC4: =IF(I4="","",IF(I4="Гости",AC3+1,AC3+0)) -> 2 | AD4: =IF(I4="","",IF(I4="Гости",IF(N4="В",AD3+1,AD3),AD3)) -> 2 | AE4: =IF(I4="","",IF(I4="Гости",IF(N4="Н",AE3+1,AE3),AE3)) -> 0 | AF4: =IF(I4="","",IF(I4="Гости",IF(N4="П",AF3+1,AF3),AF3)) -> 0 | AG4: =IF(I4="","",IF(I4="Гости",L4+AG3,AG3)) -> 6 | AH4: =IF(I4="","",IF(I4="Гости",M4+AH3,AH3)) -> 0 | AI4: =IF(I4="","",IF(I4="Гости",AD4*3+AE4,AI3)) -> 6
A5: ENGLAND: Professional Development League | B5: 2021.03.12 17:00 | C5: Sheffield Utd U23 | D5: Birmingham U23 | E5: 2 | F5: 0 | G5: 3 | H5: 0 | I5: Дома | J5: 5 | K5: 0 | L5: 5 | M5: 0 | N5: В | O5: 4 | P5: 4 | Q5: 0 | R5: 0 | S5: 15 | T5: 0 | U5: 12 | V5: 2 | W5: 2 | X5: 0 | Y5: 0 | Z5: 9 | AA5: 0 | AB5: 6 | AC5: 2 | AD5: 2 | AE5: 0 | AF5: 0 | AG5: 6 | AH5: 0 | AI5: 6
A6: ENGLAND: Professional Development League | B6: 2021.03.08 16:00 | C6: Sheffield Utd U23 | D6: Coventry U23 | E6: 1 | F6: 1 | G6: 2 | H6: 1 | I6: Дома | J6: 3 | K6: 2 | L6: 3 | M6: 2 | N6: В | O6: 5 | P6: 5 | Q6: 0 | R6: 0 | S6: 18 | T6: 2 | U6: 15 | V6: 3 | W6: 3 | X6: 0 | Y6: 0 | Z6: 12 | AA6: 2 | AB6: 9 | AC6: 2 | AD6: 2 | AE6: 0 | AF6: 0 | AG6: 6 | AH6: 0 | AI6: 6
A7: ENGLAND: Professional Development League | B7: 2021.03.03 16:00 | C7: Sheffield Utd U23 | D7: Sheffield Wed U23 | E7: 1 | F7: 1 | G7: 0 | H7: 0 | I7: Дома | J7: 1 | K7: 1 | L7: 1 | M7: 1 | N7: Н | O7: 6 | P7: 5 | Q7: 1 | R7: 0 | S7: 19 | T7: 3 | U7: 16 | V7: 4 | W7: 3 | X7: 1 | Y7: 0 | Z7: 13 | AA7: 3 | AB7: 10 | AC7: 2 | AD7: 2 | AE7: 0 | AF7: 0 | AG7: 6 | AH7: 0 | AI7: 6
A8: ENGLAND: Professional Development League | B8: 2021.02.26 22:00 | C8: Barnsley U23 | D8: Sheffield Utd U23 | E8: 2 | F8: 0 | G8: 0 | H8: 2 | I8: Гости | J8: 2 | K8: 2 | L8: 2 | M8: 2 | N8: Н | O8: 7 | P8: 5 | Q8: 2 | R8: 0 | S8: 21 | T8: 5 | U8: 17 | V8: 4 | W8: 3 | X8: 1 | Y8: 0 | Z8: 13 | AA8: 3 | AB8: 10 | AC8: 3 | AD8: 2 | AE8: 1 | AF8: 0 | AG8: 8 | AH8: 2 | AI8: 7 | AJ8: 4
A9: ENGLAND: Professional Development League | B9: 2021.02.22 22:00 | C9: Nottingham U23 | D9: Sheffield Utd U23 | E9: 0 | F9: 0 | G9: 2 | H9: 1 | I9: Гости | J9: 2 | K9: 1 | L9: 1 | M9: 2 | N9: =IF(I9="","",IF(I9="Дома",IF(J9>K9,"В",IF(J9=K9,"Н","П")),IF(J9<K9,"В",IF(J9=K9,"Н","П")))) -> П | O9: 8 | P9: 5 | Q9: 2 | R9: 1 | S9: 22 | T9: 7 | U9: 17 | V9: 4 | W9: 3 | X9: 1 | Y9: 0 | Z9: 13 | AA9: 3 | AB9: 10 | AC9: 4 | AD9: 2 | AE9: 1 | AF9: 1 | AG9: 9 | AH9: 4 | AI9: 7 | AJ9: 3
A10: ENGLAND: Professional Development League | B10: 2021.02.08 16:00 | C10: Crewe U23 | D10: Sheffield Utd U23 | E10: 0 | F10: 0 | G10: 0 | H10: 2 | I10: Гости | J10: 0 | K10: 2 | L10: 2 | M10: 0 | N10: =IF(I10="","",IF(I10="Дома",IF(J10>K10,"В",IF(J10=K10,"Н","П")),IF(J10<K10,"В",IF(J10=K10,"Н","П")))) -> В | O10: 9 | P10: 6 | Q10: 2 | R10: 1 | S10: 24 | T10: 7 | U10: 20 | V10: 4 | W10: 3 | X10: 1 | Y10: 0 | Z10: 13 | AA10: 3 | AB10: 10 | AC10: 5 | AD10: 3 | AE10: 1 | AF10: 1 | AG10: 11 | AH10: 4 | AI10: 10 | AJ10: 2
A11: ENGLAND: Professional Development League | B11: 2021.01.20 17:00 | C11: Sheffield Utd U23 | D11: Hull U23 | E11: 3 | F11: 0 | G11: 1 | H11: 2 | I11: Дома | J11: 4 | K11: 2 | L11: 4 | M11: 2 | N11: В | O11: 10 | P11: 7 | Q11: 2 | R11: 1 | S11: 28 | T11: 9 | U11: 23 | V11: 5 | W11: 4 | X11: 1 | Y11: 0 | Z11: 17 | AA11: 5 | AB11: 13 | AC11: 5 | AD11: 3 | AE11: 1 | AF11: 1 | AG11: 11 | AH11: 4 | AI11: 10
A12: ENGLAND: Professional Development League | B12: 2020.12.18 16:00 | C12: Birmingham U23 | D12: Sheffield Utd U23 | E12: 0 | F12: 1 | G12: 0 | H12: 0 | I12: Гости | J12: 0 | K12: 1 | L12: 1 | M12: 0 | N12: В | O12: 11 | P12: 8 | Q12: 2 | R12: 1 | S12: 29 | T12: 9 | U12: =IF(I12="","",P12*3+Q12) -> 26 | V12: 5 | W12: 4 | X12: 1 | Y12: 0 | Z12: 17 | AA12: 5 | AB12: 13 | AC12: 6 | AD12: 4 | AE12: 1 | AF12: 1 | AG12: 12 | AH12: 4 | AI12: 13 | AJ12: 1
A13: ENGLAND: Professional Development League | B13: 2020.12.14 16:00 | C13: Coventry U23 | D13: Sheffield Utd U23 | E13: 0 | F13: 1 | G13: 2 | H13: 2 | I13: Гости | J13: 2 | K13: 3 | L13: 3 | M13: 2 | N13: В | O13: 12 | P13: 9 | Q13: 2 | R13: 1 | S13: 32 | T13: 11 | U13: 29 | V13: 5 | W13: 4 | X13: 1 | Y13: 0 | Z13: 17 | AA13: 5 | AB13: 13 | AC13: 7 | AD13: 5 | AE13: 1 | AF13: 1 | AG13: 15 | AH13: 6 | AI13: 16 | AJ13: 5
A14: ENGLAND: Professional Development League | B14: 2020.12.02 16:00 | C14: Sheffield Utd U23 | D14: Crewe U23 | E14: 1 | F14: 0 | G14: 3 | H14: 0 | I14: Дома | J14: 4 | K14: 0 | L14: 4 | M14: 0 | N14: В | O14: 13 | P14: 10 | Q14: 2 | R14: 1 | S14: 36 | T14: 11 | U14: 32 | V14: 6 | W14: 5 | X14: 1 | Y14: 0 | Z14: 21 | AA14: 5 | AB14: 16 | AC14: 7 | AD14: 5 | AE14: 1 | AF14: 1 | AG14: 15 | AH14: 6 | AI14: 16
A15: ENGLAND: Professional Development League | B15: 2020.11.25 16:00 | C15: Wigan U23 | D15: Sheffield Utd U23 | E15: 0 | F15: 0 | G15: 1 | H15: 0 | I15: Гости | J15: 1 | K15: 0 | L15: 0 | M15: 1 | N15: П | O15: 14 | P15: 10 | Q15: 2 | R15: 2 | S15: 36 | T15: 12 | U15: 32 | V15: 6 | W15: 5 | X15: 1 | Y15: 0 | Z15: 21 | AA15: 5 | AB15: 16 | AC15: 8 | AD15: 5 | AE15: 1 | AF15: 2 | AG15: 15 | AH15: 7 | AI15: 16 | AJ15: 1
A16: ENGLAND: Professional Development League | B16: 2020.11.06 16:00 | C16: Watford U23 | D16: Sheffield Utd U23 | E16: 0 | F16: 3 | G16: 0 | H16: 0 | I16: Гости | J16: 0 | K16: 3 | L16: 3 | M16: 0 | N16: В | O16: 15 | P16: 11 | Q16: 2 | R16: 2 | S16: 39 | T16: 12 | U16: 35 | V16: 6 | W16: 5 | X16: 1 | Y16: 0 | Z16: 21 | AA16: 5 | AB16: 16 | AC16: 9 | AD16: 6 | AE16: 1 | AF16: 2 | AG16: 18 | AH16: 7 | AI16: 19 | AJ16: 3
A17: ENGLAND: Professional Development League | B17: 2020.11.02 22:00 | C17: Sheffield Utd U23 | D17: Ipswich U23 | E17: 1 | F17: 1 | G17: 2 | H17: 0 | I17: Дома | J17: 3 | K17: 1 | L17: 3 | M17: 1 | N17: В | O17: 16 | P17: 12 | Q17: 2 | R17: 2 | S17: 42 | T17: 13 | U17: 38 | V17: 7 | W17: 6 | X17: 1 | Y17: 0 | Z17: 24 | AA17: 6 | AB17: 19 | AC17: 9 | AD17: 6 | AE17: 1 | AF17: 2 | AG17: 18 | AH17: 7 | AI17: 19
A18: ENGLAND: Professional Development League | B18: 2020.10.27 16:00 | C18: Colchester U23 | D18: Sheffield Utd U23 | E18: 1 | F18: 1 | G18: 0 | H18: 3 | I18: Гости | J18: 1 | K18: 4 | L18: 4 | M18: 1 | N18: В | O18: 17 | P18: 13 | Q18: 2 | R18: 2 | S18: 46 | T18: 14 | U18: 41 | V18: 7 | W18: 6 | X18: 1 | Y18: 0 | Z18: 24 | AA18: 6 | AB18: 19 | AC18: 10 | AD18: 7 | AE18: 1 | AF18: 2 | AG18: 22 | AH18: 8 | AI18: 22 | AJ18: 5
A19: ENGLAND: Professional Development League | B19: 2020.10.19 15:00 | C19: Sheffield Utd U23 | D19: Bristol City U23 | E19: 2 | F19: 0 | G19: 2 | H19: 0 | I19: Дома | J19: 4 | K19: 0 | L19: 4 | M19: 0 | N19: В | O19: 18 | P19: 14 | Q19: 2 | R19: 2 | S19: 50 | T19: 14 | U19: 44 | V19: 8 | W19: 7 | X19: 1 | Y19: 0 | Z19: 28 | AA19: 6 | AB19: 22 | AC19: 10 | AD19: 7 | AE19: 1 | AF19: 2 | AG19: 22 | AH19: 8 | AI19: 22
A20: ENGLAND: Professional Development League | B20: 2020.09.29 21:00 | C20: Sheffield Utd U23 | D20: Barnsley U23 | E20: 0 | F20: 0 | G20: 1 | H20: 1 | I20: Дома | J20: 1 | K20: 1 | L20: 1 | M20: 1 | N20: Н | O20: 19 | P20: 14 | Q20: 3 | R20: 2 | S20: 51 | T20: 15 | U20: 45 | V20: 9 | W20: 7 | X20: 2 | Y20: 0 | Z20: 29 | AA20: 7 | AB20: 23 | AC20: 10 | AD20: 7 | AE20: 1 | AF20: 2 | AG20: 22 | AH20: 8 | AI20: 22
A21: ENGLAND: Professional Development League | B21: 2020.09.21 21:00 | C21: Sheffield Utd U23 | D21: Nottingham U23 | E21: 0 | F21: 1 | G21: 2 | H21: 1 | I21: Дома | J21: 2 | K21: 2 | L21: 2 | M21: 2 | N21: Н | O21: 20 | P21: 14 | Q21: 4 | R21: 2 | S21: 53 | T21: 17 | U21: 46 | V21: 10 | W21: 7 | X21: 3 | Y21: 0 | Z21: 31 | AA21: 9 | AB21: 24 | AC21: 10 | AD21: 7 | AE21: 1 | AF21: 2 | AG21: 22 | AH21: 8 | AI21: 22
A22: ENGLAND: Professional Development League | B22: 2020.09.14 21:00 | C22: Hull U23 | D22: Sheffield Utd U23 | E22: 1 | F22: 0 | G22: 1 | H22: 0 | I22: Гости | J22: 2 | K22: 0 | L22: 0 | M22: 2 | N22: П | O22: 21 | P22: 14 | Q22: 4 | R22: 3 | S22: 53 | T22: 19 | U22: 46 | V22: 10 | W22: 7 | X22: 3 | Y22: 0 | Z22: 31 | AA22: 9 | AB22: 24 | AC22: 11 | AD22: 7 | AE22: 1 | AF22: 3 | AG22: 22 | AH22: 10 | AI22: 22 | AJ22: 2
A23: ENGLAND: Professional Development League | B23: 2020.03.06 22:00 | C23: Sheffield Wed U23 | D23: Sheffield Utd U23 | E23: 1 | F23: 1 | G23: 1 | H23: 0 | I23: Гости | J23: 2 | K23: 1 | L23: 1 | M23: 2 | N23: П | O23: 22 | P23: 14 | Q23: 4 | R23: 4 | S23: 54 | T23: 21 | U23: 46 | V23: 10 | W23: 7 | X23: 3 | Y23: 0 | Z23: 31 | AA23: 9 | AB23: 24 | AC23: 12 | AD23: 7 | AE23: 1 | AF23: 4 | AG23: 23 | AH23: 12 | AI23: 22 | AJ23: 3
A24: ENGLAND: Professional Development League | B24: 2020.03.02 17:00 | C24: Sheffield Utd U23 | D24: Bolton U23 | E24: 1 | F24: 1 | G24: 1 | H24: 0 | I24: Дома | J24: 2 | K24: 1 | L24: 2 | M24: 1 | N24: В | O24: 23 | P24: 15 | Q24: 4 | R24: 4 | S24: 56 | T24: 22 | U24: 49 | V24: 11 | W24: 8 | X24: 3 | Y24: 0 | Z24: 33 | AA24: 10 | AB24: 27 | AC24: 12 | AD24: 7 | AE24: 1 | AF24: 4 | AG24: 23 | AH24: 12 | AI24: 22
A25: ENGLAND: Professional Development League | B25: 2020.02.17 22:00 | C25: Sheffield Utd U23 | D25: Hull U23 | E25: 0 | F25: 3 | G25: 0 | H25: 0 | I25: Дома | J25: 0 | K25: 3 | L25: 0 | M25: 3 | N25: П | O25: 24 | P25: 15 | Q25: 4 | R25: 5 | S25: 56 | T25: 25 | U25: 49 | V25: 12 | W25: 8 | X25: 3 | Y25: 1 | Z25: 33 | AA25: 13 | AB25: 27 | AC25: 12 | AD25: 7 | AE25: 1 | AF25: 4 | AG25: 23 | AH25: 12 | AI25: 22
A26: ENGLAND: Professional Development League | B26: 2020.02.13 17:00 | C26: Wigan U23 | D26: Sheffield Utd U23 | E26: 0 | F26: 0 | G26: 1 | H26: 0 | I26: Гости | J26: 1 | K26: 0 | L26: 0 | M26: 1 | N26: П | O26: 25 | P26: 15 | Q26: 4 | R26: 6 | S26: 56 | T26: 26 | U26: 49 | V26: 12 | W26: 8 | X26: 3 | Y26: 1 | Z26: 33 | AA26: 13 | AB26: 27 | AC26: 13 | AD26: 7 | AE26: 1 | AF26: 5 | AG26: 23 | AH26: 13 | AI26: 22 | AJ26: 1
A27: ENGLAND: Professional Development League | B27: 2020.02.03 22:00 | C27: Sheffield Utd U23 | D27: Barnsley U23 | E27: 0 | F27: 1 | G27: 1 | H27: 0 | I27: Дома | J27: 1 | K27: 1 | L27: 1 | M27: 1 | N27: Н | O27: 26 | P27: 15 | Q27: 5 | R27: 6 | S27: 57 | T27: 27 | U27: 50 | V27: 13 | W27: 8 | X27: 4 | Y27: 1 | Z27: 34 | AA27: 14 | AB27: 28 | AC27: 13 | AD27: 7 | AE27: 1 | AF27: 5 | AG27: 23 | AH27: 13 | AI27: 22
A28: ENGLAND: Professional Development League | B28: 2020.01.24 16:00 | C28: Nottingham U23 | D28: Sheffield Utd U23 | E28: 1 | F28: 0 | G28: 0 | H28: 0 | I28: Гости | J28: 1 | K28: 0 | L28: 0 | M28: 1 | N28: П | O28: 27 | P28: 15 | Q28: 5 | R28: 7 | S28: 57 | T28: 28 | U28: 50 | V28: 13 | W28: 8 | X28: 4 | Y28: 1 | Z28: 34 | AA28: 14 | AB28: 28 | AC28: 14 | AD28: 7 | AE28: 1 | AF28: 6 | AG28: 23 | AH28: 14 | AI28: 22 | AJ28: 1
A29: ENGLAND: Professional Development League | B29: 2020.01.20 22:00 | C29: Sheffield Utd U23 | D29: Crewe U23 | E29: 1 | F29: 2 | G29: 1 | H29: 1 | I29: Дома | J29: 2 | K29: 3 | L29: 2 | M29: 3 | N29: П | O29: 28 | P29: 15 | Q29: 5 | R29: 8 | S29: 59 | T29: 31 | U29: 50 | V29: 14 | W29: 8 | X29: 4 | Y29: 2 | Z29: 36 | AA29: 17 | AB29: 28 | AC29: 14 | AD29: 7 | AE29: 1 | AF29: 6 | AG29: 23 | AH29: 14 | AI29: 22
A30: ENGLAND: Professional Development League | B30: 2020.01.13 17:00 | C30: Burnley U23 | D30: Sheffield Utd U23 | E30: 1 | F30: 0 | G30: 1 | H30: 0 | I30: Гости | J30: 2 | K30: 0 | L30: 0 | M30: 2 | N30: П | O30: 29 | P30: 15 | Q30: 5 | R30: 9 | S30: 59 | T30: 33 | U30: 50 | V30: 14 | W30: 8 | X30: 4 | Y30: 2 | Z30: 36 | AA30: 17 | AB30: 28 | AC30: 15 | AD30: 7 | AE30: 1 | AF30: 7 | AG30: 23 | AH30: 16 | AI30: 22 | AJ30: 2
A31: ENGLAND: Professional Development League | B31: 2020.01.06 22:00 | C31: Sheffield Utd U23 | D31: Birmingham U23 | E31: 1 | F31: 0 | G31: 0 | H31: 2 | I31: Дома | J31: 1 | K31: 2 | L31: 1 | M31: 2 | N31: П | O31: 30 | P31: 15 | Q31: 5 | R31: 10 | S31: 60 | T31: 35 | U31: 50 | V31: 15 | W31: 8 | X31: 4 | Y31: 3 | Z31: 37 | AA31: 19 | AB31: 28 | AC31: 15 | AD31: 7 | AE31: 1 | AF31: 7 | AG31: 23 | AH31: 16 | AI31: 22
A32: ENGLAND: Professional Development League | B32: 2019.12.16 22:00 | C32: Sheffield Utd U23 | D32: Wigan U23 | E32: 0 | F32: 1 | G32: 2 | H32: 1 | I32: Дома | J32: 2 | K32: 2 | L32: 2 | M32: 2 | N32: Н | O32: 31 | P32: 15 | Q32: 6 | R32: 10 | S32: 62 | T32: 37 | U32: 51 | V32: 16 | W32: 8 | X32: 5 | Y32: 3 | Z32: 39 | AA32: 21 | AB32: 29 | AC32: 15 | AD32: 7 | AE32: 1 | AF32: 7 | AG32: 23 | AH32: 16 | AI32: 22
A33: ENGLAND: Professional Development League | B33: 2019.12.10 17:00 | C33: Barnsley U23 | D33: Sheffield Utd U23 | E33: 0 | F33: 1 | G33: 0 | H33: 0 | I33: Гости | J33: 0 | K33: 1 | L33: 1 | M33: 0 | N33: В | O33: 32 | P33: 16 | Q33: 6 | R33: 10 | S33: 63 | T33: 37 | U33: 54 | V33: 16 | W33: 8 | X33: 5 | Y33: 3 | Z33: 39 | AA33: 21 | AB33: 29 | AC33: 16 | AD33: 8 | AE33: 1 | AF33: 7 | AG33: 24 | AH33: 16 | AI33: 25 | AJ33: 1
A34: ENGLAND: Professional Development League | B34: 2019.11.29 15:00 | C34: Leeds U23 | D34: Sheffield Utd U23 | E34: 0 | F34: 0 | G34: 2 | H34: 1 | I34: Гости | J34: 2 | K34: 1 | L34: 1 | M34: 2 | N34: П | O34: 33 | P34: 16 | Q34: 6 | R34: 11 | S34: 64 | T34: 39 | U34: 54 | V34: 16 | W34: 8 | X34: 5 | Y34: 3 | Z34: 39 | AA34: 21 | AB34: 29 | AC34: 17 | AD34: 8 | AE34: 1 | AF34: 8 | AG34: 25 | AH34: 18 | AI34: 25 | AJ34: 3
A35: ENGLAND: Professional Development League | B35: 2019.11.26 22:00 | C35: Sheffield Utd U23 | D35: Sheffield Wed U23 | E35: 0 | F35: 0 | G35: 0 | H35: 1 | I35: Дома | J35: 0 | K35: 1 | L35: 0 | M35: 1 | N35: П | O35: 34 | P35: 16 | Q35: 6 | R35: 12 | S35: 64 | T35: 40 | U35: 54 | V35: 17 | W35: 8 | X35: 5 | Y35: 4 | Z35: 39 | AA35: 22 | AB35: 29 | AC35: 17 | AD35: 8 | AE35: 1 | AF35: 8 | AG35: 25 | AH35: 18 | AI35: 25
A36: ENGLAND: Professional Development League | B36: 2019.11.18 22:00 | C36: Bolton U23 | D36: Sheffield Utd U23 | E36: 2 | F36: 2 | G36: 1 | H36: 1 | I36: Гости | J36: 3 | K36: 3 | L36: 3 | M36: 3 | N36: Н | O36: 35 | P36: 16 | Q36: 7 | R36: 12 | S36: 67 | T36: 43 | U36: 55 | V36: 17 | W36: 8 | X36: 5 | Y36: 4 | Z36: 39 | AA36: 22 | AB36: 29 | AC36: 18 | AD36: 8 | AE36: 2 | AF36: 8 | AG36: 28 | AH36: 21 | AI36: 26 | AJ36: 6
A37: ENGLAND: Professional Development League | B37: 2019.10.26 21:30 | C37: Hull U23 | D37: Sheffield Utd U23 | E37: 1 | F37: 1 | G37: 1 | H37: 2 | I37: Гости | J37: 2 | K37: 3 | L37: 3 | M37: 2 | N37: В | O37: 36 | P37: 17 | Q37: 7 | R37: 12 | S37: 70 | T37: 45 | U37: 58 | V37: 17 | W37: 8 | X37: 5 | Y37: 4 | Z37: 39 | AA37: 22 | AB37: 29 | AC37: 19 | AD37: 9 | AE37: 2 | AF37: 8 | AG37: 31 | AH37: 23 | AI37: 29 | AJ37: 5
A38: ENGLAND: Professional Development League | B38: 2019.10.23 15:00 | C38: Crewe U23 | D38: Sheffield Utd U23 | E38: 4 | F38: 0 | G38: 1 | H38: 1 | I38: Гости | J38: 5 | K38: 1 | L38: 1 | M38: 5 | N38: П | O38: 37 | P38: 17 | Q38: 7 | R38: 13 | S38: 71 | T38: 50 | U38: 58 | V38: 17 | W38: 8 | X38: 5 | Y38: 4 | Z38: 39 | AA38: 22 | AB38: 29 | AC38: 20 | AD38: 9 | AE38: 2 | AF38: 9 | AG38: 32 | AH38: 28 | AI38: 29 | AJ38: 6
A39: ENGLAND: Professional Development League | B39: 2019.10.14 21:00 | C39: Sheffield Utd U23 | D39: Nottingham U23 | E39: 0 | F39: 0 | G39: 1 | H39: 1 | I39: Дома | J39: 1 | K39: 1 | L39: 1 | M39: 1 | N39: Н | O39: 38 | P39: 17 | Q39: 8 | R39: 13 | S39: 72 | T39: 51 | U39: 59 | V39: 18 | W39: 8 | X39: 6 | Y39: 4 | Z39: 40 | AA39: 23 | AB39: 30 | AC39: 20 | AD39: 9 | AE39: 2 | AF39: 9 | AG39: 32 | AH39: 28 | AI39: 29
A40: ENGLAND: Professional Development League | B40: 2019.10.07 15:00 | C40: Cardiff U23 | D40: Millwall U23 | E40: 0 | F40: 0 | G40: 2 | H40: 1 | I40: Дома | J40: 2 | K40: 1 | L40: 2 | M40: 1 | N40: В | O40: 39 | P40: 18 | Q40: 8 | R40: 13 | S40: 74 | T40: 52 | U40: 62 | V40: 19 | W40: 9 | X40: 6 | Y40: 4 | Z40: 42 | AA40: 24 | AB40: 33 | AC40: 20 | AD40: 9 | AE40: 2 | AF40: 9 | AG40: 32 | AH40: 28 | AI40: 29
A41: ENGLAND: Professional Development League | B41: 2019.09.30 15:00 | C41: Sheffield Utd U23 | D41: Burnley U23 | E41: 0 | F41: 2 | G41: 0 | H41: 1 | I41: Дома | J41: 0 | K41: 3 | L41: 0 | M41: 3 | N41: П | O41: 40 | P41: 18 | Q41: 8 | R41: 14 | S41: 74 | T41: 55 | U41: 62 | V41: 20 | W41: 9 | X41: 6 | Y41: 5 | Z41: 42 | AA41: 27 | AB41: 33 | AC41: 20 | AD41: 9 | AE41: 2 | AF41: 9 | AG41: 32 | AH41: 28 | AI41: 29
A42: ENGLAND: Professional Development League | B42: 2019.09.23 15:30 | C42: Birmingham U23 | D42: Sheffield Utd U23 | E42: 0 | F42: 0 | G42: 1 | H42: 1 | I42: Гости | J42: 1 | K42: 1 | L42: 1 | M42: 1 | N42: Н | O42: 41 | P42: 18 | Q42: 9 | R42: 14 | S42: 75 | T42: 56 | U42: 63 | V42: 20 | W42: 9 | X42: 6 | Y42: 5 | Z42: 42 | AA42: 27 | AB42: 33 | AC42: 21 | AD42: 9 | AE42: 3 | AF42: 9 | AG42: 33 | AH42: 29 | AI42: 30 | AJ42: 2
J67: =IF(I67="","",E67+G67) ->  | K67: =IF(I67="","",F67+H67) ->  | L67: =IF(I67="","",IF(I67="Дома",J67,K67)) ->  | M67: =IF(I67="","",IF(I67="Дома",K67,J67)) ->  | O67: =IF(I67="","",O66+1) ->  | U67: =IF(I67="","",P67*3+Q67) ->  | AJ67: =IF(I67="Гости",L67+M67,"") -> 
P68: =IF(I68="","",IF(N68="В",P67+1,P67)) ->  | Q68: =IF(I68="","",IF(N68="Н",Q67+1,Q67)) ->  | R68: =IF(I68="","",IF(N68="П",R67+1,R67)) ->  | S68: =IF(I68="","",S67+L68) ->  | T68: =IF(I68="","",T67+M68) ->  | V68: =IF(I68="","",IF(I68="Дома",V67+1,V67+0)) ->  | W68: =IF(I68="","",IF(I68="Дома",IF(N68="В",W67+1,W67),W67)) ->  | X68: =IF(I68="","",IF(I68="Дома",IF(N68="Н",X67+1,X67),X67)) ->  | Y68: =IF(I68="","",IF(I68="Дома",IF(N68="П",Y67+1,Y67),Y67)) ->  | Z68: =IF(I68="","",IF(I68="Дома",L68+Z67,Z67)) ->  | AA68: =IF(I68="","",IF(I68="Дома",M68+AA67,AA67)) ->  | AB68: =IF(I68="","",IF(I68="Дома",W68*3+X68,AB67)) ->  | AC68: =IF(I68="","",IF(I68="Гости",AC67+1,AC67+0)) ->  | AD68: =IF(I68="","",IF(I68="Гости",IF(N68="В",AD67+1,AD67),AD67)) ->  | AE68: =IF(I68="","",IF(I68="Гости",IF(N68="Н",AE67+1,AE67),AE67)) ->  | AF68: =IF(I68="","",IF(I68="Гости",IF(N68="П",AF67+1,AF67),AF67)) ->  | AG68: =IF(I68="","",IF(I68="Гости",L68+AG67,AG67)) ->  | AH68: =IF(I68="","",IF(I68="Гости",M68+AH67,AH67)) ->  | AI68: =IF(I68="","",IF(I68="Гости",AD68*3+AE68,AI67)) -> 
N74: =IF(I74="","",IF(I74="Дома",IF(J74>K74,"В",IF(J74=K74,"Н","П")),IF(J74<K74,"В",IF(J74=K74,"Н","П")))) -> 
J131: =IF(I131="","",E131+G131) ->  | K131: =IF(I131="","",F131+H131) ->  | L131: =IF(I131="","",IF(I131="Дома",J131,K131)) ->  | M131: =IF(I131="","",IF(I131="Дома",K131,J131)) ->  | O131: =IF(I131="","",O130+1) ->  | U131: =IF(I131="","",P131*3+Q131) ->  | AJ131: =IF(I131="Гости",L131+M131,"") -> 
P132: =IF(I132="","",IF(N132="В",P131+1,P131)) ->  | Q132: =IF(I132="","",IF(N132="Н",Q131+1,Q131)) ->  | R132: =IF(I132="","",IF(N132="П",R131+1,R131)) ->  | S132: =IF(I132="","",S131+L132) ->  | T132: =IF(I132="","",T131+M132) ->  | V132: =IF(I132="","",IF(I132="Дома",V131+1,V131+0)) ->  | W132: =IF(I132="","",IF(I132="Дома",IF(N132="В",W131+1,W131),W131)) ->  | X132: =IF(I132="","",IF(I132="Дома",IF(N132="Н",X131+1,X131),X131)) ->  | Y132: =IF(I132="","",IF(I132="Дома",IF(N132="П",Y131+1,Y131),Y131)) ->  | Z132: =IF(I132="","",IF(I132="Дома",L132+Z131,Z131)) ->  | AA132: =IF(I132="","",IF(I132="Дома",M132+AA131,AA131)) ->  | AB132: =IF(I132="","",IF(I132="Дома",W132*3+X132,AB131)) ->  | AC132: =IF(I132="","",IF(I132="Гости",AC131+1,AC131+0)) ->  | AD132: =IF(I132="","",IF(I132="Гости",IF(N132="В",AD131+1,AD131),AD131)) ->  | AE132: =IF(I132="","",IF(I132="Гости",IF(N132="Н",AE131+1,AE131),AE131)) ->  | AF132: =IF(I132="","",IF(I132="Гости",IF(N132="П",AF131+1,AF131),AF131)) ->  | AG132: =IF(I132="","",IF(I132="Гости",L132+AG131,AG131)) ->  | AH132: =IF(I132="","",IF(I132="Гости",M132+AH131,AH131)) ->  | AI132: =IF(I132="","",IF(I132="Гости",AD132*3+AE132,AI131)) -> 
N138: =IF(I138="","",IF(I138="Дома",IF(J138>K138,"В",IF(J138=K138,"Н","П")),IF(J138<K138,"В",IF(J138=K138,"Н","П")))) -> 

Sheet ДомаДома (hidden)
A1: Чемпионат | B1: Дата/Время | C1: Дома | D1: Гости | E1: К1 в 1Т | F1: К2 в 1Т | G1: К1 во 2Т | H1: К2 во 2Т | I1: Где играли | J1: К1 Голов | K1: К2 Голов | L1: Забито | M1: Пропущено | N1: Результат | O1: Всего Игр | P1: Всего выиграно | Q1: Всего ничьих | R1: Всего проиграно | S1: Всего забито | T1: Всего пропущено | U1: Всего очков | V1: Дома игр | W1: Дома выиграно | X1: Дома ничьих | Y1: Дома проиграно | Z1: Дома забито | AA1: Дома пропущено | AB1: Дома очков | AC1: Гости игр | AD1: Гости выиграно | AE1: Гости ничьих | AF1: Гости проиграно | AG1: Гости забито | AH1: Гости пропущено | AI1: Гости очков
A2: ENGLAND: Professional Development League | B2: 2021.04.13 15:00 | C2: Cardiff U23 | D2: Sheffield Utd U23 | E2: 0 | F2: 0 | G2: 0 | H2: 2 | I2: Дома | J2: =IF(I2="","",E2+G2) -> 0 | K2: =IF(I2="","",F2+H2) -> 2 | L2: =IF(I2="","",IF(I2="Дома",J2,K2)) -> 0 | M2: =IF(I2="","",IF(I2="Дома",K2,J2)) -> 2 | N2: =IF(I2="","",IF(I2="Дома",IF(J2>K2,"В",IF(J2=K2,"Н","П")),IF(J2<K2,"В",IF(J2=K2,"Н","П")))) -> П | O2: =IF(I2="","",1) -> 1 | P2: =IF(I2="","",IF(N2="В",1,0)) -> 0 | Q2: =IF(I2="","",IF(N2="Н",1,0)) -> 0 | R2: =IF(I2="","",IF(N2="П",1,0)) -> 1 | S2: =IF(I2="","",L2) -> 0 | T2: =IF(I2="","",M2) -> 2 | U2: =IF(I2="","",P2*3+Q2) -> 0 | V2: =IF(I2="","",IF(I2="Дома",1,0)) -> 1 | W2: =IF(I2="","",IF(I2="Дома",IF(N2="В",1,0),0)) -> 0 | X2: =IF(I2="","",IF(I2="Дома",IF(N2="Н",1,0),0)) -> 0 | Y2: =IF(I2="","",IF(I2="Дома",IF(N2="П",1,0),0)) -> 1 | Z2: =IF(I2="","",IF(I2="Дома",L2,0)) -> 0 | AA2: =IF(I2="","",IF(I2="Дома",M2,0)) -> 2 | AB2: =IF(I2="","",IF(I2="Дома",W2*3+X2,0)) -> 0 | AC2: =IF(I2="","",IF(I2="Гости",1,0)) -> 0 | AD2: =IF(I2="","",IF(I2="Гости",IF(N2="В",1,0),0)) -> 0 | AE2: =IF(I2="","",IF(I2="Гости",IF(N2="Н",1,0),0)) -> 0 | AF2: =IF(I2="","",IF(I2="Гости",IF(N2="П",1,0),0)) -> 0 | AG2: =IF(I2="","",IF(I2="Гости",L2,0)) -> 0 | AH2: =IF(I2="","",IF(I2="Гости",M2,0)) -> 0 | AI2: =IF(I2="","",IF(I2="Гости",AD2*3+AE2,0)) -> 0
A3: ENGLAND: Professional Development League | B3: 2021.03.30 15:00 | C3: Cardiff U23 | D3: Wigan U23 | E3: 4 | F3: 0 | G3: 2 | H3: 1 | I3: Дома | J3: =IF(I3="","",E3+G3) -> 6 | K3: =IF(I3="","",F3+H3) -> 1 | L3: =IF(I3="","",IF(I3="Дома",J3,K3)) -> 6 | M3: =IF(I3="","",IF(I3="Дома",K3,J3)) -> 1 | N3: =IF(I3="","",IF(I3="Дома",IF(J3>K3,"В",IF(J3=K3,"Н","П")),IF(J3<K3,"В",IF(J3=K3,"Н","П")))) -> В | O3: =IF(I3="","",O2+1) -> 2 | P3: =IF(I3="","",IF(N3="В",P2+1,P2)) -> 1 | Q3: =IF(I3="","",IF(N3="Н",Q2+1,Q2)) -> 0 | R3: =IF(I3="","",IF(N3="П",R2+1,R2)) -> 1 | S3: =IF(I3="","",S2+L3) -> 6 | T3: =IF(I3="","",T2+M3) -> 3 | U3: =IF(I3="","",P3*3+Q3) -> 3 | V3: =IF(I3="","",IF(I3="Дома",V2+1,V2+0)) -> 2 | W3: =IF(I3="","",IF(I3="Дома",IF(N3="В",W2+1,W2),W2)) -> 1 | X3: =IF(I3="","",IF(I3="Дома",IF(N3="Н",X2+1,X2),X2)) -> 0 | Y3: =IF(I3="","",IF(I3="Дома",IF(N3="П",Y2+1,Y2),Y2)) -> 1 | Z3: =IF(I3="","",IF(I3="Дома",L3+Z2,Z2)) -> 6 | AA3: =IF(I3="","",IF(I3="Дома",M3+AA2,AA2)) -> 3 | AB3: =IF(I3="","",IF(I3="Дома",W3*3+X3,AB2)) -> 3 | AC3: =IF(I3="","",IF(I3="Гости",AC2+1,AC2+0)) -> 0 | AD3: =IF(I3="","",IF(I3="Гости",IF(N3="В",AD2+1,AD2),AD2)) -> 0 | AE3: =IF(I3="","",IF(I3="Гости",IF(N3="Н",AE2+1,AE2),AE2)) -> 0 | AF3: =IF(I3="","",IF(I3="Гости",IF(N3="П",AF2+1,AF2),AF2)) -> 0 | AG3: =IF(I3="","",IF(I3="Гости",L3+AG2,AG2)) -> 0 | AH3: =IF(I3="","",IF(I3="Гости",M3+AH2,AH2)) -> 0 | AI3: =IF(I3="","",IF(I3="Гости",AD3*3+AE3,AI2)) -> 0
A4: ENGLAND: Professional Development League | B4: 2021.03.09 16:00 | C4: Cardiff U23 | D4: Watford U23 | E4: 2 | F4: 0 | G4: 2 | H4: 0 | I4: Дома | J4: 4 | K4: 0 | L4: 4 | M4: 0 | N4: В | O4: 3 | P4: =IF(I4="","",IF(N4="В",P3+1,P3)) -> 2 | Q4: =IF(I4="","",IF(N4="Н",Q3+1,Q3)) -> 0 | R4: =IF(I4="","",IF(N4="П",R3+1,R3)) -> 1 | S4: =IF(I4="","",S3+L4) -> 10 | T4: =IF(I4="","",T3+M4) -> 3 | U4: 6 | V4: =IF(I4="","",IF(I4="Дома",V3+1,V3+0)) -> 3 | W4: =IF(I4="","",IF(I4="Дома",IF(N4="В",W3+1,W3),W3)) -> 2 | X4: =IF(I4="","",IF(I4="Дома",IF(N4="Н",X3+1,X3),X3)) -> 0 | Y4: =IF(I4="","",IF(I4="Дома",IF(N4="П",Y3+1,Y3),Y3)) -> 1 | Z4: =IF(I4="","",IF(I4="Дома",L4+Z3,Z3)) -> 10 | AA4: =IF(I4="","",IF(I4="Дома",M4+AA3,AA3)) -> 3 | AB4: =IF(I4="","",IF(I4="Дома",W4*3+X4,AB3)) -> 6 | AC4: =IF(I4="","",IF(I4="Гости",AC3+1,AC3+0)) -> 0 | AD4: =IF(I4="","",IF(I4="Гости",IF(N4="В",AD3+1,AD3),AD3)) -> 0 | AE4: =IF(I4="","",IF(I4="Гости",IF(N4="Н",AE3+1,AE3),AE3)) -> 0 | AF4: =IF(I4="","",IF(I4="Гости",IF(N4="П",AF3+1,AF3),AF3)) -> 0 | AG4: =IF(I4="","",IF(I4="Гости",L4+AG3,AG3)) -> 0 | AH4: =IF(I4="","",IF(I4="Гости",M4+AH3,AH3)) -> 0 | AI4: =IF(I4="","",IF(I4="Гости",AD4*3+AE4,AI3)) -> 0
A5: ENGLAND: Professional Development League | B5: 2021.03.01 17:00 | C5: Cardiff U23 | D5: Charlton U23 | E5: 1 | F5: 4 | G5: 3 | H5: 1 | I5: Дома | J5: 4 | K5: 5 | L5: 4 | M5: 5 | N5: П | O5: 4 | P5: 2 | Q5: 0 | R5: 2 | S5: 14 | T5: 8 | U5: 6 | V5: 4 | W5: 2 | X5: 0 | Y5: 2 | Z5: 14 | AA5: 8 | AB5: 6 | AC5: 0 | AD5: 0 | AE5: 0 | AF5: 0 | AG5: 0 | AH5: 0 | AI5: 0
A6: ENGLAND: Professional Development League | B6: 2021.02.16 16:00 | C6: Cardiff U23 | D6: Millwall U23 | E6: 2 | F6: 0 | G6: 1 | H6: 0 | I6: Дома | J6: 3 | K6: 0 | L6: 3 | M6: 0 | N6: В | O6: 5 | P6: 3 | Q6: 0 | R6: 2 | S6: 17 | T6: 8 | U6: 9 | V6: 5 | W6: 3 | X6: 0 | Y6: 2 | Z6: 17 | AA6: 8 | AB6: 9 | AC6: 0 | AD6: 0 | AE6: 0 | AF6: 0 | AG6: 0 | AH6: 0 | AI6: 0
A7: ENGLAND: Professional Development League | B7: 2021.02.09 16:00 | C7: Cardiff U23 | D7: Colchester U23 | E7: 3 | F7: 0 | G7: 1 | H7: 1 | I7: Дома | J7: 4 | K7: 1 | L7: 4 | M7: 1 | N7: В | O7: 6 | P7: 4 | Q7: 0 | R7: 2 | S7: 21 | T7: 9 | U7: 12 | V7: 6 | W7: 4 | X7: 0 | Y7: 2 | Z7: 21 | AA7: 9 | AB7: 12 | AC7: 0 | AD7: 0 | AE7: 0 | AF7: 0 | AG7: 0 | AH7: 0 | AI7: 0
A8: ENGLAND: Professional Development League | B8: 2021.02.02 16:00 | C8: Cardiff U23 | D8: Ipswich U23 | E8: 2 | F8: 0 | G8: 2 | H8: 0 | I8: Дома | J8: 4 | K8: 0 | L8: 4 | M8: 0 | N8: В | O8: 7 | P8: 5 | Q8: 0 | R8: 2 | S8: 25 | T8: 9 | U8: 15 | V8: 7 | W8: 5 | X8: 0 | Y8: 2 | Z8: 25 | AA8: 9 | AB8: 15 | AC8: 0 | AD8: 0 | AE8: 0 | AF8: 0 | AG8: 0 | AH8: 0 | AI8: 0
A9: ENGLAND: Professional Development League | B9: 2021.01.19 16:00 | C9: Cardiff U23 | D9: Swansea U23 | E9: 0 | F9: 1 | G9: 2 | H9: 0 | I9: Дома | J9: 2 | K9: 1 | L9: 2 | M9: 1 | N9: =IF(I9="","",IF(I9="Дома",IF(J9>K9,"В",IF(J9=K9,"Н","П")),IF(J9<K9,"В",IF(J9=K9,"Н","П")))) -> В | O9: 8 | P9: 6 | Q9: 0 | R9: 2 | S9: 27 | T9: 10 | U9: 18 | V9: 8 | W9: 6 | X9: 0 | Y9: 2 | Z9: 27 | AA9: 10 | AB9: 18 | AC9: 0 | AD9: 0 | AE9: 0 | AF9: 0 | AG9: 0 | AH9: 0 | AI9: 0
A10: ENGLAND: Professional Development League | B10: 2020.12.22 16:00 | C10: Cardiff U23 | D10: QPR U23 | E10: 0 | F10: 0 | G10: 1 | H10: 0 | I10: Дома | J10: 1 | K10: 0 | L10: 1 | M10: 0 | N10: =IF(I10="","",IF(I10="Дома",IF(J10>K10,"В",IF(J10=K10,"Н","П")),IF(J10<K10,"В",IF(J10=K10,"Н","П")))) -> В | O10: 9 | P10: 7 | Q10: 0 | R10: 2 | S10: 28 | T10: 10 | U10: 21 | V10: 9 | W10: 7 | X10: 0 | Y10: 2 | Z10: 28 | AA10: 10 | AB10: 21 | AC10: 0 | AD10: 0 | AE10: 0 | AF10: 0 | AG10: 0 | AH10: 0 | AI10: 0
A11: ENGLAND: Professional Development League | B11: 2020.10.27 16:00 | C11: Cardiff U23 | D11: Hull U23 | E11: 1 | F11: 0 | G11: 1 | H11: 0 | I11: Дома | J11: 2 | K11: 0 | L11: 2 | M11: 0 | N11: В | O11: 10 | P11: 8 | Q11: 0 | R11: 2 | S11: 30 | T11: 10 | U11: 24 | V11: 10 | W11: 8 | X11: 0 | Y11: 2 | Z11: 30 | AA11: 10 | AB11: 24 | AC11: 0 | AD11: 0 | AE11: 0 | AF11: 0 | AG11: 0 | AH11: 0 | AI11: 0
A12: ENGLAND: Professional Development League | B12: 2020.09.22 15:00 | C12: Cardiff U23 | D12: Bristol City U23 | E12: 0 | F12: 1 | G12: 1 | H12: 1 | I12: Дома | J12: 1 | K12: 2 | L12: 1 | M12: 2 | N12: П | O12: 11 | P12: 8 | Q12: 0 | R12: 3 | S12: 31 | T12: 12 | U12: =IF(I12="","",P12*3+Q12) -> 24 | V12: 11 | W12: 8 | X12: 0 | Y12: 3 | Z12: 31 | AA12: 12 | AB12: 24 | AC12: 0 | AD12: 0 | AE12: 0 | AF12: 0 | AG12: 0 | AH12: 0 | AI12: 0
A13: ENGLAND: Professional Development League | B13: 2020.03.09 16:00 | C13: Cardiff U23 | D13: Ipswich U23 | E13: 0 | F13: 1 | G13: 1 | H13: 0 | I13: Дома | J13: 1 | K13: 1 | L13: 1 | M13: 1 | N13: Н | O13: 12 | P13: 8 | Q13: 1 | R13: 3 | S13: 32 | T13: 13 | U13: 25 | V13: 12 | W13: 8 | X13: 1 | Y13: 3 | Z13: 32 | AA13: 13 | AB13: 25 | AC13: 0 | AD13: 0 | AE13: 0 | AF13: 0 | AG13: 0 | AH13: 0 | AI13: 0
A14: ENGLAND: Professional Development League | B14: 2020.03.02 16:00 | C14: Cardiff U23 | D14: Watford U23 | E14: 2 | F14: 0 | G14: 1 | H14: 1 | I14: Дома | J14: 3 | K14: 1 | L14: 3 | M14: 1 | N14: В | O14: 13 | P14: 9 | Q14: 1 | R14: 3 | S14: 35 | T14: 14 | U14: 28 | V14: 13 | W14: 9 | X14: 1 | Y14: 3 | Z14: 35 | AA14: 14 | AB14: 28 | AC14: 0 | AD14: 0 | AE14: 0 | AF14: 0 | AG14: 0 | AH14: 0 | AI14: 0
A15: ENGLAND: Professional Development League | B15: 2020.02.11 22:00 | C15: Cardiff U23 | D15: Bristol City U23 | E15: 1 | F15: 1 | G15: 2 | H15: 1 | I15: Дома | J15: 3 | K15: 2 | L15: 3 | M15: 2 | N15: В | O15: 14 | P15: 10 | Q15: 1 | R15: 3 | S15: 38 | T15: 16 | U15: 31 | V15: 14 | W15: 10 | X15: 1 | Y15: 3 | Z15: 38 | AA15: 16 | AB15: 31 | AC15: 0 | AD15: 0 | AE15: 0 | AF15: 0 | AG15: 0 | AH15: 0 | AI15: 0
A16: ENGLAND: Professional Development League | B16: 2020.01.13 16:00 | C16: Cardiff U23 | D16: Colchester U23 | E16: 2 | F16: 0 | G16: 0 | H16: 1 | I16: Дома | J16: 2 | K16: 1 | L16: 2 | M16: 1 | N16: В | O16: 15 | P16: 11 | Q16: 1 | R16: 3 | S16: 40 | T16: 17 | U16: 34 | V16: 15 | W16: 11 | X16: 1 | Y16: 3 | Z16: 40 | AA16: 17 | AB16: 34 | AC16: 0 | AD16: 0 | AE16: 0 | AF16: 0 | AG16: 0 | AH16: 0 | AI16: 0
